Workbook

Sheet Afsnit 20 gr. 1 (2) (hidden)
Y1: Byggesag | AB1: 1 | AC1: Støvsugning
B2: Afsnit 20 gr. 1 | Y2: =Skurbog!C1 -> 0 | AB2: 2 | AC2: Svabning, inkl. støvsugning
AB3: 3 | AC3: Maskinslibning, beton, asfalt og træ
B4: Forenklet prisliste | I4: Tast valgfrie satser fra pkt. 1-42 i overenskomsten i hvert sit felt herunder | AB4: 4 | AC4: Maskinslibning, Anhydrit
B5: Rum nr | C5: Antal | D5: L (m) | E5: B (m) | G5: M² | I5: (NB! Kun én linie pr. rum) | Y5: Pr. M² | Z5: Total | AB5: 5 | AC5: Primning
C6: 1 | D6: 1 | E6: 23.99 | G6: =D6*E6 -> 23.99 | I6: 3 | J6: 2 | K6: 24 | L6: 22 | M6: 27 | N6: 32 | O6: 34 | P6: 25 | Y6: ='beregning gr. 1'!C24 -> 0 | Z6: =G6*Y6*C6 -> 0 | AB6: 6 | AC6: Primn..+spartl..+slibn..+støvsug...
C7: 1 | D7: 1 | E7: 28.14 | G7: 28.14 | I7: 3 | J7: 2 | K7: 24 | L7: 22 | M7: 27 | N7: 32 | O7: 34 | P7: 25 | Y7: ='beregning gr. 1'!C44 -> 0 | Z7: 0 | AB7: 7 | AC7: Primn..+spartl.. m/rive+slibn..+støvsug…
C8: 1 | D8: 1 | E8: 32.83 | G8: 32.83 | I8: 3 | J8: 2 | K8: 24 | L8: 22 | M8: 27 | N8: 32 | O8: 34 | P8: 25 | Y8: ='beregning gr. 1'!C67 -> 0 | Z8: 0 | AB8: 8 | AC8: Aftagning og afrensning af belægning
C9: 1 | D9: 1 | E9: 237.74 | G9: 237.74 | I9: 3 | J9: 2 | K9: 24 | L9: 22 | M9: 27 | N9: 32 | O9: 34 | P9: 25 | Y9: ='beregning gr. 1'!C87 -> 0 | Z9: 0 | AB9: 9 | AC9: Aftagning af ekstra lag belægning
C10: 1 | D10: 1 | E10: 7.45 | G10: 7.45 | I10: 3 | J10: 2 | K10: 24 | L10: 22 | M10: 27 | N10: 32 | O10: 34 | P10: 25 | Y10: ='beregning gr. 1'!C107 -> 0 | Z10: 0 | AB10: 10 | AC10: Aftagning af masonit, afrensning af søm
C11: 2 | D11: 1 | E11: 5.34 | G11: =D11*E11*C11 -> 10.68 | I11: 3 | J11: 2 | K11: 24 | L11: 22 | M11: 27 | N11: 32 | O11: 34 | P11: 25 | Y11: ='beregning gr. 1'!C127 -> 0 | Z11: 0 | AB11: 11 | AC11: Korkment, lægni..+klæbn..+ inkl. div. Udskær..
C12: 1 | D12: 1 | E12: 11.46 | G12: 11.46 | I12: 3 | J12: 2 | K12: 24 | L12: 22 | M12: 27 | N12: 32 | O12: 34 | P12: 25 | Y12: ='beregning gr. 1'!C147 -> 0 | Z12: 0 | AB12: 12 | AC12: Opskæring af Korkment
C13: 1 | D13: 1 | E13: 2.17 | G13: 2.17 | I13: 3 | J13: 2 | K13: 24 | L13: 22 | M13: 27 | N13: 32 | O13: 34 | P13: 25 | Y13: ='beregning gr. 1'!C167 -> 0 | Z13: 0 | AB13: 13 | AC13: Træfiberplader, inkl. maskinsømni.., inkl. div udskær..
C14: 3 | D14: 1 | E14: 1.88 | G14: =D14*E14*C14 -> 5.64 | I14: 3 | J14: 2 | K14: 24 | L14: 22 | M14: 27 | N14: 32 | O14: 34 | P14: 25 | Y14: ='beregning gr. 1'!C187 -> 0 | Z14: 0 | AB14: 14 | AC14: Svømmende fiberplader - under 12mm
C15: 1 | D15: 1 | E15: 30.29 | G15: 30.29 | I15: 3 | J15: 2 | K15: 24 | L15: 22 | M15: 27 | N15: 32 | O15: 34 | P15: 25 | Y15: ='beregning gr. 1'!C207 -> 0 | Z15: 0 | AB15: 15 | AC15: Svømmende fiberplader - 12-25mm
C16: 1 | D16: 1 | E16: 9.89 | G16: 9.89 | I16: 3 | J16: 2 | K16: 24 | L16: 22 | M16: 27 | N16: 32 | O16: 34 | P16: 25 | Y16: ='beregning gr. 1'!C227 -> 0 | Z16: 0 | AB16: 16 | AC16: Plastfolie udlagt
C17: 1 | D17: 1 | E17: 7.13 | G17: 7.13 | I17: 3 | J17: 2 | K17: 24 | L17: 22 | M17: 27 | N17: 32 | O17: 34 | P17: 25 | Y17: ='beregning gr. 1'!C247 -> 0 | Z17: 0 | AB17: 17 | AC17: Korkparkolag, alm. tilskær.. er indeholdt
C18: 1 | D18: 1 | E18: 19.83 | G18: 19.83 | I18: 3 | J18: 2 | K18: 24 | L18: 22 | M18: 27 | N18: 32 | O18: 34 | P18: 25 | Y18: ='beregning gr. 1'!C267 -> 0 | Z18: 0 | AB18: 18 | AC18: Dampspærre udlagt, bredde t.o.m. 100 cm
C19: 1 | D19: 1 | E19: 31.57 | G19: 31.57 | I19: 3 | J19: 2 | K19: 24 | L19: 22 | M19: 27 | N19: 32 | O19: 34 | P19: 25 | Y19: ='beregning gr. 1'!C287 -> 0 | Z19: 0 | AB19: 19 | AC19: Polystyrolplader t.om. 100 mm udlagt
C20: 1 | D20: 1 | E20: 27.57 | G20: 27.57 | I20: 3 | J20: 2 | K20: 24 | L20: 22 | M20: 27 | N20: 32 | O20: 34 | P20: 25 | Y20: ='beregning gr. 1'!C307 -> 0 | Z20: 0 | AB20: 20 | AC20: Lægning af luvtæpper og nålefilt
C21: 1 | D21: 1 | E21: 13.73 | G21: 13.73 | I21: 3 | J21: 2 | K21: 24 | L21: 22 | M21: 27 | N21: 32 | O21: 34 | P21: 25 | Y21: ='beregning gr. 1'!C327 -> 0 | Z21: 0 | AB21: 21 | AC21: Opskæring af nålefilt og Luvtæpper (20%) pr kvm
C22: 1 | D22: 1 | E22: 16.62 | G22: 16.62 | I22: 3 | J22: 2 | K22: 24 | L22: 22 | M22: 27 | N22: 32 | O22: 34 | P22: 25 | Y22: ='beregning gr. 1'!C347 -> 0 | Z22: 0 | AB22: 22 | AC22: Lægning af linoleum/vinyl
C23: 1 | D23: 1 | E23: 39.73 | G23: 39.73 | I23: 3 | J23: 2 | K23: 24 | L23: 22 | M23: 27 | N23: 32 | O23: 34 | P23: 25 | Y23: ='beregning gr. 1'!C367 -> 0 | Z23: 0 | AB23: 23 | AC23: Linoleum som Sandwichbelægning
C24: 1 | D24: 1 | E24: 12.32 | G24: 12.32 | I24: 3 | J24: 2 | K24: 24 | L24: 22 | M24: 27 | N24: 32 | O24: 34 | P24: 25 | Y24: ='beregning gr. 1'!C387 -> 0 | Z24: 0 | AB24: 24 | AC24: Opskæring af Linolium/vinyl
C25: 1 | D25: 1 | E25: 7.51 | G25: 7.51 | I25: 3 | J25: 2 | K25: 24 | L25: 22 | M25: 27 | N25: 32 | O25: 34 | P25: 25 | Y25: ='beregning gr. 1'!C407 -> 0 | Z25: 0 | AB25: 25 | AC25: Tæt tilskæring
D26: Total | G26: =SUM(G6:G25) -> 576.29 | AB26: 26 | AC26: Trådsvejsning/trådfugning, 200 cm
I27: Tillægspriser som meter priser pkt. 43-49 | AB27: 27 | AC27: Trådsvejsning/trådfugning, 180 cm
G28: Antal | AB28: 28 | AC28: Trådsvejsning/trådfugning, 150 cm
G29: 46 | I29: m | J29: 43 | K29: Gulvskinne fastgjort med forboring, plugs, skrue m.m | Y29: ='beregning gr. 1'!M49 -> 60.32758775 | Z29: =G29*Y29 -> 2775.069037 | AB29: 29 | AC29: Trådsvejsning/trådfugning, 125 cm
I30: m | J30: 44 | K30: Gulvskinne fastgjort i underlag af træ m.m | Y30: ='beregning gr. 1'!M50 -> 40.23893238 | Z30: =G30*Y30 -> 0 | AB30: 30 | AC30: Fliser udlagt (vinyl, linolium, kork, gummi)
I31: m | J31: 45 | K31: Gulvskinne monteret med dobbeltklæbende tape m.m | Y31: ='beregning gr. 1'!M51 -> 36.19655265 | Z31: =G31*Y31 -> 0 | AB31: 31 | AC31: Tæppefliser m/filt-, pvc-, tjæreholdig-, Bitumenbagside
I32: m | J32: 46 | K32: I rum over 150 m2 betales pkt. 36. Plastfodlister, type 1, inkl. tillæg pr. m. / pr. samling / pr. gering ......................................... kr. | Y32: ='beregning gr. 1'!M52 -> 0.1 | Z32: =G32*Y32 -> 0 | AB32: 32 | AC32: Afdækning af gulv, minimums bredde 90 cm
I33: m | J33: 47 | K33: I rum over 150 m2 betales pkt. 37. Lister/panellister af hårdt træ, fyr og plast/skum, inkl. tillæg pr. m. / pr. samling / pr. gering ..... kr. | Y33: ='beregning gr. 1'!M53 -> 5.64 | Z33: 0 | AB33: 33 | AC33: Aftagning af gulvafdækning
I34: m | J34: 48 | K34: For ”strips”, der leveres tilskårne, pr. meter .............................. kr. | Y34: ='beregning gr. 1'!M54 -> 3.73 | Z34: 0 | AB34: 34 | AC34: Afdækning med masonit
H35: 5 | I35: m² | J35: 49 | K35: Diagonalt samt sildebensmønster tillægges grund-priserne 10 %, tillægget betales til arbejde udført efter 20-01-30 | Y35: =IF('Afsnit 20 gr. 1 (2)'!I35="","",HLOOKUP('Afsnit 20 gr. 1 (2)'!$G$35,'beregning gr. 1'!E1:N55,'Afsnit 20 gr. 1 (2)'!I6+32))*0.1 ->  | Z35: =IFERROR(E26*Z26,"") -> 0 | AB35: 35 | AC35: Aftagning af masonitafdækning
Y36: ='beregning gr. 1'!M56 -> 0 | AB36: 36 | AC36: Plastfodlister opsat (Type 1)
AB37: 37 | AC37: Lister opsat
I38: Akkord beregning | Z38: =SUM(Z6:Z36) -> 2775.069037 | AB38: 38 | AC38: Tillæg for bort, tæt tildannet i samlinger
I39: Overenskomst tillæg gældende fra 1. marts 2022 | Y39: 0.021 | Z39: =Z38*Y39 -> 58.27644977 | AB39: 39 | AC39: Tillæg for bort, svejst i samlinger
AB40: 40 | AC40: Tillæg for friser, tæt tildannet i samlinger
I41: Total Beregning | Z41: =SUM(Z38*Y39+Z38) -> 2833.345486 | AB41: 41 | AC41: Tillæg for friser, svejst i samlinger
V42: Akkordering 15% | Z42: =Z41*0.15 -> 425.001823 | AB42: 42 | AC42: Tillæg for skridsikker vinyl
AB43: 43 | AC43: Gulvskinne m/forboring, plugs, skrue, klæbning
Y44: Sum akk | Z44: =SUM(Z41:Z42) -> 3258.347309 | AB44: 44 | AC44: Gulvskinne i underlag af træ, inkl. klæbning
Y45: SH | Z45: =Z44*0.129 -> 420.3268029 | AB45: 45 | AC45: Gulvskinne med dobbeltklæbende tape
Y46: Feriepenge | Z46: =Z44*0.125 -> 407.2934137 | AB46: 46 | AC46: Plastfodlister i pkt. 36 i rum over 150 kvm
Z47: =SUM(Z44:Z46) -> 4085.967526 | AB47: 47 | AC47: Lister i pkt. 37 i rum over 150 kvm
Y48: Pension | Z48: =Z47*0.0815 -> 333.0063534 | AB48: 48 | AC48: "Strips" Leveret tilskåret
Y49: Sum | Z49: =SUM(Z47:Z48) -> 4418.973879 | AB49: 49 | AC49: Diagonalt samt sildebensmøster

Sheet Afsnit 20 gr. 1
Y1: Byggesag | AB1: 1 | AC1: Støvsugning
B2: Afsnit 20 gr. 1 | Y2: =Skurbog!C1 -> 0 | AB2: 2 | AC2: Svabning, inkl. støvsugning
AB3: 3 | AC3: Maskinslibning, beton, asfalt og træ
B4: Forenklet prisliste | I4: Tast valgfrie satser fra pkt. 1-45 i overenskomsten i hvert sit felt herunder | AB4: 4 | AC4: Maskinslibning, Anhydrit
B5: Rum nr | C5: Antal | D5: L (m) | E5: B (m) | G5: M² | I5: (NB! Kun én linie pr. rum) | Y5: Pr. M² | Z5: Total | AB5: 5 | AC5: Primning
G6: =D6*E6 -> 0 | Y6: ='beregning gr. 1'!C24 -> 0 | Z6: =G6*Y6*C6 -> 0 | AB6: 6 | AC6: Primn..+spartl..+slibn..+støvsug...
G7: =D7*E7 -> 0 | Y7: ='beregning gr. 1'!C44 -> 0 | Z7: =G7*Y7*C7 -> 0 | AB7: 7 | AC7: Primn..+spartl.. m/rive+slibn..+støvsug…
G8: 0 | Y8: ='beregning gr. 1'!C67 -> 0 | Z8: 0 | AB8: 8 | AC8: Aftagning og afrensning af belægning
G9: 0 | Y9: ='beregning gr. 1'!C87 -> 0 | Z9: 0 | AB9: 9 | AC9: Aftagning af ekstra lag belægning
G10: 0 | Y10: ='beregning gr. 1'!C107 -> 0 | Z10: 0 | AB10: 10 | AC10: Aftagning af masonit, afrensning af søm
G11: =D11*E11*C11 -> 0 | Y11: ='beregning gr. 1'!C127 -> 0 | Z11: 0 | AB11: 11 | AC11: Korkment, lægni..+klæbn..+ inkl. div. Udskær..
G12: 0 | Y12: ='beregning gr. 1'!C147 -> 0 | Z12: 0 | AB12: 12 | AC12: Opskæring af Korkment
G13: 0 | Y13: ='beregning gr. 1'!C167 -> 0 | Z13: 0 | AB13: 13 | AC13: Træfiberplader, inkl. maskinsømni.., inkl. div udskær..
G14: =D14*E14*C14 -> 0 | Y14: ='beregning gr. 1'!C187 -> 0 | Z14: 0 | AB14: 14 | AC14: Svømmende fiberplader - under 12mm
G15: 0 | Y15: ='beregning gr. 1'!C207 -> 0 | Z15: 0 | AB15: 15 | AC15: Svømmende fiberplader - 12-25mm
G16: 0 | Y16: ='beregning gr. 1'!C227 -> 0 | Z16: 0 | AB16: 16 | AC16: Plastfolie udlagt
G17: 0 | Y17: ='beregning gr. 1'!C247 -> 0 | Z17: 0 | AB17: 17 | AC17: Korkparkolag, alm. tilskær.. er indeholdt
G18: 0 | Y18: ='beregning gr. 1'!C267 -> 0 | Z18: 0 | AB18: 18 | AC18: Dampspærre udlagt, bredde t.o.m. 100 cm
G19: 0 | Y19: ='beregning gr. 1'!C287 -> 0 | Z19: 0 | AB19: 19 | AC19: Polystyrolplader t.om. 100 mm udlagt
G20: 0 | Y20: ='beregning gr. 1'!C307 -> 0 | Z20: 0 | AB20: 20 | AC20: Lægning af luvtæpper og nålefilt
G21: 0 | Y21: ='beregning gr. 1'!C327 -> 0 | Z21: 0 | AB21: 21 | AC21: Opskæring af nålefilt og Luvtæpper (20%) pr kvm
G22: 0 | Y22: ='beregning gr. 1'!C347 -> 0 | Z22: 0 | AB22: 22 | AC22: Lægning af linoleum/vinyl
G23: 0 | Y23: ='beregning gr. 1'!C367 -> 0 | Z23: 0 | AB23: 23 | AC23: Linoleum som Sandwichbelægning
G24: 0 | Y24: ='beregning gr. 1'!C387 -> 0 | Z24: 0 | AB24: 24 | AC24: Opskæring af Linolium/vinyl
G25: 0 | Y25: ='beregning gr. 1'!C407 -> 0 | Z25: 0 | AB25: 25 | AC25: Tæt tilskæring
D26: Total | G26: =SUM(G6:G25) -> 0 | AB26: 26 | AC26: Trådsvejsning/trådfugning, 200 cm
I27: Tillægspriser som meter priser pkt. 46-52 | AB27: 27 | AC27: Trådsvejsning/trådfugning, 180 cm
G28: Antal | AB28: 28 | AC28: Trådsvejsning/trådfugning, 150 cm
I29: m | J29: 46 | K29: Gulvskinne fastgjort med forboring, plugs, skrue m.m | Y29: ='beregning gr. 1'!M49 -> 60.32758775 | Z29: =G29*Y29 -> 0 | AB29: 29 | AC29: Trådsvejsning/trådfugning, 125 cm
I30: m | J30: 47 | K30: Gulvskinne fastgjort i underlag af træ m.m | Y30: ='beregning gr. 1'!M50 -> 40.23893238 | Z30: =G30*Y30 -> 0 | AB30: 30 | AC30: Fliser udlagt (vinyl, linolium, kork, gummi)
I31: m | J31: 48 | K31: Gulvskinne monteret med dobbeltklæbende tape m.m | Y31: ='beregning gr. 1'!M51 -> 36.19655265 | Z31: =G31*Y31 -> 0 | AB31: 31 | AC31: Tæppefliser m/filt-, pvc-, tjæreholdig-, Bitumenbagside
I32: m | J32: 49 | K32: I rum over 150 m2 betales pkt. 36. Plastfodlister, type 1, inkl. tillæg pr. m. / pr. samling / pr. gering ......................................... kr. | Y32: ='beregning gr. 1'!M52 -> 0.1 | Z32: =G32*Y32 -> 0 | AB32: 32 | AC32: Afdækning af gulv, minimums bredde 90 cm
I33: m | J33: 50 | K33: I rum over 150 m2 betales pkt. 37. Lister/panellister af hårdt træ, fyr og plast/skum, inkl. tillæg pr. m. / pr. samling / pr. gering ..... kr. | Y33: ='beregning gr. 1'!M53 -> 5.64 | Z33: 0 | AB33: 33 | AC33: Aftagning af gulvafdækning
I34: m | J34: 51 | K34: For ”strips”, der leveres tilskårne, pr. meter .............................. kr. | Y34: ='beregning gr. 1'!M54 -> 3.73 | Z34: 0 | AB34: 34 | AC34: Afdækning med masonit
H35: 5 | I35: m² | J35: 52 | K35: Diagonalt samt sildebensmønster tillægges grund-priserne 10 %, tillægget betales til arbejde udført efter 20-01-30 | Y35: =IF('Afsnit 20 gr. 1'!I35="","",HLOOKUP('Afsnit 20 gr. 1'!$G$35,'beregning gr. 1'!E1:N55,'Afsnit 20 gr. 1'!I6+33)) ->  | Z35: =IFERROR(G35*Y35,"") ->  | AB35: 35 | AC35: Aftagning af masonitafdækning
Y36: ='beregning gr. 1'!M56 -> 0 | AB36: 36 | AC36: Plastfodlister opsat (Type 1)
AB37: 37 | AC37: Lister opsat
I38: Akkord beregning | Z38: =SUM(Z6:Z36) -> 0 | AB38: 38 | AC38: Tillæg for bort, tæt tildannet i samlinger
I39: Overenskomst tillæg gældende fra 1.marts 2025 | Y39: 0 | Z39: =Z38*Y39 -> 0 | AB39: 39 | AC39: Tillæg for bort, svejst i samlinger
AB40: 40 | AC40: Tillæg for friser, tæt tildannet i samlinger
I41: Total Beregning | Z41: =SUM(Z38*Y39+Z38) -> 0 | AB41: 41 | AC41: Tillæg for friser, svejst i samlinger
AB42: 42 | AC42: Tillæg for skridsikker vinyl
AB43: 43 | AC43: Færdigtildannet Linoleumsbånd som fodpanel, t.o.m 10 cm høje, opsat med tape, inklusiv indvendige og udvendige hjørner eksklusiv, tilskæring mod gulv.
AB44: 44 | AC44: "Boltaprofil" lignende skinne monteret i top af linoleumsbånd på væg, med påmonteret tape eller monteret med montagelim.
AB45: 45 | AC45: Fugning med 1 komponent fugemasse t.o.m. 5 mm mellem bånd og gulv, eller i top af linoleumsbånd, udført som glittet skrå fuge.
AB46: 46 | AC46: Gulvskinne m/forboring, plugs, skrue, klæbning
AB47: 47 | AC47: Gulvskinne i underlag af træ, inkl. klæbning
AB48: 48 | AC48: Gulvskinne med dobbeltklæbende tape
AB49: 49 | AC49: Plastfodlister i pkt. 36 i rum over 150 kvm
AB50: 50 | AC50: Lister i pkt. 37 i rum over 150 kvm
AB51: 51 | AC51: "Strips" Leveret tilskåret
AB52: 52 | AC52: Diagonalt samt sildebensmøster

Sheet Afsnit 20 gr. 2
C4: Vådrum | F4: M² priser. Indsæt gældende Pkt. i hvert sit felt herunder
C5: M² | E5: Antal | P5: M² | T5: Antal
C6: 1 | E6: 1 | P6: 1 | T6: 1 | AA6: Afsnit 20 gr. 2
C8: Gulv | P8: Væg | AF8: 1
C12: Tillæg | F12: Gulv vinyl Tillægspriser som meter eller stk.
D13: Pkt. | E13: Antal | AA13: Pr. m², m/stk. | AB13: Total
D14: 1 | F14: =IFERROR(VLOOKUP(D14,'Beregning gr. 2'!F1:P52,11,FALSE),"") -> m² | G14: =IFERROR(VLOOKUP(D14,'Beregning gr. 2'!F1:P52,10,FALSE),"") -> Støvsugning | H14: =IFERROR(VLOOKUP(F14,[1]Ark1!#REF!,12,FALSE),"") ->  | I14: =IFERROR(VLOOKUP(G14,[1]Ark1!#REF!,12,FALSE),"") ->  | J14: =IFERROR(VLOOKUP(H14,[1]Ark1!#REF!,12,FALSE),"") ->  | K14: =IFERROR(VLOOKUP(I14,[1]Ark1!#REF!,12,FALSE),"") ->  | L14: =IFERROR(VLOOKUP(J14,[1]Ark1!#REF!,12,FALSE),"") ->  | M14: =IFERROR(VLOOKUP(K14,[1]Ark1!#REF!,12,FALSE),"") ->  | N14: =IFERROR(VLOOKUP(L14,[1]Ark1!#REF!,12,FALSE),"") ->  | O14: =IFERROR(VLOOKUP(M14,[1]Ark1!#REF!,12,FALSE),"") ->  | P14: =IFERROR(VLOOKUP(N14,[1]Ark1!#REF!,12,FALSE),"") ->  | Q14: =IFERROR(VLOOKUP(O14,[1]Ark1!#REF!,12,FALSE),"") ->  | R14: =IFERROR(VLOOKUP(P14,[1]Ark1!#REF!,12,FALSE),"") ->  | S14: =IFERROR(VLOOKUP(Q14,[1]Ark1!#REF!,12,FALSE),"") ->  | T14: =IFERROR(VLOOKUP(R14,[1]Ark1!#REF!,12,FALSE),"") ->  | U14: =IFERROR(VLOOKUP(S14,[1]Ark1!#REF!,12,FALSE),"") ->  | V14: =IFERROR(VLOOKUP(T14,[1]Ark1!#REF!,12,FALSE),"") ->  | W14: =IFERROR(VLOOKUP(U14,[1]Ark1!#REF!,12,FALSE),"") ->  | X14: =IFERROR(VLOOKUP(V14,[1]Ark1!#REF!,12,FALSE),"") ->  | Y14: =IFERROR(VLOOKUP(W14,[1]Ark1!#REF!,12,FALSE),"") ->  | Z14: =IFERROR(VLOOKUP(X14,[1]Ark1!#REF!,12,FALSE),"") ->  | AA14: =IF(D14="","",HLOOKUP($C$6,'Beregning gr. 2'!F1:P52,D14+3)) -> 3.41383898 | AB14: =IFERROR(AD14*C6*E14,"")*E6 -> 0 | AD14: =ROUND(AA14,2) -> 3.41
D15: 2 | F15: =IFERROR(VLOOKUP(D15,'Beregning gr. 2'!F1:P52,11,FALSE),"") -> m² | G15: =IFERROR(VLOOKUP(D15,'Beregning gr. 2'!F1:P52,10,FALSE),"") -> Svabning, inkl. støvsugning | H15: =IFERROR(VLOOKUP(F15,[1]Ark1!#REF!,12,FALSE),"") ->  | I15: =IFERROR(VLOOKUP(G15,[1]Ark1!#REF!,12,FALSE),"") ->  | J15: =IFERROR(VLOOKUP(H15,[1]Ark1!#REF!,12,FALSE),"") ->  | K15: =IFERROR(VLOOKUP(I15,[1]Ark1!#REF!,12,FALSE),"") ->  | L15: =IFERROR(VLOOKUP(J15,[1]Ark1!#REF!,12,FALSE),"") ->  | M15: =IFERROR(VLOOKUP(K15,[1]Ark1!#REF!,12,FALSE),"") ->  | N15: =IFERROR(VLOOKUP(L15,[1]Ark1!#REF!,12,FALSE),"") ->  | O15: =IFERROR(VLOOKUP(M15,[1]Ark1!#REF!,12,FALSE),"") ->  | P15: =IFERROR(VLOOKUP(N15,[1]Ark1!#REF!,12,FALSE),"") ->  | Q15: =IFERROR(VLOOKUP(O15,[1]Ark1!#REF!,12,FALSE),"") ->  | R15: =IFERROR(VLOOKUP(P15,[1]Ark1!#REF!,12,FALSE),"") ->  | S15: =IFERROR(VLOOKUP(Q15,[1]Ark1!#REF!,12,FALSE),"") ->  | T15: =IFERROR(VLOOKUP(R15,[1]Ark1!#REF!,12,FALSE),"") ->  | U15: =IFERROR(VLOOKUP(S15,[1]Ark1!#REF!,12,FALSE),"") ->  | V15: =IFERROR(VLOOKUP(T15,[1]Ark1!#REF!,12,FALSE),"") ->  | W15: =IFERROR(VLOOKUP(U15,[1]Ark1!#REF!,12,FALSE),"") ->  | X15: =IFERROR(VLOOKUP(V15,[1]Ark1!#REF!,12,FALSE),"") ->  | Y15: =IFERROR(VLOOKUP(W15,[1]Ark1!#REF!,12,FALSE),"") ->  | Z15: =IFERROR(VLOOKUP(X15,[1]Ark1!#REF!,12,FALSE),"") ->  | AA15: =IF(D15="","",HLOOKUP($C$6,'Beregning gr. 2'!F1:P52,D15+3)) -> 8.73794887 | AB15: =IFERROR(AD15*C6*E15,"")*E6 -> 0 | AD15: 8.74
D16: 3 | F16: =IFERROR(VLOOKUP(D16,'Beregning gr. 2'!F1:P52,11,FALSE),"") -> m² | G16: =IFERROR(VLOOKUP(D16,'Beregning gr. 2'!F1:P52,10,FALSE),"") -> Maskinslibning, beton, asfalt og træ | H16: =IFERROR(VLOOKUP(F16,[1]Ark1!#REF!,12,FALSE),"") ->  | I16: =IFERROR(VLOOKUP(G16,[1]Ark1!#REF!,12,FALSE),"") ->  | J16: =IFERROR(VLOOKUP(H16,[1]Ark1!#REF!,12,FALSE),"") ->  | K16: =IFERROR(VLOOKUP(I16,[1]Ark1!#REF!,12,FALSE),"") ->  | L16: =IFERROR(VLOOKUP(J16,[1]Ark1!#REF!,12,FALSE),"") ->  | M16: =IFERROR(VLOOKUP(K16,[1]Ark1!#REF!,12,FALSE),"") ->  | N16: =IFERROR(VLOOKUP(L16,[1]Ark1!#REF!,12,FALSE),"") ->  | O16: =IFERROR(VLOOKUP(M16,[1]Ark1!#REF!,12,FALSE),"") ->  | P16: =IFERROR(VLOOKUP(N16,[1]Ark1!#REF!,12,FALSE),"") ->  | Q16: =IFERROR(VLOOKUP(O16,[1]Ark1!#REF!,12,FALSE),"") ->  | R16: =IFERROR(VLOOKUP(P16,[1]Ark1!#REF!,12,FALSE),"") ->  | S16: =IFERROR(VLOOKUP(Q16,[1]Ark1!#REF!,12,FALSE),"") ->  | T16: =IFERROR(VLOOKUP(R16,[1]Ark1!#REF!,12,FALSE),"") ->  | U16: =IFERROR(VLOOKUP(S16,[1]Ark1!#REF!,12,FALSE),"") ->  | V16: =IFERROR(VLOOKUP(T16,[1]Ark1!#REF!,12,FALSE),"") ->  | W16: =IFERROR(VLOOKUP(U16,[1]Ark1!#REF!,12,FALSE),"") ->  | X16: =IFERROR(VLOOKUP(V16,[1]Ark1!#REF!,12,FALSE),"") ->  | Y16: =IFERROR(VLOOKUP(W16,[1]Ark1!#REF!,12,FALSE),"") ->  | Z16: =IFERROR(VLOOKUP(X16,[1]Ark1!#REF!,12,FALSE),"") ->  | AA16: =IF(D16="","",HLOOKUP($C$6,'Beregning gr. 2'!F1:P52,D16+3)) -> 4.547677197 | AB16: =IFERROR(AD16*C6*E16,"")*E6 -> 0 | AD16: 4.55
D17: 4 | F17: =IFERROR(VLOOKUP(D17,'Beregning gr. 2'!F1:P52,11,FALSE),"") -> m² | G17: =IFERROR(VLOOKUP(D17,'Beregning gr. 2'!F1:P52,10,FALSE),"") -> Maskinslibning, Anhydrit | H17: =IFERROR(VLOOKUP(F17,[1]Ark1!#REF!,12,FALSE),"") ->  | I17: =IFERROR(VLOOKUP(G17,[1]Ark1!#REF!,12,FALSE),"") ->  | J17: =IFERROR(VLOOKUP(H17,[1]Ark1!#REF!,12,FALSE),"") ->  | K17: =IFERROR(VLOOKUP(I17,[1]Ark1!#REF!,12,FALSE),"") ->  | L17: =IFERROR(VLOOKUP(J17,[1]Ark1!#REF!,12,FALSE),"") ->  | M17: =IFERROR(VLOOKUP(K17,[1]Ark1!#REF!,12,FALSE),"") ->  | N17: =IFERROR(VLOOKUP(L17,[1]Ark1!#REF!,12,FALSE),"") ->  | O17: =IFERROR(VLOOKUP(M17,[1]Ark1!#REF!,12,FALSE),"") ->  | P17: =IFERROR(VLOOKUP(N17,[1]Ark1!#REF!,12,FALSE),"") ->  | Q17: =IFERROR(VLOOKUP(O17,[1]Ark1!#REF!,12,FALSE),"") ->  | R17: =IFERROR(VLOOKUP(P17,[1]Ark1!#REF!,12,FALSE),"") ->  | S17: =IFERROR(VLOOKUP(Q17,[1]Ark1!#REF!,12,FALSE),"") ->  | T17: =IFERROR(VLOOKUP(R17,[1]Ark1!#REF!,12,FALSE),"") ->  | U17: =IFERROR(VLOOKUP(S17,[1]Ark1!#REF!,12,FALSE),"") ->  | V17: =IFERROR(VLOOKUP(T17,[1]Ark1!#REF!,12,FALSE),"") ->  | W17: =IFERROR(VLOOKUP(U17,[1]Ark1!#REF!,12,FALSE),"") ->  | X17: =IFERROR(VLOOKUP(V17,[1]Ark1!#REF!,12,FALSE),"") ->  | Y17: =IFERROR(VLOOKUP(W17,[1]Ark1!#REF!,12,FALSE),"") ->  | Z17: =IFERROR(VLOOKUP(X17,[1]Ark1!#REF!,12,FALSE),"") ->  | AA17: =IF(D17="","",HLOOKUP($C$6,'Beregning gr. 2'!F1:P52,D17+3)) -> 8.02313782 | AB17: =IFERROR(AD17*C6*E17,"")*E6 -> 0 | AD17: 8.02
D18: 5 | F18: =IFERROR(VLOOKUP(D18,'Beregning gr. 2'!F1:P52,11,FALSE),"") -> m² | G18: =IFERROR(VLOOKUP(D18,'Beregning gr. 2'!F1:P52,10,FALSE),"") -> Primning | H18: =IFERROR(VLOOKUP(F18,[1]Ark1!#REF!,12,FALSE),"") ->  | I18: =IFERROR(VLOOKUP(G18,[1]Ark1!#REF!,12,FALSE),"") ->  | J18: =IFERROR(VLOOKUP(H18,[1]Ark1!#REF!,12,FALSE),"") ->  | K18: =IFERROR(VLOOKUP(I18,[1]Ark1!#REF!,12,FALSE),"") ->  | L18: =IFERROR(VLOOKUP(J18,[1]Ark1!#REF!,12,FALSE),"") ->  | M18: =IFERROR(VLOOKUP(K18,[1]Ark1!#REF!,12,FALSE),"") ->  | N18: =IFERROR(VLOOKUP(L18,[1]Ark1!#REF!,12,FALSE),"") ->  | O18: =IFERROR(VLOOKUP(M18,[1]Ark1!#REF!,12,FALSE),"") ->  | P18: =IFERROR(VLOOKUP(N18,[1]Ark1!#REF!,12,FALSE),"") ->  | Q18: =IFERROR(VLOOKUP(O18,[1]Ark1!#REF!,12,FALSE),"") ->  | R18: =IFERROR(VLOOKUP(P18,[1]Ark1!#REF!,12,FALSE),"") ->  | S18: =IFERROR(VLOOKUP(Q18,[1]Ark1!#REF!,12,FALSE),"") ->  | T18: =IFERROR(VLOOKUP(R18,[1]Ark1!#REF!,12,FALSE),"") ->  | U18: =IFERROR(VLOOKUP(S18,[1]Ark1!#REF!,12,FALSE),"") ->  | V18: =IFERROR(VLOOKUP(T18,[1]Ark1!#REF!,12,FALSE),"") ->  | W18: =IFERROR(VLOOKUP(U18,[1]Ark1!#REF!,12,FALSE),"") ->  | X18: =IFERROR(VLOOKUP(V18,[1]Ark1!#REF!,12,FALSE),"") ->  | Y18: =IFERROR(VLOOKUP(W18,[1]Ark1!#REF!,12,FALSE),"") ->  | Z18: =IFERROR(VLOOKUP(X18,[1]Ark1!#REF!,12,FALSE),"") ->  | AA18: =IF(D18="","",HLOOKUP($C$6,'Beregning gr. 2'!F1:P52,D18+3)) -> 2.908541514 | AB18: =IFERROR(AD18*C6*E18,"")*E6 -> 0 | AD18: 2.91
D19: 6 | F19: =IFERROR(VLOOKUP(D19,'Beregning gr. 2'!F1:P52,11,FALSE),"") -> m² | G19: =IFERROR(VLOOKUP(D19,'Beregning gr. 2'!F1:P52,10,FALSE),"") -> Primn..+spartl..+slibn..+støvsug... | H19: =IFERROR(VLOOKUP(F19,[1]Ark1!#REF!,12,FALSE),"") ->  | I19: =IFERROR(VLOOKUP(G19,[1]Ark1!#REF!,12,FALSE),"") ->  | J19: =IFERROR(VLOOKUP(H19,[1]Ark1!#REF!,12,FALSE),"") ->  | K19: =IFERROR(VLOOKUP(I19,[1]Ark1!#REF!,12,FALSE),"") ->  | L19: =IFERROR(VLOOKUP(J19,[1]Ark1!#REF!,12,FALSE),"") ->  | M19: =IFERROR(VLOOKUP(K19,[1]Ark1!#REF!,12,FALSE),"") ->  | N19: =IFERROR(VLOOKUP(L19,[1]Ark1!#REF!,12,FALSE),"") ->  | O19: =IFERROR(VLOOKUP(M19,[1]Ark1!#REF!,12,FALSE),"") ->  | P19: =IFERROR(VLOOKUP(N19,[1]Ark1!#REF!,12,FALSE),"") ->  | Q19: =IFERROR(VLOOKUP(O19,[1]Ark1!#REF!,12,FALSE),"") ->  | R19: =IFERROR(VLOOKUP(P19,[1]Ark1!#REF!,12,FALSE),"") ->  | S19: =IFERROR(VLOOKUP(Q19,[1]Ark1!#REF!,12,FALSE),"") ->  | T19: =IFERROR(VLOOKUP(R19,[1]Ark1!#REF!,12,FALSE),"") ->  | U19: =IFERROR(VLOOKUP(S19,[1]Ark1!#REF!,12,FALSE),"") ->  | V19: =IFERROR(VLOOKUP(T19,[1]Ark1!#REF!,12,FALSE),"") ->  | W19: =IFERROR(VLOOKUP(U19,[1]Ark1!#REF!,12,FALSE),"") ->  | X19: =IFERROR(VLOOKUP(V19,[1]Ark1!#REF!,12,FALSE),"") ->  | Y19: =IFERROR(VLOOKUP(W19,[1]Ark1!#REF!,12,FALSE),"") ->  | Z19: =IFERROR(VLOOKUP(X19,[1]Ark1!#REF!,12,FALSE),"") ->  | AA19: =IF(D19="","",HLOOKUP($C$6,'Beregning gr. 2'!F1:P52,D19+3)) -> 22.75071032 | AB19: =IFERROR(AD19*C6*E19,"")*E6 -> 0 | AD19: 22.75
D20: 7 | F20: =IFERROR(VLOOKUP(D20,'Beregning gr. 2'!F1:P52,11,FALSE),"") -> m² | G20: =IFERROR(VLOOKUP(D20,'Beregning gr. 2'!F1:P52,10,FALSE),"") -> Primn..+spartl.. m/rive+slibn..+støvsug… | H20: =IFERROR(VLOOKUP(F20,[1]Ark1!#REF!,12,FALSE),"") ->  | I20: =IFERROR(VLOOKUP(G20,[1]Ark1!#REF!,12,FALSE),"") ->  | J20: =IFERROR(VLOOKUP(H20,[1]Ark1!#REF!,12,FALSE),"") ->  | K20: =IFERROR(VLOOKUP(I20,[1]Ark1!#REF!,12,FALSE),"") ->  | L20: =IFERROR(VLOOKUP(J20,[1]Ark1!#REF!,12,FALSE),"") ->  | M20: =IFERROR(VLOOKUP(K20,[1]Ark1!#REF!,12,FALSE),"") ->  | N20: =IFERROR(VLOOKUP(L20,[1]Ark1!#REF!,12,FALSE),"") ->  | O20: =IFERROR(VLOOKUP(M20,[1]Ark1!#REF!,12,FALSE),"") ->  | P20: =IFERROR(VLOOKUP(N20,[1]Ark1!#REF!,12,FALSE),"") ->  | Q20: =IFERROR(VLOOKUP(O20,[1]Ark1!#REF!,12,FALSE),"") ->  | R20: =IFERROR(VLOOKUP(P20,[1]Ark1!#REF!,12,FALSE),"") ->  | S20: =IFERROR(VLOOKUP(Q20,[1]Ark1!#REF!,12,FALSE),"") ->  | T20: =IFERROR(VLOOKUP(R20,[1]Ark1!#REF!,12,FALSE),"") ->  | U20: =IFERROR(VLOOKUP(S20,[1]Ark1!#REF!,12,FALSE),"") ->  | V20: =IFERROR(VLOOKUP(T20,[1]Ark1!#REF!,12,FALSE),"") ->  | W20: =IFERROR(VLOOKUP(U20,[1]Ark1!#REF!,12,FALSE),"") ->  | X20: =IFERROR(VLOOKUP(V20,[1]Ark1!#REF!,12,FALSE),"") ->  | Y20: =IFERROR(VLOOKUP(W20,[1]Ark1!#REF!,12,FALSE),"") ->  | Z20: =IFERROR(VLOOKUP(X20,[1]Ark1!#REF!,12,FALSE),"") ->  | AA20: =IF(D20="","",HLOOKUP($C$6,'Beregning gr. 2'!F1:P52,D20+3)) -> 34.10141682 | AB20: =IFERROR(AD20*C6*E20,"")*E6 -> 0 | AD20: 34.1
D21: 8 | F21: =IFERROR(VLOOKUP(D21,'Beregning gr. 2'!F1:P52,11,FALSE),"") -> m² | G21: =IFERROR(VLOOKUP(D21,'Beregning gr. 2'!F1:P52,10,FALSE),"") -> Aftagning og afrensning af belægning | H21: =IFERROR(VLOOKUP(F21,[1]Ark1!#REF!,12,FALSE),"") ->  | I21: =IFERROR(VLOOKUP(G21,[1]Ark1!#REF!,12,FALSE),"") ->  | J21: =IFERROR(VLOOKUP(H21,[1]Ark1!#REF!,12,FALSE),"") ->  | K21: =IFERROR(VLOOKUP(I21,[1]Ark1!#REF!,12,FALSE),"") ->  | L21: =IFERROR(VLOOKUP(J21,[1]Ark1!#REF!,12,FALSE),"") ->  | M21: =IFERROR(VLOOKUP(K21,[1]Ark1!#REF!,12,FALSE),"") ->  | N21: =IFERROR(VLOOKUP(L21,[1]Ark1!#REF!,12,FALSE),"") ->  | O21: =IFERROR(VLOOKUP(M21,[1]Ark1!#REF!,12,FALSE),"") ->  | P21: =IFERROR(VLOOKUP(N21,[1]Ark1!#REF!,12,FALSE),"") ->  | Q21: =IFERROR(VLOOKUP(O21,[1]Ark1!#REF!,12,FALSE),"") ->  | R21: =IFERROR(VLOOKUP(P21,[1]Ark1!#REF!,12,FALSE),"") ->  | S21: =IFERROR(VLOOKUP(Q21,[1]Ark1!#REF!,12,FALSE),"") ->  | T21: =IFERROR(VLOOKUP(R21,[1]Ark1!#REF!,12,FALSE),"") ->  | U21: =IFERROR(VLOOKUP(S21,[1]Ark1!#REF!,12,FALSE),"") ->  | V21: =IFERROR(VLOOKUP(T21,[1]Ark1!#REF!,12,FALSE),"") ->  | W21: =IFERROR(VLOOKUP(U21,[1]Ark1!#REF!,12,FALSE),"") ->  | X21: =IFERROR(VLOOKUP(V21,[1]Ark1!#REF!,12,FALSE),"") ->  | Y21: =IFERROR(VLOOKUP(W21,[1]Ark1!#REF!,12,FALSE),"") ->  | Z21: =IFERROR(VLOOKUP(X21,[1]Ark1!#REF!,12,FALSE),"") ->  | AA21: =IF(D21="","",HLOOKUP($C$6,'Beregning gr. 2'!F1:P52,D21+3)) -> 36.87439072 | AB21: =IFERROR(C6*AD21*E21,"")*E6 -> 0 | AD21: 36.87
D22: 9 | F22: =IFERROR(VLOOKUP(D22,'Beregning gr. 2'!F1:P52,11,FALSE),"") -> m² | G22: =IFERROR(VLOOKUP(D22,'Beregning gr. 2'!F1:P52,10,FALSE),"") -> Aftagning af ekstra lag belægning | H22: =IFERROR(VLOOKUP(F22,[1]Ark1!#REF!,12,FALSE),"") ->  | I22: =IFERROR(VLOOKUP(G22,[1]Ark1!#REF!,12,FALSE),"") ->  | J22: =IFERROR(VLOOKUP(H22,[1]Ark1!#REF!,12,FALSE),"") ->  | K22: =IFERROR(VLOOKUP(I22,[1]Ark1!#REF!,12,FALSE),"") ->  | L22: =IFERROR(VLOOKUP(J22,[1]Ark1!#REF!,12,FALSE),"") ->  | M22: =IFERROR(VLOOKUP(K22,[1]Ark1!#REF!,12,FALSE),"") ->  | N22: =IFERROR(VLOOKUP(L22,[1]Ark1!#REF!,12,FALSE),"") ->  | O22: =IFERROR(VLOOKUP(M22,[1]Ark1!#REF!,12,FALSE),"") ->  | P22: =IFERROR(VLOOKUP(N22,[1]Ark1!#REF!,12,FALSE),"") ->  | Q22: =IFERROR(VLOOKUP(O22,[1]Ark1!#REF!,12,FALSE),"") ->  | R22: =IFERROR(VLOOKUP(P22,[1]Ark1!#REF!,12,FALSE),"") ->  | S22: =IFERROR(VLOOKUP(Q22,[1]Ark1!#REF!,12,FALSE),"") ->  | T22: =IFERROR(VLOOKUP(R22,[1]Ark1!#REF!,12,FALSE),"") ->  | U22: =IFERROR(VLOOKUP(S22,[1]Ark1!#REF!,12,FALSE),"") ->  | V22: =IFERROR(VLOOKUP(T22,[1]Ark1!#REF!,12,FALSE),"") ->  | W22: =IFERROR(VLOOKUP(U22,[1]Ark1!#REF!,12,FALSE),"") ->  | X22: =IFERROR(VLOOKUP(V22,[1]Ark1!#REF!,12,FALSE),"") ->  | Y22: =IFERROR(VLOOKUP(W22,[1]Ark1!#REF!,12,FALSE),"") ->  | Z22: =IFERROR(VLOOKUP(X22,[1]Ark1!#REF!,12,FALSE),"") ->  | AA22: =IF(D22="","",HLOOKUP($C$6,'Beregning gr. 2'!F1:P52,D22+3)) -> 21.67849374 | AB22: =IFERROR(C6*AD22*E22,"")*E6 -> 0 | AD22: 21.68
D23: 10 | F23: =IFERROR(VLOOKUP(D23,'Beregning gr. 2'!F1:P52,11,FALSE),"") -> m² | G23: =IFERROR(VLOOKUP(D23,'Beregning gr. 2'!F1:P52,10,FALSE),"") -> Aftagning af masonit, afrensning af søm | H23: =IFERROR(VLOOKUP(F23,[1]Ark1!#REF!,12,FALSE),"") ->  | I23: =IFERROR(VLOOKUP(G23,[1]Ark1!#REF!,12,FALSE),"") ->  | J23: =IFERROR(VLOOKUP(H23,[1]Ark1!#REF!,12,FALSE),"") ->  | K23: =IFERROR(VLOOKUP(I23,[1]Ark1!#REF!,12,FALSE),"") ->  | L23: =IFERROR(VLOOKUP(J23,[1]Ark1!#REF!,12,FALSE),"") ->  | M23: =IFERROR(VLOOKUP(K23,[1]Ark1!#REF!,12,FALSE),"") ->  | N23: =IFERROR(VLOOKUP(L23,[1]Ark1!#REF!,12,FALSE),"") ->  | O23: =IFERROR(VLOOKUP(M23,[1]Ark1!#REF!,12,FALSE),"") ->  | P23: =IFERROR(VLOOKUP(N23,[1]Ark1!#REF!,12,FALSE),"") ->  | Q23: =IFERROR(VLOOKUP(O23,[1]Ark1!#REF!,12,FALSE),"") ->  | R23: =IFERROR(VLOOKUP(P23,[1]Ark1!#REF!,12,FALSE),"") ->  | S23: =IFERROR(VLOOKUP(Q23,[1]Ark1!#REF!,12,FALSE),"") ->  | T23: =IFERROR(VLOOKUP(R23,[1]Ark1!#REF!,12,FALSE),"") ->  | U23: =IFERROR(VLOOKUP(S23,[1]Ark1!#REF!,12,FALSE),"") ->  | V23: =IFERROR(VLOOKUP(T23,[1]Ark1!#REF!,12,FALSE),"") ->  | W23: =IFERROR(VLOOKUP(U23,[1]Ark1!#REF!,12,FALSE),"") ->  | X23: =IFERROR(VLOOKUP(V23,[1]Ark1!#REF!,12,FALSE),"") ->  | Y23: =IFERROR(VLOOKUP(W23,[1]Ark1!#REF!,12,FALSE),"") ->  | Z23: =IFERROR(VLOOKUP(X23,[1]Ark1!#REF!,12,FALSE),"") ->  | AA23: =IF(D23="","",HLOOKUP($C$6,'Beregning gr. 2'!F1:P52,D23+3)) -> 59.29234416 | AB23: =IFERROR(E23*AD23*C6,"")*E6 -> 0 | AD23: 59.29
D24: 11 | F24: =IFERROR(VLOOKUP(D24,'Beregning gr. 2'!F1:P52,11,FALSE),"") -> m² | G24: =IFERROR(VLOOKUP(D24,'Beregning gr. 2'!F1:P52,10,FALSE),"") -> Aftagning af hulkehl t.o.m. 15 cm | H24: =IFERROR(VLOOKUP(F24,[1]Ark1!#REF!,12,FALSE),"") ->  | I24: =IFERROR(VLOOKUP(G24,[1]Ark1!#REF!,12,FALSE),"") ->  | J24: =IFERROR(VLOOKUP(H24,[1]Ark1!#REF!,12,FALSE),"") ->  | K24: =IFERROR(VLOOKUP(I24,[1]Ark1!#REF!,12,FALSE),"") ->  | L24: =IFERROR(VLOOKUP(J24,[1]Ark1!#REF!,12,FALSE),"") ->  | M24: =IFERROR(VLOOKUP(K24,[1]Ark1!#REF!,12,FALSE),"") ->  | N24: =IFERROR(VLOOKUP(L24,[1]Ark1!#REF!,12,FALSE),"") ->  | O24: =IFERROR(VLOOKUP(M24,[1]Ark1!#REF!,12,FALSE),"") ->  | P24: =IFERROR(VLOOKUP(N24,[1]Ark1!#REF!,12,FALSE),"") ->  | Q24: =IFERROR(VLOOKUP(O24,[1]Ark1!#REF!,12,FALSE),"") ->  | R24: =IFERROR(VLOOKUP(P24,[1]Ark1!#REF!,12,FALSE),"") ->  | S24: =IFERROR(VLOOKUP(Q24,[1]Ark1!#REF!,12,FALSE),"") ->  | T24: =IFERROR(VLOOKUP(R24,[1]Ark1!#REF!,12,FALSE),"") ->  | U24: =IFERROR(VLOOKUP(S24,[1]Ark1!#REF!,12,FALSE),"") ->  | V24: =IFERROR(VLOOKUP(T24,[1]Ark1!#REF!,12,FALSE),"") ->  | W24: =IFERROR(VLOOKUP(U24,[1]Ark1!#REF!,12,FALSE),"") ->  | X24: =IFERROR(VLOOKUP(V24,[1]Ark1!#REF!,12,FALSE),"") ->  | Y24: =IFERROR(VLOOKUP(W24,[1]Ark1!#REF!,12,FALSE),"") ->  | Z24: =IFERROR(VLOOKUP(X24,[1]Ark1!#REF!,12,FALSE),"") ->  | AA24: =IF(D24="","",HLOOKUP($C$6,'Beregning gr. 2'!F1:P52,D24+3)) -> 34.13951243 | AB24: =IFERROR(E24*AD24*C6,"")*E6 -> 0 | AD24: 34.14
D25: 12 | F25: =IFERROR(VLOOKUP(D25,'Beregning gr. 2'!F1:P52,11,FALSE),"") -> m² | G25: =IFERROR(VLOOKUP(D25,'Beregning gr. 2'!F1:P52,10,FALSE),"") -> Aftagning af hulkehl t.o.m. 30 cm | H25: =IFERROR(VLOOKUP(F25,[1]Ark1!#REF!,12,FALSE),"") ->  | I25: =IFERROR(VLOOKUP(G25,[1]Ark1!#REF!,12,FALSE),"") ->  | J25: =IFERROR(VLOOKUP(H25,[1]Ark1!#REF!,12,FALSE),"") ->  | K25: =IFERROR(VLOOKUP(I25,[1]Ark1!#REF!,12,FALSE),"") ->  | L25: =IFERROR(VLOOKUP(J25,[1]Ark1!#REF!,12,FALSE),"") ->  | M25: =IFERROR(VLOOKUP(K25,[1]Ark1!#REF!,12,FALSE),"") ->  | N25: =IFERROR(VLOOKUP(L25,[1]Ark1!#REF!,12,FALSE),"") ->  | O25: =IFERROR(VLOOKUP(M25,[1]Ark1!#REF!,12,FALSE),"") ->  | P25: =IFERROR(VLOOKUP(N25,[1]Ark1!#REF!,12,FALSE),"") ->  | Q25: =IFERROR(VLOOKUP(O25,[1]Ark1!#REF!,12,FALSE),"") ->  | R25: =IFERROR(VLOOKUP(P25,[1]Ark1!#REF!,12,FALSE),"") ->  | S25: =IFERROR(VLOOKUP(Q25,[1]Ark1!#REF!,12,FALSE),"") ->  | T25: =IFERROR(VLOOKUP(R25,[1]Ark1!#REF!,12,FALSE),"") ->  | U25: =IFERROR(VLOOKUP(S25,[1]Ark1!#REF!,12,FALSE),"") ->  | V25: =IFERROR(VLOOKUP(T25,[1]Ark1!#REF!,12,FALSE),"") ->  | W25: =IFERROR(VLOOKUP(U25,[1]Ark1!#REF!,12,FALSE),"") ->  | X25: =IFERROR(VLOOKUP(V25,[1]Ark1!#REF!,12,FALSE),"") ->  | Y25: =IFERROR(VLOOKUP(W25,[1]Ark1!#REF!,12,FALSE),"") ->  | Z25: =IFERROR(VLOOKUP(X25,[1]Ark1!#REF!,12,FALSE),"") ->  | AA25: =IF(D25="","",HLOOKUP($C$6,'Beregning gr. 2'!F1:P52,D25+3)) -> 40.44146267 | AB25: =IFERROR(E25*AD25*C6,"")*E6 -> 0 | AD25: 40.44
D26: 13 | F26: =IFERROR(VLOOKUP(D26,'Beregning gr. 2'!F1:P52,11,FALSE),"") -> m² | G26: =IFERROR(VLOOKUP(D26,'Beregning gr. 2'!F1:P52,10,FALSE),"") -> Lægning af vinyl | H26: =IFERROR(VLOOKUP(F26,[1]Ark1!#REF!,12,FALSE),"") ->  | I26: =IFERROR(VLOOKUP(G26,[1]Ark1!#REF!,12,FALSE),"") ->  | J26: =IFERROR(VLOOKUP(H26,[1]Ark1!#REF!,12,FALSE),"") ->  | K26: =IFERROR(VLOOKUP(I26,[1]Ark1!#REF!,12,FALSE),"") ->  | L26: =IFERROR(VLOOKUP(J26,[1]Ark1!#REF!,12,FALSE),"") ->  | M26: =IFERROR(VLOOKUP(K26,[1]Ark1!#REF!,12,FALSE),"") ->  | N26: =IFERROR(VLOOKUP(L26,[1]Ark1!#REF!,12,FALSE),"") ->  | O26: =IFERROR(VLOOKUP(M26,[1]Ark1!#REF!,12,FALSE),"") ->  | P26: =IFERROR(VLOOKUP(N26,[1]Ark1!#REF!,12,FALSE),"") ->  | Q26: =IFERROR(VLOOKUP(O26,[1]Ark1!#REF!,12,FALSE),"") ->  | R26: =IFERROR(VLOOKUP(P26,[1]Ark1!#REF!,12,FALSE),"") ->  | S26: =IFERROR(VLOOKUP(Q26,[1]Ark1!#REF!,12,FALSE),"") ->  | T26: =IFERROR(VLOOKUP(R26,[1]Ark1!#REF!,12,FALSE),"") ->  | U26: =IFERROR(VLOOKUP(S26,[1]Ark1!#REF!,12,FALSE),"") ->  | V26: =IFERROR(VLOOKUP(T26,[1]Ark1!#REF!,12,FALSE),"") ->  | W26: =IFERROR(VLOOKUP(U26,[1]Ark1!#REF!,12,FALSE),"") ->  | X26: =IFERROR(VLOOKUP(V26,[1]Ark1!#REF!,12,FALSE),"") ->  | Y26: =IFERROR(VLOOKUP(W26,[1]Ark1!#REF!,12,FALSE),"") ->  | Z26: =IFERROR(VLOOKUP(X26,[1]Ark1!#REF!,12,FALSE),"") ->  | AA26: =IF(D26="","",HLOOKUP($C$6,'Beregning gr. 2'!F1:P52,D26+3)) -> 63.53191315 | AB26: =IFERROR(E26*AD26*C6,"")*E6 -> 0 | AD26: =ROUND(AA26,2) -> 63.53
D27: 14 | F27: =IFERROR(VLOOKUP(D27,'Beregning gr. 2'!F1:P52,11,FALSE),"") -> m² | G27: =IFERROR(VLOOKUP(D27,'Beregning gr. 2'!F1:P52,10,FALSE),"") -> Opskæring af vinyl | H27: =IFERROR(VLOOKUP(F27,[1]Ark1!#REF!,12,FALSE),"") ->  | I27: =IFERROR(VLOOKUP(G27,[1]Ark1!#REF!,12,FALSE),"") ->  | J27: =IFERROR(VLOOKUP(H27,[1]Ark1!#REF!,12,FALSE),"") ->  | K27: =IFERROR(VLOOKUP(I27,[1]Ark1!#REF!,12,FALSE),"") ->  | L27: =IFERROR(VLOOKUP(J27,[1]Ark1!#REF!,12,FALSE),"") ->  | M27: =IFERROR(VLOOKUP(K27,[1]Ark1!#REF!,12,FALSE),"") ->  | N27: =IFERROR(VLOOKUP(L27,[1]Ark1!#REF!,12,FALSE),"") ->  | O27: =IFERROR(VLOOKUP(M27,[1]Ark1!#REF!,12,FALSE),"") ->  | P27: =IFERROR(VLOOKUP(N27,[1]Ark1!#REF!,12,FALSE),"") ->  | Q27: =IFERROR(VLOOKUP(O27,[1]Ark1!#REF!,12,FALSE),"") ->  | R27: =IFERROR(VLOOKUP(P27,[1]Ark1!#REF!,12,FALSE),"") ->  | S27: =IFERROR(VLOOKUP(Q27,[1]Ark1!#REF!,12,FALSE),"") ->  | T27: =IFERROR(VLOOKUP(R27,[1]Ark1!#REF!,12,FALSE),"") ->  | U27: =IFERROR(VLOOKUP(S27,[1]Ark1!#REF!,12,FALSE),"") ->  | V27: =IFERROR(VLOOKUP(T27,[1]Ark1!#REF!,12,FALSE),"") ->  | W27: =IFERROR(VLOOKUP(U27,[1]Ark1!#REF!,12,FALSE),"") ->  | X27: =IFERROR(VLOOKUP(V27,[1]Ark1!#REF!,12,FALSE),"") ->  | Y27: =IFERROR(VLOOKUP(W27,[1]Ark1!#REF!,12,FALSE),"") ->  | Z27: =IFERROR(VLOOKUP(X27,[1]Ark1!#REF!,12,FALSE),"") ->  | AA27: =IF(D27="","",HLOOKUP($C$6,'Beregning gr. 2'!F1:P52,D27+3)) -> 8.232651403 | AB27: =IFERROR(E27*AD27*C6,"")*E6 -> 0 | AD27: =ROUND(AA27,2) -> 8.23
D28: 15 | F28: =IFERROR(VLOOKUP(D28,'Beregning gr. 2'!F1:P52,11,FALSE),"") -> m | G28: =IFERROR(VLOOKUP(D28,'Beregning gr. 2'!F1:P52,10,FALSE),"") -> Hulkehl t.o.m. 15 cm pr. m. | H28: =IFERROR(VLOOKUP(F28,[1]Ark1!#REF!,12,FALSE),"") ->  | I28: =IFERROR(VLOOKUP(G28,[1]Ark1!#REF!,12,FALSE),"") ->  | J28: =IFERROR(VLOOKUP(H28,[1]Ark1!#REF!,12,FALSE),"") ->  | K28: =IFERROR(VLOOKUP(I28,[1]Ark1!#REF!,12,FALSE),"") ->  | L28: =IFERROR(VLOOKUP(J28,[1]Ark1!#REF!,12,FALSE),"") ->  | M28: =IFERROR(VLOOKUP(K28,[1]Ark1!#REF!,12,FALSE),"") ->  | N28: =IFERROR(VLOOKUP(L28,[1]Ark1!#REF!,12,FALSE),"") ->  | O28: =IFERROR(VLOOKUP(M28,[1]Ark1!#REF!,12,FALSE),"") ->  | P28: =IFERROR(VLOOKUP(N28,[1]Ark1!#REF!,12,FALSE),"") ->  | Q28: =IFERROR(VLOOKUP(O28,[1]Ark1!#REF!,12,FALSE),"") ->  | R28: =IFERROR(VLOOKUP(P28,[1]Ark1!#REF!,12,FALSE),"") ->  | S28: =IFERROR(VLOOKUP(Q28,[1]Ark1!#REF!,12,FALSE),"") ->  | T28: =IFERROR(VLOOKUP(R28,[1]Ark1!#REF!,12,FALSE),"") ->  | U28: =IFERROR(VLOOKUP(S28,[1]Ark1!#REF!,12,FALSE),"") ->  | V28: =IFERROR(VLOOKUP(T28,[1]Ark1!#REF!,12,FALSE),"") ->  | W28: =IFERROR(VLOOKUP(U28,[1]Ark1!#REF!,12,FALSE),"") ->  | X28: =IFERROR(VLOOKUP(V28,[1]Ark1!#REF!,12,FALSE),"") ->  | Y28: =IFERROR(VLOOKUP(W28,[1]Ark1!#REF!,12,FALSE),"") ->  | Z28: =IFERROR(VLOOKUP(X28,[1]Ark1!#REF!,12,FALSE),"") ->  | AA28: =IF(D28="","",HLOOKUP($C$6,'Beregning gr. 2'!F1:P52,D28+3)) -> 94.76616912 | AB28: =IFERROR(E28*AD28,"")*E6 -> 0 | AD28: 94.77
D29: 16 | F29: =IFERROR(VLOOKUP(D29,'Beregning gr. 2'!F1:P52,11,FALSE),"") -> stk | G29: =IFERROR(VLOOKUP(D29,'Beregning gr. 2'!F1:P52,10,FALSE),"") -> Indvendige hulkehlhjørne t.o.m. 15 cm | H29: =IFERROR(VLOOKUP(F29,[1]Ark1!#REF!,12,FALSE),"") ->  | I29: =IFERROR(VLOOKUP(G29,[1]Ark1!#REF!,12,FALSE),"") ->  | J29: =IFERROR(VLOOKUP(H29,[1]Ark1!#REF!,12,FALSE),"") ->  | K29: =IFERROR(VLOOKUP(I29,[1]Ark1!#REF!,12,FALSE),"") ->  | L29: =IFERROR(VLOOKUP(J29,[1]Ark1!#REF!,12,FALSE),"") ->  | M29: =IFERROR(VLOOKUP(K29,[1]Ark1!#REF!,12,FALSE),"") ->  | N29: =IFERROR(VLOOKUP(L29,[1]Ark1!#REF!,12,FALSE),"") ->  | O29: =IFERROR(VLOOKUP(M29,[1]Ark1!#REF!,12,FALSE),"") ->  | P29: =IFERROR(VLOOKUP(N29,[1]Ark1!#REF!,12,FALSE),"") ->  | Q29: =IFERROR(VLOOKUP(O29,[1]Ark1!#REF!,12,FALSE),"") ->  | R29: =IFERROR(VLOOKUP(P29,[1]Ark1!#REF!,12,FALSE),"") ->  | S29: =IFERROR(VLOOKUP(Q29,[1]Ark1!#REF!,12,FALSE),"") ->  | T29: =IFERROR(VLOOKUP(R29,[1]Ark1!#REF!,12,FALSE),"") ->  | U29: =IFERROR(VLOOKUP(S29,[1]Ark1!#REF!,12,FALSE),"") ->  | V29: =IFERROR(VLOOKUP(T29,[1]Ark1!#REF!,12,FALSE),"") ->  | W29: =IFERROR(VLOOKUP(U29,[1]Ark1!#REF!,12,FALSE),"") ->  | X29: =IFERROR(VLOOKUP(V29,[1]Ark1!#REF!,12,FALSE),"") ->  | Y29: =IFERROR(VLOOKUP(W29,[1]Ark1!#REF!,12,FALSE),"") ->  | Z29: =IFERROR(VLOOKUP(X29,[1]Ark1!#REF!,12,FALSE),"") ->  | AA29: =IF(D29="","",HLOOKUP($C$6,'Beregning gr. 2'!F1:P52,D29+3)) -> 56.50432834 | AB29: =IFERROR(E29*AD29,"")*E6 -> 0 | AD29: 56.5
D30: 17 | F30: =IFERROR(VLOOKUP(D30,'Beregning gr. 2'!F1:P52,11,FALSE),"") -> stk | G30: =IFERROR(VLOOKUP(D30,'Beregning gr. 2'!F1:P52,10,FALSE),"") -> Udvendige hulkehlhjørner t.o.m. 15 cm | H30: =IFERROR(VLOOKUP(F30,[1]Ark1!#REF!,12,FALSE),"") ->  | I30: =IFERROR(VLOOKUP(G30,[1]Ark1!#REF!,12,FALSE),"") ->  | J30: =IFERROR(VLOOKUP(H30,[1]Ark1!#REF!,12,FALSE),"") ->  | K30: =IFERROR(VLOOKUP(I30,[1]Ark1!#REF!,12,FALSE),"") ->  | L30: =IFERROR(VLOOKUP(J30,[1]Ark1!#REF!,12,FALSE),"") ->  | M30: =IFERROR(VLOOKUP(K30,[1]Ark1!#REF!,12,FALSE),"") ->  | N30: =IFERROR(VLOOKUP(L30,[1]Ark1!#REF!,12,FALSE),"") ->  | O30: =IFERROR(VLOOKUP(M30,[1]Ark1!#REF!,12,FALSE),"") ->  | P30: =IFERROR(VLOOKUP(N30,[1]Ark1!#REF!,12,FALSE),"") ->  | Q30: =IFERROR(VLOOKUP(O30,[1]Ark1!#REF!,12,FALSE),"") ->  | R30: =IFERROR(VLOOKUP(P30,[1]Ark1!#REF!,12,FALSE),"") ->  | S30: =IFERROR(VLOOKUP(Q30,[1]Ark1!#REF!,12,FALSE),"") ->  | T30: =IFERROR(VLOOKUP(R30,[1]Ark1!#REF!,12,FALSE),"") ->  | U30: =IFERROR(VLOOKUP(S30,[1]Ark1!#REF!,12,FALSE),"") ->  | V30: =IFERROR(VLOOKUP(T30,[1]Ark1!#REF!,12,FALSE),"") ->  | W30: =IFERROR(VLOOKUP(U30,[1]Ark1!#REF!,12,FALSE),"") ->  | X30: =IFERROR(VLOOKUP(V30,[1]Ark1!#REF!,12,FALSE),"") ->  | Y30: =IFERROR(VLOOKUP(W30,[1]Ark1!#REF!,12,FALSE),"") ->  | Z30: =IFERROR(VLOOKUP(X30,[1]Ark1!#REF!,12,FALSE),"") ->  | AA30: =IF(D30="","",HLOOKUP($C$6,'Beregning gr. 2'!F1:P52,D30+3)) -> 113.1271144 | AB30: =IFERROR(E30*AD30,"")*E6 -> 0 | AD30: 113.13
D31: 18 | F31: =IFERROR(VLOOKUP(D31,'Beregning gr. 2'!F1:P52,11,FALSE),"") -> stk | G31: =IFERROR(VLOOKUP(D31,'Beregning gr. 2'!F1:P52,10,FALSE),"") -> Lige samling i hulkehl t.o.m. 15 cm | H31: =IFERROR(VLOOKUP(F31,[1]Ark1!#REF!,12,FALSE),"") ->  | I31: =IFERROR(VLOOKUP(G31,[1]Ark1!#REF!,12,FALSE),"") ->  | J31: =IFERROR(VLOOKUP(H31,[1]Ark1!#REF!,12,FALSE),"") ->  | K31: =IFERROR(VLOOKUP(I31,[1]Ark1!#REF!,12,FALSE),"") ->  | L31: =IFERROR(VLOOKUP(J31,[1]Ark1!#REF!,12,FALSE),"") ->  | M31: =IFERROR(VLOOKUP(K31,[1]Ark1!#REF!,12,FALSE),"") ->  | N31: =IFERROR(VLOOKUP(L31,[1]Ark1!#REF!,12,FALSE),"") ->  | O31: =IFERROR(VLOOKUP(M31,[1]Ark1!#REF!,12,FALSE),"") ->  | P31: =IFERROR(VLOOKUP(N31,[1]Ark1!#REF!,12,FALSE),"") ->  | Q31: =IFERROR(VLOOKUP(O31,[1]Ark1!#REF!,12,FALSE),"") ->  | R31: =IFERROR(VLOOKUP(P31,[1]Ark1!#REF!,12,FALSE),"") ->  | S31: =IFERROR(VLOOKUP(Q31,[1]Ark1!#REF!,12,FALSE),"") ->  | T31: =IFERROR(VLOOKUP(R31,[1]Ark1!#REF!,12,FALSE),"") ->  | U31: =IFERROR(VLOOKUP(S31,[1]Ark1!#REF!,12,FALSE),"") ->  | V31: =IFERROR(VLOOKUP(T31,[1]Ark1!#REF!,12,FALSE),"") ->  | W31: =IFERROR(VLOOKUP(U31,[1]Ark1!#REF!,12,FALSE),"") ->  | X31: =IFERROR(VLOOKUP(V31,[1]Ark1!#REF!,12,FALSE),"") ->  | Y31: =IFERROR(VLOOKUP(W31,[1]Ark1!#REF!,12,FALSE),"") ->  | Z31: =IFERROR(VLOOKUP(X31,[1]Ark1!#REF!,12,FALSE),"") ->  | AA31: =IF(D31="","",HLOOKUP($C$6,'Beregning gr. 2'!F1:P52,D31+3)) -> 56.62278605 | AB31: =IFERROR(E31*AD31,"")*E6 -> 0 | AD31: 56.62
D32: 19 | F32: =IFERROR(VLOOKUP(D32,'Beregning gr. 2'!F1:P52,11,FALSE),"") -> m² | G32: =IFERROR(VLOOKUP(D32,'Beregning gr. 2'!F1:P52,10,FALSE),"") -> Trådsvejsning/trådfugning, 200 cm | H32: =IFERROR(VLOOKUP(F32,[1]Ark1!#REF!,12,FALSE),"") ->  | I32: =IFERROR(VLOOKUP(G32,[1]Ark1!#REF!,12,FALSE),"") ->  | J32: =IFERROR(VLOOKUP(H32,[1]Ark1!#REF!,12,FALSE),"") ->  | K32: =IFERROR(VLOOKUP(I32,[1]Ark1!#REF!,12,FALSE),"") ->  | L32: =IFERROR(VLOOKUP(J32,[1]Ark1!#REF!,12,FALSE),"") ->  | M32: =IFERROR(VLOOKUP(K32,[1]Ark1!#REF!,12,FALSE),"") ->  | N32: =IFERROR(VLOOKUP(L32,[1]Ark1!#REF!,12,FALSE),"") ->  | O32: =IFERROR(VLOOKUP(M32,[1]Ark1!#REF!,12,FALSE),"") ->  | P32: =IFERROR(VLOOKUP(N32,[1]Ark1!#REF!,12,FALSE),"") ->  | Q32: =IFERROR(VLOOKUP(O32,[1]Ark1!#REF!,12,FALSE),"") ->  | R32: =IFERROR(VLOOKUP(P32,[1]Ark1!#REF!,12,FALSE),"") ->  | S32: =IFERROR(VLOOKUP(Q32,[1]Ark1!#REF!,12,FALSE),"") ->  | T32: =IFERROR(VLOOKUP(R32,[1]Ark1!#REF!,12,FALSE),"") ->  | U32: =IFERROR(VLOOKUP(S32,[1]Ark1!#REF!,12,FALSE),"") ->  | V32: =IFERROR(VLOOKUP(T32,[1]Ark1!#REF!,12,FALSE),"") ->  | W32: =IFERROR(VLOOKUP(U32,[1]Ark1!#REF!,12,FALSE),"") ->  | X32: =IFERROR(VLOOKUP(V32,[1]Ark1!#REF!,12,FALSE),"") ->  | Y32: =IFERROR(VLOOKUP(W32,[1]Ark1!#REF!,12,FALSE),"") ->  | Z32: =IFERROR(VLOOKUP(X32,[1]Ark1!#REF!,12,FALSE),"") ->  | AA32: =IF(D32="","",HLOOKUP($C$6,'Beregning gr. 2'!F1:P52,D32+3)) -> 22.08519658 | AB32: =IFERROR(E32*AD32*C6,"")*E6 -> 0 | AD32: 22.09
D33: 20 | F33: =IFERROR(VLOOKUP(D33,'Beregning gr. 2'!F1:P52,11,FALSE),"") -> m² | G33: =IFERROR(VLOOKUP(D33,'Beregning gr. 2'!F1:P52,10,FALSE),"") -> Trådsvejsning/trådfugning, 180 cm | H33: =IFERROR(VLOOKUP(F33,[1]Ark1!#REF!,12,FALSE),"") ->  | I33: =IFERROR(VLOOKUP(G33,[1]Ark1!#REF!,12,FALSE),"") ->  | J33: =IFERROR(VLOOKUP(H33,[1]Ark1!#REF!,12,FALSE),"") ->  | K33: =IFERROR(VLOOKUP(I33,[1]Ark1!#REF!,12,FALSE),"") ->  | L33: =IFERROR(VLOOKUP(J33,[1]Ark1!#REF!,12,FALSE),"") ->  | M33: =IFERROR(VLOOKUP(K33,[1]Ark1!#REF!,12,FALSE),"") ->  | N33: =IFERROR(VLOOKUP(L33,[1]Ark1!#REF!,12,FALSE),"") ->  | O33: =IFERROR(VLOOKUP(M33,[1]Ark1!#REF!,12,FALSE),"") ->  | P33: =IFERROR(VLOOKUP(N33,[1]Ark1!#REF!,12,FALSE),"") ->  | Q33: =IFERROR(VLOOKUP(O33,[1]Ark1!#REF!,12,FALSE),"") ->  | R33: =IFERROR(VLOOKUP(P33,[1]Ark1!#REF!,12,FALSE),"") ->  | S33: =IFERROR(VLOOKUP(Q33,[1]Ark1!#REF!,12,FALSE),"") ->  | T33: =IFERROR(VLOOKUP(R33,[1]Ark1!#REF!,12,FALSE),"") ->  | U33: =IFERROR(VLOOKUP(S33,[1]Ark1!#REF!,12,FALSE),"") ->  | V33: =IFERROR(VLOOKUP(T33,[1]Ark1!#REF!,12,FALSE),"") ->  | W33: =IFERROR(VLOOKUP(U33,[1]Ark1!#REF!,12,FALSE),"") ->  | X33: =IFERROR(VLOOKUP(V33,[1]Ark1!#REF!,12,FALSE),"") ->  | Y33: =IFERROR(VLOOKUP(W33,[1]Ark1!#REF!,12,FALSE),"") ->  | Z33: =IFERROR(VLOOKUP(X33,[1]Ark1!#REF!,12,FALSE),"") ->  | AA33: =IF(D33="","",HLOOKUP($C$6,'Beregning gr. 2'!F1:P52,D33+3)) -> 24.4761163 | AB33: =IFERROR(E33*AD33*C6,"")*E6 -> 0 | AD33: 24.48
D34: 21 | F34: =IFERROR(VLOOKUP(D34,'Beregning gr. 2'!F1:P52,11,FALSE),"") -> m² | G34: =IFERROR(VLOOKUP(D34,'Beregning gr. 2'!F1:P52,10,FALSE),"") -> Trådsvejsning/trådfugning, 150 cm | H34: =IFERROR(VLOOKUP(F34,[1]Ark1!#REF!,12,FALSE),"") ->  | I34: =IFERROR(VLOOKUP(G34,[1]Ark1!#REF!,12,FALSE),"") ->  | J34: =IFERROR(VLOOKUP(H34,[1]Ark1!#REF!,12,FALSE),"") ->  | K34: =IFERROR(VLOOKUP(I34,[1]Ark1!#REF!,12,FALSE),"") ->  | L34: =IFERROR(VLOOKUP(J34,[1]Ark1!#REF!,12,FALSE),"") ->  | M34: =IFERROR(VLOOKUP(K34,[1]Ark1!#REF!,12,FALSE),"") ->  | N34: =IFERROR(VLOOKUP(L34,[1]Ark1!#REF!,12,FALSE),"") ->  | O34: =IFERROR(VLOOKUP(M34,[1]Ark1!#REF!,12,FALSE),"") ->  | P34: =IFERROR(VLOOKUP(N34,[1]Ark1!#REF!,12,FALSE),"") ->  | Q34: =IFERROR(VLOOKUP(O34,[1]Ark1!#REF!,12,FALSE),"") ->  | R34: =IFERROR(VLOOKUP(P34,[1]Ark1!#REF!,12,FALSE),"") ->  | S34: =IFERROR(VLOOKUP(Q34,[1]Ark1!#REF!,12,FALSE),"") ->  | T34: =IFERROR(VLOOKUP(R34,[1]Ark1!#REF!,12,FALSE),"") ->  | U34: =IFERROR(VLOOKUP(S34,[1]Ark1!#REF!,12,FALSE),"") ->  | V34: =IFERROR(VLOOKUP(T34,[1]Ark1!#REF!,12,FALSE),"") ->  | W34: =IFERROR(VLOOKUP(U34,[1]Ark1!#REF!,12,FALSE),"") ->  | X34: =IFERROR(VLOOKUP(V34,[1]Ark1!#REF!,12,FALSE),"") ->  | Y34: =IFERROR(VLOOKUP(W34,[1]Ark1!#REF!,12,FALSE),"") ->  | Z34: =IFERROR(VLOOKUP(X34,[1]Ark1!#REF!,12,FALSE),"") ->  | AA34: =IF(D34="","",HLOOKUP($C$6,'Beregning gr. 2'!F1:P52,D34+3)) -> 29.35655036 | AB34: =IFERROR(E34*AD34*C6,"")*E6 -> 0 | AD34: 29.36
D35: 22 | F35: =IFERROR(VLOOKUP(D35,'Beregning gr. 2'!F1:P52,11,FALSE),"") -> m² | G35: =IFERROR(VLOOKUP(D35,'Beregning gr. 2'!F1:P52,10,FALSE),"") -> Trådsvejsning/trådfugning, 125 cm | H35: =IFERROR(VLOOKUP(F35,[1]Ark1!#REF!,12,FALSE),"") ->  | I35: =IFERROR(VLOOKUP(G35,[1]Ark1!#REF!,12,FALSE),"") ->  | J35: =IFERROR(VLOOKUP(H35,[1]Ark1!#REF!,12,FALSE),"") ->  | K35: =IFERROR(VLOOKUP(I35,[1]Ark1!#REF!,12,FALSE),"") ->  | L35: =IFERROR(VLOOKUP(J35,[1]Ark1!#REF!,12,FALSE),"") ->  | M35: =IFERROR(VLOOKUP(K35,[1]Ark1!#REF!,12,FALSE),"") ->  | N35: =IFERROR(VLOOKUP(L35,[1]Ark1!#REF!,12,FALSE),"") ->  | O35: =IFERROR(VLOOKUP(M35,[1]Ark1!#REF!,12,FALSE),"") ->  | P35: =IFERROR(VLOOKUP(N35,[1]Ark1!#REF!,12,FALSE),"") ->  | Q35: =IFERROR(VLOOKUP(O35,[1]Ark1!#REF!,12,FALSE),"") ->  | R35: =IFERROR(VLOOKUP(P35,[1]Ark1!#REF!,12,FALSE),"") ->  | S35: =IFERROR(VLOOKUP(Q35,[1]Ark1!#REF!,12,FALSE),"") ->  | T35: =IFERROR(VLOOKUP(R35,[1]Ark1!#REF!,12,FALSE),"") ->  | U35: =IFERROR(VLOOKUP(S35,[1]Ark1!#REF!,12,FALSE),"") ->  | V35: =IFERROR(VLOOKUP(T35,[1]Ark1!#REF!,12,FALSE),"") ->  | W35: =IFERROR(VLOOKUP(U35,[1]Ark1!#REF!,12,FALSE),"") ->  | X35: =IFERROR(VLOOKUP(V35,[1]Ark1!#REF!,12,FALSE),"") ->  | Y35: =IFERROR(VLOOKUP(W35,[1]Ark1!#REF!,12,FALSE),"") ->  | Z35: =IFERROR(VLOOKUP(X35,[1]Ark1!#REF!,12,FALSE),"") ->  | AA35: =IF(D35="","",HLOOKUP($C$6,'Beregning gr. 2'!F1:P52,D35+3)) -> 35.27222802 | AB35: =IFERROR(E35*AD35*C6,"")*E6 -> 0 | AD35: 35.27
D36: 23 | F36: =IFERROR(VLOOKUP(D36,'Beregning gr. 2'!F1:P52,11,FALSE),"") -> m² | G36: =IFERROR(VLOOKUP(D36,'Beregning gr. 2'!F1:P52,10,FALSE),"") -> Afdækning af gulv, minimums bredde 90 cm | H36: =IFERROR(VLOOKUP(F36,[1]Ark1!#REF!,12,FALSE),"") ->  | I36: =IFERROR(VLOOKUP(G36,[1]Ark1!#REF!,12,FALSE),"") ->  | J36: =IFERROR(VLOOKUP(H36,[1]Ark1!#REF!,12,FALSE),"") ->  | K36: =IFERROR(VLOOKUP(I36,[1]Ark1!#REF!,12,FALSE),"") ->  | L36: =IFERROR(VLOOKUP(J36,[1]Ark1!#REF!,12,FALSE),"") ->  | M36: =IFERROR(VLOOKUP(K36,[1]Ark1!#REF!,12,FALSE),"") ->  | N36: =IFERROR(VLOOKUP(L36,[1]Ark1!#REF!,12,FALSE),"") ->  | O36: =IFERROR(VLOOKUP(M36,[1]Ark1!#REF!,12,FALSE),"") ->  | P36: =IFERROR(VLOOKUP(N36,[1]Ark1!#REF!,12,FALSE),"") ->  | Q36: =IFERROR(VLOOKUP(O36,[1]Ark1!#REF!,12,FALSE),"") ->  | R36: =IFERROR(VLOOKUP(P36,[1]Ark1!#REF!,12,FALSE),"") ->  | S36: =IFERROR(VLOOKUP(Q36,[1]Ark1!#REF!,12,FALSE),"") ->  | T36: =IFERROR(VLOOKUP(R36,[1]Ark1!#REF!,12,FALSE),"") ->  | U36: =IFERROR(VLOOKUP(S36,[1]Ark1!#REF!,12,FALSE),"") ->  | V36: =IFERROR(VLOOKUP(T36,[1]Ark1!#REF!,12,FALSE),"") ->  | W36: =IFERROR(VLOOKUP(U36,[1]Ark1!#REF!,12,FALSE),"") ->  | X36: =IFERROR(VLOOKUP(V36,[1]Ark1!#REF!,12,FALSE),"") ->  | Y36: =IFERROR(VLOOKUP(W36,[1]Ark1!#REF!,12,FALSE),"") ->  | Z36: =IFERROR(VLOOKUP(X36,[1]Ark1!#REF!,12,FALSE),"") ->  | AA36: =IF(D36="","",HLOOKUP($C$6,'Beregning gr. 2'!F1:P52,D36+3)) -> 6.445623778 | AB36: =IFERROR(E36*AD36*C6,"")*E6 -> 0 | AD36: 6.45
D37: 24 | F37: =IFERROR(VLOOKUP(D37,'Beregning gr. 2'!F1:P52,11,FALSE),"") -> m² | G37: =IFERROR(VLOOKUP(D37,'Beregning gr. 2'!F1:P52,10,FALSE),"") -> Aftagning af gulvafdækning | H37: =IFERROR(VLOOKUP(F37,[1]Ark1!#REF!,12,FALSE),"") ->  | I37: =IFERROR(VLOOKUP(G37,[1]Ark1!#REF!,12,FALSE),"") ->  | J37: =IFERROR(VLOOKUP(H37,[1]Ark1!#REF!,12,FALSE),"") ->  | K37: =IFERROR(VLOOKUP(I37,[1]Ark1!#REF!,12,FALSE),"") ->  | L37: =IFERROR(VLOOKUP(J37,[1]Ark1!#REF!,12,FALSE),"") ->  | M37: =IFERROR(VLOOKUP(K37,[1]Ark1!#REF!,12,FALSE),"") ->  | N37: =IFERROR(VLOOKUP(L37,[1]Ark1!#REF!,12,FALSE),"") ->  | O37: =IFERROR(VLOOKUP(M37,[1]Ark1!#REF!,12,FALSE),"") ->  | P37: =IFERROR(VLOOKUP(N37,[1]Ark1!#REF!,12,FALSE),"") ->  | Q37: =IFERROR(VLOOKUP(O37,[1]Ark1!#REF!,12,FALSE),"") ->  | R37: =IFERROR(VLOOKUP(P37,[1]Ark1!#REF!,12,FALSE),"") ->  | S37: =IFERROR(VLOOKUP(Q37,[1]Ark1!#REF!,12,FALSE),"") ->  | T37: =IFERROR(VLOOKUP(R37,[1]Ark1!#REF!,12,FALSE),"") ->  | U37: =IFERROR(VLOOKUP(S37,[1]Ark1!#REF!,12,FALSE),"") ->  | V37: =IFERROR(VLOOKUP(T37,[1]Ark1!#REF!,12,FALSE),"") ->  | W37: =IFERROR(VLOOKUP(U37,[1]Ark1!#REF!,12,FALSE),"") ->  | X37: =IFERROR(VLOOKUP(V37,[1]Ark1!#REF!,12,FALSE),"") ->  | Y37: =IFERROR(VLOOKUP(W37,[1]Ark1!#REF!,12,FALSE),"") ->  | Z37: =IFERROR(VLOOKUP(X37,[1]Ark1!#REF!,12,FALSE),"") ->  | AA37: =IF(D37="","",HLOOKUP($C$6,'Beregning gr. 2'!F1:P52,D37+3)) -> 7.246705127 | AB37: =IFERROR(E37*AD37*C6,"")*E6 -> 0 | AD37: 7.25
D38: 25 | F38: =IFERROR(VLOOKUP(D38,'Beregning gr. 2'!F1:P52,11,FALSE),"") -> m² | G38: =IFERROR(VLOOKUP(D38,'Beregning gr. 2'!F1:P52,10,FALSE),"") -> Afdækning med masonit | H38: =IFERROR(VLOOKUP(F38,[1]Ark1!#REF!,12,FALSE),"") ->  | I38: =IFERROR(VLOOKUP(G38,[1]Ark1!#REF!,12,FALSE),"") ->  | J38: =IFERROR(VLOOKUP(H38,[1]Ark1!#REF!,12,FALSE),"") ->  | K38: =IFERROR(VLOOKUP(I38,[1]Ark1!#REF!,12,FALSE),"") ->  | L38: =IFERROR(VLOOKUP(J38,[1]Ark1!#REF!,12,FALSE),"") ->  | M38: =IFERROR(VLOOKUP(K38,[1]Ark1!#REF!,12,FALSE),"") ->  | N38: =IFERROR(VLOOKUP(L38,[1]Ark1!#REF!,12,FALSE),"") ->  | O38: =IFERROR(VLOOKUP(M38,[1]Ark1!#REF!,12,FALSE),"") ->  | P38: =IFERROR(VLOOKUP(N38,[1]Ark1!#REF!,12,FALSE),"") ->  | Q38: =IFERROR(VLOOKUP(O38,[1]Ark1!#REF!,12,FALSE),"") ->  | R38: =IFERROR(VLOOKUP(P38,[1]Ark1!#REF!,12,FALSE),"") ->  | S38: =IFERROR(VLOOKUP(Q38,[1]Ark1!#REF!,12,FALSE),"") ->  | T38: =IFERROR(VLOOKUP(R38,[1]Ark1!#REF!,12,FALSE),"") ->  | U38: =IFERROR(VLOOKUP(S38,[1]Ark1!#REF!,12,FALSE),"") ->  | V38: =IFERROR(VLOOKUP(T38,[1]Ark1!#REF!,12,FALSE),"") ->  | W38: =IFERROR(VLOOKUP(U38,[1]Ark1!#REF!,12,FALSE),"") ->  | X38: =IFERROR(VLOOKUP(V38,[1]Ark1!#REF!,12,FALSE),"") ->  | Y38: =IFERROR(VLOOKUP(W38,[1]Ark1!#REF!,12,FALSE),"") ->  | Z38: =IFERROR(VLOOKUP(X38,[1]Ark1!#REF!,12,FALSE),"") ->  | AA38: =IF(D38="","",HLOOKUP($C$6,'Beregning gr. 2'!F1:P52,D38+3)) -> 21.86335867 | AB38: =IFERROR(E38*AD38*C6,"")*E6 -> 0 | AD38: 21.86
D39: 26 | F39: =IFERROR(VLOOKUP(D39,'Beregning gr. 2'!F1:P52,11,FALSE),"") -> m² | G39: =IFERROR(VLOOKUP(D39,'Beregning gr. 2'!F1:P52,10,FALSE),"") -> Aftagning af masonitafdækning | H39: =IFERROR(VLOOKUP(F39,[1]Ark1!#REF!,12,FALSE),"") ->  | I39: =IFERROR(VLOOKUP(G39,[1]Ark1!#REF!,12,FALSE),"") ->  | J39: =IFERROR(VLOOKUP(H39,[1]Ark1!#REF!,12,FALSE),"") ->  | K39: =IFERROR(VLOOKUP(I39,[1]Ark1!#REF!,12,FALSE),"") ->  | L39: =IFERROR(VLOOKUP(J39,[1]Ark1!#REF!,12,FALSE),"") ->  | M39: =IFERROR(VLOOKUP(K39,[1]Ark1!#REF!,12,FALSE),"") ->  | N39: =IFERROR(VLOOKUP(L39,[1]Ark1!#REF!,12,FALSE),"") ->  | O39: =IFERROR(VLOOKUP(M39,[1]Ark1!#REF!,12,FALSE),"") ->  | P39: =IFERROR(VLOOKUP(N39,[1]Ark1!#REF!,12,FALSE),"") ->  | Q39: =IFERROR(VLOOKUP(O39,[1]Ark1!#REF!,12,FALSE),"") ->  | R39: =IFERROR(VLOOKUP(P39,[1]Ark1!#REF!,12,FALSE),"") ->  | S39: =IFERROR(VLOOKUP(Q39,[1]Ark1!#REF!,12,FALSE),"") ->  | T39: =IFERROR(VLOOKUP(R39,[1]Ark1!#REF!,12,FALSE),"") ->  | U39: =IFERROR(VLOOKUP(S39,[1]Ark1!#REF!,12,FALSE),"") ->  | V39: =IFERROR(VLOOKUP(T39,[1]Ark1!#REF!,12,FALSE),"") ->  | W39: =IFERROR(VLOOKUP(U39,[1]Ark1!#REF!,12,FALSE),"") ->  | X39: =IFERROR(VLOOKUP(V39,[1]Ark1!#REF!,12,FALSE),"") ->  | Y39: =IFERROR(VLOOKUP(W39,[1]Ark1!#REF!,12,FALSE),"") ->  | Z39: =IFERROR(VLOOKUP(X39,[1]Ark1!#REF!,12,FALSE),"") ->  | AA39: =IF(D39="","",HLOOKUP($C$6,'Beregning gr. 2'!F1:P52,D39+3)) -> 14.70292384 | AB39: =IFERROR(E39*AD39*C6,"")*E6 -> 0 | AD39: 14.7
D40: 27 | F40: =IFERROR(VLOOKUP(D40,'Beregning gr. 2'!F1:P52,11,FALSE),"") -> m | G40: =IFERROR(VLOOKUP(D40,'Beregning gr. 2'!F1:P52,10,FALSE),"") -> Primning for hulkehl | H40: =IFERROR(VLOOKUP(F40,[1]Ark1!#REF!,12,FALSE),"") ->  | I40: =IFERROR(VLOOKUP(G40,[1]Ark1!#REF!,12,FALSE),"") ->  | J40: =IFERROR(VLOOKUP(H40,[1]Ark1!#REF!,12,FALSE),"") ->  | K40: =IFERROR(VLOOKUP(I40,[1]Ark1!#REF!,12,FALSE),"") ->  | L40: =IFERROR(VLOOKUP(J40,[1]Ark1!#REF!,12,FALSE),"") ->  | M40: =IFERROR(VLOOKUP(K40,[1]Ark1!#REF!,12,FALSE),"") ->  | N40: =IFERROR(VLOOKUP(L40,[1]Ark1!#REF!,12,FALSE),"") ->  | O40: =IFERROR(VLOOKUP(M40,[1]Ark1!#REF!,12,FALSE),"") ->  | P40: =IFERROR(VLOOKUP(N40,[1]Ark1!#REF!,12,FALSE),"") ->  | Q40: =IFERROR(VLOOKUP(O40,[1]Ark1!#REF!,12,FALSE),"") ->  | R40: =IFERROR(VLOOKUP(P40,[1]Ark1!#REF!,12,FALSE),"") ->  | S40: =IFERROR(VLOOKUP(Q40,[1]Ark1!#REF!,12,FALSE),"") ->  | T40: =IFERROR(VLOOKUP(R40,[1]Ark1!#REF!,12,FALSE),"") ->  | U40: =IFERROR(VLOOKUP(S40,[1]Ark1!#REF!,12,FALSE),"") ->  | V40: =IFERROR(VLOOKUP(T40,[1]Ark1!#REF!,12,FALSE),"") ->  | W40: =IFERROR(VLOOKUP(U40,[1]Ark1!#REF!,12,FALSE),"") ->  | X40: =IFERROR(VLOOKUP(V40,[1]Ark1!#REF!,12,FALSE),"") ->  | Y40: =IFERROR(VLOOKUP(W40,[1]Ark1!#REF!,12,FALSE),"") ->  | Z40: =IFERROR(VLOOKUP(X40,[1]Ark1!#REF!,12,FALSE),"") ->  | AA40: =IF(D40="","",HLOOKUP($C$6,'Beregning gr. 2'!F1:P52,D40+3)) -> 2.369154228 | AB40: =IFERROR(E40*AD40,"")*E6 -> 0 | AD40: 2.37
D41: 28 | F41: =IFERROR(VLOOKUP(D41,'Beregning gr. 2'!F1:P52,2,FALSE),"") -> 0.0721 | G41: =IFERROR(VLOOKUP(D41,'Beregning gr. 2'!F1:P52,10,FALSE),"") -> Tillæg pr. påbegyndt cm over 15 cm | H41: =IFERROR(VLOOKUP(F41,[1]Ark1!#REF!,12,FALSE),"") ->  | I41: =IFERROR(VLOOKUP(G41,[1]Ark1!#REF!,12,FALSE),"") ->  | J41: =IFERROR(VLOOKUP(H41,[1]Ark1!#REF!,12,FALSE),"") ->  | K41: =IFERROR(VLOOKUP(I41,[1]Ark1!#REF!,12,FALSE),"") ->  | L41: =IFERROR(VLOOKUP(J41,[1]Ark1!#REF!,12,FALSE),"") ->  | M41: =IFERROR(VLOOKUP(K41,[1]Ark1!#REF!,12,FALSE),"") ->  | N41: =IFERROR(VLOOKUP(L41,[1]Ark1!#REF!,12,FALSE),"") ->  | O41: =IFERROR(VLOOKUP(M41,[1]Ark1!#REF!,12,FALSE),"") ->  | P41: =IFERROR(VLOOKUP(N41,[1]Ark1!#REF!,12,FALSE),"") ->  | Q41: =IFERROR(VLOOKUP(O41,[1]Ark1!#REF!,12,FALSE),"") ->  | R41: =IFERROR(VLOOKUP(P41,[1]Ark1!#REF!,12,FALSE),"") ->  | S41: =IFERROR(VLOOKUP(Q41,[1]Ark1!#REF!,12,FALSE),"") ->  | T41: =IFERROR(VLOOKUP(R41,[1]Ark1!#REF!,12,FALSE),"") ->  | U41: =IFERROR(VLOOKUP(S41,[1]Ark1!#REF!,12,FALSE),"") ->  | V41: =IFERROR(VLOOKUP(T41,[1]Ark1!#REF!,12,FALSE),"") ->  | W41: =IFERROR(VLOOKUP(U41,[1]Ark1!#REF!,12,FALSE),"") ->  | X41: =IFERROR(VLOOKUP(V41,[1]Ark1!#REF!,12,FALSE),"") ->  | Y41: =IFERROR(VLOOKUP(W41,[1]Ark1!#REF!,12,FALSE),"") ->  | Z41: =IFERROR(VLOOKUP(X41,[1]Ark1!#REF!,12,FALSE),"") ->  | AA41: =SUM(AA28*F41)*E41 -> 0 | AB41: =IFERROR(E28*AD41,"")*E6 -> 0 | AD41: 0
D42: 29 | F42: =IFERROR(VLOOKUP(D42,'Beregning gr. 2'!F1:P52,11,FALSE),"") -> m | G42: =IFERROR(VLOOKUP(D42,'Beregning gr. 2'!F1:P52,10,FALSE),"") -> Skæring af overkant på hulkehl | H42: =IFERROR(VLOOKUP(F42,[1]Ark1!#REF!,12,FALSE),"") ->  | I42: =IFERROR(VLOOKUP(G42,[1]Ark1!#REF!,12,FALSE),"") ->  | J42: =IFERROR(VLOOKUP(H42,[1]Ark1!#REF!,12,FALSE),"") ->  | K42: =IFERROR(VLOOKUP(I42,[1]Ark1!#REF!,12,FALSE),"") ->  | L42: =IFERROR(VLOOKUP(J42,[1]Ark1!#REF!,12,FALSE),"") ->  | M42: =IFERROR(VLOOKUP(K42,[1]Ark1!#REF!,12,FALSE),"") ->  | N42: =IFERROR(VLOOKUP(L42,[1]Ark1!#REF!,12,FALSE),"") ->  | O42: =IFERROR(VLOOKUP(M42,[1]Ark1!#REF!,12,FALSE),"") ->  | P42: =IFERROR(VLOOKUP(N42,[1]Ark1!#REF!,12,FALSE),"") ->  | Q42: =IFERROR(VLOOKUP(O42,[1]Ark1!#REF!,12,FALSE),"") ->  | R42: =IFERROR(VLOOKUP(P42,[1]Ark1!#REF!,12,FALSE),"") ->  | S42: =IFERROR(VLOOKUP(Q42,[1]Ark1!#REF!,12,FALSE),"") ->  | T42: =IFERROR(VLOOKUP(R42,[1]Ark1!#REF!,12,FALSE),"") ->  | U42: =IFERROR(VLOOKUP(S42,[1]Ark1!#REF!,12,FALSE),"") ->  | V42: =IFERROR(VLOOKUP(T42,[1]Ark1!#REF!,12,FALSE),"") ->  | W42: =IFERROR(VLOOKUP(U42,[1]Ark1!#REF!,12,FALSE),"") ->  | X42: =IFERROR(VLOOKUP(V42,[1]Ark1!#REF!,12,FALSE),"") ->  | Y42: =IFERROR(VLOOKUP(W42,[1]Ark1!#REF!,12,FALSE),"") ->  | Z42: =IFERROR(VLOOKUP(X42,[1]Ark1!#REF!,12,FALSE),"") ->  | AA42: =IF(D42="","",HLOOKUP($C$6,'Beregning gr. 2'!F1:P52,D42+3)) -> 7.995895519 | AB42: =IFERROR(E42*AD42,"")*E6 -> 0 | AD42: 8
D43: 30 | F43: =IFERROR(VLOOKUP(D43,'Beregning gr. 2'!F1:P52,11,FALSE),"") -> m | G43: =IFERROR(VLOOKUP(D43,'Beregning gr. 2'!F1:P52,10,FALSE),"") -> Tillæg for hulkehl på færdigbehandlet væg | H43: =IFERROR(VLOOKUP(F43,[1]Ark1!#REF!,12,FALSE),"") ->  | I43: =IFERROR(VLOOKUP(G43,[1]Ark1!#REF!,12,FALSE),"") ->  | J43: =IFERROR(VLOOKUP(H43,[1]Ark1!#REF!,12,FALSE),"") ->  | K43: =IFERROR(VLOOKUP(I43,[1]Ark1!#REF!,12,FALSE),"") ->  | L43: =IFERROR(VLOOKUP(J43,[1]Ark1!#REF!,12,FALSE),"") ->  | M43: =IFERROR(VLOOKUP(K43,[1]Ark1!#REF!,12,FALSE),"") ->  | N43: =IFERROR(VLOOKUP(L43,[1]Ark1!#REF!,12,FALSE),"") ->  | O43: =IFERROR(VLOOKUP(M43,[1]Ark1!#REF!,12,FALSE),"") ->  | P43: =IFERROR(VLOOKUP(N43,[1]Ark1!#REF!,12,FALSE),"") ->  | Q43: =IFERROR(VLOOKUP(O43,[1]Ark1!#REF!,12,FALSE),"") ->  | R43: =IFERROR(VLOOKUP(P43,[1]Ark1!#REF!,12,FALSE),"") ->  | S43: =IFERROR(VLOOKUP(Q43,[1]Ark1!#REF!,12,FALSE),"") ->  | T43: =IFERROR(VLOOKUP(R43,[1]Ark1!#REF!,12,FALSE),"") ->  | U43: =IFERROR(VLOOKUP(S43,[1]Ark1!#REF!,12,FALSE),"") ->  | V43: =IFERROR(VLOOKUP(T43,[1]Ark1!#REF!,12,FALSE),"") ->  | W43: =IFERROR(VLOOKUP(U43,[1]Ark1!#REF!,12,FALSE),"") ->  | X43: =IFERROR(VLOOKUP(V43,[1]Ark1!#REF!,12,FALSE),"") ->  | Y43: =IFERROR(VLOOKUP(W43,[1]Ark1!#REF!,12,FALSE),"") ->  | Z43: =IFERROR(VLOOKUP(X43,[1]Ark1!#REF!,12,FALSE),"") ->  | AA43: =IF(D43="","",HLOOKUP($C$6,'Beregning gr. 2'!F1:P52,D43+3)) -> 6.219029848 | AB43: =IFERROR(E43*AD43,"")*E6 -> 0 | AD43: 6.22
D44: 31 | F44: =IFERROR(VLOOKUP(D44,'Beregning gr. 2'!F1:P52,11,FALSE),"") -> stk | G44: =IFERROR(VLOOKUP(D44,'Beregning gr. 2'!F1:P52,10,FALSE),"") -> Spartling af lokalfald | H44: =IFERROR(VLOOKUP(F44,[1]Ark1!#REF!,12,FALSE),"") ->  | I44: =IFERROR(VLOOKUP(G44,[1]Ark1!#REF!,12,FALSE),"") ->  | J44: =IFERROR(VLOOKUP(H44,[1]Ark1!#REF!,12,FALSE),"") ->  | K44: =IFERROR(VLOOKUP(I44,[1]Ark1!#REF!,12,FALSE),"") ->  | L44: =IFERROR(VLOOKUP(J44,[1]Ark1!#REF!,12,FALSE),"") ->  | M44: =IFERROR(VLOOKUP(K44,[1]Ark1!#REF!,12,FALSE),"") ->  | N44: =IFERROR(VLOOKUP(L44,[1]Ark1!#REF!,12,FALSE),"") ->  | O44: =IFERROR(VLOOKUP(M44,[1]Ark1!#REF!,12,FALSE),"") ->  | P44: =IFERROR(VLOOKUP(N44,[1]Ark1!#REF!,12,FALSE),"") ->  | Q44: =IFERROR(VLOOKUP(O44,[1]Ark1!#REF!,12,FALSE),"") ->  | R44: =IFERROR(VLOOKUP(P44,[1]Ark1!#REF!,12,FALSE),"") ->  | S44: =IFERROR(VLOOKUP(Q44,[1]Ark1!#REF!,12,FALSE),"") ->  | T44: =IFERROR(VLOOKUP(R44,[1]Ark1!#REF!,12,FALSE),"") ->  | U44: =IFERROR(VLOOKUP(S44,[1]Ark1!#REF!,12,FALSE),"") ->  | V44: =IFERROR(VLOOKUP(T44,[1]Ark1!#REF!,12,FALSE),"") ->  | W44: =IFERROR(VLOOKUP(U44,[1]Ark1!#REF!,12,FALSE),"") ->  | X44: =IFERROR(VLOOKUP(V44,[1]Ark1!#REF!,12,FALSE),"") ->  | Y44: =IFERROR(VLOOKUP(W44,[1]Ark1!#REF!,12,FALSE),"") ->  | Z44: =IFERROR(VLOOKUP(X44,[1]Ark1!#REF!,12,FALSE),"") ->  | AA44: =IF(D44="","",HLOOKUP($C$6,'Beregning gr. 2'!F1:P52,D44+3)) -> 343.5273631 | AB44: =IFERROR(E44*AD44,"")*E6 -> 0 | AD44: 343.53
D45: 32 | F45: =IFERROR(VLOOKUP(D45,'Beregning gr. 2'!F1:P52,11,FALSE),"") -> stk | G45: =IFERROR(VLOOKUP(D45,'Beregning gr. 2'!F1:P52,10,FALSE),"") -> Spartling af lokalfald, afgrænset af 3 vægge | H45: =IFERROR(VLOOKUP(F45,[1]Ark1!#REF!,12,FALSE),"") ->  | I45: =IFERROR(VLOOKUP(G45,[1]Ark1!#REF!,12,FALSE),"") ->  | J45: =IFERROR(VLOOKUP(H45,[1]Ark1!#REF!,12,FALSE),"") ->  | K45: =IFERROR(VLOOKUP(I45,[1]Ark1!#REF!,12,FALSE),"") ->  | L45: =IFERROR(VLOOKUP(J45,[1]Ark1!#REF!,12,FALSE),"") ->  | M45: =IFERROR(VLOOKUP(K45,[1]Ark1!#REF!,12,FALSE),"") ->  | N45: =IFERROR(VLOOKUP(L45,[1]Ark1!#REF!,12,FALSE),"") ->  | O45: =IFERROR(VLOOKUP(M45,[1]Ark1!#REF!,12,FALSE),"") ->  | P45: =IFERROR(VLOOKUP(N45,[1]Ark1!#REF!,12,FALSE),"") ->  | Q45: =IFERROR(VLOOKUP(O45,[1]Ark1!#REF!,12,FALSE),"") ->  | R45: =IFERROR(VLOOKUP(P45,[1]Ark1!#REF!,12,FALSE),"") ->  | S45: =IFERROR(VLOOKUP(Q45,[1]Ark1!#REF!,12,FALSE),"") ->  | T45: =IFERROR(VLOOKUP(R45,[1]Ark1!#REF!,12,FALSE),"") ->  | U45: =IFERROR(VLOOKUP(S45,[1]Ark1!#REF!,12,FALSE),"") ->  | V45: =IFERROR(VLOOKUP(T45,[1]Ark1!#REF!,12,FALSE),"") ->  | W45: =IFERROR(VLOOKUP(U45,[1]Ark1!#REF!,12,FALSE),"") ->  | X45: =IFERROR(VLOOKUP(V45,[1]Ark1!#REF!,12,FALSE),"") ->  | Y45: =IFERROR(VLOOKUP(W45,[1]Ark1!#REF!,12,FALSE),"") ->  | Z45: =IFERROR(VLOOKUP(X45,[1]Ark1!#REF!,12,FALSE),"") ->  | AA45: =IF(D45="","",HLOOKUP($C$6,'Beregning gr. 2'!F1:P52,D45+3)) -> 400.9793531 | AB45: =IFERROR(E45*AD45,"")*E6 -> 0 | AD45: 400.98
D46: 33 | F46: =IFERROR(VLOOKUP(D46,'Beregning gr. 2'!F1:P52,11,FALSE),"") -> m | G46: =IFERROR(VLOOKUP(D46,'Beregning gr. 2'!F1:P52,10,FALSE),"") -> Spartling af gipsvæg | H46: =IFERROR(VLOOKUP(F46,[1]Ark1!#REF!,12,FALSE),"") ->  | I46: =IFERROR(VLOOKUP(G46,[1]Ark1!#REF!,12,FALSE),"") ->  | J46: =IFERROR(VLOOKUP(H46,[1]Ark1!#REF!,12,FALSE),"") ->  | K46: =IFERROR(VLOOKUP(I46,[1]Ark1!#REF!,12,FALSE),"") ->  | L46: =IFERROR(VLOOKUP(J46,[1]Ark1!#REF!,12,FALSE),"") ->  | M46: =IFERROR(VLOOKUP(K46,[1]Ark1!#REF!,12,FALSE),"") ->  | N46: =IFERROR(VLOOKUP(L46,[1]Ark1!#REF!,12,FALSE),"") ->  | O46: =IFERROR(VLOOKUP(M46,[1]Ark1!#REF!,12,FALSE),"") ->  | P46: =IFERROR(VLOOKUP(N46,[1]Ark1!#REF!,12,FALSE),"") ->  | Q46: =IFERROR(VLOOKUP(O46,[1]Ark1!#REF!,12,FALSE),"") ->  | R46: =IFERROR(VLOOKUP(P46,[1]Ark1!#REF!,12,FALSE),"") ->  | S46: =IFERROR(VLOOKUP(Q46,[1]Ark1!#REF!,12,FALSE),"") ->  | T46: =IFERROR(VLOOKUP(R46,[1]Ark1!#REF!,12,FALSE),"") ->  | U46: =IFERROR(VLOOKUP(S46,[1]Ark1!#REF!,12,FALSE),"") ->  | V46: =IFERROR(VLOOKUP(T46,[1]Ark1!#REF!,12,FALSE),"") ->  | W46: =IFERROR(VLOOKUP(U46,[1]Ark1!#REF!,12,FALSE),"") ->  | X46: =IFERROR(VLOOKUP(V46,[1]Ark1!#REF!,12,FALSE),"") ->  | Y46: =IFERROR(VLOOKUP(W46,[1]Ark1!#REF!,12,FALSE),"") ->  | Z46: =IFERROR(VLOOKUP(X46,[1]Ark1!#REF!,12,FALSE),"") ->  | AA46: =IF(D46="","",HLOOKUP($C$6,'Beregning gr. 2'!F1:P52,D46+3)) -> 8.588184076 | AB46: =IFERROR(E46*AD46,"")*E6 -> 0 | AD46: 8.59
D47: 34 | F47: =IFERROR(VLOOKUP(D47,'Beregning gr. 2'!F1:P52,11,FALSE),"") -> m | G47: =IFERROR(VLOOKUP(D47,'Beregning gr. 2'!F1:P52,10,FALSE),"") -> Spartling af murstensvæg | H47: =IFERROR(VLOOKUP(F47,[1]Ark1!#REF!,12,FALSE),"") ->  | I47: =IFERROR(VLOOKUP(G47,[1]Ark1!#REF!,12,FALSE),"") ->  | J47: =IFERROR(VLOOKUP(H47,[1]Ark1!#REF!,12,FALSE),"") ->  | K47: =IFERROR(VLOOKUP(I47,[1]Ark1!#REF!,12,FALSE),"") ->  | L47: =IFERROR(VLOOKUP(J47,[1]Ark1!#REF!,12,FALSE),"") ->  | M47: =IFERROR(VLOOKUP(K47,[1]Ark1!#REF!,12,FALSE),"") ->  | N47: =IFERROR(VLOOKUP(L47,[1]Ark1!#REF!,12,FALSE),"") ->  | O47: =IFERROR(VLOOKUP(M47,[1]Ark1!#REF!,12,FALSE),"") ->  | P47: =IFERROR(VLOOKUP(N47,[1]Ark1!#REF!,12,FALSE),"") ->  | Q47: =IFERROR(VLOOKUP(O47,[1]Ark1!#REF!,12,FALSE),"") ->  | R47: =IFERROR(VLOOKUP(P47,[1]Ark1!#REF!,12,FALSE),"") ->  | S47: =IFERROR(VLOOKUP(Q47,[1]Ark1!#REF!,12,FALSE),"") ->  | T47: =IFERROR(VLOOKUP(R47,[1]Ark1!#REF!,12,FALSE),"") ->  | U47: =IFERROR(VLOOKUP(S47,[1]Ark1!#REF!,12,FALSE),"") ->  | V47: =IFERROR(VLOOKUP(T47,[1]Ark1!#REF!,12,FALSE),"") ->  | W47: =IFERROR(VLOOKUP(U47,[1]Ark1!#REF!,12,FALSE),"") ->  | X47: =IFERROR(VLOOKUP(V47,[1]Ark1!#REF!,12,FALSE),"") ->  | Y47: =IFERROR(VLOOKUP(W47,[1]Ark1!#REF!,12,FALSE),"") ->  | Z47: =IFERROR(VLOOKUP(X47,[1]Ark1!#REF!,12,FALSE),"") ->  | AA47: =IF(D47="","",HLOOKUP($C$6,'Beregning gr. 2'!F1:P52,D47+3)) -> 17.17636815 | AB47: =IFERROR(E47*AD47,"")*E6 -> 0 | AD47: 17.18
D48: 35 | F48: =IFERROR(VLOOKUP(D48,'Beregning gr. 2'!F1:P52,11,FALSE),"") -> m | G48: =IFERROR(VLOOKUP(D48,'Beregning gr. 2'!F1:P52,10,FALSE),"") -> T.o.m. Ø160 mm afløb | H48: =IFERROR(VLOOKUP(F48,[1]Ark1!#REF!,12,FALSE),"") ->  | I48: =IFERROR(VLOOKUP(G48,[1]Ark1!#REF!,12,FALSE),"") ->  | J48: =IFERROR(VLOOKUP(H48,[1]Ark1!#REF!,12,FALSE),"") ->  | K48: =IFERROR(VLOOKUP(I48,[1]Ark1!#REF!,12,FALSE),"") ->  | L48: =IFERROR(VLOOKUP(J48,[1]Ark1!#REF!,12,FALSE),"") ->  | M48: =IFERROR(VLOOKUP(K48,[1]Ark1!#REF!,12,FALSE),"") ->  | N48: =IFERROR(VLOOKUP(L48,[1]Ark1!#REF!,12,FALSE),"") ->  | O48: =IFERROR(VLOOKUP(M48,[1]Ark1!#REF!,12,FALSE),"") ->  | P48: =IFERROR(VLOOKUP(N48,[1]Ark1!#REF!,12,FALSE),"") ->  | Q48: =IFERROR(VLOOKUP(O48,[1]Ark1!#REF!,12,FALSE),"") ->  | R48: =IFERROR(VLOOKUP(P48,[1]Ark1!#REF!,12,FALSE),"") ->  | S48: =IFERROR(VLOOKUP(Q48,[1]Ark1!#REF!,12,FALSE),"") ->  | T48: =IFERROR(VLOOKUP(R48,[1]Ark1!#REF!,12,FALSE),"") ->  | U48: =IFERROR(VLOOKUP(S48,[1]Ark1!#REF!,12,FALSE),"") ->  | V48: =IFERROR(VLOOKUP(T48,[1]Ark1!#REF!,12,FALSE),"") ->  | W48: =IFERROR(VLOOKUP(U48,[1]Ark1!#REF!,12,FALSE),"") ->  | X48: =IFERROR(VLOOKUP(V48,[1]Ark1!#REF!,12,FALSE),"") ->  | Y48: =IFERROR(VLOOKUP(W48,[1]Ark1!#REF!,12,FALSE),"") ->  | Z48: =IFERROR(VLOOKUP(X48,[1]Ark1!#REF!,12,FALSE),"") ->  | AA48: =IF(D48="","",HLOOKUP($C$6,'Beregning gr. 2'!F1:P52,D48+3)) -> 110.1656716 | AB48: =IFERROR(E48*AD48,"")*E6 -> 0 | AD48: 110.17
D49: 36 | F49: =IFERROR(VLOOKUP(D49,'Beregning gr. 2'!F1:P52,11,FALSE),"") -> cm | G49: =IFERROR(VLOOKUP(D49,'Beregning gr. 2'!F1:P52,10,FALSE),"") -> Firkantede gulvafløb | H49: =IFERROR(VLOOKUP(F49,[1]Ark1!#REF!,12,FALSE),"") ->  | I49: =IFERROR(VLOOKUP(G49,[1]Ark1!#REF!,12,FALSE),"") ->  | J49: =IFERROR(VLOOKUP(H49,[1]Ark1!#REF!,12,FALSE),"") ->  | K49: =IFERROR(VLOOKUP(I49,[1]Ark1!#REF!,12,FALSE),"") ->  | L49: =IFERROR(VLOOKUP(J49,[1]Ark1!#REF!,12,FALSE),"") ->  | M49: =IFERROR(VLOOKUP(K49,[1]Ark1!#REF!,12,FALSE),"") ->  | N49: =IFERROR(VLOOKUP(L49,[1]Ark1!#REF!,12,FALSE),"") ->  | O49: =IFERROR(VLOOKUP(M49,[1]Ark1!#REF!,12,FALSE),"") ->  | P49: =IFERROR(VLOOKUP(N49,[1]Ark1!#REF!,12,FALSE),"") ->  | Q49: =IFERROR(VLOOKUP(O49,[1]Ark1!#REF!,12,FALSE),"") ->  | R49: =IFERROR(VLOOKUP(P49,[1]Ark1!#REF!,12,FALSE),"") ->  | S49: =IFERROR(VLOOKUP(Q49,[1]Ark1!#REF!,12,FALSE),"") ->  | T49: =IFERROR(VLOOKUP(R49,[1]Ark1!#REF!,12,FALSE),"") ->  | U49: =IFERROR(VLOOKUP(S49,[1]Ark1!#REF!,12,FALSE),"") ->  | V49: =IFERROR(VLOOKUP(T49,[1]Ark1!#REF!,12,FALSE),"") ->  | W49: =IFERROR(VLOOKUP(U49,[1]Ark1!#REF!,12,FALSE),"") ->  | X49: =IFERROR(VLOOKUP(V49,[1]Ark1!#REF!,12,FALSE),"") ->  | Y49: =IFERROR(VLOOKUP(W49,[1]Ark1!#REF!,12,FALSE),"") ->  | Z49: =IFERROR(VLOOKUP(X49,[1]Ark1!#REF!,12,FALSE),"") ->  | AA49: =IF(D49="","",HLOOKUP($C$6,'Beregning gr. 2'!F1:P52,D49+3)) -> 1.184577114 | AB49: =IFERROR(E49*AD49,"")*E6 -> 0 | AD49: 1.18
D50: 37 | F50: =IFERROR(VLOOKUP(D50,'Beregning gr. 2'!F1:P52,11,FALSE),"") -> stk | G50: =IFERROR(VLOOKUP(D50,'Beregning gr. 2'!F1:P52,10,FALSE),"") -> Rørkraver/manchet | H50: =IFERROR(VLOOKUP(F50,[1]Ark1!#REF!,12,FALSE),"") ->  | I50: =IFERROR(VLOOKUP(G50,[1]Ark1!#REF!,12,FALSE),"") ->  | J50: =IFERROR(VLOOKUP(H50,[1]Ark1!#REF!,12,FALSE),"") ->  | K50: =IFERROR(VLOOKUP(I50,[1]Ark1!#REF!,12,FALSE),"") ->  | L50: =IFERROR(VLOOKUP(J50,[1]Ark1!#REF!,12,FALSE),"") ->  | M50: =IFERROR(VLOOKUP(K50,[1]Ark1!#REF!,12,FALSE),"") ->  | N50: =IFERROR(VLOOKUP(L50,[1]Ark1!#REF!,12,FALSE),"") ->  | O50: =IFERROR(VLOOKUP(M50,[1]Ark1!#REF!,12,FALSE),"") ->  | P50: =IFERROR(VLOOKUP(N50,[1]Ark1!#REF!,12,FALSE),"") ->  | Q50: =IFERROR(VLOOKUP(O50,[1]Ark1!#REF!,12,FALSE),"") ->  | R50: =IFERROR(VLOOKUP(P50,[1]Ark1!#REF!,12,FALSE),"") ->  | S50: =IFERROR(VLOOKUP(Q50,[1]Ark1!#REF!,12,FALSE),"") ->  | T50: =IFERROR(VLOOKUP(R50,[1]Ark1!#REF!,12,FALSE),"") ->  | U50: =IFERROR(VLOOKUP(S50,[1]Ark1!#REF!,12,FALSE),"") ->  | V50: =IFERROR(VLOOKUP(T50,[1]Ark1!#REF!,12,FALSE),"") ->  | W50: =IFERROR(VLOOKUP(U50,[1]Ark1!#REF!,12,FALSE),"") ->  | X50: =IFERROR(VLOOKUP(V50,[1]Ark1!#REF!,12,FALSE),"") ->  | Y50: =IFERROR(VLOOKUP(W50,[1]Ark1!#REF!,12,FALSE),"") ->  | Z50: =IFERROR(VLOOKUP(X50,[1]Ark1!#REF!,12,FALSE),"") ->  | AA50: =IF(D50="","",HLOOKUP($C$6,'Beregning gr. 2'!F1:P52,D50+3)) -> 52.71368157 | AB50: =IFERROR(E50*AD50,"")*E6 -> 0 | AD50: 52.71
D51: 38 | F51: =IFERROR(VLOOKUP(D51,'Beregning gr. 2'!F1:P52,11,FALSE),"") -> stk | G51: =IFERROR(VLOOKUP(D51,'Beregning gr. 2'!F1:P52,10,FALSE),"") -> Opkant t.o.m. 10 cm | H51: =IFERROR(VLOOKUP(F51,[1]Ark1!#REF!,12,FALSE),"") ->  | I51: =IFERROR(VLOOKUP(G51,[1]Ark1!#REF!,12,FALSE),"") ->  | J51: =IFERROR(VLOOKUP(H51,[1]Ark1!#REF!,12,FALSE),"") ->  | K51: =IFERROR(VLOOKUP(I51,[1]Ark1!#REF!,12,FALSE),"") ->  | L51: =IFERROR(VLOOKUP(J51,[1]Ark1!#REF!,12,FALSE),"") ->  | M51: =IFERROR(VLOOKUP(K51,[1]Ark1!#REF!,12,FALSE),"") ->  | N51: =IFERROR(VLOOKUP(L51,[1]Ark1!#REF!,12,FALSE),"") ->  | O51: =IFERROR(VLOOKUP(M51,[1]Ark1!#REF!,12,FALSE),"") ->  | P51: =IFERROR(VLOOKUP(N51,[1]Ark1!#REF!,12,FALSE),"") ->  | Q51: =IFERROR(VLOOKUP(O51,[1]Ark1!#REF!,12,FALSE),"") ->  | R51: =IFERROR(VLOOKUP(P51,[1]Ark1!#REF!,12,FALSE),"") ->  | S51: =IFERROR(VLOOKUP(Q51,[1]Ark1!#REF!,12,FALSE),"") ->  | T51: =IFERROR(VLOOKUP(R51,[1]Ark1!#REF!,12,FALSE),"") ->  | U51: =IFERROR(VLOOKUP(S51,[1]Ark1!#REF!,12,FALSE),"") ->  | V51: =IFERROR(VLOOKUP(T51,[1]Ark1!#REF!,12,FALSE),"") ->  | W51: =IFERROR(VLOOKUP(U51,[1]Ark1!#REF!,12,FALSE),"") ->  | X51: =IFERROR(VLOOKUP(V51,[1]Ark1!#REF!,12,FALSE),"") ->  | Y51: =IFERROR(VLOOKUP(W51,[1]Ark1!#REF!,12,FALSE),"") ->  | Z51: =IFERROR(VLOOKUP(X51,[1]Ark1!#REF!,12,FALSE),"") ->  | AA51: =IF(D51="","",HLOOKUP($C$6,'Beregning gr. 2'!F1:P52,D51+3)) -> 52.71368157 | AB51: =IFERROR(E51*AD51,"")*E6 -> 0 | AD51: 52.71
D52: 39 | F52: =IFERROR(VLOOKUP(D52,'Beregning gr. 2'!F1:P52,11,FALSE),"") -> stk | G52: =IFERROR(VLOOKUP(D52,'Beregning gr. 2'!F1:P52,10,FALSE),"") -> Skæring af hjørne ved opkant | H52: =IFERROR(VLOOKUP(F52,[1]Ark1!#REF!,12,FALSE),"") ->  | I52: =IFERROR(VLOOKUP(G52,[1]Ark1!#REF!,12,FALSE),"") ->  | J52: =IFERROR(VLOOKUP(H52,[1]Ark1!#REF!,12,FALSE),"") ->  | K52: =IFERROR(VLOOKUP(I52,[1]Ark1!#REF!,12,FALSE),"") ->  | L52: =IFERROR(VLOOKUP(J52,[1]Ark1!#REF!,12,FALSE),"") ->  | M52: =IFERROR(VLOOKUP(K52,[1]Ark1!#REF!,12,FALSE),"") ->  | N52: =IFERROR(VLOOKUP(L52,[1]Ark1!#REF!,12,FALSE),"") ->  | O52: =IFERROR(VLOOKUP(M52,[1]Ark1!#REF!,12,FALSE),"") ->  | P52: =IFERROR(VLOOKUP(N52,[1]Ark1!#REF!,12,FALSE),"") ->  | Q52: =IFERROR(VLOOKUP(O52,[1]Ark1!#REF!,12,FALSE),"") ->  | R52: =IFERROR(VLOOKUP(P52,[1]Ark1!#REF!,12,FALSE),"") ->  | S52: =IFERROR(VLOOKUP(Q52,[1]Ark1!#REF!,12,FALSE),"") ->  | T52: =IFERROR(VLOOKUP(R52,[1]Ark1!#REF!,12,FALSE),"") ->  | U52: =IFERROR(VLOOKUP(S52,[1]Ark1!#REF!,12,FALSE),"") ->  | V52: =IFERROR(VLOOKUP(T52,[1]Ark1!#REF!,12,FALSE),"") ->  | W52: =IFERROR(VLOOKUP(U52,[1]Ark1!#REF!,12,FALSE),"") ->  | X52: =IFERROR(VLOOKUP(V52,[1]Ark1!#REF!,12,FALSE),"") ->  | Y52: =IFERROR(VLOOKUP(W52,[1]Ark1!#REF!,12,FALSE),"") ->  | Z52: =IFERROR(VLOOKUP(X52,[1]Ark1!#REF!,12,FALSE),"") ->  | AA52: =IF(D52="","",HLOOKUP($C$6,'Beregning gr. 2'!F1:P52,D52+3)) -> 25.17226367 | AB52: =IFERROR(E52*AD52,"")*E6 -> 0 | AD52: 25.17
D53: 40 | F53: =IFERROR(VLOOKUP(D53,'Beregning gr. 2'!F1:P52,11,FALSE),"") -> m | G53: =IFERROR(VLOOKUP(D53,'Beregning gr. 2'!F1:P52,10,FALSE),"") -> Nedsænkning med trekantliste | H53: =IFERROR(VLOOKUP(F53,[1]Ark1!#REF!,12,FALSE),"") ->  | I53: =IFERROR(VLOOKUP(G53,[1]Ark1!#REF!,12,FALSE),"") ->  | J53: =IFERROR(VLOOKUP(H53,[1]Ark1!#REF!,12,FALSE),"") ->  | K53: =IFERROR(VLOOKUP(I53,[1]Ark1!#REF!,12,FALSE),"") ->  | L53: =IFERROR(VLOOKUP(J53,[1]Ark1!#REF!,12,FALSE),"") ->  | M53: =IFERROR(VLOOKUP(K53,[1]Ark1!#REF!,12,FALSE),"") ->  | N53: =IFERROR(VLOOKUP(L53,[1]Ark1!#REF!,12,FALSE),"") ->  | O53: =IFERROR(VLOOKUP(M53,[1]Ark1!#REF!,12,FALSE),"") ->  | P53: =IFERROR(VLOOKUP(N53,[1]Ark1!#REF!,12,FALSE),"") ->  | Q53: =IFERROR(VLOOKUP(O53,[1]Ark1!#REF!,12,FALSE),"") ->  | R53: =IFERROR(VLOOKUP(P53,[1]Ark1!#REF!,12,FALSE),"") ->  | S53: =IFERROR(VLOOKUP(Q53,[1]Ark1!#REF!,12,FALSE),"") ->  | T53: =IFERROR(VLOOKUP(R53,[1]Ark1!#REF!,12,FALSE),"") ->  | U53: =IFERROR(VLOOKUP(S53,[1]Ark1!#REF!,12,FALSE),"") ->  | V53: =IFERROR(VLOOKUP(T53,[1]Ark1!#REF!,12,FALSE),"") ->  | W53: =IFERROR(VLOOKUP(U53,[1]Ark1!#REF!,12,FALSE),"") ->  | X53: =IFERROR(VLOOKUP(V53,[1]Ark1!#REF!,12,FALSE),"") ->  | Y53: =IFERROR(VLOOKUP(W53,[1]Ark1!#REF!,12,FALSE),"") ->  | Z53: =IFERROR(VLOOKUP(X53,[1]Ark1!#REF!,12,FALSE),"") ->  | AA53: =IF(D53="","",HLOOKUP($C$6,'Beregning gr. 2'!F1:P52,D53+3)) -> 94.76616912 | AB53: =IFERROR(E53*AD53,"")*E6 -> 0 | AD53: 94.77
D54: 41 | F54: =IFERROR(VLOOKUP(D54,'Beregning gr. 2'!F1:P52,11,FALSE),"") -> stk | G54: =IFERROR(VLOOKUP(D54,'Beregning gr. 2'!F1:P52,10,FALSE),"") -> Tillæg for hjørner ved nedsænkning | H54: =IFERROR(VLOOKUP(F54,[1]Ark1!#REF!,12,FALSE),"") ->  | I54: =IFERROR(VLOOKUP(G54,[1]Ark1!#REF!,12,FALSE),"") ->  | J54: =IFERROR(VLOOKUP(H54,[1]Ark1!#REF!,12,FALSE),"") ->  | K54: =IFERROR(VLOOKUP(I54,[1]Ark1!#REF!,12,FALSE),"") ->  | L54: =IFERROR(VLOOKUP(J54,[1]Ark1!#REF!,12,FALSE),"") ->  | M54: =IFERROR(VLOOKUP(K54,[1]Ark1!#REF!,12,FALSE),"") ->  | N54: =IFERROR(VLOOKUP(L54,[1]Ark1!#REF!,12,FALSE),"") ->  | O54: =IFERROR(VLOOKUP(M54,[1]Ark1!#REF!,12,FALSE),"") ->  | P54: =IFERROR(VLOOKUP(N54,[1]Ark1!#REF!,12,FALSE),"") ->  | Q54: =IFERROR(VLOOKUP(O54,[1]Ark1!#REF!,12,FALSE),"") ->  | R54: =IFERROR(VLOOKUP(P54,[1]Ark1!#REF!,12,FALSE),"") ->  | S54: =IFERROR(VLOOKUP(Q54,[1]Ark1!#REF!,12,FALSE),"") ->  | T54: =IFERROR(VLOOKUP(R54,[1]Ark1!#REF!,12,FALSE),"") ->  | U54: =IFERROR(VLOOKUP(S54,[1]Ark1!#REF!,12,FALSE),"") ->  | V54: =IFERROR(VLOOKUP(T54,[1]Ark1!#REF!,12,FALSE),"") ->  | W54: =IFERROR(VLOOKUP(U54,[1]Ark1!#REF!,12,FALSE),"") ->  | X54: =IFERROR(VLOOKUP(V54,[1]Ark1!#REF!,12,FALSE),"") ->  | Y54: =IFERROR(VLOOKUP(W54,[1]Ark1!#REF!,12,FALSE),"") ->  | Z54: =IFERROR(VLOOKUP(X54,[1]Ark1!#REF!,12,FALSE),"") ->  | AA54: =IF(D54="","",HLOOKUP($C$6,'Beregning gr. 2'!F1:P52,D54+3)) -> 88.84328355 | AB54: =IFERROR(E54*AD54,"")*E6 -> 0 | AD54: 88.84
D55: 42 | F55: =IFERROR(VLOOKUP(D55,'Beregning gr. 2'!F1:P52,2,FALSE),"") -> 0.35 | G55: =IFERROR(VLOOKUP(D55,'Beregning gr. 2'!F1:P52,10,FALSE),"") -> Tillæg for montering med kontaktlim Pkt.13-15-16-17-18 | H55: =IFERROR(VLOOKUP(F55,[1]Ark1!#REF!,12,FALSE),"") ->  | I55: =IFERROR(VLOOKUP(G55,[1]Ark1!#REF!,12,FALSE),"") ->  | J55: =IFERROR(VLOOKUP(H55,[1]Ark1!#REF!,12,FALSE),"") ->  | K55: =IFERROR(VLOOKUP(I55,[1]Ark1!#REF!,12,FALSE),"") ->  | L55: =IFERROR(VLOOKUP(J55,[1]Ark1!#REF!,12,FALSE),"") ->  | M55: =IFERROR(VLOOKUP(K55,[1]Ark1!#REF!,12,FALSE),"") ->  | N55: =IFERROR(VLOOKUP(L55,[1]Ark1!#REF!,12,FALSE),"") ->  | O55: =IFERROR(VLOOKUP(M55,[1]Ark1!#REF!,12,FALSE),"") ->  | P55: =IFERROR(VLOOKUP(N55,[1]Ark1!#REF!,12,FALSE),"") ->  | Q55: =IFERROR(VLOOKUP(O55,[1]Ark1!#REF!,12,FALSE),"") ->  | R55: =IFERROR(VLOOKUP(P55,[1]Ark1!#REF!,12,FALSE),"") ->  | S55: =IFERROR(VLOOKUP(Q55,[1]Ark1!#REF!,12,FALSE),"") ->  | T55: =IFERROR(VLOOKUP(R55,[1]Ark1!#REF!,12,FALSE),"") ->  | U55: =IFERROR(VLOOKUP(S55,[1]Ark1!#REF!,12,FALSE),"") ->  | V55: =IFERROR(VLOOKUP(T55,[1]Ark1!#REF!,12,FALSE),"") ->  | W55: =IFERROR(VLOOKUP(U55,[1]Ark1!#REF!,12,FALSE),"") ->  | X55: =IFERROR(VLOOKUP(V55,[1]Ark1!#REF!,12,FALSE),"") ->  | Y55: =IFERROR(VLOOKUP(W55,[1]Ark1!#REF!,12,FALSE),"") ->  | Z55: =IFERROR(VLOOKUP(X55,[1]Ark1!#REF!,12,FALSE),"") ->  | AA55: =SUM(AB26,AB28,AB29,AB30,AB31)*F55 -> 0 | AB55: =IFERROR(F55*AD55*E55,"") -> 0 | AD55: 0
D56: 43 | F56: =IFERROR(VLOOKUP(D56,'Beregning gr. 2'!F1:P52,2,FALSE),"") -> 0.1 | G56: =IFERROR(VLOOKUP(D56,'Beregning gr. 2'!F1:P52,10,FALSE),"") -> Tillæg for skridsikkert Pkt. 13-14-15-16-17-18-35-36-37 | H56: =IFERROR(VLOOKUP(F56,[1]Ark1!#REF!,12,FALSE),"") ->  | I56: =IFERROR(VLOOKUP(G56,[1]Ark1!#REF!,12,FALSE),"") ->  | J56: =IFERROR(VLOOKUP(H56,[1]Ark1!#REF!,12,FALSE),"") ->  | K56: =IFERROR(VLOOKUP(I56,[1]Ark1!#REF!,12,FALSE),"") ->  | L56: =IFERROR(VLOOKUP(J56,[1]Ark1!#REF!,12,FALSE),"") ->  | M56: =IFERROR(VLOOKUP(K56,[1]Ark1!#REF!,12,FALSE),"") ->  | N56: =IFERROR(VLOOKUP(L56,[1]Ark1!#REF!,12,FALSE),"") ->  | O56: =IFERROR(VLOOKUP(M56,[1]Ark1!#REF!,12,FALSE),"") ->  | P56: =IFERROR(VLOOKUP(N56,[1]Ark1!#REF!,12,FALSE),"") ->  | Q56: =IFERROR(VLOOKUP(O56,[1]Ark1!#REF!,12,FALSE),"") ->  | R56: =IFERROR(VLOOKUP(P56,[1]Ark1!#REF!,12,FALSE),"") ->  | S56: =IFERROR(VLOOKUP(Q56,[1]Ark1!#REF!,12,FALSE),"") ->  | T56: =IFERROR(VLOOKUP(R56,[1]Ark1!#REF!,12,FALSE),"") ->  | U56: =IFERROR(VLOOKUP(S56,[1]Ark1!#REF!,12,FALSE),"") ->  | V56: =IFERROR(VLOOKUP(T56,[1]Ark1!#REF!,12,FALSE),"") ->  | W56: =IFERROR(VLOOKUP(U56,[1]Ark1!#REF!,12,FALSE),"") ->  | X56: =IFERROR(VLOOKUP(V56,[1]Ark1!#REF!,12,FALSE),"") ->  | Y56: =IFERROR(VLOOKUP(W56,[1]Ark1!#REF!,12,FALSE),"") ->  | Z56: =IFERROR(VLOOKUP(X56,[1]Ark1!#REF!,12,FALSE),"") ->  | AA56: =SUM(AB26,AB27,AB28,AB29,AB30,AB31,AB48,AB49:AB50) -> 0 | AB56: =IFERROR(F56*AD56*E56,"")*F56*10 -> 0 | AD56: =ROUND(AA56,2) -> 0
D57: 44 | F57: =IFERROR(VLOOKUP(D57,'Beregning gr. 2'!F1:P52,11,FALSE),"") -> m | G57: =IFERROR(VLOOKUP(D57,'Beregning gr. 2'!F1:P52,10,FALSE),"") -> Gulvskinne m/forboring, plugs, skrue, klæbning | H57: =IFERROR(VLOOKUP(F57,[1]Ark1!#REF!,12,FALSE),"") ->  | I57: =IFERROR(VLOOKUP(G57,[1]Ark1!#REF!,12,FALSE),"") ->  | J57: =IFERROR(VLOOKUP(H57,[1]Ark1!#REF!,12,FALSE),"") ->  | K57: =IFERROR(VLOOKUP(I57,[1]Ark1!#REF!,12,FALSE),"") ->  | L57: =IFERROR(VLOOKUP(J57,[1]Ark1!#REF!,12,FALSE),"") ->  | M57: =IFERROR(VLOOKUP(K57,[1]Ark1!#REF!,12,FALSE),"") ->  | N57: =IFERROR(VLOOKUP(L57,[1]Ark1!#REF!,12,FALSE),"") ->  | O57: =IFERROR(VLOOKUP(M57,[1]Ark1!#REF!,12,FALSE),"") ->  | P57: =IFERROR(VLOOKUP(N57,[1]Ark1!#REF!,12,FALSE),"") ->  | Q57: =IFERROR(VLOOKUP(O57,[1]Ark1!#REF!,12,FALSE),"") ->  | R57: =IFERROR(VLOOKUP(P57,[1]Ark1!#REF!,12,FALSE),"") ->  | S57: =IFERROR(VLOOKUP(Q57,[1]Ark1!#REF!,12,FALSE),"") ->  | T57: =IFERROR(VLOOKUP(R57,[1]Ark1!#REF!,12,FALSE),"") ->  | U57: =IFERROR(VLOOKUP(S57,[1]Ark1!#REF!,12,FALSE),"") ->  | V57: =IFERROR(VLOOKUP(T57,[1]Ark1!#REF!,12,FALSE),"") ->  | W57: =IFERROR(VLOOKUP(U57,[1]Ark1!#REF!,12,FALSE),"") ->  | X57: =IFERROR(VLOOKUP(V57,[1]Ark1!#REF!,12,FALSE),"") ->  | Y57: =IFERROR(VLOOKUP(W57,[1]Ark1!#REF!,12,FALSE),"") ->  | Z57: =IFERROR(VLOOKUP(X57,[1]Ark1!#REF!,12,FALSE),"") ->  | AA57: =IF(D57="","",HLOOKUP($C$6,'Beregning gr. 2'!F1:P52,D57+3)) -> 60.32758775 | AB57: =IFERROR(E57*AD57,"")*E6 -> 0 | AD57: 60.33
D58: 45 | F58: =IFERROR(VLOOKUP(D58,'Beregning gr. 2'!F1:P52,11,FALSE),"") -> m | G58: =IFERROR(VLOOKUP(D58,'Beregning gr. 2'!F1:P52,10,FALSE),"") -> Gulvskinne i underlag af træ, inkl. klæbning | H58: =IFERROR(VLOOKUP(F58,[1]Ark1!#REF!,12,FALSE),"") ->  | I58: =IFERROR(VLOOKUP(G58,[1]Ark1!#REF!,12,FALSE),"") ->  | J58: =IFERROR(VLOOKUP(H58,[1]Ark1!#REF!,12,FALSE),"") ->  | K58: =IFERROR(VLOOKUP(I58,[1]Ark1!#REF!,12,FALSE),"") ->  | L58: =IFERROR(VLOOKUP(J58,[1]Ark1!#REF!,12,FALSE),"") ->  | M58: =IFERROR(VLOOKUP(K58,[1]Ark1!#REF!,12,FALSE),"") ->  | N58: =IFERROR(VLOOKUP(L58,[1]Ark1!#REF!,12,FALSE),"") ->  | O58: =IFERROR(VLOOKUP(M58,[1]Ark1!#REF!,12,FALSE),"") ->  | P58: =IFERROR(VLOOKUP(N58,[1]Ark1!#REF!,12,FALSE),"") ->  | Q58: =IFERROR(VLOOKUP(O58,[1]Ark1!#REF!,12,FALSE),"") ->  | R58: =IFERROR(VLOOKUP(P58,[1]Ark1!#REF!,12,FALSE),"") ->  | S58: =IFERROR(VLOOKUP(Q58,[1]Ark1!#REF!,12,FALSE),"") ->  | T58: =IFERROR(VLOOKUP(R58,[1]Ark1!#REF!,12,FALSE),"") ->  | U58: =IFERROR(VLOOKUP(S58,[1]Ark1!#REF!,12,FALSE),"") ->  | V58: =IFERROR(VLOOKUP(T58,[1]Ark1!#REF!,12,FALSE),"") ->  | W58: =IFERROR(VLOOKUP(U58,[1]Ark1!#REF!,12,FALSE),"") ->  | X58: =IFERROR(VLOOKUP(V58,[1]Ark1!#REF!,12,FALSE),"") ->  | Y58: =IFERROR(VLOOKUP(W58,[1]Ark1!#REF!,12,FALSE),"") ->  | Z58: =IFERROR(VLOOKUP(X58,[1]Ark1!#REF!,12,FALSE),"") ->  | AA58: =IF(D58="","",HLOOKUP($C$6,'Beregning gr. 2'!F1:P52,D58+3)) -> 40.24 | AB58: =IFERROR(E58*AD58,"")*E6 -> 0 | AD58: 40.24
D59: 46 | F59: =IFERROR(VLOOKUP(D59,'Beregning gr. 2'!F1:P52,11,FALSE),"") -> m | G59: =IFERROR(VLOOKUP(D59,'Beregning gr. 2'!F1:P52,10,FALSE),"") -> Gulvskinne monteret med dobbeltklæbende tape, pr. m. pr. samling, pr. gering | H59: =IFERROR(VLOOKUP(F59,[1]Ark1!#REF!,12,FALSE),"") ->  | I59: =IFERROR(VLOOKUP(G59,[1]Ark1!#REF!,12,FALSE),"") ->  | J59: =IFERROR(VLOOKUP(H59,[1]Ark1!#REF!,12,FALSE),"") ->  | K59: =IFERROR(VLOOKUP(I59,[1]Ark1!#REF!,12,FALSE),"") ->  | L59: =IFERROR(VLOOKUP(J59,[1]Ark1!#REF!,12,FALSE),"") ->  | M59: =IFERROR(VLOOKUP(K59,[1]Ark1!#REF!,12,FALSE),"") ->  | N59: =IFERROR(VLOOKUP(L59,[1]Ark1!#REF!,12,FALSE),"") ->  | O59: =IFERROR(VLOOKUP(M59,[1]Ark1!#REF!,12,FALSE),"") ->  | P59: =IFERROR(VLOOKUP(N59,[1]Ark1!#REF!,12,FALSE),"") ->  | Q59: =IFERROR(VLOOKUP(O59,[1]Ark1!#REF!,12,FALSE),"") ->  | R59: =IFERROR(VLOOKUP(P59,[1]Ark1!#REF!,12,FALSE),"") ->  | S59: =IFERROR(VLOOKUP(Q59,[1]Ark1!#REF!,12,FALSE),"") ->  | T59: =IFERROR(VLOOKUP(R59,[1]Ark1!#REF!,12,FALSE),"") ->  | U59: =IFERROR(VLOOKUP(S59,[1]Ark1!#REF!,12,FALSE),"") ->  | V59: =IFERROR(VLOOKUP(T59,[1]Ark1!#REF!,12,FALSE),"") ->  | W59: =IFERROR(VLOOKUP(U59,[1]Ark1!#REF!,12,FALSE),"") ->  | X59: =IFERROR(VLOOKUP(V59,[1]Ark1!#REF!,12,FALSE),"") ->  | Y59: =IFERROR(VLOOKUP(W59,[1]Ark1!#REF!,12,FALSE),"") ->  | Z59: =IFERROR(VLOOKUP(X59,[1]Ark1!#REF!,12,FALSE),"") ->  | AA59: =IF(D59="","",HLOOKUP($C$6,'Beregning gr. 2'!F1:P52,D59+3)) -> 36.19655265 | AB59: =IFERROR(E59*AD59,"")*E6 -> 0 | AD59: 36.2
AD60: =ROUND(AA60,2) -> 0
D61: Pkt. | E61: Antal | F61: Gulv vinyl Procent tillæg til pkt. 13-32-33-34-35-36 | AD61: 0
D62: 42 | F62: =IFERROR(VLOOKUP(D62,'Ark1'!D1:O50,9,FALSE),"") -> 0.35 | G62: =IFERROR(VLOOKUP(D62,'Ark1'!D1:O50,12,FALSE),"") -> Tillæg for montering med kontaktlim | H62: =IFERROR(VLOOKUP(F62,[1]Ark1!D1:Q50,13,FALSE),"") ->  | I62: =IFERROR(VLOOKUP(G62,[1]Ark1!E1:R50,13,FALSE),"") ->  | J62: =IFERROR(VLOOKUP(H62,[1]Ark1!F1:S50,13,FALSE),"") ->  | K62: =IFERROR(VLOOKUP(I62,[1]Ark1!G1:T50,13,FALSE),"") ->  | L62: =IFERROR(VLOOKUP(J62,[1]Ark1!H1:U50,13,FALSE),"") ->  | M62: =IFERROR(VLOOKUP(K62,[1]Ark1!I1:V50,13,FALSE),"") ->  | N62: =IFERROR(VLOOKUP(L62,[1]Ark1!J1:W50,13,FALSE),"") ->  | O62: =IFERROR(VLOOKUP(M62,[1]Ark1!K1:X50,13,FALSE),"") ->  | P62: =IFERROR(VLOOKUP(N62,[1]Ark1!L1:Y50,13,FALSE),"") ->  | Q62: =IFERROR(VLOOKUP(O62,[1]Ark1!M1:Z50,13,FALSE),"") ->  | R62: =IFERROR(VLOOKUP(P62,[1]Ark1!N1:AA50,13,FALSE),"") ->  | S62: =IFERROR(VLOOKUP(Q62,[1]Ark1!O1:AB50,13,FALSE),"") ->  | T62: =IFERROR(VLOOKUP(R62,[1]Ark1!P1:AC50,13,FALSE),"") ->  | U62: =IFERROR(VLOOKUP(S62,[1]Ark1!Q1:AD50,13,FALSE),"") ->  | V62: =IFERROR(VLOOKUP(T62,[1]Ark1!R1:AE50,13,FALSE),"") ->  | W62: =IFERROR(VLOOKUP(U62,[1]Ark1!S1:AF50,13,FALSE),"") ->  | X62: =IFERROR(VLOOKUP(V62,[1]Ark1!T1:AG50,13,FALSE),"") ->  | Y62: =IFERROR(VLOOKUP(W62,[1]Ark1!U1:AH50,13,FALSE),"") ->  | Z62: =IFERROR(VLOOKUP(X62,[1]Ark1!V1:AI50,13,FALSE),"") ->  | AB62: =IFERROR(F62*AA62,"") -> 0 | AD62: 0
D63: 43 | F63: =IFERROR(VLOOKUP(D63,'Ark1'!D1:P50,9,FALSE),"") -> 0.1 | G63: =IFERROR(VLOOKUP(D63,'Ark1'!D1:P50,12,FALSE),"") -> Tillæg for skridsikkert | AB63: =IFERROR(F63*AA63,"") -> 0 | AD63: 0
D64: Pkt. | E64: Antal | F64: Væg vinyl | AA64: Sum gulv | AB64: =SUM(AB14:AB59) -> 0
D65: 47 | F65: =IFERROR(VLOOKUP(D65,'Beregning gr. 2'!R1:AB64,11,FALSE),"") -> M² | G65: =IFERROR(VLOOKUP(D65,'Beregning gr. 2'!R1:AA64,10,FALSE),"") -> opskæring af vinyl pr. m² | AA65: =IF(D65="","",HLOOKUP($P$6,'Beregning gr. 2'!R1:Z64,D65+3)) -> 8.227169025 | AB65: =IFERROR(E65*AD65*P6,"")*T6 -> 0 | AD65: 8.23
D66: 48 | F66: =IFERROR(VLOOKUP(D66,'Beregning gr. 2'!R2:AB65,11,FALSE),"") -> M² | G66: =IFERROR(VLOOKUP(D66,'Beregning gr. 2'!R2:AA65,10,FALSE),"") -> Opsætning af vinyl på væg med enkeltklæbning pr. M² | AA66: =IF(D66="","",HLOOKUP($P$6,'Beregning gr. 2'!R1:Z64,D66+3)) -> 76.2376754 | AB66: =IFERROR(E66*AD66*P6,"")*T6 -> 0 | AD66: 76.24
D67: 49 | F67: =IFERROR(VLOOKUP(D67,'Beregning gr. 2'!R3:AB66,11,FALSE),"") -> m. | G67: =IFERROR(VLOOKUP(D67,'Beregning gr. 2'!R3:AA66,10,FALSE),"") -> Indvendigt/udvendigt lodret hjørne på væg med enkeltklæbning pr. m. | AA67: =IF(D67="","",HLOOKUP($P$6,'Beregning gr. 2'!R1:Z64,D67+3)) -> 113.7258392 | AB67: =IFERROR(E67*AD67,"")*T6 -> 0 | AD67: 113.73
D68: 50 | F68: =IFERROR(VLOOKUP(D68,'Beregning gr. 2'!R4:AB67,11,FALSE),"") -> m | G68: =IFERROR(VLOOKUP(D68,'Beregning gr. 2'!R4:AA67,10,FALSE),"") -> Udvendigt lodret hjørne på væg med kontaktklæbning pr. m. | AA68: =IF(D68="","",HLOOKUP($P$6,'Beregning gr. 2'!R1:Z64,D68+3)) -> 153.5321557 | AB68: =IFERROR(E68*AD68,"")*T6 -> 0 | AD68: 153.53
D69: 51 | F69: =IFERROR(VLOOKUP(D69,'Beregning gr. 2'!R5:AB68,11,FALSE),"") -> stk | G69: =IFERROR(VLOOKUP(D69,'Beregning gr. 2'!R5:AA68,10,FALSE),"") -> Udskæring for lem pr. stk. | AA69: =IF(D69="","",HLOOKUP($P$6,'Beregning gr. 2'!R1:Z64,D69+3)) -> 174.5773449 | AB69: =IFERROR(E69*AD69,"")*T6 -> 0 | AD69: 174.58
D70: 52 | F70: =IFERROR(VLOOKUP(D70,'Beregning gr. 2'!R6:AB69,11,FALSE),"") -> m | G70: =IFERROR(VLOOKUP(D70,'Beregning gr. 2'!R6:AA69,10,FALSE),"") -> Lodrette svejsninger inkl. Fræsning pr. M. | AA70: =IF(D70="","",HLOOKUP($P$6,'Beregning gr. 2'!R1:Z64,D70+3)) -> 43.61308663 | AB70: =IFERROR(E70*AD70,"")*T6 -> 0 | AD70: 43.61
D71: 53 | F71: =IFERROR(VLOOKUP(D71,'Beregning gr. 2'!R7:AB70,11,FALSE),"") -> m | G71: =IFERROR(VLOOKUP(D71,'Beregning gr. 2'!R7:AA70,10,FALSE),"") -> Vandrette svejsninger inkl. Fræsning pr. M. | AA71: =IF(D71="","",HLOOKUP($P$6,'Beregning gr. 2'!R1:Z64,D71+3)) -> 54.52204003 | AB71: =IFERROR(E71*AD71,"")*T6 -> 0 | AD71: 54.52
D72: 54 | F72: =IFERROR(VLOOKUP(D72,'Beregning gr. 2'!R8:AB71,11,FALSE),"") -> m | G72: =IFERROR(VLOOKUP(D72,'Beregning gr. 2'!R8:AA71,10,FALSE),"") -> Skæring af underkant på vægvinyl, ned til senere overkant hulkehl eller skæring der skal stå synlig uden på hulkehl, vandret eller fast højde fra gulv pr. meter .......... kr. | AA72: =IF(D72="","",HLOOKUP($P$6,'Beregning gr. 2'!R1:Z64,D72+3)) -> 7.999899162 | AB72: =IFERROR(E72*AD72,"")*T6 -> 0 | AD72: 8
D73: 55 | F73: =IFERROR(VLOOKUP(D73,'Beregning gr. 2'!R9:AB72,11,FALSE),"") -> m | G73: =IFERROR(VLOOKUP(D73,'Beregning gr. 2'!R9:AA72,10,FALSE),"") -> Tillæg for afskæring af vinyl på væg i fast højde på færdigbehandlet væg pr. meter. | AA73: =IF(D73="","",HLOOKUP($P$6,'Beregning gr. 2'!R1:Z64,D73+3)) -> 7.999899162 | AB73: =IFERROR(E73*AD73,"")*T6 -> 0 | AD73: 8
D74: 56 | F74: =IFERROR(VLOOKUP(D74,'Beregning gr. 2'!R10:AB73,11,FALSE),"") -> m | G74: =IFERROR(VLOOKUP(D74,'Beregning gr. 2'!R10:AA73,10,FALSE),"") -> Tillæg for tæt tilskæring af vinyl på væg mod færdigbehandlet loft pr. meter. (2021) | AA74: =IF(D74="","",HLOOKUP($P$6,'Beregning gr. 2'!R1:Z64,D74+3)) -> 5.409022729 | AB74: =IFERROR(E74*AD74,"")*T6 -> 0 | AD74: 5.41
D75: 57 | F75: =IFERROR(VLOOKUP(D75,'Beregning gr. 2'!R11:AB74,11,FALSE),"") -> stk | G75: =IFERROR(VLOOKUP(D75,'Beregning gr. 2'!R11:AA74,10,FALSE),"") -> Rørkraver/manchet t.o.m. Ø 120 mm svejset omkring røret, pr. stk. | AA75: =IF(D75="","",HLOOKUP($P$6,'Beregning gr. 2'!R1:Z64,D75+3)) -> 51.62434928 | AB75: =IFERROR(E75*AD75,"")*T6 -> 0 | AD75: 51.62
D76: 58 | F76: =IFERROR(VLOOKUP(D76,'Beregning gr. 2'!R12:AB75,11,FALSE),"") -> stk | G76: =IFERROR(VLOOKUP(D76,'Beregning gr. 2'!R12:AA75,10,FALSE),"") -> Tillæg for tæt tilskæring for el-udtag t.o.m. 90 kvcm pr. stk. | AA76: =IF(D76="","",HLOOKUP($P$6,'Beregning gr. 2'!R1:Z64,D76+3)) -> 25.85194687 | AB76: =IFERROR(E76*AD76,"")*T6 -> 0 | AD76: 25.85
D77: 59 | F77: =IFERROR(VLOOKUP(D77,'Beregning gr. 2'!R13:AB76,11,FALSE),"") -> stk | G77: =IFERROR(VLOOKUP(D77,'Beregning gr. 2'!R13:AA76,10,FALSE),"") -> Tillæg for udskæring for koblingsdåse til rør t.o.m Ø 65 mm pr. stk. | AA77: =IF(D77="","",HLOOKUP($P$6,'Beregning gr. 2'!R1:Z64,D77+3)) -> 25.85194687 | AB77: =IFERROR(E77*AD77,"")*T6 -> 0 | AD77: 25.85
F78: Vægvinyl procent tillæg | AD78: 0
D79: 60 | F79: =IFERROR(VLOOKUP(D79,'Beregning gr. 2'!R1:AB64,9,FALSE),"") -> 0.35 | G79: =IFERROR(VLOOKUP(D79,'Beregning gr. 2'!R1:AB64,10,FALSE),"") -> Ved kontaktlim tillægges pkt. 48 | AA79: =AB66*F79 -> 0 | AB79: =IFERROR(AD79,"") -> 0 | AD79: 0
D80: 61 | F80: =IFERROR(VLOOKUP(D80,'Beregning gr. 2'!R1:AB64,9,FALSE),"") -> 0.1 | G80: =IFERROR(VLOOKUP(D80,'Beregning gr. 2'!R1:AB64,10,FALSE),"") -> Ved skridsikkert vinyl tillægges Pkt. 47,48,49,50,51,54,55,56,57,58 og 59 | AA80: =SUM(AB65,AB66,AB67,AB69,AB68,AB72,AB73,AB74,AB75,AB76,AB77)*F80 -> 0 | AB80: =IFERROR(F80*AD80*E80,"")*T6 -> 0 | AD80: 0
F81: =IFERROR(VLOOKUP(D81,'Ark1'!A17:O81,14,FALSE),"") ->  | AA81: Sum væg | AB81: =SUM(AB65:AB80) -> 0
K82: Total Akkord | AB82: =SUM(AB64,AB81) -> 0
K83: Overenskomst tillæg gældende fra 1. marts 2025 | AA83: 0.0805632 | AB83: =(AB82)*AA83 -> 0
K84: Total Beregning | AB84: =SUM(AB82:AB83) -> 0

Sheet beregning gr. 1 (hidden)
F1: 0.1 | G1: 2.1 | H1: 6.1 | I1: 10.1 | J1: 15.1 | K1: 30.1 | L1: 50.1 | M1: 100.1
A2: OBS! Data på dette Ark må IKKE ændres | E2: PKt. | F2: A | G2: B | H2: C | I2: D | J2: E | K2: F | L2: G | M2: H
F3: u. 2 m2 | G3: 2-6 m2 | H3: 6-10 m2 | I3: 10-15 m2 | J3: 15-30 m2 | K3: 30-50 m2 | L3: 50-100 m2 | M3: O. 100 m2
E4: 1 | F4: 3.41383898 | G4: 2.526487332 | H4: 2.230703449 | I4: 2.070487179 | J4: 1.996541209 | K4: 1.897946581 | L4: 1.774703297 | M4: 1.725405983 | N4: Støvsugning
C5: Værdi | D5: (findes ved opslag i skemaet) | E5: 2 | F5: 8.73794887 | G5: 6.581191391 | H5: 5.829407356 | I5: 5.262488247 | J5: 5.016001678 | K5: 4.781839438 | L5: 4.584650183 | M5: 4.387460928 | N5: Svabning, inkl. støvsugning
A6: m2 | E6: 3 | F6: 4.547677197 | G6: 3.41383898 | H6: 3.031784798 | I6: 2.760649572 | J6: 2.625081959 | K6: 2.477190018 | L6: 2.390919719 | M6: 2.218379121 | N6: Maskinslibning, beton, asfalt og træ
E7: 4 | F7: 8.02313782 | G7: 6.03892094 | H7: 5.32410989 | I7: 4.781839438 | J7: 4.596974511 | K7: 4.424433913 | L7: 4.214920329 | M7: 3.96843376 | N7: Maskinslibning, Anhydrit
A8: linie1 | C8: =IF('Afsnit 20 gr. 1'!I6="","",HLOOKUP('Afsnit 20 gr. 1'!$G$6,E1:N55,'Afsnit 20 gr. 1'!I6+3)) ->  | E8: 5 | F8: 2.908541514 | G8: 2.156757478 | H8: 1.947243895 | I8: 1.762378968 | J8: 1.602162698 | K8: 1.454270757 | L8: 1.380324786 | M8: 1.294054487 | N8: Primning
C9: =IF('Afsnit 20 gr. 1'!J6="","",HLOOKUP('Afsnit 20 gr. 1'!$G$6,E1:N55,'Afsnit 20 gr. 1'!J6+3)) ->  | E9: 6 | F9: 22.75071032 | G9: 17.05687057 | H9: 15.13427533 | I9: 13.68000458 | J9: 12.5215177 | K9: 11.3507065 | L9: 10.83308471 | M9: 10.20454396 | N9: Primn..+spartl..+slibn..+støvsug...
C10: =IF('Afsnit 20 gr. 1'!K6="","",HLOOKUP('Afsnit 20 gr. 1'!$G$6,E1:N55,'Afsnit 20 gr. 1'!K6+3)) ->  | E10: 7 | F10: 34.10141682 | G10: 25.59763019 | H10: 22.67676434 | I10: 20.4460609 | J10: 18.7576279 | K10: 17.05687057 | L10: 16.18184325 | M10: 15.34378892 | N10: Primn..+spartl.. m/rive+slibn..+støvsug…
C11: =IF('Afsnit 20 gr. 1'!L6="","",HLOOKUP('Afsnit 20 gr. 1'!$G$6,E1:N55,'Afsnit 20 gr. 1'!L6+3)) ->  | E11: 8 | F11: 36.87439072 | G11: 27.65579304 | H11: 24.50076495 | I11: 22.13449389 | J11: 20.29816895 | K11: 18.42487103 | L11: 17.5005464 | M11: 16.60087042 | N11: Aftagning og afrensning af belægning
C12: =IF('Afsnit 20 gr. 1'!M6="","",HLOOKUP('Afsnit 20 gr. 1'!$G$6,E1:N55,'Afsnit 20 gr. 1'!M6+3)) ->  | E12: 9 | F12: 21.67849374 | G12: 16.26811355 | H12: 14.41946428 | I12: 13.02681517 | J12: 11.94227427 | K12: 10.84540903 | L12: 10.2661656 | M12: 9.785516788 | N12: Aftagning af ekstra lag belægning
C13: =IF('Afsnit 20 gr. 1'!N6="","",HLOOKUP('Afsnit 20 gr. 1'!$G$6,E1:N55,'Afsnit 20 gr. 1'!N6+3)) ->  | E13: 10 | F13: 59.29234416 | G13: 44.47850137 | H13: 39.45017536 | I13: 35.58033623 | J13: 32.58552442 | K13: 29.61536126 | L13: 28.1610905 | M13: 26.66984676 | N13: Aftagning af masonit, afrensning af søm
C14: =IF('Afsnit 20 gr. 1'!O6="","",HLOOKUP('Afsnit 20 gr. 1'!$G$6,E1:N55,'Afsnit 20 gr. 1'!O6+3)) ->  | E14: 11 | F14: 24.31590003 | G14: 17.99351953 | H14: 14.97405906 | I14: 13.26097741 | J14: 11.83135531 | K14: 10.42638187 | L14: 9.908760072 | M14: 8.787246184 | N14: Korkment, lægni..+klæbn..+ inkl. div. Udskær..
C15: =IF('Afsnit 20 gr. 1'!P6="","",HLOOKUP('Afsnit 20 gr. 1'!$G$6,E1:N55,'Afsnit 20 gr. 1'!P6+3)) ->  | E15: 12 | F15: 2.230703449 | G15: 1.737730311 | H15: 1.540541056 | I15: 1.380324786 | J15: 1.294054487 | K15: 1.121513889 | L15: 1.121513889 | M15: 0.9859462758 | N15: Opskæring af Korkment
C16: =IF('Afsnit 20 gr. 1'!Q6="","",HLOOKUP('Afsnit 20 gr. 1'!$G$6,E1:N55,'Afsnit 20 gr. 1'!Q6+3)) ->  | E16: 13 | F16: 61.37515567 | G16: 46.7461778 | H16: 38.27936416 | I16: 30.78617246 | J16: 26.68217109 | K16: 22.25773718 | L16: 19.74357417 | M16: 18.38789804 | N16: Træfiberplader, inkl. maskinsømni.., inkl. div udskær..
C17: =IF('Afsnit 20 gr. 1'!R6="","",HLOOKUP('Afsnit 20 gr. 1'!$G$6,E1:N55,'Afsnit 20 gr. 1'!R6+3)) ->  | E17: 14 | F17: 50.2955844 | G17: 40.65795955 | H17: 33.97817353 | I17: 28.11179319 | J17: 25.4743869 | K17: 22.80000763 | L17: 21.03762866 | M17: 19.54638492 | N17: Svømmende fiberplader - under 12mm
C18: =IF('Afsnit 20 gr. 1'!S6="","",HLOOKUP('Afsnit 20 gr. 1'!$G$6,E1:N55,'Afsnit 20 gr. 1'!S6+3)) ->  | E18: 15 | F18: 64.53018375 | G18: 52.32909859 | H18: 44.52779868 | I18: 38.00822893 | J18: 34.97644414 | K18: 31.89536202 | L18: 30.09601007 | M18: 28.7649826 | N18: Svømmende fiberplader - 12-25mm
C19: =IF('Afsnit 20 gr. 1'!T6="","",HLOOKUP('Afsnit 20 gr. 1'!$G$6,E1:N55,'Afsnit 20 gr. 1'!T6+3)) ->  | E19: 16 | F19: 3.561730922 | G19: 2.970163156 | H19: 2.686703602 | I19: 2.169081807 | J19: 2.021189865 | K19: 1.774703297 | L19: 1.774703297 | M19: 1.626811355 | N19: Plastfolie udlagt
C20: =IF('Afsnit 20 gr. 1'!U6="","",HLOOKUP('Afsnit 20 gr. 1'!$G$6,E1:N55,'Afsnit 20 gr. 1'!U6+3)) ->  | E20: 17 | F20: 5.139244963 | G20: 3.857514804 | H20: 3.438487637 | I20: 3.031784798 | J20: 2.822271215 | K20: 2.489514347 | L20: 2.489514347 | M20: 2.218379121 | N20: Korkparkolag, alm. tilskær.. er indeholdt
C21: =IF('Afsnit 20 gr. 1'!V6="","",HLOOKUP('Afsnit 20 gr. 1'!$G$6,E1:N55,'Afsnit 20 gr. 1'!V6+3)) ->  | E21: 18 | F21: 7.850597221 | G21: 6.59351572 | H21: 5.87870467 | I21: 4.855785409 | J21: 4.44908257 | K21: 3.993082417 | L21: 3.993082417 | M21: 3.623352564 | N21: Dampspærre udlagt, bredde t.o.m. 100 cm
C22: =IF('Afsnit 20 gr. 1'!W6="","",HLOOKUP('Afsnit 20 gr. 1'!$G$6,E1:N55,'Afsnit 20 gr. 1'!W6+3)) ->  | E22: 19 | F22: 11.44930113 | G22: 8.540759615 | H22: 7.604110652 | I22: 6.803029303 | J22: 6.310056165 | K22: 5.743137057 | L22: 5.743137057 | M22: 5.176217948 | N22: Polystyrolplader t.om. 100 mm udlagt
C23: =IF('Afsnit 20 gr. 1'!X6="","",HLOOKUP('Afsnit 20 gr. 1'!$G$6,E1:N55,'Afsnit 20 gr. 1'!X6+3)) ->  | E23: 20 | F23: 65.79958958 | G23: 44.83590689 | H23: 33.97817353 | I23: 25.9057384 | J23: 22.51654807 | K23: 19.17665507 | L23: 16.1571946 | M23: 14.56735623 | N23: Lægning af luvtæpper og nålefilt
A24: Sum af punkter | C24: =SUM(C8:C23) -> 0 | E24: 21 | F24: 7.283678113 | G24: 4.510704212 | H24: 3.487784951 | I24: 2.526487332 | J24: 2.366271062 | K24: 2.132108822 | L24: 2.095135836 | M24: 1.959568223 | N24: Opskæring af nålefilt og Luvtæpper (20%) pr kvm
E25: 22 | F25: 63.53191315 | G25: 42.60520345 | H25: 32.91828128 | I25: 25.7331978 | J25: 22.6151427 | K25: 19.47243895 | L25: 17.29103281 | M25: 15.83676206 | N25: Lægning af linoleum/vinyl
A26: Resultat | C26: =B6*B243 -> 0 | D26: Sum af punkter gange punkttal | E26: 23 | F26: 77.01472847 | G26: 51.67590918 | H26: 39.93082417 | I26: 31.22984829 | J26: 27.43395513 | K26: 23.65038629 | L26: 20.60627717 | M26: 18.17838446 | N26: Linoleum som Sandwichbelægning
E27: 24 | F27: 8.232651403 | G27: 5.114596306 | H27: 3.906812118 | I27: 3.216649725 | J27: 2.982487484 | K27: 2.69902793 | L27: 2.625081959 | M27: 2.427892704 | N27: Opskæring af Linolium/vinyl
A28: linie2 | C28: =IF('Afsnit 20 gr. 1'!I7="","",HLOOKUP('Afsnit 20 gr. 1'!$G$7,E1:N55,'Afsnit 20 gr. 1'!I7+3)) ->  | E28: 25 | F28: 9.908760072 | G28: 7.394597069 | H28: 5.225515262 | I28: 4.140974359 | J28: 3.41383898 | K28: 2.69902793 | L28: 1.774703297 | M28: 1.528216728 | N28: Tæt tilskæring
C29: =IF('Afsnit 20 gr. 1'!J7="","",HLOOKUP('Afsnit 20 gr. 1'!$G$7,E1:N55,'Afsnit 20 gr. 1'!J7+3)) ->  | E29: 26 | F29: 22.08519658 | G29: 11.07957127 | H29: 9.649949175 | I29: 8.208002746 | J29: 7.419245726 | K29: 6.630488705 | L29: 6.001947954 | M29: 5.262488247 | N29: Trådsvejsning/trådfugning, 200 cm
C30: =IF('Afsnit 20 gr. 1'!K7="","",HLOOKUP('Afsnit 20 gr. 1'!$G$7,E1:N55,'Afsnit 20 gr. 1'!K7+3)) ->  | E30: 27 | F30: 24.4761163 | G30: 12.26270681 | H30: 10.72216575 | I30: 9.120003052 | J30: 8.232651403 | K30: 7.369948412 | L30: 6.642813034 | M30: 5.792434371 | N30: Trådsvejsning/trådfugning, 180 cm
C31: =IF('Afsnit 20 gr. 1'!L7="","",HLOOKUP('Afsnit 20 gr. 1'!$G$7,E1:N55,'Afsnit 20 gr. 1'!L7+3)) ->  | E31: 28 | F31: 29.35655036 | G31: 14.70292384 | H31: 12.81730159 | I31: 10.91935501 | J31: 9.908760072 | K31: 8.848867826 | L31: 7.986164834 | M31: 6.98789423 | N31: Trådsvejsning/trådfugning, 150 cm
C32: =IF('Afsnit 20 gr. 1'!M7="","",HLOOKUP('Afsnit 20 gr. 1'!$G$7,E1:N55,'Afsnit 20 gr. 1'!M7+3)) ->  | E32: 29 | F32: 35.27222802 | G32: 17.71005998 | H32: 15.41773489 | I32: 13.1254098 | J32: 11.88065262 | K32: 10.59892247 | L32: 9.576003204 | M32: 8.380543345 | N32: Trådsvejsning/trådfugning, 125 cm
C33: =IF('Afsnit 20 gr. 1'!N7="","",HLOOKUP('Afsnit 20 gr. 1'!$G$7,E1:N55,'Afsnit 20 gr. 1'!N7+3)) ->  | E33: 30 | F33: 58.15850595 | G33: 43.92390659 | H33: 36.52930952 | I33: 30.31784798 | J33: 26.27546825 | K33: 22.23308852 | L33: 19.62033089 | M33: 18.4125467 | N33: Fliser udlagt (vinyl, linolium, kork, gummi)
C34: =IF('Afsnit 20 gr. 1'!O7="","",HLOOKUP('Afsnit 20 gr. 1'!$G$7,E1:N55,'Afsnit 20 gr. 1'!O7+3)) ->  | E34: 31 | F34: 58.76239804 | G34: 45.46444765 | H34: 37.65082341 | I34: 26.80541437 | J34: 23.41622405 | K34: 20.18725 | L34: 18.04281685 | M34: 16.42832982 | N34: Tæppefliser m/filt-, pvc-, tjæreholdig-, Bitumenbagside
C35: =IF('Afsnit 20 gr. 1'!P7="","",HLOOKUP('Afsnit 20 gr. 1'!$G$7,E1:N55,'Afsnit 20 gr. 1'!P7+3)) ->  | E35: 32 | F35: 6.445623778 | G35: 4.84346108 | H35: 4.2888663 | I35: 3.882163461 | J35: 3.549406593 | K35: 3.216649725 | L35: 3.068757784 | M35: 2.908541514 | N35: Afdækning af gulv, minimums bredde 90 cm
C36: =IF('Afsnit 20 gr. 1'!Q7="","",HLOOKUP('Afsnit 20 gr. 1'!$G$7,E1:N55,'Afsnit 20 gr. 1'!Q7+3)) ->  | E36: 33 | F36: 7.246705127 | G36: 5.435028846 | H36: 4.806488095 | I36: 4.362812271 | J36: 3.96843376 | K36: 3.623352564 | L36: 3.438487637 | M36: 3.265947039 | N36: Aftagning af gulvafdækning
C37: =IF('Afsnit 20 gr. 1'!R7="","",HLOOKUP('Afsnit 20 gr. 1'!$G$7,E1:N55,'Afsnit 20 gr. 1'!R7+3)) ->  | E37: 34 | F37: 21.86335867 | G37: 16.40368116 | H37: 14.53038324 | I37: 13.10076114 | J37: 12.04086889 | K37: 10.93167933 | L37: 10.36476022 | M37: 9.859462758 | N37: Afdækning med masonit
C38: =IF('Afsnit 20 gr. 1'!S7="","",HLOOKUP('Afsnit 20 gr. 1'!$G$7,E1:N55,'Afsnit 20 gr. 1'!S7+3)) ->  | E38: 35 | F38: 14.70292384 | G38: 11.05492262 | H38: 9.822489773 | I38: 8.848867826 | J38: 8.09708379 | K38: 7.369948412 | L38: 7.012542887 | M38: 6.618164377 | N38: Aftagning af masonitafdækning
C39: =IF('Afsnit 20 gr. 1'!T7="","",HLOOKUP('Afsnit 20 gr. 1'!$G$7,E1:N55,'Afsnit 20 gr. 1'!T7+3)) ->  | E39: 36 | F39: 35.44476862 | G39: 21.43200717 | H39: 15.45470787 | I39: 14.09903174 | J39: 11.10421993 | K39: 8.171029761 | L39: 7.000218559 | M39: 6.975569902 | N39: Plastfodlister opsat (Type 1)
C40: =IF('Afsnit 20 gr. 1'!U7="","",HLOOKUP('Afsnit 20 gr. 1'!$G$7,E1:N55,'Afsnit 20 gr. 1'!U7+3)) ->  | E40: 37 | F40: 21.60454777 | G40: 13.45816667 | H40: 10.20454396 | I40: 8.565408271 | J40: 6.815353632 | K40: 5.077623321 | L40: 3.216649725 | M40: 3.118055097 | N40: Lister opsat
C41: =IF('Afsnit 20 gr. 1'!V7="","",HLOOKUP('Afsnit 20 gr. 1'!$G$7,E1:N55,'Afsnit 20 gr. 1'!V7+3)) ->  | E41: 38 | F41: 44.18271749 | G41: 31.31611859 | H41: 23.20671047 | I41: 19.11503342 | J41: 14.24692369 | K41: 10.59892247 | L41: 7.690380952 | M41: 6.531894078 | N41: Tillæg for bort, tæt tildannet i samlinger
C42: =IF('Afsnit 20 gr. 1'!W7="","",HLOOKUP('Afsnit 20 gr. 1'!$G$7,E1:N55,'Afsnit 20 gr. 1'!W7+3)) ->  | E42: 39 | F42: 77.35980967 | G42: 54.79396428 | H42: 40.58401358 | I42: 33.42357875 | J42: 24.90746779 | K42: 18.57276297 | L42: 13.43351801 | M42: 11.37535516 | N42: Tillæg for bort, svejst i samlinger
C43: =IF('Afsnit 20 gr. 1'!X7="","",HLOOKUP('Afsnit 20 gr. 1'!$G$7,E1:N55,'Afsnit 20 gr. 1'!X7+3)) ->  | E43: 40 | F43: 67.26618467 | G43: 47.64585378 | H43: 35.29687668 | I43: 29.06076648 | J43: 21.66616941 | K43: 16.1571946 | L43: 11.6957877 | M43: 9.945733058 | N43: Tillæg for friser, tæt tildannet i samlinger
C44: =SUM(C28:C43) -> 0 | E44: 41 | F44: 126.3736639 | G44: 89.52392185 | H44: 66.37883302 | I44: 54.59677503 | J44: 40.70725686 | K44: 30.37946962 | L44: 21.94962897 | M44: 18.64670894 | N44: Tillæg for friser, svejst i samlinger
E45: 42 | F45: 4.52302854 | G45: 3.401514652 | H45: 2.994811813 | I45: 2.723676587 | J45: 2.489514347 | K45: 2.206054792 | L45: 2.132108822 | M45: 2.033514194 | N45: Tillæg for skridsikker vinyl
E46: 43 | F46: 34.7591216 | G46: 26.0693412 | H46: 23.115672 | I46: 20.8576133 | J46: 19.1132362 | K46: 17.3795608 | L46: 16.5127231 | M46: 15.6458854 | N46: Færdigtildannet Linoleumsbånd som fodpanel, t.o.m 10 cm høje, opsat med tape, inklusiv indvendige og udvendige hjørner eksklusiv, tilskæring mod gulv.
E47: 44 | F47: 35.4440304 | G47: 21.4355051 | H47: 15.4532548 | I47: 14.0941389 | J47: 11.1083646 | K47: 8.1760988 | L47: 6.9989118 | M47: 6.9775084 | N47: "Boltaprofil" lignende skinne monteret i top af linoleumsbånd på væg, med påmonteret tape eller monteret med montagelim.
E48: 45 | F48: 10.9585408 | G48: 8.2189056 | H48: 7.2878577 | I48: 6.5708438 | J48: 6.0250571 | K48: 5.4792704 | L48: 5.2010262 | M48: 4.9334837 | N48: Fugning med 1 komponent fugemasse t.o.m. 5 mm mellem bånd og gulv, eller i top af linoleumsbånd, udført som glittet skrå fuge.
E49: 46 | M49: 60.32758775 | N49: Gulvskinne fastgjort med forboring, plugs, skrue og klæbning pr. m. / pr. samling / pr. gering .................................................. kr.
E50: 47 | M50: 40.23893238 | N50: Gulvskinne fastgjort i underlag af træ, inkl. klæbning pr. m. / pr. samling / pr. gering .................................................. kr.
A51: linie3 | C51: =IF('Afsnit 20 gr. 1'!I8="","",HLOOKUP('Afsnit 20 gr. 1'!$G$8,E1:N55,'Afsnit 20 gr. 1'!I8+3)) ->  | E51: 48 | M51: 36.19655265 | N51: Gulvskinne monteret med dobbeltklæbende tape, pr. m / pr. samling / pr. gering ................................................... kr.
C52: =IF('Afsnit 20 gr. 1'!J8="","",HLOOKUP('Afsnit 20 gr. 1'!$G$8,E1:N55,'Afsnit 20 gr. 1'!J8+3)) ->  | E52: 49 | M52: 0.1 | N52: I rum over 150 m2 betales pkt. 36. Plastfodlister, type 1, inkl. tillæg pr. m. / pr. samling / pr. gering ......................................... kr.
C53: =IF('Afsnit 20 gr. 1'!K8="","",HLOOKUP('Afsnit 20 gr. 1'!$G$8,E1:N55,'Afsnit 20 gr. 1'!K8+3)) ->  | E53: 50 | M53: 5.64 | N53: I rum over 150 m2 betales pkt. 37. Lister/panellister af hårdt træ, fyr og plast/skum, inkl. tillæg pr. m. / pr. samling / pr. gering ..... kr.
C54: =IF('Afsnit 20 gr. 1'!L8="","",HLOOKUP('Afsnit 20 gr. 1'!$G$8,E1:N55,'Afsnit 20 gr. 1'!L8+3)) ->  | E54: 51 | M54: 3.73 | N54: For ”strips”, der leveres tilskårne, pr. meter .............................. kr.
C55: =IF('Afsnit 20 gr. 1'!M8="","",HLOOKUP('Afsnit 20 gr. 1'!$G$8,E1:N55,'Afsnit 20 gr. 1'!M8+3)) ->  | E55: 52 | N55: Ved lægning af diagonalt samt sildebensmønster tillægges grund-priserne 10 %, tillægget betales til arbejde udført efter 20-01-30
C56: =IF('Afsnit 20 gr. 1'!N8="","",HLOOKUP('Afsnit 20 gr. 1'!$G$8,E1:N55,'Afsnit 20 gr. 1'!N8+3)) -> 
C57: =IF('Afsnit 20 gr. 1'!O8="","",HLOOKUP('Afsnit 20 gr. 1'!$G$8,E1:N55,'Afsnit 20 gr. 1'!O8+3)) -> 
C58: =IF('Afsnit 20 gr. 1'!P8="","",HLOOKUP('Afsnit 20 gr. 1'!$G$8,E1:N55,'Afsnit 20 gr. 1'!P8+3)) -> 
C59: =IF('Afsnit 20 gr. 1'!Q8="","",HLOOKUP('Afsnit 20 gr. 1'!$G$8,E1:N55,'Afsnit 20 gr. 1'!Q8+3)) -> 
C60: =IF('Afsnit 20 gr. 1'!R8="","",HLOOKUP('Afsnit 20 gr. 1'!$G$8,E1:N55,'Afsnit 20 gr. 1'!R8+3)) -> 
C61: =IF('Afsnit 20 gr. 1'!S8="","",HLOOKUP('Afsnit 20 gr. 1'!$G$8,E1:N55,'Afsnit 20 gr. 1'!S8+3)) -> 
C62: =IF('Afsnit 20 gr. 1'!T8="","",HLOOKUP('Afsnit 20 gr. 1'!$G$8,E1:N55,'Afsnit 20 gr. 1'!T8+3)) -> 
C63: =IF('Afsnit 20 gr. 1'!U8="","",HLOOKUP('Afsnit 20 gr. 1'!$G$8,E1:N55,'Afsnit 20 gr. 1'!U8+3)) -> 
C64: =IF('Afsnit 20 gr. 1'!V8="","",HLOOKUP('Afsnit 20 gr. 1'!$G$8,E1:N55,'Afsnit 20 gr. 1'!V8+3)) -> 
C65: =IF('Afsnit 20 gr. 1'!W8="","",HLOOKUP('Afsnit 20 gr. 1'!$G$8,E1:N55,'Afsnit 20 gr. 1'!W8+3)) -> 
C66: =IF('Afsnit 20 gr. 1'!X8="","",HLOOKUP('Afsnit 20 gr. 1'!$G$8,E1:N55,'Afsnit 20 gr. 1'!X8+3)) -> 
C67: =SUM(C51:C66) -> 0
A71: linie4 | C71: =IF('Afsnit 20 gr. 1'!I9="","",HLOOKUP('Afsnit 20 gr. 1'!$G$9,E1:M56,'Afsnit 20 gr. 1'!I9+3)) -> 
C72: =IF('Afsnit 20 gr. 1'!J9="","",HLOOKUP('Afsnit 20 gr. 1'!$G$9,E1:M45,'Afsnit 20 gr. 1'!J9+3)) -> 
C73: =IF('Afsnit 20 gr. 1'!K9="","",HLOOKUP('Afsnit 20 gr. 1'!$G$9,E1:M45,'Afsnit 20 gr. 1'!K9+3)) -> 
C74: =IF('Afsnit 20 gr. 1'!L9="","",HLOOKUP('Afsnit 20 gr. 1'!$G$9,E1:M45,'Afsnit 20 gr. 1'!L9+3)) -> 
C75: =IF('Afsnit 20 gr. 1'!M9="","",HLOOKUP('Afsnit 20 gr. 1'!$G$9,E1:M45,'Afsnit 20 gr. 1'!M9+3)) -> 
C76: =IF('Afsnit 20 gr. 1'!N9="","",HLOOKUP('Afsnit 20 gr. 1'!$G$9,E1:M45,'Afsnit 20 gr. 1'!N9+3)) -> 
C77: =IF('Afsnit 20 gr. 1'!O9="","",HLOOKUP('Afsnit 20 gr. 1'!$G$9,E1:M56,'Afsnit 20 gr. 1'!O9+3)) -> 
C78: =IF('Afsnit 20 gr. 1'!P9="","",HLOOKUP('Afsnit 20 gr. 1'!$G$9,E1:M55,'Afsnit 20 gr. 1'!P9+3)) -> 
C79: =IF('Afsnit 20 gr. 1'!Q9="","",HLOOKUP('Afsnit 20 gr. 1'!$G$9,E1:M56,'Afsnit 20 gr. 1'!Q9+3)) -> 
C80: =IF('Afsnit 20 gr. 1'!R9="","",HLOOKUP('Afsnit 20 gr. 1'!$G$9,E1:M56,'Afsnit 20 gr. 1'!R9+3)) -> 
C81: =IF('Afsnit 20 gr. 1'!S9="","",HLOOKUP('Afsnit 20 gr. 1'!$G$9,E1:M55,'Afsnit 20 gr. 1'!S9+3)) -> 
C82: =IF('Afsnit 20 gr. 1'!T9="","",HLOOKUP('Afsnit 20 gr. 1'!$G$9,E1:M56,'Afsnit 20 gr. 1'!T9+3)) -> 
C83: =IF('Afsnit 20 gr. 1'!U9="","",HLOOKUP('Afsnit 20 gr. 1'!$G$9,E1:M56,'Afsnit 20 gr. 1'!U9+3)) -> 
C84: =IF('Afsnit 20 gr. 1'!V9="","",HLOOKUP('Afsnit 20 gr. 1'!$G$9,E1:M56,'Afsnit 20 gr. 1'!V9+3)) -> 
C85: =IF('Afsnit 20 gr. 1'!W9="","",HLOOKUP('Afsnit 20 gr. 1'!$G$9,E1:M56,'Afsnit 20 gr. 1'!W9+3)) -> 
C86: =IF('Afsnit 20 gr. 1'!X9="","",HLOOKUP('Afsnit 20 gr. 1'!$G$9,E1:M56,'Afsnit 20 gr. 1'!X9+3)) -> 
C87: =SUM(C71:C86) -> 0
A91: linie5 | C91: =IF('Afsnit 20 gr. 1'!I10="","",HLOOKUP('Afsnit 20 gr. 1'!$G$10,E1:M56,'Afsnit 20 gr. 1'!I10+3)) -> 
C92: =IF('Afsnit 20 gr. 1'!J10="","",HLOOKUP('Afsnit 20 gr. 1'!$G$10,E1:M45,'Afsnit 20 gr. 1'!J10+3)) -> 
C93: =IF('Afsnit 20 gr. 1'!K10="","",HLOOKUP('Afsnit 20 gr. 1'!$G$10,E1:M45,'Afsnit 20 gr. 1'!K10+3)) -> 
C94: =IF('Afsnit 20 gr. 1'!L10="","",HLOOKUP('Afsnit 20 gr. 1'!$G$10,E1:M45,'Afsnit 20 gr. 1'!L10+3)) -> 
C95: =IF('Afsnit 20 gr. 1'!M10="","",HLOOKUP('Afsnit 20 gr. 1'!$G$10,E1:M45,'Afsnit 20 gr. 1'!M10+3)) -> 
C96: =IF('Afsnit 20 gr. 1'!N10="","",HLOOKUP('Afsnit 20 gr. 1'!$G$10,E1:M45,'Afsnit 20 gr. 1'!N10+3)) -> 
C97: =IF('Afsnit 20 gr. 1'!O10="","",HLOOKUP('Afsnit 20 gr. 1'!$G$10,E1:M56,'Afsnit 20 gr. 1'!O10+3)) -> 
C98: =IF('Afsnit 20 gr. 1'!P10="","",HLOOKUP('Afsnit 20 gr. 1'!$G$10,E1:M56,'Afsnit 20 gr. 1'!P10+3)) -> 
C99: =IF('Afsnit 20 gr. 1'!Q10="","",HLOOKUP('Afsnit 20 gr. 1'!$G$10,E1:M55,'Afsnit 20 gr. 1'!Q10+3)) -> 
C100: =IF('Afsnit 20 gr. 1'!R10="","",HLOOKUP('Afsnit 20 gr. 1'!$G$10,E1:M56,'Afsnit 20 gr. 1'!R10+3)) -> 
C101: =IF('Afsnit 20 gr. 1'!S10="","",HLOOKUP('Afsnit 20 gr. 1'!$G$10,E1:M56,'Afsnit 20 gr. 1'!S10+3)) -> 
C102: =IF('Afsnit 20 gr. 1'!T10="","",HLOOKUP('Afsnit 20 gr. 1'!$G$10,E1:M56,'Afsnit 20 gr. 1'!T10+3)) -> 
C103: =IF('Afsnit 20 gr. 1'!U10="","",HLOOKUP('Afsnit 20 gr. 1'!$G$10,E1:M56,'Afsnit 20 gr. 1'!U10+3)) -> 
C104: =IF('Afsnit 20 gr. 1'!V10="","",HLOOKUP('Afsnit 20 gr. 1'!$G$10,E1:M56,'Afsnit 20 gr. 1'!V10+3)) -> 
C105: =IF('Afsnit 20 gr. 1'!W10="","",HLOOKUP('Afsnit 20 gr. 1'!$G$10,E1:M56,'Afsnit 20 gr. 1'!W10+3)) -> 
C106: =IF('Afsnit 20 gr. 1'!X10="","",HLOOKUP('Afsnit 20 gr. 1'!$G$10,E1:M56,'Afsnit 20 gr. 1'!X10+3)) -> 
C107: =SUM(C91:C106) -> 0
A111: linie6 | C111: =IF('Afsnit 20 gr. 1'!I11="","",HLOOKUP('Afsnit 20 gr. 1'!$G$11,E1:M53,'Afsnit 20 gr. 1'!I11+3)) -> 
C112: =IF('Afsnit 20 gr. 1'!J11="","",HLOOKUP('Afsnit 20 gr. 1'!$G$11,E1:M53,'Afsnit 20 gr. 1'!J11+3)) -> 
C113: =IF('Afsnit 20 gr. 1'!K11="","",HLOOKUP('Afsnit 20 gr. 1'!$G$11,E1:M53,'Afsnit 20 gr. 1'!K11+3)) -> 
C114: =IF('Afsnit 20 gr. 1'!L11="","",HLOOKUP('Afsnit 20 gr. 1'!$G$11,E1:M53,'Afsnit 20 gr. 1'!L11+3)) -> 
C115: =IF('Afsnit 20 gr. 1'!M11="","",HLOOKUP('Afsnit 20 gr. 1'!$G$11,E1:M53,'Afsnit 20 gr. 1'!M11+3)) -> 
C116: =IF('Afsnit 20 gr. 1'!N11="","",HLOOKUP('Afsnit 20 gr. 1'!$G$11,E1:M53,'Afsnit 20 gr. 1'!N11+3)) -> 
C117: =IF('Afsnit 20 gr. 1'!O11="","",HLOOKUP('Afsnit 20 gr. 1'!$G$11,E1:M53,'Afsnit 20 gr. 1'!O11+3)) -> 
C118: =IF('Afsnit 20 gr. 1'!P11="","",HLOOKUP('Afsnit 20 gr. 1'!$G$11,E1:M56,'Afsnit 20 gr. 1'!P11+3)) -> 
C119: =IF('Afsnit 20 gr. 1'!Q11="","",HLOOKUP('Afsnit 20 gr. 1'!$G$11,E1:M56,'Afsnit 20 gr. 1'!Q11+3)) -> 
C120: =IF('Afsnit 20 gr. 1'!R11="","",HLOOKUP('Afsnit 20 gr. 1'!$G$11,E1:M56,'Afsnit 20 gr. 1'!R11+3)) -> 
C121: =IF('Afsnit 20 gr. 1'!S11="","",HLOOKUP('Afsnit 20 gr. 1'!$G$11,E1:M56,'Afsnit 20 gr. 1'!S11+3)) -> 
C122: =IF('Afsnit 20 gr. 1'!T11="","",HLOOKUP('Afsnit 20 gr. 1'!$G$11,E1:M56,'Afsnit 20 gr. 1'!T11+3)) -> 
C123: =IF('Afsnit 20 gr. 1'!U11="","",HLOOKUP('Afsnit 20 gr. 1'!$G$11,E1:M56,'Afsnit 20 gr. 1'!U11+3)) -> 
C124: =IF('Afsnit 20 gr. 1'!V11="","",HLOOKUP('Afsnit 20 gr. 1'!$G$11,E1:M56,'Afsnit 20 gr. 1'!V11+3)) -> 
C125: =IF('Afsnit 20 gr. 1'!W11="","",HLOOKUP('Afsnit 20 gr. 1'!$G$11,E1:M56,'Afsnit 20 gr. 1'!W11+3)) -> 
C126: =IF('Afsnit 20 gr. 1'!X11="","",HLOOKUP('Afsnit 20 gr. 1'!$G$11,E1:M56,'Afsnit 20 gr. 1'!X11+3)) -> 
C127: =SUM(C111:C126) -> 0
A131: linie7 | C131: =IF('Afsnit 20 gr. 1'!I12="","",HLOOKUP('Afsnit 20 gr. 1'!$G$12,E1:M55,'Afsnit 20 gr. 1'!I12+3)) -> 
C132: =IF('Afsnit 20 gr. 1'!J12="","",HLOOKUP('Afsnit 20 gr. 1'!$G$12,E1:M55,'Afsnit 20 gr. 1'!J12+3)) -> 
C133: =IF('Afsnit 20 gr. 1'!K12="","",HLOOKUP('Afsnit 20 gr. 1'!$G$12,E1:M55,'Afsnit 20 gr. 1'!K12+3)) -> 
C134: =IF('Afsnit 20 gr. 1'!L12="","",HLOOKUP('Afsnit 20 gr. 1'!$G$12,E1:M55,'Afsnit 20 gr. 1'!L12+3)) -> 
C135: =IF('Afsnit 20 gr. 1'!M12="","",HLOOKUP('Afsnit 20 gr. 1'!$G$12,E1:M55,'Afsnit 20 gr. 1'!M12+3)) -> 
C136: =IF('Afsnit 20 gr. 1'!N12="","",HLOOKUP('Afsnit 20 gr. 1'!$G$12,E1:M55,'Afsnit 20 gr. 1'!N12+3)) -> 
C137: =IF('Afsnit 20 gr. 1'!O12="","",HLOOKUP('Afsnit 20 gr. 1'!$G$12,E1:M55,'Afsnit 20 gr. 1'!O12+3)) -> 
C138: =IF('Afsnit 20 gr. 1'!P12="","",HLOOKUP('Afsnit 20 gr. 1'!$G$12,E1:M55,'Afsnit 20 gr. 1'!P12+3)) -> 
C139: =IF('Afsnit 20 gr. 1'!Q12="","",HLOOKUP('Afsnit 20 gr. 1'!$G$12,E1:M56,'Afsnit 20 gr. 1'!Q12+3)) -> 
C140: =IF('Afsnit 20 gr. 1'!R12="","",HLOOKUP('Afsnit 20 gr. 1'!$G$12,E1:M56,'Afsnit 20 gr. 1'!R12+3)) -> 
C141: =IF('Afsnit 20 gr. 1'!S12="","",HLOOKUP('Afsnit 20 gr. 1'!$G$12,E1:M56,'Afsnit 20 gr. 1'!S12+3)) -> 
C142: =IF('Afsnit 20 gr. 1'!T12="","",HLOOKUP('Afsnit 20 gr. 1'!$G$12,E1:M56,'Afsnit 20 gr. 1'!T12+3)) -> 
C143: =IF('Afsnit 20 gr. 1'!U12="","",HLOOKUP('Afsnit 20 gr. 1'!$G$12,E1:M56,'Afsnit 20 gr. 1'!U12+3)) -> 
C144: =IF('Afsnit 20 gr. 1'!V12="","",HLOOKUP('Afsnit 20 gr. 1'!$G$12,E1:M56,'Afsnit 20 gr. 1'!V12+3)) -> 
C145: =IF('Afsnit 20 gr. 1'!W12="","",HLOOKUP('Afsnit 20 gr. 1'!$G$12,E1:M56,'Afsnit 20 gr. 1'!W12+3)) -> 
C146: =IF('Afsnit 20 gr. 1'!X12="","",HLOOKUP('Afsnit 20 gr. 1'!$G$12,E1:M56,'Afsnit 20 gr. 1'!X12+3)) -> 
C147: =SUM(C131:C146) -> 0
A151: linie8 | C151: =IF('Afsnit 20 gr. 1'!I13="","",HLOOKUP('Afsnit 20 gr. 1'!$G$13,E1:M56,'Afsnit 20 gr. 1'!I13+3)) -> 
C152: =IF('Afsnit 20 gr. 1'!J13="","",HLOOKUP('Afsnit 20 gr. 1'!$G$13,E1:M56,'Afsnit 20 gr. 1'!J13+3)) -> 
C153: =IF('Afsnit 20 gr. 1'!K13="","",HLOOKUP('Afsnit 20 gr. 1'!$G$13,E1:M56,'Afsnit 20 gr. 1'!K13+3)) -> 
C154: =IF('Afsnit 20 gr. 1'!L13="","",HLOOKUP('Afsnit 20 gr. 1'!$G$13,E1:M56,'Afsnit 20 gr. 1'!L13+3)) -> 
C155: =IF('Afsnit 20 gr. 1'!M13="","",HLOOKUP('Afsnit 20 gr. 1'!$G$13,E1:M56,'Afsnit 20 gr. 1'!M13+3)) -> 
C156: =IF('Afsnit 20 gr. 1'!N13="","",HLOOKUP('Afsnit 20 gr. 1'!$G$13,E1:M56,'Afsnit 20 gr. 1'!N13+3)) -> 
C157: =IF('Afsnit 20 gr. 1'!O13="","",HLOOKUP('Afsnit 20 gr. 1'!$G$13,E1:M56,'Afsnit 20 gr. 1'!O13+3)) -> 
C158: =IF('Afsnit 20 gr. 1'!P13="","",HLOOKUP('Afsnit 20 gr. 1'!$G$13,E1:M56,'Afsnit 20 gr. 1'!P13+3)) -> 
C159: =IF('Afsnit 20 gr. 1'!Q13="","",HLOOKUP('Afsnit 20 gr. 1'!$G$13,E1:M57,'Afsnit 20 gr. 1'!Q13+3)) -> 
C160: =IF('Afsnit 20 gr. 1'!R13="","",HLOOKUP('Afsnit 20 gr. 1'!$G$13,E1:M56,'Afsnit 20 gr. 1'!R13+3)) -> 
C161: =IF('Afsnit 20 gr. 1'!S13="","",HLOOKUP('Afsnit 20 gr. 1'!$G$13,E1:M56,'Afsnit 20 gr. 1'!S13+3)) -> 
C162: =IF('Afsnit 20 gr. 1'!T13="","",HLOOKUP('Afsnit 20 gr. 1'!$G$13,E1:M56,'Afsnit 20 gr. 1'!T13+3)) -> 
C163: =IF('Afsnit 20 gr. 1'!U13="","",HLOOKUP('Afsnit 20 gr. 1'!$G$13,E1:M56,'Afsnit 20 gr. 1'!U13+3)) -> 
C164: =IF('Afsnit 20 gr. 1'!V13="","",HLOOKUP('Afsnit 20 gr. 1'!$G$13,E1:M56,'Afsnit 20 gr. 1'!V13+3)) -> 
C165: =IF('Afsnit 20 gr. 1'!W13="","",HLOOKUP('Afsnit 20 gr. 1'!$G$13,E1:M56,'Afsnit 20 gr. 1'!W13+3)) -> 
C166: =IF('Afsnit 20 gr. 1'!X13="","",HLOOKUP('Afsnit 20 gr. 1'!$G$13,E1:M56,'Afsnit 20 gr. 1'!X13+3)) -> 
C167: =SUM(C151:C166) -> 0
A171: linie9 | C171: =IF('Afsnit 20 gr. 1'!I14="","",HLOOKUP('Afsnit 20 gr. 1'!$G$14,E1:M53,'Afsnit 20 gr. 1'!I14+3)) -> 
C172: =IF('Afsnit 20 gr. 1'!J14="","",HLOOKUP('Afsnit 20 gr. 1'!$G$14,E1:M53,'Afsnit 20 gr. 1'!J14+3)) -> 
C173: =IF('Afsnit 20 gr. 1'!K14="","",HLOOKUP('Afsnit 20 gr. 1'!$G$14,E1:M53,'Afsnit 20 gr. 1'!K14+3)) -> 
C174: =IF('Afsnit 20 gr. 1'!L14="","",HLOOKUP('Afsnit 20 gr. 1'!$G$14,E1:M53,'Afsnit 20 gr. 1'!L14+3)) -> 
C175: =IF('Afsnit 20 gr. 1'!M14="","",HLOOKUP('Afsnit 20 gr. 1'!$G$14,E1:M53,'Afsnit 20 gr. 1'!M14+3)) -> 
C176: =IF('Afsnit 20 gr. 1'!N14="","",HLOOKUP('Afsnit 20 gr. 1'!$G$14,E1:M53,'Afsnit 20 gr. 1'!N14+3)) -> 
C177: =IF('Afsnit 20 gr. 1'!O14="","",HLOOKUP('Afsnit 20 gr. 1'!$G$14,E1:M53,'Afsnit 20 gr. 1'!O14+3)) -> 
C178: =IF('Afsnit 20 gr. 1'!P14="","",HLOOKUP('Afsnit 20 gr. 1'!$G$14,E1:M53,'Afsnit 20 gr. 1'!P14+3)) -> 
C179: =IF('Afsnit 20 gr. 1'!Q14="","",HLOOKUP('Afsnit 20 gr. 1'!$G$14,E1:M53,'Afsnit 20 gr. 1'!Q14+3)) -> 
C180: =IF('Afsnit 20 gr. 1'!R14="","",HLOOKUP('Afsnit 20 gr. 1'!$G$14,E1:M53,'Afsnit 20 gr. 1'!R14+3)) -> 
C181: =IF('Afsnit 20 gr. 1'!S14="","",HLOOKUP('Afsnit 20 gr. 1'!$G$14,E1:M53,'Afsnit 20 gr. 1'!S14+3)) -> 
C182: =IF('Afsnit 20 gr. 1'!T14="","",HLOOKUP('Afsnit 20 gr. 1'!$G$14,E1:M53,'Afsnit 20 gr. 1'!T14+3)) -> 
C183: =IF('Afsnit 20 gr. 1'!U14="","",HLOOKUP('Afsnit 20 gr. 1'!$G$14,E1:M53,'Afsnit 20 gr. 1'!U14+3)) -> 
C184: =IF('Afsnit 20 gr. 1'!V14="","",HLOOKUP('Afsnit 20 gr. 1'!$G$14,E1:M53,'Afsnit 20 gr. 1'!V14+3)) -> 
C185: =IF('Afsnit 20 gr. 1'!W14="","",HLOOKUP('Afsnit 20 gr. 1'!$G$14,E1:M53,'Afsnit 20 gr. 1'!W14+3)) -> 
C186: =IF('Afsnit 20 gr. 1'!X14="","",HLOOKUP('Afsnit 20 gr. 1'!$G$14,E1:M53,'Afsnit 20 gr. 1'!X14+3)) -> 
C187: =SUM(C171:C186) -> 0
A191: linie10 | C191: =IF('Afsnit 20 gr. 1'!I15="","",HLOOKUP('Afsnit 20 gr. 1'!$G$15,E1:M53,'Afsnit 20 gr. 1'!I15+3)) -> 
C192: =IF('Afsnit 20 gr. 1'!J15="","",HLOOKUP('Afsnit 20 gr. 1'!$G$15,E1:M53,'Afsnit 20 gr. 1'!J15+3)) -> 
C193: =IF('Afsnit 20 gr. 1'!K15="","",HLOOKUP('Afsnit 20 gr. 1'!$G$15,E1:M53,'Afsnit 20 gr. 1'!K15+3)) -> 
C194: =IF('Afsnit 20 gr. 1'!L15="","",HLOOKUP('Afsnit 20 gr. 1'!$G$15,E1:M53,'Afsnit 20 gr. 1'!L15+3)) -> 
C195: =IF('Afsnit 20 gr. 1'!M15="","",HLOOKUP('Afsnit 20 gr. 1'!$G$15,E1:M53,'Afsnit 20 gr. 1'!M15+3)) -> 
C196: =IF('Afsnit 20 gr. 1'!N15="","",HLOOKUP('Afsnit 20 gr. 1'!$G$15,E1:M53,'Afsnit 20 gr. 1'!N15+3)) -> 
C197: =IF('Afsnit 20 gr. 1'!O15="","",HLOOKUP('Afsnit 20 gr. 1'!$G$15,E1:M53,'Afsnit 20 gr. 1'!O15+3)) -> 
C198: =IF('Afsnit 20 gr. 1'!P15="","",HLOOKUP('Afsnit 20 gr. 1'!$G$15,E1:M53,'Afsnit 20 gr. 1'!P15+3)) -> 
C199: =IF('Afsnit 20 gr. 1'!Q15="","",HLOOKUP('Afsnit 20 gr. 1'!$G$15,E1:M53,'Afsnit 20 gr. 1'!Q15+3)) -> 
C200: =IF('Afsnit 20 gr. 1'!R15="","",HLOOKUP('Afsnit 20 gr. 1'!$G$15,E1:M53,'Afsnit 20 gr. 1'!R15+3)) -> 
C201: =IF('Afsnit 20 gr. 1'!S15="","",HLOOKUP('Afsnit 20 gr. 1'!$G$15,E1:M53,'Afsnit 20 gr. 1'!S15+3)) -> 
C202: =IF('Afsnit 20 gr. 1'!T15="","",HLOOKUP('Afsnit 20 gr. 1'!$G$15,E1:M53,'Afsnit 20 gr. 1'!T15+3)) -> 
C203: =IF('Afsnit 20 gr. 1'!U15="","",HLOOKUP('Afsnit 20 gr. 1'!$G$15,E1:M53,'Afsnit 20 gr. 1'!U15+3)) -> 
C204: =IF('Afsnit 20 gr. 1'!V15="","",HLOOKUP('Afsnit 20 gr. 1'!$G$15,E1:M53,'Afsnit 20 gr. 1'!V15+3)) -> 
C205: =IF('Afsnit 20 gr. 1'!W15="","",HLOOKUP('Afsnit 20 gr. 1'!$G$15,E1:M53,'Afsnit 20 gr. 1'!W15+3)) -> 
C206: =IF('Afsnit 20 gr. 1'!X15="","",HLOOKUP('Afsnit 20 gr. 1'!$G$15,E1:M53,'Afsnit 20 gr. 1'!X15+3)) -> 
C207: =SUM(C191:C206) -> 0
A211: linie11 | C211: =IF('Afsnit 20 gr. 1'!I16="","",HLOOKUP('Afsnit 20 gr. 1'!$G$16,E1:M53,'Afsnit 20 gr. 1'!I16+3)) -> 
C212: =IF('Afsnit 20 gr. 1'!J16="","",HLOOKUP('Afsnit 20 gr. 1'!$G$16,E1:M53,'Afsnit 20 gr. 1'!J16+3)) -> 
C213: =IF('Afsnit 20 gr. 1'!K16="","",HLOOKUP('Afsnit 20 gr. 1'!$G$16,E1:M53,'Afsnit 20 gr. 1'!K16+3)) -> 
C214: =IF('Afsnit 20 gr. 1'!L16="","",HLOOKUP('Afsnit 20 gr. 1'!$G$16,E1:M53,'Afsnit 20 gr. 1'!L16+3)) -> 
C215: =IF('Afsnit 20 gr. 1'!M16="","",HLOOKUP('Afsnit 20 gr. 1'!$G$16,E1:M53,'Afsnit 20 gr. 1'!M16+3)) -> 
C216: =IF('Afsnit 20 gr. 1'!N16="","",HLOOKUP('Afsnit 20 gr. 1'!$G$16,E1:M53,'Afsnit 20 gr. 1'!N16+3)) -> 
C217: =IF('Afsnit 20 gr. 1'!O16="","",HLOOKUP('Afsnit 20 gr. 1'!$G$16,E1:M53,'Afsnit 20 gr. 1'!O16+3)) -> 
C218: =IF('Afsnit 20 gr. 1'!P16="","",HLOOKUP('Afsnit 20 gr. 1'!$G$16,E1:M53,'Afsnit 20 gr. 1'!P16+3)) -> 
C219: =IF('Afsnit 20 gr. 1'!Q16="","",HLOOKUP('Afsnit 20 gr. 1'!$G$16,E1:M53,'Afsnit 20 gr. 1'!Q16+3)) -> 
C220: =IF('Afsnit 20 gr. 1'!R16="","",HLOOKUP('Afsnit 20 gr. 1'!$G$16,E1:M53,'Afsnit 20 gr. 1'!R16+3)) -> 
C221: =IF('Afsnit 20 gr. 1'!S16="","",HLOOKUP('Afsnit 20 gr. 1'!$G$16,E1:M53,'Afsnit 20 gr. 1'!S16+3)) -> 
C222: =IF('Afsnit 20 gr. 1'!T16="","",HLOOKUP('Afsnit 20 gr. 1'!$G$6,E1:M53,'Afsnit 20 gr. 1'!T16+3)) -> 
C223: =IF('Afsnit 20 gr. 1'!U16="","",HLOOKUP('Afsnit 20 gr. 1'!$G$16,E1:M53,'Afsnit 20 gr. 1'!U16+3)) -> 
C224: =IF('Afsnit 20 gr. 1'!V16="","",HLOOKUP('Afsnit 20 gr. 1'!$G$16,E1:M53,'Afsnit 20 gr. 1'!V16+3)) -> 
... 156 more rows

Sheet Beregning gr. 2 (hidden)
G1: 0.1 | H1: 2.1 | I1: 6.1 | J1: 10.1 | K1: 15.1 | L1: 30.1 | M1: 50.1 | N1: 100.1 | S1: 0.1 | T1: 6.1 | U1: 15.1 | V1: 20.1 | W1: 30.1 | X1: 50.1 | Y1: 70.1 | Z1: 100.1
A2: OBS! Data på dette Ark må IKKE ændres | F2: PKt. | G2: A | H2: B | I2: C | J2: D | K2: E | L2: F | M2: G | N2: H | R2: PKT. | S2: A | T2: B | U2: C | V2: D | W2: E | X2: F | Y2: G | Z2: H
G3: u. 2 m2 | H3: 2-6 m2 | I3: 6-10 m2 | J3: 10-15 m2 | K3: 15-30 m2 | L3: 30-50 m2 | M3: 50-100 m2 | N3: O. 100 m2 | S3: u. 6 m² | T3: 6-15m² | U3: 15-20m² | V3: 20-30m² | W3: 30-50m² | X3: 50-70m² | Y3: 70-100m² | Z3: O. 100m²
E4: m² | F4: 1 | G4: 3.41383898 | H4: 2.526487332 | I4: 2.230703449 | J4: 2.070487179 | K4: 1.996541209 | L4: 1.897946581 | M4: 1.774703297 | N4: 1.725405983 | O4: Støvsugning | P4: m² | R4: 1
C5: Værdi | D5: (findes ved opslag i skemaet) | E5: m² | F5: 2 | G5: 8.73794887 | H5: 6.581191391 | I5: 5.829407356 | J5: 5.262488247 | K5: 5.016001678 | L5: 4.781839438 | M5: 4.584650183 | N5: 4.387460928 | O5: Svabning, inkl. støvsugning | P5: m² | R5: 2
A6: m2 | E6: m² | F6: 3 | G6: 4.547677197 | H6: 3.41383898 | I6: 3.031784798 | J6: 2.760649572 | K6: 2.625081959 | L6: 2.477190018 | M6: 2.390919719 | N6: 2.218379121 | O6: Maskinslibning, beton, asfalt og træ | P6: m² | R6: 3
E7: m² | F7: 4 | G7: 8.02313782 | H7: 6.03892094 | I7: 5.32410989 | J7: 4.781839438 | K7: 4.596974511 | L7: 4.424433913 | M7: 4.214920329 | N7: 3.96843376 | O7: Maskinslibning, Anhydrit | P7: m² | R7: 4
A8: Række6 | C8: =IF('Afsnit 20 gr. 2'!J6="","",HLOOKUP('Afsnit 20 gr. 2'!$C$6,E1:O52,'Afsnit 20 gr. 2'!J6+3)) ->  | E8: m² | F8: 5 | G8: 2.908541514 | H8: 2.156757478 | I8: 1.947243895 | J8: 1.762378968 | K8: 1.602162698 | L8: 1.454270757 | M8: 1.380324786 | N8: 1.294054487 | O8: Primning | P8: m² | R8: 5
C9: =IF('Afsnit 20 gr. 2'!K6="","",HLOOKUP('Afsnit 20 gr. 2'!$C$6,F1:N52,'Afsnit 20 gr. 2'!K6+3)) ->  | E9: m² | F9: 6 | G9: 22.75071032 | H9: 17.05687057 | I9: 15.13427533 | J9: 13.68000458 | K9: 12.5215177 | L9: 11.3507065 | M9: 10.83308471 | N9: 10.20454396 | O9: Primn..+spartl..+slibn..+støvsug... | P9: m² | R9: 6
C10: =IF('Afsnit 20 gr. 2'!L6="","",HLOOKUP('Afsnit 20 gr. 2'!$C$6,F1:O52,'Afsnit 20 gr. 2'!L6+3)) ->  | E10: m² | F10: 7 | G10: 34.10141682 | H10: 25.59763019 | I10: 22.67676434 | J10: 20.4460609 | K10: 18.7576279 | L10: 17.05687057 | M10: 16.18184325 | N10: 15.34378892 | O10: Primn..+spartl.. m/rive+slibn..+støvsug… | P10: m² | R10: 7
C11: =IF('Afsnit 20 gr. 2'!M6="","",HLOOKUP('Afsnit 20 gr. 2'!$C$6,F1:O52,'Afsnit 20 gr. 2'!M6+3)) ->  | E11: m² | F11: 8 | G11: 36.87439072 | H11: 27.65579304 | I11: 24.50076495 | J11: 22.13449389 | K11: 20.29816895 | L11: 18.42487103 | M11: 17.5005464 | N11: 16.60087042 | O11: Aftagning og afrensning af belægning | P11: m² | R11: 8
C12: =IF('Afsnit 20 gr. 2'!N6="","",HLOOKUP('Afsnit 20 gr. 2'!$C6,F1:O52,'Afsnit 20 gr. 2'!N6+3)) ->  | E12: m² | F12: 9 | G12: 21.67849374 | H12: 16.26811355 | I12: 14.41946428 | J12: 13.02681517 | K12: 11.94227427 | L12: 10.84540903 | M12: 10.2661656 | N12: 9.785516788 | O12: Aftagning af ekstra lag belægning | P12: m² | R12: 9
C13: =IF('Afsnit 20 gr. 2'!O6="","",HLOOKUP('Afsnit 20 gr. 2'!$C$6,F1:O52,'Afsnit 20 gr. 2'!O6+3)) ->  | E13: m² | F13: 10 | G13: 59.29234416 | H13: 44.47850137 | I13: 39.45017536 | J13: 35.58033623 | K13: 32.58552442 | L13: 29.61536126 | M13: 28.1610905 | N13: 26.66984676 | O13: Aftagning af masonit, afrensning af søm | P13: m² | R13: 10
C14: =IF('Afsnit 20 gr. 2'!P6<>"","",HLOOKUP('Afsnit 20 gr. 2'!$C$6,F1:O52,'Afsnit 20 gr. 2'!P6+3)) ->  | E14: m² | F14: 11 | G14: 34.13951243 | H14: 25.6105572 | I14: 22.70834328 | J14: 20.4813383 | K14: 18.77554726 | L14: 17.06975621 | M14: 16.21686069 | N14: 15.36396517 | O14: Aftagning af hulkehl t.o.m. 15 cm | P14: m² | R14: 11
C15: =IF('Afsnit 20 gr. 2'!Q6<>"","",HLOOKUP('Afsnit 20 gr. 2'!$C$6,F1:O52,'Afsnit 20 gr. 2'!Q6+3)) -> u. 2 m2 | E15: m² | F15: 12 | G15: 40.44146267 | H15: 30.33701989 | I15: 26.88990049 | J15: 24.26013929 | K15: 22.2463582 | L15: 20.22073134 | M15: 19.21384079 | N15: 18.19510447 | O15: Aftagning af hulkehl t.o.m. 30 cm | P15: m² | R15: 12
C16: =IF('Afsnit 20 gr. 2'!R6="","",HLOOKUP('Afsnit 20 gr. 2'!$C$6,F1:O52,'Afsnit 20 gr. 2'!R6+3)) ->  | E16: m² | F16: 13 | G16: 63.53191315 | H16: 42.60520345 | I16: 32.91828128 | J16: 25.7331978 | K16: 22.6151427 | L16: 19.47243895 | M16: 17.29103281 | N16: 15.83676206 | O16: Lægning af vinyl | P16: m² | R16: 13
C17: =IF('Afsnit 20 gr. 2'!S6="","",HLOOKUP('Afsnit 20 gr. 2'!$C$6,F1:O52,'Afsnit 20 gr. 2'!S6+3)) ->  | E17: m² | F17: 14 | G17: 8.232651403 | H17: 5.114596306 | I17: 3.906812118 | J17: 3.216649725 | K17: 2.982487484 | L17: 2.69902793 | M17: 2.625081959 | N17: 2.427892704 | O17: Opskæring af vinyl | P17: m² | R17: 14
C18: =IF('Afsnit 20 gr. 2'!#REF!="","",HLOOKUP('Afsnit 20 gr. 2'!$C$6,F1:O52,'Afsnit 20 gr. 2'!#REF!+3)) ->  | E18: m | F18: 15 | G18: 94.76616912 | H18: 71.07462684 | I18: 63.01950246 | J18: 56.85970147 | K18: 52.12139302 | L18: 47.38308456 | M18: 45.01393033 | N18: 42.6447761 | O18: Hulkehl t.o.m. 15 cm pr. m. | P18: m | R18: 15
C19: =IF('Afsnit 20 gr. 2'!Q6="","",HLOOKUP('Afsnit 20 gr. 2'!$C$6,F1:O52,'Afsnit 20 gr. 2'!Q6+3)) ->  | E19: stk | F19: 16 | G19: 56.50432834 | H19: 42.38416914 | I19: 37.57478606 | J19: 33.902597 | K19: 31.08330347 | L19: 28.25216417 | M19: 26.8425174 | N19: 25.43287064 | O19: Indvendige hulkehlhjørne t.o.m. 15 cm | P19: stk | R19: 16
C20: =IF('Afsnit 20 gr. 2'!V6="","",HLOOKUP('Afsnit 20 gr. 2'!$C$6,F1:O52,'Afsnit 20 gr. 2'!V6+3)) ->  | E20: stk | F20: 17 | G20: 113.1271144 | H20: 84.85125867 | I20: 75.23249251 | J20: 67.87626863 | K20: 62.2258358 | L20: 56.56355719 | M20: 53.73241789 | N20: 50.91312436 | O20: Udvendige hulkehlhjørner t.o.m. 15 cm | P20: stk | R20: 17
C21: =IF('Afsnit 20 gr. 2'!W6="","",HLOOKUP('Afsnit 20 gr. 2'!$C$6,F1:O52,'Afsnit 20 gr. 2'!W6+3)) ->  | E21: stk | F21: 18 | G21: 56.62278605 | H21: 42.46708954 | I21: 37.65770645 | J21: 33.97367163 | K21: 31.14253233 | L21: 28.31139302 | M21: 26.90174626 | N21: 25.48025372 | O21: Lige samling i hulkehl t.o.m. 15 cm | P21: stk | R21: 18
C22: =IF('Afsnit 20 gr. 2'!#REF!="","",HLOOKUP('Afsnit 20 gr. 2'!$C$6,F1:O52,'Afsnit 20 gr. 2'!#REF!+3)) ->  | E22: m² | F22: 19 | G22: 22.08519658 | H22: 11.07957127 | I22: 9.649949175 | J22: 8.208002746 | K22: 7.419245726 | L22: 6.630488705 | M22: 6.001947954 | N22: 5.262488247 | O22: Trådsvejsning/trådfugning, 200 cm | P22: m² | R22: 19
C23: =IF('Afsnit 20 gr. 2'!U6="","",HLOOKUP('Afsnit 20 gr. 2'!$C$6,F1:O52,'Afsnit 20 gr. 2'!U6+3)) ->  | E23: m² | F23: 20 | G23: 24.4761163 | H23: 12.26270681 | I23: 10.72216575 | J23: 9.120003052 | K23: 8.232651403 | L23: 7.369948412 | M23: 6.642813034 | N23: 5.792434371 | O23: Trådsvejsning/trådfugning, 180 cm | P23: m² | R23: 20
A24: Sum af punkter | C24: =SUM(C8:C23) ->  | E24: m² | F24: 21 | G24: 29.35655036 | H24: 14.70292384 | I24: 12.81730159 | J24: 10.91935501 | K24: 9.908760072 | L24: 8.848867826 | M24: 7.986164834 | N24: 6.98789423 | O24: Trådsvejsning/trådfugning, 150 cm | P24: m² | R24: 21
E25: m² | F25: 22 | G25: 35.27222802 | H25: 17.71005998 | I25: 15.41773489 | J25: 13.1254098 | K25: 11.88065262 | L25: 10.59892247 | M25: 9.576003204 | N25: 8.380543345 | O25: Trådsvejsning/trådfugning, 125 cm | P25: m² | R25: 22
A26: Resultat | C26: =B6*C24 ->  | D26: Sum af punkter gange punkttal | E26: m² | F26: 23 | G26: 6.445623778 | H26: 4.84346108 | I26: 4.2888663 | J26: 3.882163461 | K26: 3.549406593 | L26: 3.216649725 | M26: 3.068757784 | N26: 2.908541514 | O26: Afdækning af gulv, minimums bredde 90 cm | P26: m² | R26: 23
E27: m² | F27: 24 | G27: 7.246705127 | H27: 5.435028846 | I27: 4.806488095 | J27: 4.362812271 | K27: 3.96843376 | L27: 3.623352564 | M27: 3.438487637 | N27: 3.265947039 | O27: Aftagning af gulvafdækning | P27: m² | R27: 24
A28: Række8 | C28: =IF('Afsnit 20 gr. 2'!J8="","",HLOOKUP('Afsnit 20 gr. 2'!$P$6,R1:AA52,'Afsnit 20 gr. 2'!J8+3)) ->  | E28: m² | F28: 25 | G28: 21.86335867 | H28: 16.40368116 | I28: 14.53038324 | J28: 13.10076114 | K28: 12.04086889 | L28: 10.93167933 | M28: 10.36476022 | N28: 9.859462758 | O28: Afdækning med masonit | P28: m² | R28: 25
C29: =IF('Afsnit 20 gr. 2'!K8="","",HLOOKUP('Afsnit 20 gr. 2'!$P$6,Q1:AA52,'Afsnit 20 gr. 2'!K8+3)) ->  | E29: m² | F29: 26 | G29: 14.70292384 | H29: 11.05492262 | I29: 9.822489773 | J29: 8.848867826 | K29: 8.09708379 | L29: 7.369948412 | M29: 7.012542887 | N29: 6.618164377 | O29: Aftagning af masonitafdækning | P29: m² | R29: 26
C30: =IF('Afsnit 20 gr. 2'!K7="","",HLOOKUP('Afsnit 20 gr. 2'!$P$5,F1:O52,'Afsnit 20 gr. 2'!K7+3)) ->  | E30: m | F30: 27 | G30: 2.369154228 | H30: 2.369154228 | I30: 2.369154228 | J30: 2.369154228 | K30: 2.369154228 | L30: 2.369154228 | M30: 2.369154228 | N30: 2.369154228 | O30: Primning for hulkehl | P30: m | R30: 27
C31: =IF('Afsnit 20 gr. 2'!J8="","",HLOOKUP('Afsnit 20 gr. 2'!$P$6,Q1:AA52,'Afsnit 20 gr. 2'!J8+3)) ->  | E31: % | F31: 28 | G31: 0.0721 | H31: 0.0721 | I31: 0.0721 | J31: 0.0721 | K31: 0.0721 | L31: 0.0721 | M31: 0.0721 | N31: 0.0721 | O31: Tillæg pr. påbegyndt cm over 15 cm | P31: % | R31: 28
C32: =IF('Afsnit 20 gr. 2'!N7="","",HLOOKUP('Afsnit 20 gr. 2'!$P$5,F1:O52,'Afsnit 20 gr. 2'!N7+3)) ->  | E32: m | F32: 29 | G32: 7.995895519 | H32: 7.995895519 | I32: 7.995895519 | J32: 7.995895519 | K32: 7.995895519 | L32: 7.995895519 | M32: 7.995895519 | N32: 7.995895519 | O32: Skæring af overkant på hulkehl | P32: m | R32: 29
C33: =IF('Afsnit 20 gr. 2'!O7="","",HLOOKUP('Afsnit 20 gr. 2'!$P$5,F1:O52,'Afsnit 20 gr. 2'!O7+3)) ->  | E33: m | F33: 30 | G33: 6.219029848 | H33: 6.219029848 | I33: 6.219029848 | J33: 6.219029848 | K33: 6.219029848 | L33: 6.219029848 | M33: 6.219029848 | N33: 6.219029848 | O33: Tillæg for hulkehl på færdigbehandlet væg | P33: m | R33: 30
C34: =IF('Afsnit 20 gr. 2'!P7="","",HLOOKUP('Afsnit 20 gr. 2'!$P$5,F1:O52,'Afsnit 20 gr. 2'!P7+3)) ->  | E34: stk | F34: 31 | G34: 343.5273631 | H34: 343.5273631 | I34: 343.5273631 | J34: 343.5273631 | K34: 343.5273631 | L34: 343.5273631 | M34: 343.5273631 | N34: 343.5273631 | O34: Spartling af lokalfald | P34: stk | R34: 31
C35: =IF('Afsnit 20 gr. 2'!Q7="","",HLOOKUP('Afsnit 20 gr. 2'!$P$5,F1:O52,'Afsnit 20 gr. 2'!Q7+3)) ->  | E35: stk | F35: 32 | G35: 400.9793531 | H35: 400.9793531 | I35: 400.9793531 | J35: 400.9793531 | K35: 400.9793531 | L35: 400.9793531 | M35: 400.9793531 | N35: 400.9793531 | O35: Spartling af lokalfald, afgrænset af 3 vægge | P35: stk | R35: 32
C36: =IF('Afsnit 20 gr. 2'!R7="","",HLOOKUP('Afsnit 20 gr. 2'!$P$5,F1:O52,'Afsnit 20 gr. 2'!R7+3)) ->  | E36: m | F36: 33 | G36: 8.588184076 | H36: 8.588184076 | I36: 8.588184076 | J36: 8.588184076 | K36: 8.588184076 | L36: 8.588184076 | M36: 8.588184076 | N36: 8.588184076 | O36: Spartling af gipsvæg | P36: m | R36: 33
C37: =IF('Afsnit 20 gr. 2'!S7="","",HLOOKUP('Afsnit 20 gr. 2'!$P$5,F1:O52,'Afsnit 20 gr. 2'!S7+3)) ->  | E37: m | F37: 34 | G37: 17.17636815 | H37: 17.17636815 | I37: 17.17636815 | J37: 17.17636815 | K37: 17.17636815 | L37: 17.17636815 | M37: 17.17636815 | N37: 17.17636815 | O37: Spartling af murstensvæg | P37: m | R37: 34
C38: =IF('Afsnit 20 gr. 2'!T7="","",HLOOKUP('Afsnit 20 gr. 2'!$P$5,F1:O52,'Afsnit 20 gr. 2'!T7+3)) ->  | E38: m | F38: 35 | G38: 110.1656716 | H38: 110.1656716 | I38: 110.1656716 | J38: 110.1656716 | K38: 110.1656716 | L38: 110.1656716 | M38: 110.1656716 | N38: 110.1656716 | O38: T.o.m. Ø160 mm afløb | P38: m | R38: 35
C39: =IF('Afsnit 20 gr. 2'!U7="","",HLOOKUP('Afsnit 20 gr. 2'!$P$5,F1:O52,'Afsnit 20 gr. 2'!U7+3)) ->  | E39: cm | F39: 36 | G39: 1.184577114 | H39: 1.184577114 | I39: 1.184577114 | J39: 1.184577114 | K39: 1.184577114 | L39: 1.184577114 | M39: 1.184577114 | N39: 1.184577114 | O39: Firkantede gulvafløb | P39: cm | R39: 36
C40: =IF('Afsnit 20 gr. 2'!V7="","",HLOOKUP('Afsnit 20 gr. 2'!$P$5,F1:O52,'Afsnit 20 gr. 2'!V7+3)) ->  | E40: stk | F40: 37 | G40: 52.71368157 | H40: 52.71368157 | I40: 52.71368157 | J40: 52.71368157 | K40: 52.71368157 | L40: 52.71368157 | M40: 52.71368157 | N40: 52.71368157 | O40: Rørkraver/manchet | P40: stk | R40: 37
C41: =IF('Afsnit 20 gr. 2'!W7="","",HLOOKUP('Afsnit 20 gr. 2'!$P$5,F1:O52,'Afsnit 20 gr. 2'!W7+3)) ->  | E41: stk | F41: 38 | G41: 52.71368157 | H41: 52.71368157 | I41: 52.71368157 | J41: 52.71368157 | K41: 52.71368157 | L41: 52.71368157 | M41: 52.71368157 | N41: 52.71368157 | O41: Opkant t.o.m. 10 cm | P41: stk | R41: 38
C42: =IF('Afsnit 20 gr. 2'!X7="","",HLOOKUP('Afsnit 20 gr. 2'!$P$5,F1:O52,'Afsnit 20 gr. 2'!X7+3)) ->  | E42: stk | F42: 39 | G42: 25.17226367 | H42: 25.17226367 | I42: 25.17226367 | J42: 25.17226367 | K42: 25.17226367 | L42: 25.17226367 | M42: 25.17226367 | N42: 25.17226367 | O42: Skæring af hjørne ved opkant | P42: stk | R42: 39
C43: =IF('Afsnit 20 gr. 2'!Y7="","",HLOOKUP('Afsnit 20 gr. 2'!$P$5,F1:O52,'Afsnit 20 gr. 2'!Y7+3)) ->  | E43: m | F43: 40 | G43: 94.76616912 | H43: 94.76616912 | I43: 94.76616912 | J43: 94.76616912 | K43: 94.76616912 | L43: 94.76616912 | M43: 94.76616912 | N43: 94.76616912 | O43: Nedsænkning med trekantliste | P43: m | R43: 40
C44: =SUM(C28:C29) -> 0 | E44: stk | F44: 41 | G44: 88.84328355 | H44: 88.84328355 | I44: 88.84328355 | J44: 88.84328355 | K44: 88.84328355 | L44: 88.84328355 | M44: 88.84328355 | N44: 88.84328355 | O44: Tillæg for hjørner ved nedsænkning | P44: stk | R44: 41
E45: % | F45: 42 | G45: 0.35 | H45: 0.35 | I45: 0.35 | J45: 0.35 | K45: 0.35 | L45: 0.35 | M45: 0.35 | N45: 0.35 | O45: Tillæg for montering med kontaktlim Pkt.13-15-16-17-18 | P45: % | R45: 42
E46: % | F46: 43 | G46: 0.1 | H46: 0.1 | I46: 0.1 | J46: 0.1 | K46: 0.1 | L46: 0.1 | M46: 0.1 | N46: 0.1 | O46: Tillæg for skridsikkert Pkt. 13-14-15-16-17-18-35-36-37 | P46: % | R46: 43
E47: m | F47: 44 | G47: 60.32758775 | H47: 60.32758775 | I47: 60.32758775 | J47: 60.32758775 | K47: 60.32758775 | L47: 60.32758775 | M47: 60.32758775 | N47: 60.32758775 | O47: Gulvskinne m/forboring, plugs, skrue, klæbning | P47: m | R47: 44
A48: linie3 | C48: =IF('Afsnit 20 gr. 2'!J8="","",HLOOKUP('Afsnit 20 gr. 2'!$P$6,F1:O68,'Afsnit 20 gr. 2'!J8+3)) ->  | E48: m | F48: 45 | G48: 40.24 | H48: 40.24 | I48: 40.24 | J48: 40.24 | K48: 40.24 | L48: 40.24 | M48: 40.24 | N48: 40.24 | O48: Gulvskinne i underlag af træ, inkl. klæbning | P48: m | R48: 45
C49: =IF('Afsnit 20 gr. 2'!K8="","",HLOOKUP('Afsnit 20 gr. 2'!$P$6,F1:O68,'Afsnit 20 gr. 2'!K8+3)) ->  | E49: m | F49: 46 | G49: 36.19655265 | H49: 36.19655265 | I49: 36.19655265 | J49: 36.19655265 | K49: 36.19655265 | L49: 36.19655265 | M49: 36.19655265 | N49: 36.19655265 | O49: Gulvskinne monteret med dobbeltklæbende tape, pr. m. pr. samling, pr. gering | P49: m | R49: 46
C50: =IF('Afsnit 20 gr. 2'!L8="","",HLOOKUP('Afsnit 20 gr. 2'!$P$6,F1:O52,'Afsnit 20 gr. 2'!L8+3)) ->  | R50: 47 | S50: 8.227169025 | T50: 5.113571908 | U50: 3.909041636 | V50: 3.215868555 | W50: 2.9772352 | X50: 2.704511364 | Y50: 2.624966913 | Z50: 2.431787529 | AA50: opskæring af vinyl pr. m² | AB50: M²
C51: =IF('Afsnit 20 gr. 2'!M8="","",HLOOKUP('Afsnit 20 gr. 2'!$P$6,F1:O52,'Afsnit 20 gr. 2'!M8+3)) ->  | R51: 48 | S51: 76.2376754 | T51: 51.12435558 | U51: 39.49950211 | V51: 32.02232363 | W51: 27.13602159 | X51: 23.37470536 | Y51: 20.74973845 | Z51: 19.011124 | AA51: Opsætning af vinyl på væg med enkeltklæbning pr. M² | AB51: M²
C52: =IF('Afsnit 20 gr. 2'!N8="","",HLOOKUP('Afsnit 20 gr. 2'!$P$6,F1:O52,'Afsnit 20 gr. 2'!N8+3)) ->  | R52: 49 | S52: 113.7258392 | T52: 85.29437942 | U52: 75.62404677 | V52: 68.23777623 | W52: 62.54466618 | X52: 56.86291961 | Y52: 54.02204633 | Z52: 51.18117305 | AA52: Indvendigt/udvendigt lodret hjørne på væg med enkeltklæbning pr. m. | AB52: m.
C53: =IF('Afsnit 20 gr. 2'!O8="","",HLOOKUP('Afsnit 20 gr. 2'!$P$6,F1:O52,'Afsnit 20 gr. 2'!O8+3)) ->  | R53: 50 | S53: 153.5321557 | T53: 115.1462759 | U53: 102.1009858 | V53: 92.1124753 | W53: 84.44211743 | X53: 76.76039608 | Y53: 72.9308989 | Z53: 69.09003822 | AA53: Udvendigt lodret hjørne på væg med kontaktklæbning pr. m. | AB53: m
C54: =IF('Afsnit 20 gr. 2'!P8="","",HLOOKUP('Afsnit 20 gr. 2'!$P$6,F1:O52,'Afsnit 20 gr. 2'!P8+3)) ->  | R54: 51 | S54: 174.5773449 | T54: 87.29435421 | U54: 58.19244831 | V54: 43.74944854 | W54: 36.46544945 | X54: 33.14730945 | Y54: 31.48823946 | Z54: 28.34055186 | AA54: Udskæring for lem pr. stk. | AB54: stk
C55: =IF('Afsnit 20 gr. 2'!Q8="","",HLOOKUP('Afsnit 20 gr. 2'!$P$6,F1:O52,'Afsnit 20 gr. 2'!Q8+3)) ->  | R55: 52 | S55: 43.61308663 | T55: 21.80654331 | U55: 14.53390771 | V55: 10.93168039 | W55: 9.113521489 | X55: 8.28398649 | Y55: 7.863537245 | Z55: 7.079456219 | AA55: Lodrette svejsninger inkl. Fræsning pr. M. | AB55: m
C56: =IF('Afsnit 20 gr. 2'!R8="","",HLOOKUP('Afsnit 20 gr. 2'!$P$6,F1:O52,'Afsnit 20 gr. 2'!R8+3)) ->  | R56: 53 | S56: 54.52204003 | T56: 27.26102001 | U56: 18.17022551 | V56: 13.65891874 | W56: 11.38622011 | X56: 10.35214224 | Y56: 9.829421556 | Z56: 8.852161147 | AA56: Vandrette svejsninger inkl. Fræsning pr. M. | AB56: m
C57: =IF('Afsnit 20 gr. 2'!S8="","",HLOOKUP('Afsnit 20 gr. 2'!$P$6,F1:O52,'Afsnit 20 gr. 2'!S8+3)) ->  | R57: 54 | S57: 7.999899162 | T57: 7.999899162 | U57: 7.999899162 | V57: 7.999899162 | W57: 7.999899162 | X57: 7.999899162 | Y57: 7.999899162 | Z57: 7.999899162 | AA57: Skæring af underkant på vægvinyl, ned til senere overkant hulkehl eller skæring der skal stå synlig uden på hulkehl, vandret eller fast højde fra gulv pr. meter .......... kr. | AB57: m
C58: =IF('Afsnit 20 gr. 2'!T8="","",HLOOKUP('Afsnit 20 gr. 2'!$P$6,F1:O52,'Afsnit 20 gr. 2'!T8+3)) ->  | R58: 55 | S58: 7.999899162 | T58: 7.999899162 | U58: 7.999899162 | V58: 7.999899162 | W58: 7.999899162 | X58: 7.999899162 | Y58: 7.999899162 | Z58: 7.999899162 | AA58: Tillæg for afskæring af vinyl på væg i fast højde på færdigbehandlet væg pr. meter. | AB58: m
C59: =IF('Afsnit 20 gr. 2'!U8="","",HLOOKUP('Afsnit 20 gr. 2'!$P$6,F1:O52,'Afsnit 20 gr. 2'!U8+3)) ->  | R59: 56 | S59: 5.409022729 | T59: 5.409022729 | U59: 5.409022729 | V59: 5.409022729 | W59: 5.409022729 | X59: 5.409022729 | Y59: 5.409022729 | Z59: 5.409022729 | AA59: Tillæg for tæt tilskæring af vinyl på væg mod færdigbehandlet loft pr. meter. (2021) | AB59: m
C60: =IF('Afsnit 20 gr. 2'!V8="","",HLOOKUP('Afsnit 20 gr. 2'!$P$6,F1:O52,'Afsnit 20 gr. 2'!V8+3)) ->  | R60: 57 | S60: 51.62434928 | T60: 51.62434928 | U60: 51.62434928 | V60: 51.62434928 | W60: 51.62434928 | X60: 51.62434928 | Y60: 51.62434928 | Z60: 51.62434928 | AA60: Rørkraver/manchet t.o.m. Ø 120 mm svejset omkring røret, pr. stk. | AB60: stk
C61: =IF('Afsnit 20 gr. 2'!W8="","",HLOOKUP('Afsnit 20 gr. 2'!$P$6,F1:O52,'Afsnit 20 gr. 2'!W8+3)) ->  | R61: 58 | S61: 25.85194687 | T61: 25.85194687 | U61: 25.85194687 | V61: 25.85194687 | W61: 25.85194687 | X61: 25.85194687 | Y61: 25.85194687 | Z61: 25.85194687 | AA61: Tillæg for tæt tilskæring for el-udtag t.o.m. 90 kvcm pr. stk. | AB61: stk
C62: =IF('Afsnit 20 gr. 2'!X8="","",HLOOKUP('Afsnit 20 gr. 2'!$P$6,F1:O52,'Afsnit 20 gr. 2'!X8+3)) ->  | R62: 59 | S62: 25.85194687 | T62: 25.85194687 | U62: 25.85194687 | V62: 25.85194687 | W62: 25.85194687 | X62: 25.85194687 | Y62: 25.85194687 | Z62: 25.85194687 | AA62: Tillæg for udskæring for koblingsdåse til rør t.o.m Ø 65 mm pr. stk. | AB62: stk
C63: =IF('Afsnit 20 gr. 2'!Y8="","",HLOOKUP('Afsnit 20 gr. 2'!$P$6,F1:O52,'Afsnit 20 gr. 2'!Y8+3)) ->  | R63: 60 | S63: 0.35 | T63: 0.35 | U63: 0.35 | V63: 0.35 | W63: 0.35 | X63: 0.35 | Y63: 0.35 | Z63: 0.35 | AA63: Ved kontaktlim tillægges pkt. 48 | AB63: %
C64: =SUM(C48:C63) ->  | R64: 61 | S64: 0.1 | T64: 0.1 | U64: 0.1 | V64: 0.1 | W64: 0.1 | X64: 0.1 | Y64: 0.1 | Z64: 0.1 | AA64: Ved skridsikkert vinyl tillægges Pkt. 47,48,49,50,51,54,55,56,57,58 og 59 | AB64: %
A68: linie4 | C68: =IF('Afsnit 20 gr. 2'!J9="","",HLOOKUP('Afsnit 20 gr. 2'!$C$9,F1:N45,'Afsnit 20 gr. 2'!J9+3)) -> 
C69: =IF('Afsnit 20 gr. 2'!K9="","",HLOOKUP('Afsnit 20 gr. 2'!$C$9,F1:N45,'Afsnit 20 gr. 2'!K9+3)) -> 
C70: =IF('Afsnit 20 gr. 2'!L9="","",HLOOKUP('Afsnit 20 gr. 2'!$C$9,F1:N45,'Afsnit 20 gr. 2'!L9+3)) -> 
C71: =IF('Afsnit 20 gr. 2'!M9="","",HLOOKUP('Afsnit 20 gr. 2'!$C$9,F1:N45,'Afsnit 20 gr. 2'!M9+3)) -> 
C72: =IF('Afsnit 20 gr. 2'!N9="","",HLOOKUP('Afsnit 20 gr. 2'!$C$9,F1:N45,'Afsnit 20 gr. 2'!N9+3)) -> 
C73: =IF('Afsnit 20 gr. 2'!O9="","",HLOOKUP('Afsnit 20 gr. 2'!$C$9,F1:N45,'Afsnit 20 gr. 2'!O9+3)) -> 
C74: =IF('Afsnit 20 gr. 2'!P9="","",HLOOKUP('Afsnit 20 gr. 2'!$C$9,F1:N45,'Afsnit 20 gr. 2'!P9+3)) -> 
C75: =IF('Afsnit 20 gr. 2'!Q9="","",HLOOKUP('Afsnit 20 gr. 2'!$C$9,F1:N45,'Afsnit 20 gr. 2'!Q9+3)) -> 
C76: =IF('Afsnit 20 gr. 2'!R9="","",HLOOKUP('Afsnit 20 gr. 2'!$C$9,F1:N45,'Afsnit 20 gr. 2'!R9+3)) -> 
C77: =IF('Afsnit 20 gr. 2'!S9="","",HLOOKUP('Afsnit 20 gr. 2'!$C$9,F1:N45,'Afsnit 20 gr. 2'!S9+3)) -> 
C78: =IF('Afsnit 20 gr. 2'!T9="","",HLOOKUP('Afsnit 20 gr. 2'!$C$9,F1:N45,'Afsnit 20 gr. 2'!T9+3)) -> 
C79: =IF('Afsnit 20 gr. 2'!U9="","",HLOOKUP('Afsnit 20 gr. 2'!$C$9,F1:N45,'Afsnit 20 gr. 2'!U9+3)) -> 
C80: =IF('Afsnit 20 gr. 2'!V9="","",HLOOKUP('Afsnit 20 gr. 2'!$C$9,F1:N45,'Afsnit 20 gr. 2'!V9+3)) -> 
C81: =IF('Afsnit 20 gr. 2'!W9="","",HLOOKUP('Afsnit 20 gr. 2'!$C$9,F1:N45,'Afsnit 20 gr. 2'!W9+3)) -> 
C82: =IF('Afsnit 20 gr. 2'!X9="","",HLOOKUP('Afsnit 20 gr. 2'!$C$9,F1:N45,'Afsnit 20 gr. 2'!X9+3)) -> 
C83: =IF('Afsnit 20 gr. 2'!Y9="","",HLOOKUP('Afsnit 20 gr. 2'!$C$9,F1:N45,'Afsnit 20 gr. 2'!Y9+3)) -> 
C84: =SUM(C68:C83) -> 0
A88: linie5 | C88: =IF('Afsnit 20 gr. 2'!J10="","",HLOOKUP('Afsnit 20 gr. 2'!$C$10,F1:N45,'Afsnit 20 gr. 2'!J10+3)) -> 
C89: =IF('Afsnit 20 gr. 2'!K10="","",HLOOKUP('Afsnit 20 gr. 2'!$C$10,F1:N45,'Afsnit 20 gr. 2'!K10+3)) -> 
C90: =IF('Afsnit 20 gr. 2'!L10="","",HLOOKUP('Afsnit 20 gr. 2'!$C$10,F1:N45,'Afsnit 20 gr. 2'!L10+3)) -> 
C91: =IF('Afsnit 20 gr. 2'!M10="","",HLOOKUP('Afsnit 20 gr. 2'!$C$10,F1:N45,'Afsnit 20 gr. 2'!M10+3)) -> 
C92: =IF('Afsnit 20 gr. 2'!N10="","",HLOOKUP('Afsnit 20 gr. 2'!$C$10,F1:N45,'Afsnit 20 gr. 2'!N10+3)) -> 
C93: =IF('Afsnit 20 gr. 2'!O10="","",HLOOKUP('Afsnit 20 gr. 2'!$C$10,F1:N45,'Afsnit 20 gr. 2'!O10+3)) -> 
C94: =IF('Afsnit 20 gr. 2'!P10="","",HLOOKUP('Afsnit 20 gr. 2'!$C$10,F1:N45,'Afsnit 20 gr. 2'!P10+3)) -> 
C95: =IF('Afsnit 20 gr. 2'!Q10="","",HLOOKUP('Afsnit 20 gr. 2'!$C$10,F1:N45,'Afsnit 20 gr. 2'!Q10+3)) -> 
C96: =IF('Afsnit 20 gr. 2'!R10="","",HLOOKUP('Afsnit 20 gr. 2'!$C$10,F1:N45,'Afsnit 20 gr. 2'!R10+3)) -> 
C97: =IF('Afsnit 20 gr. 2'!S10="","",HLOOKUP('Afsnit 20 gr. 2'!$C$10,F1:N45,'Afsnit 20 gr. 2'!S10+3)) -> 
C98: =IF('Afsnit 20 gr. 2'!T10="","",HLOOKUP('Afsnit 20 gr. 2'!$C$10,F1:N45,'Afsnit 20 gr. 2'!T10+3)) -> 
C99: =IF('Afsnit 20 gr. 2'!U10="","",HLOOKUP('Afsnit 20 gr. 2'!$C$10,F1:N45,'Afsnit 20 gr. 2'!U10+3)) -> 
C100: =IF('Afsnit 20 gr. 2'!V10="","",HLOOKUP('Afsnit 20 gr. 2'!$C$10,F1:N45,'Afsnit 20 gr. 2'!V10+3)) -> 
C101: =IF('Afsnit 20 gr. 2'!W10="","",HLOOKUP('Afsnit 20 gr. 2'!$C$10,F1:N45,'Afsnit 20 gr. 2'!W10+3)) -> 
C102: =IF('Afsnit 20 gr. 2'!X10="","",HLOOKUP('Afsnit 20 gr. 2'!$C$10,F1:N45,'Afsnit 20 gr. 2'!X10+3)) -> 
C103: =IF('Afsnit 20 gr. 2'!Y10="","",HLOOKUP('Afsnit 20 gr. 2'!$C$10,F1:N45,'Afsnit 20 gr. 2'!Y10+3)) -> 
C104: =SUM(C88:C103) -> 0
A108: linie6 | C108: =IF(#REF!="","",HLOOKUP(#REF!,F1:N50,#REF!+3)) -> 
C109: =IF(#REF!="","",HLOOKUP(#REF!,F1:N50,#REF!+3)) -> 
C110: =IF(#REF!="","",HLOOKUP(#REF!,F1:N50,#REF!+3)) -> 
C111: =IF(#REF!="","",HLOOKUP(#REF!,F1:N50,#REF!+3)) -> 
C112: =IF(#REF!="","",HLOOKUP(#REF!,F1:N50,#REF!+3)) -> 
C113: =IF(#REF!="","",HLOOKUP(#REF!,F1:N50,#REF!+3)) -> 
C114: =IF(#REF!="","",HLOOKUP(#REF!,F1:N50,#REF!+3)) -> 
C115: =IF(#REF!="","",HLOOKUP(#REF!,F1:N50,#REF!+3)) -> 
C116: =IF(#REF!="","",HLOOKUP(#REF!,F1:N50,#REF!+3)) -> 
C117: =IF(#REF!="","",HLOOKUP(#REF!,F1:N50,#REF!+3)) -> 
C118: =IF(#REF!="","",HLOOKUP(#REF!,F1:N50,#REF!+3)) -> 
C119: =IF(#REF!="","",HLOOKUP(#REF!,F1:N50,#REF!+3)) -> 
C120: =IF(#REF!="","",HLOOKUP(#REF!,F1:N50,#REF!+3)) -> 
C121: =IF(#REF!="","",HLOOKUP(#REF!,F1:N50,#REF!+3)) -> 
C122: =IF(#REF!="","",HLOOKUP(#REF!,F1:N50,#REF!+3)) -> 
C123: =IF(#REF!="","",HLOOKUP(#REF!,F1:N50,#REF!+3)) -> 
C124: =SUM(C108:C123) -> 
A128: linie7 | C128: =IF(#REF!="","",HLOOKUP(#REF!,F1:N50,#REF!+3)) -> 
C129: =IF(#REF!="","",HLOOKUP(#REF!,F1:N50,#REF!+3)) -> 
C130: =IF(#REF!="","",HLOOKUP(#REF!,F1:N50,#REF!+3)) -> 
C131: =IF(#REF!="","",HLOOKUP(#REF!,F1:N50,#REF!+3)) -> 
C132: =IF(#REF!="","",HLOOKUP(#REF!,F1:N50,#REF!+3)) -> 
C133: =IF(#REF!="","",HLOOKUP(#REF!,F1:N50,#REF!+3)) -> 
C134: =IF(#REF!="","",HLOOKUP(#REF!,F1:N50,#REF!+3)) -> 
C135: =IF(#REF!="","",HLOOKUP(#REF!,F1:N50,#REF!+3)) -> 
C136: =IF(#REF!="","",HLOOKUP(#REF!,F1:N50,#REF!+3)) -> 
C137: =IF(#REF!="","",HLOOKUP(#REF!,F1:N50,#REF!+3)) -> 
C138: =IF(#REF!="","",HLOOKUP(#REF!,F1:N50,#REF!+3)) -> 
C139: =IF(#REF!="","",HLOOKUP(#REF!,F1:N50,#REF!+3)) -> 
C140: =IF(#REF!="","",HLOOKUP(#REF!,F1:N50,#REF!+3)) -> 
C141: =IF(#REF!="","",HLOOKUP(#REF!,F1:N50,#REF!+3)) -> 
C142: =IF(#REF!="","",HLOOKUP(#REF!,F1:N50,#REF!+3)) -> 
C143: =IF(#REF!="","",HLOOKUP(#REF!,F1:N50,#REF!+3)) -> 
C144: =SUM(C128:C143) -> 
A148: linie8 | C148: =IF(#REF!="","",HLOOKUP(#REF!,F1:N50,#REF!+3)) -> 
C149: =IF(#REF!="","",HLOOKUP(#REF!,F1:N50,#REF!+3)) -> 
C150: =IF(#REF!="","",HLOOKUP(#REF!,F1:N50,#REF!+3)) -> 
C151: =IF(#REF!="","",HLOOKUP(#REF!,F1:N50,#REF!+3)) -> 
C152: =IF(#REF!="","",HLOOKUP(#REF!,F1:N50,#REF!+3)) -> 
C153: =IF(#REF!="","",HLOOKUP(#REF!,F1:N50,#REF!+3)) -> 
C154: =IF(#REF!="","",HLOOKUP(#REF!,F1:N50,#REF!+3)) -> 
C155: =IF(#REF!="","",HLOOKUP(#REF!,F1:N50,#REF!+3)) -> 
C156: =IF(#REF!="","",HLOOKUP(#REF!,F1:N50,#REF!+3)) -> 
C157: =IF(#REF!="","",HLOOKUP(#REF!,F1:N50,#REF!+3)) -> 
C158: =IF(#REF!="","",HLOOKUP(#REF!,F1:N50,#REF!+3)) -> 
C159: =IF(#REF!="","",HLOOKUP(#REF!,F1:N50,#REF!+3)) -> 
C160: =IF(#REF!="","",HLOOKUP(#REF!,F1:N50,#REF!+3)) -> 
C161: =IF(#REF!="","",HLOOKUP(#REF!,F1:N50,#REF!+3)) -> 
C162: =IF(#REF!="","",HLOOKUP(#REF!,F1:N50,#REF!+3)) -> 
C163: =IF(#REF!="","",HLOOKUP(#REF!,F1:N50,#REF!+3)) -> 
C164: =SUM(C148:C163) -> 
A168: linie9 | C168: =IF(#REF!="","",HLOOKUP(#REF!,F1:N50,#REF!+3)) -> 
C169: =IF(#REF!="","",HLOOKUP(#REF!,F1:N50,#REF!+3)) -> 
C170: =IF(#REF!="","",HLOOKUP(#REF!,F1:N50,#REF!+3)) -> 
C171: =IF(#REF!="","",HLOOKUP(#REF!,F1:N50,#REF!+3)) -> 
C172: =IF(#REF!="","",HLOOKUP(#REF!,F1:N50,#REF!+3)) -> 
C173: =IF(#REF!="","",HLOOKUP(#REF!,F1:N50,#REF!+3)) -> 
C174: =IF(#REF!="","",HLOOKUP(#REF!,F1:N50,#REF!+3)) -> 
C175: =IF(#REF!="","",HLOOKUP(#REF!,F1:N50,#REF!+3)) -> 
C176: =IF(#REF!="","",HLOOKUP(#REF!,F1:N50,#REF!+3)) -> 
C177: =IF(#REF!="","",HLOOKUP(#REF!,F1:N50,#REF!+3)) -> 
C178: =IF(#REF!="","",HLOOKUP(#REF!,F1:N50,#REF!+3)) -> 
C179: =IF(#REF!="","",HLOOKUP(#REF!,F1:N50,#REF!+3)) -> 
C180: =IF(#REF!="","",HLOOKUP(#REF!,F1:N50,#REF!+3)) -> 
C181: =IF(#REF!="","",HLOOKUP(#REF!,F1:N50,#REF!+3)) -> 
C182: =IF(#REF!="","",HLOOKUP(#REF!,F1:N50,#REF!+3)) -> 
C183: =IF(#REF!="","",HLOOKUP(#REF!,F1:N50,#REF!+3)) -> 
C184: =SUM(C168:C183) -> 
A188: linie10 | C188: =IF(#REF!="","",HLOOKUP(#REF!,F1:N50,#REF!+3)) -> 
C189: =IF(#REF!="","",HLOOKUP(#REF!,F1:N50,#REF!+3)) -> 
C190: =IF(#REF!="","",HLOOKUP(#REF!,F1:N50,#REF!+3)) -> 
C191: =IF(#REF!="","",HLOOKUP(#REF!,F1:N50,#REF!+3)) -> 
C192: =IF(#REF!="","",HLOOKUP(#REF!,F1:N50,#REF!+3)) -> 
C193: =IF(#REF!="","",HLOOKUP(#REF!,F1:N50,#REF!+3)) -> 
C194: =IF(#REF!="","",HLOOKUP(#REF!,F1:N50,#REF!+3)) -> 
C195: =IF(#REF!="","",HLOOKUP(#REF!,F1:N50,#REF!+3)) -> 
C196: =IF(#REF!="","",HLOOKUP(#REF!,F1:N50,#REF!+3)) -> 
C197: =IF(#REF!="","",HLOOKUP(#REF!,F1:N50,#REF!+3)) -> 
C198: =IF(#REF!="","",HLOOKUP(#REF!,F1:N50,#REF!+3)) -> 
C199: =IF(#REF!="","",HLOOKUP(#REF!,F1:N50,#REF!+3)) -> 
C200: =IF(#REF!="","",HLOOKUP(#REF!,F1:N50,#REF!+3)) -> 
C201: =IF(#REF!="","",HLOOKUP(#REF!,F1:N50,#REF!+3)) -> 
C202: =IF(#REF!="","",HLOOKUP(#REF!,F1:N50,#REF!+3)) -> 
C203: =IF(#REF!="","",HLOOKUP(#REF!,F1:N50,#REF!+3)) -> 
C204: =SUM(C188:C203) -> 
A208: linie11 | C208: =IF(#REF!="","",HLOOKUP(#REF!,F1:N50,#REF!+3)) -> 
C209: =IF(#REF!="","",HLOOKUP(#REF!,F1:N50,#REF!+3)) -> 
C210: =IF(#REF!="","",HLOOKUP(#REF!,F1:N50,#REF!+3)) -> 
C211: =IF(#REF!="","",HLOOKUP(#REF!,F1:N50,#REF!+3)) -> 
C212: =IF(#REF!="","",HLOOKUP(#REF!,F1:N50,#REF!+3)) -> 
C213: =IF(#REF!="","",HLOOKUP(#REF!,F1:N50,#REF!+3)) -> 
C214: =IF(#REF!="","",HLOOKUP(#REF!,F1:N50,#REF!+3)) -> 
C215: =IF(#REF!="","",HLOOKUP(#REF!,F1:N50,#REF!+3)) -> 
C216: =IF(#REF!="","",HLOOKUP(#REF!,F1:N50,#REF!+3)) -> 
C217: =IF(#REF!="","",HLOOKUP(#REF!,F1:N50,#REF!+3)) -> 
C218: =IF(#REF!="","",HLOOKUP(#REF!,F1:N50,#REF!+3)) -> 
C219: =IF(#REF!="","",HLOOKUP(#REF!,F1:N50,#REF!+3)) -> 
C220: =IF(#REF!="","",HLOOKUP(#REF!,F1:N50,#REF!+3)) -> 
C221: =IF(#REF!="","",HLOOKUP(#REF!,F1:N50,#REF!+3)) -> 
C222: =IF(#REF!="","",HLOOKUP(#REF!,F1:N50,#REF!+3)) -> 
C223: =IF(#REF!="","",HLOOKUP(#REF!,F1:N50,#REF!+3)) -> 
C224: =SUM(C208:C223) -> 
... 153 more rows

Sheet Ark3 (hidden)

Sheet Afsnit 20 gr. 3
A2: Afsnit 20 gr. 3 trappe
A4: Trappeprisliste | H4: Tast valgfrie satser fra Pkt. 1-26 i trappeprislisten i hvert sit felt herunder | AA4: 1 | AB4: Støvsugning
B5: Antal | C5: L (m) | D5: B (m) | F5: M² | X5: Pr. Trin/M² | Y5: Total | AA5: 2 | AB5: Svabning og støvsugning
A6: Repose(r) | F6: =C6*D6 -> 0 | X6: =Beregn_trappe!C21 -> 0 | Y6: =F6*X6*B6 -> 0 | AA6: 3 | AB6: Aftagning og afrensning af belægning
A7: Repose(r) | F7: =C7*D7 -> 0 | X7: =Beregn_trappe!C41 -> 0 | Y7: =F7*X7*B7 -> 0 | AA7: 4 | AB7: Aftagning ekstra lag beklædning
A8: Repose(r) | F8: =C8*D8 -> 0 | X8: =Beregn_trappe!C61 -> 0 | Y8: =F8*X8*B8 -> 0 | AA8: 5 | AB8: Aftagning af masonit og afrensning af søm
A9: Repose(r) | F9: =C9*D9 -> 0 | X9: =Beregn_trappe!C81 -> 0 | Y9: =F9*X9*B9 -> 0 | AA9: 6 | AB9: Støvbinding, spartling, slibning og støvsugning
A10: Repose(r) | F10: =C10*D10 -> 0 | X10: =Beregn_trappe!C101 -> 0 | Y10: =F10*X10*B10 -> 0 | AA10: 7 | AB10: Korkment, lægning inkl. klæbning
AA11: 8 | AB11: Maskinsømning af træfiberplader
A12: Trin/Stød | X12: =Beregn_trappe!C121 -> 0 | Y12: =X12*B12 -> 0 | AA12: 9 | AB12: Limning af træfiberplader
A13: Trin/Stød | X13: =Beregn_trappe!C141 -> 0 | Y13: =X13*B13 -> 0 | AA13: 10 | AB13: Linoleum/vinyl/gummi, lægning, klæbning
AA14: 11 | AB14: Tæpper, lægning, klæbning, tæt tilskæring
F15: =SUM(F6:F14) -> 0 | Y15: =SUM(Y6:Y14) -> 0 | AA15: 12 | AB15: Fliser, linoleum/vinyl/gummi, klæbning,
H16: Tillægspriser (Pkt. 27-33) | AA16: 13 | AB16: Tillæg til pkt. 10, for tæt tilskæring
F17: Antal | G17: Pkt. | AA17: 14 | AB17: Montering af lister
G18: 27 | H18: Belægning i dørtrin | X18: =Beregn_trappe!I30 -> 52.9306082 | Y18: =F18*X18 -> 0 | AA18: 15 | AB18: Montering af udv. vaskekant (pr. 7-tal)
G19: 28 | H19: Etagetillæg 1. etage | X19: =X12*0.05 -> 0 | Y19: =IF('Afsnit 20 gr. 3'!F18:F19="","",Y15*0.05) ->  | AA19: 16 | AB19: Montering af trappebånd
G20: 29 | H20: Etagetillæg 2. etage | X20: =X12*0.1 -> 0 | Y20: =IF('Afsnit 20 gr. 3'!F20="","",Y15*0.15) ->  | AA20: 17 | AB20: Afdækning med papir, pap, folie.
G21: 30 | H21: Uafspærret trappe tillæg | X21: =X12*0.35 -> 0 | Y21: =X21*F21 -> 0 | AA21: 18 | AB21: Afdækning med masonit
G22: 31 | H22: Skæve trin tillæg | X22: =X12*0.1535 -> 0 | Y22: =IF('Afsnit 20 gr. 3'!F22="","",Y15*0.35) ->  | AA22: 19 | AB22: Aftagning af forkantskinner
G23: 32 | H23: Ved Kontaktklæbning tillægges | X23: =X12*0.35 -> 0 | Y23: =F23*X23 -> 0 | AA23: 20 | AB23: Indklinkning med maskine t.o.m. 25 mm.
G24: 33 | H24: Klodstrin tillæg | X24: =X12 -> 0 | Y24: =X24*F24*100 -> 0 | AA24: 21 | AB24: Montering af opforingsliste
AA25: 22 | AB25: Montering af forkantskinne, uden falsning
AA26: 23 | AB26: Limning under skinner inden montering
H27: Akkord beregning | Y27: =SUM(Y15:Y25) -> 0 | AA27: 24 | AB27: Metalskinner
H28: Overenskomst tillæg gældende fra 1.marts 2025 | X28: 0 | Y28: =(Y27)*X28 -> 0 | AA28: 25 | AB28: Metalskinner inkl. boring i hårdt gulv
AA29: 26 | AB29: Montering af plastforkant
H30: Total Beregning | Y30: =SUM(Y27:Y29) -> 0 | AA30: 27 | AB30: Belægning i dørtrin, betales med mindst 1 meter pr. meter
AA31: 28 | AB31: Etagetillæg 1. etage
AA32: 29 | AB32: Etagetillæg 2. etage
AA33: 30 | AB33: Tillæg for uafspærret trappe
AA34: 31 | AB34: Tillæg for skæve trin
AA35: 32 | AB35: Ved kontaktklæbning tillægges
AA36: 33 | AB36: Tillæg for klodstrin

Sheet Hvidbog (hidden)

Sheet Ark2 (hidden)
C1: antal
B2: Pkt. | C2: m²/cm/m/stk | D2: Tekst | E2: Pr, m²/m/stk | F2: total
B3: 2 | C3: 9 | D3: =IFERROR(VLOOKUP(B3,'Afsnit 20 gr. 2'!AD14:AE96,2,FALSE),"") ->  | E3: =IF(B3="","",HLOOKUP($C$3,'Ark1'!F1:M50,B3+1)) -> 5.13 | F3: =IFERROR(C3*E3,"") -> 46.17
B4: 7 | C4: 9 | D4: =IFERROR(VLOOKUP(B4,'Afsnit 20 gr. 2'!AD14:AE96,2,FALSE),"") ->  | E4: =IF(B4="","",HLOOKUP($C$4,'Ark1'!F1:M50,B4+1)) -> 19.96 | F4: =IFERROR(C4*E4,"") -> 179.64
B5: 13 | C5: 9 | D5: =IFERROR(VLOOKUP(B5,'Afsnit 20 gr. 2'!AD14:AE96,2,FALSE),"") ->  | E5: =IF(B5="","",HLOOKUP($C$5,'Ark1'!F1:M50,B5+1)) -> 28.97 | F5: 260.73
B6: 14 | C6: 9 | D6: =IFERROR(VLOOKUP(B6,'Afsnit 20 gr. 2'!AD14:AE96,2,FALSE),"") ->  | E6: =IF(B6="","",HLOOKUP($C$6,'Ark1'!E1:M50,B6+1)) -> 3.44 | F6: 30.96
B7: 19 | C7: 9 | D7: =IFERROR(VLOOKUP(B7,'Afsnit 20 gr. 2'!AD14:AE96,2,FALSE),"") ->  | E7: =IF(B7="","",HLOOKUP($C$7,'Ark1'!E1:M50,B7+1)) -> 8.49 | F7: 76.41
B8: 23 | C8: 9 | D8: =IFERROR(VLOOKUP(B8,'Afsnit 20 gr. 2'!AD14:AE96,2,FALSE),"") ->  | E8: =IF(B8="","",HLOOKUP($C$8,'Ark1'!E1:M50,B8+1)) -> 3.77 | F8: 33.93
B9: 15 | C9: 12 | D9: =IFERROR(VLOOKUP(B9,'Afsnit 20 gr. 2'!AD14:AE96,2,FALSE),"") ->  | E9: =IF(B9="","",HLOOKUP($C$9,'Ark1'!E1:M50,B9+1)) -> 50.04 | F9: 600.48
B10: 16 | C10: 4 | D10: =IFERROR(VLOOKUP(B10,'Afsnit 20 gr. 2'!AD14:AE96,2,FALSE),"") ->  | E10: =IF(B10="","",HLOOKUP($C$10,'Ark1'!E1:M50,B10+1)) -> 37.3 | F10: 149.2
B11: 17 | C11: 1 | D11: =IFERROR(VLOOKUP(B11,'Afsnit 20 gr. 2'!AD14:AE96,2,FALSE),"") ->  | E11: =IF(B11="","",HLOOKUP($C$11,'Ark1'!E1:M50,B11+1)) -> 99.55 | F11: 99.55
B12: 18 | C12: 2 | D12: =IFERROR(VLOOKUP(B12,'Afsnit 20 gr. 2'!AD14:AE96,2,FALSE),"") ->  | E12: =IF(B12="","",HLOOKUP($C$12,'Ark1'!E1:M50,B12+1)) -> 49.83 | F12: 99.66
B13: 28 | C13: 5 | D13: =IFERROR(VLOOKUP(B13,'Afsnit 20 gr. 2'!AD14:AE96,2,FALSE),"") ->  | E13: =IF(B13="","",HLOOKUP($C$13,'Ark1'!E1:M50,B13+1)) -> 0.07 | F13: 0.35
B14: 32 | C14: 1 | D14: =IFERROR(VLOOKUP(B14,'Afsnit 20 gr. 2'!AD14:AE96,2,FALSE),"") ->  | E14: =IF(B14="","",HLOOKUP($C$14,'Ark1'!E1:M50,B14+1)) -> 352.87 | F14: 352.87
B15: 33 | C15: 12 | D15: =IFERROR(VLOOKUP(B15,'Afsnit 20 gr. 2'!AD14:AE96,2,FALSE),"") ->  | E15: =IF(B15="","",HLOOKUP($C$15,'Ark1'!E1:M50,B15+1)) -> 7.56 | F15: 90.72
B16: 35 | C16: 1 | D16: =IFERROR(VLOOKUP(B16,'Afsnit 20 gr. 2'!AD14:AE96,2,FALSE),"") ->  | E16: =IF(B16="","",HLOOKUP($C$16,'Ark1'!E1:M50,B16+1)) -> 96.95 | F16: 96.95
B17: 36 | C17: 100 | D17: =IFERROR(VLOOKUP(B17,'Afsnit 20 gr. 2'!AD14:AE96,2,FALSE),"") ->  | E17: =IF(B17="","",HLOOKUP($C$17,'Ark1'!E1:M50,B17+1)) -> 1.04 | F17: 104
B18: 37 | C18: 1 | D18: =IFERROR(VLOOKUP(B18,'Afsnit 20 gr. 2'!AD14:AE96,2,FALSE),"") ->  | E18: =IF(B18="","",HLOOKUP($C$18,'Ark1'!E1:M50,B18+1)) -> 46.39 | F18: 46.39
B19: 29 | C19: 12 | D19: =IFERROR(VLOOKUP(B19,'Afsnit 20 gr. 2'!AD14:AE96,2,FALSE),"") ->  | E19: =IF(B19="","",HLOOKUP($C$19,'Ark1'!E1:M50,B19+1)) -> 7.04 | F19: 84.48
B20: 30 | C20: 12 | D20: =IFERROR(VLOOKUP(B20,'Afsnit 20 gr. 2'!AD14:AE96,2,FALSE),"") ->  | E20: =IF(B20="","",HLOOKUP($C$20,'Ark1'!E1:M50,B20+1)) -> 5.47 | F20: 65.64
B21: 38 | C21: 1 | D21: =IFERROR(VLOOKUP(B21,'Afsnit 20 gr. 2'!AD14:AE96,2,FALSE),"") ->  | E21: =IF(B21="","",HLOOKUP($C$21,'Ark1'!E1:M50,B21+1)) -> 46.39 | F21: 46.39
B22: 39 | C22: 1 | D22: =IFERROR(VLOOKUP(B22,'Afsnit 20 gr. 2'!AD14:AE96,2,FALSE),"") ->  | E22: =IF(B22="","",HLOOKUP($C$22,'Ark1'!E1:M50,B22+1)) -> 22.15 | F22: =IFERROR(C22*E22,"") -> 22.15
D24: Tillæg i %
B27: 42 | C27: 1 | E27: =IF(B3="","",HLOOKUP($C$27,'Ark1'!F1:M50,B27+1)) -> 0.35 | F27: =IFERROR(C27*E27,"") -> 0.35
F36: =SUM(F3:F35) -> 2487.02

Sheet Beregn_trappe (hidden)
A1: Trappe | F1: 0.1 | G1: 2.1 | H1: 6.1 | L1: 0
E2: Pkt. | F2: A | G2: B | H2: C | I2: D | K2: Pkt. | L2: D
F3: U. 2 | G3: 2 til 6 | H3: 6 til 8 | I3: trin/stød | L3: trin/stød
E4: 1 | F4: 3.771244505 | G4: 2.834595543 | H4: 2.501838675 | I4: 2.341622405 | K4: 1 | L4: 2.341622405
E5: 2 | F5: 5.00367735 | G5: 3.758920177 | H5: 3.327568681 | I5: 3.068757784 | K5: 2 | L5: 3.068757784
A6: Linie 1 | C6: =IF('Afsnit 20 gr. 3'!I6="","",HLOOKUP('Afsnit 20 gr. 3'!$F$6,E1:I29,'Afsnit 20 gr. 3'!I6+3)) ->  | E6: 3 | F6: 40.54704059 | G6: 30.42876694 | H6: 26.97795497 | I6: 22.92325091 | K6: 3 | L6: 22.92325091
C7: =IF('Afsnit 20 gr. 3'!J6="","",HLOOKUP('Afsnit 20 gr. 3'!$F$6,E1:I29,'Afsnit 20 gr. 3'!J6+3)) ->  | E7: 4 | F7: 23.85989988 | G7: 17.88260058 | H7: 15.86141071 | I7: 13.47049099 | K7: 4 | L7: 13.47049099
C8: =IF('Afsnit 20 gr. 3'!K6="","",HLOOKUP('Afsnit 20 gr. 3'!$F$6,E1:I29,'Afsnit 20 gr. 3'!K6+3)) ->  | E8: 5 | F8: 65.23267048 | G8: 48.92758394 | H8: 43.38163614 | I8: 36.83741773 | K8: 5 | L8: 36.83741773
C9: =IF('Afsnit 20 gr. 3'!L6="","",HLOOKUP('Afsnit 20 gr. 3'!$F$6,E1:I29,'Afsnit 20 gr. 3'!L6+3)) ->  | E9: 6 | F9: 50.32023305 | G9: 33.15244353 | H9: 29.39352335 | I9: 14.13600473 | K9: 6 | L9: 14.13600473
C10: =IF('Afsnit 20 gr. 3'!M6="","",HLOOKUP('Afsnit 20 gr. 3'!$F$6,E1:I29,'Afsnit 20 gr. 3'!M6+3)) ->  | E10: 7 | F10: 51.40477396 | G10: 32.75806502 | H10: 24.85817048 | I10: 16.05859997 | K10: 7 | L10: 16.05859997
C11: =IF('Afsnit 20 gr. 3'!N6="","",HLOOKUP('Afsnit 20 gr. 3'!$F$6,E1:I29,'Afsnit 20 gr. 3'!N6+3)) ->  | E11: 8 | F11: 85.18575823 | G11: 58.05991132 | H11: 47.28844826 | I11: 14.90011309 | K11: 8 | L11: 14.90011309
C12: =IF('Afsnit 20 gr. 3'!O6="","",HLOOKUP('Afsnit 20 gr. 3'!$F$6,E1:I29,'Afsnit 20 gr. 3'!O6+3)) ->  | E12: 9 | F12: 106.6177654 | G12: 72.55332157 | H12: 59.15677655 | I12: 18.60973596 | K12: 9 | L12: 18.60973596
C13: =IF('Afsnit 20 gr. 3'!P6="","",HLOOKUP('Afsnit 20 gr. 3'!$F$6,E1:I29,'Afsnit 20 gr. 3'!P6+3)) ->  | E13: 10 | F13: 78.06229639 | G13: 52.74812576 | H13: 42.56823046 | I13: 26.8177387 | K13: 10 | L13: 26.8177387
C14: =IF('Afsnit 20 gr. 3'!Q6="","",HLOOKUP('Afsnit 20 gr. 3'!$F$6,E1:I29,'Afsnit 20 gr. 3'!Q6+3)) ->  | E14: 11 | F14: 78.06229639 | G14: 52.74812576 | H14: 42.56823046 | I14: 26.8177387 | K14: 11 | L14: 26.8177387
C15: =IF('Afsnit 20 gr. 3'!R6="","",HLOOKUP('Afsnit 20 gr. 3'!$F$6,E1:I29,'Afsnit 20 gr. 3'!R6+3)) ->  | E15: 12 | F15: 98.15095176 | G15: 66.94575213 | H15: 53.79569368 | I15: 31.72282143 | K15: 12 | L15: 31.72282143
C16: =IF('Afsnit 20 gr. 3'!S6="","",HLOOKUP('Afsnit 20 gr. 3'!$F$6,E1:I29,'Afsnit 20 gr. 3'!S6+3)) ->  | E16: 13 | F16: 9.13232738 | G16: 7.949191849 | H16: 6.975569902 | I16: 12.29967979 | K16: 13 | L16: 12.29967979
C17: =IF('Afsnit 20 gr. 3'!T6="","",HLOOKUP('Afsnit 20 gr. 3'!$F$6,E1:I29,'Afsnit 20 gr. 3'!T6+3)) ->  | E17: 14 | F17: 51.99634172 | G17: 30.94638873 | H17: 20.55697985 | I17: 36.997634 | K17: 14 | L17: 36.997634
C18: =IF('Afsnit 20 gr. 3'!U6="","",HLOOKUP('Afsnit 20 gr. 3'!$F$6,E1:I29,'Afsnit 20 gr. 3'!U6+3)) ->  | E18: 15 | F18: 88.8953811 | G18: 44.47850137 | H18: 25.37579227 | I18: 71.32088873 | K18: 15 | L18: 71.32088873
C19: =IF('Afsnit 20 gr. 3'!V6="","",HLOOKUP('Afsnit 20 gr. 3'!$F$6,E1:I29,'Afsnit 20 gr. 3'!V6+3)) ->  | E19: 16 | F19: 61.07937179 | G19: 34.87784951 | H19: 22.51654807 | I19: 47.02963736 | K19: 16 | L19: 47.02963736
C20: =IF('Afsnit 20 gr. 3'!W6="","",HLOOKUP('Afsnit 20 gr. 3'!$F$6,E1:I29,'Afsnit 20 gr. 3'!W6+3)) ->  | E20: 17 | F20: 4.84346108 | G20: 3.635676892 | H20: 3.228974053 | I20: 2.736000915 | K20: 17 | L20: 2.736000915
C21: =SUM(C6:C20) -> 0 | E21: 18 | F21: 24.02011615 | G21: 18.03049252 | H21: 15.984654 | I21: 13.58140995 | K21: 18 | L21: 13.58140995
E22: 19 | F22: 9.415786934 | G22: 9.415786934 | H22: 9.415786934 | I22: 9.415786934 | K22: 19 | L22: 9.415786934
E23: 20 | F23: 65.25731913 | G23: 65.25731913 | H23: 65.25731913 | I23: 65.25731913 | K23: 20 | L23: 65.25731913
E24: 21 | F24: 7.949191849 | G24: 7.949191849 | H24: 7.949191849 | I24: 7.949191849 | K24: 21 | L24: 7.949191849
E25: 22 | F25: 20.64325015 | G25: 20.64325015 | H25: 20.64325015 | I25: 20.64325015 | K25: 22 | L25: 20.64325015
A26: Linie 2 | C26: =IF('Afsnit 20 gr. 3'!I7="","",HLOOKUP('Afsnit 20 gr. 3'!$F$7,E1:I29,'Afsnit 20 gr. 3'!I7+3)) ->  | E26: 23 | F26: 5.00367735 | G26: 5.00367735 | H26: 5.00367735 | I26: 5.00367735 | K26: 23 | L26: 5.00367735
C27: =IF('Afsnit 20 gr. 3'!J7="","",HLOOKUP('Afsnit 20 gr. 3'!$F$7,E1:I29,'Afsnit 20 gr. 3'!J7+3)) ->  | E27: 24 | F27: 30.99568605 | G27: 30.99568605 | H27: 30.99568605 | I27: 30.99568605 | K27: 23 | L27: 30.99568605
C28: =IF('Afsnit 20 gr. 3'!K7="","",HLOOKUP('Afsnit 20 gr. 3'!$F$7,E1:I21,'Afsnit 20 gr. 3'!K7+3)) ->  | E28: 25 | F28: 41.84109508 | G28: 41.84109508 | H28: 41.84109508 | I28: 41.84109508 | K28: 24 | L28: 41.84109508
C29: =IF('Afsnit 20 gr. 3'!L7="","",HLOOKUP('Afsnit 20 gr. 3'!$F$7,E1:I29,'Afsnit 20 gr. 3'!L7+3)) ->  | E29: 26 | F29: 20.64325015 | G29: 20.64325015 | H29: 20.64325015 | I29: 20.64325015 | K29: 25 | L29: 20.64325015
C30: =IF('Afsnit 20 gr. 3'!M7="","",HLOOKUP('Afsnit 20 gr. 3'!$F$7,E1:I29,'Afsnit 20 gr. 3'!M7+3)) ->  | F30: 52.9306082 | G30: 52.9306082 | H30: 52.9306082 | I30: 52.9306082 | L30: 52.9306082
C31: =IF('Afsnit 20 gr. 3'!N7="","",HLOOKUP('Afsnit 20 gr. 3'!$F$7,E1:I29,'Afsnit 20 gr. 3'!N7+3)) ->  | F31: 0.1 | G31: 0.1 | H31: 0.1 | I31: 0.1 | L31: 0.1
C32: =IF('Afsnit 20 gr. 3'!O7="","",HLOOKUP('Afsnit 20 gr. 3'!$F$7,E1:I29,'Afsnit 20 gr. 3'!O7+3)) ->  | F32: 0.05 | G32: 0.05 | H32: 0.05 | I32: 0.05 | L32: 0.05
C33: =IF('Afsnit 20 gr. 3'!P7="","",HLOOKUP('Afsnit 20 gr. 3'!$F$7,E1:I29,'Afsnit 20 gr. 3'!P7+3)) ->  | F33: 0.15 | G33: 0.15 | H33: 0.15 | I33: 0.15 | L33: 0.15
C34: =IF('Afsnit 20 gr. 3'!Q7="","",HLOOKUP('Afsnit 20 gr. 3'!$F$76,E2:I29,'Afsnit 20 gr. 3'!Q7+3)) ->  | F34: 0.3 | G34: 0.3 | H34: 0.3 | I34: 0.3 | L34: 0.3
C35: =IF('Afsnit 20 gr. 3'!R7="","",HLOOKUP('Afsnit 20 gr. 3'!$F$7,E1:I29,'Afsnit 20 gr. 3'!R7+3)) ->  | F35: 0.35 | G35: 0.35 | H35: 0.35 | I35: 0.35 | L35: 0.35
C36: =IF('Afsnit 20 gr. 3'!S7="","",HLOOKUP('Afsnit 20 gr. 3'!$F$7,E1:I29,'Afsnit 20 gr. 3'!S7+3)) ->  | F36: 1 | G36: 1 | H36: 1 | I36: 1 | L36: 1
C37: =IF('Afsnit 20 gr. 3'!T7="","",HLOOKUP('Afsnit 20 gr. 3'!$F$7,E1:I29,'Afsnit 20 gr. 3'!T7+3)) -> 
C38: =IF('Afsnit 20 gr. 3'!U7="","",HLOOKUP('Afsnit 20 gr. 3'!$F$7,E1:I29,'Afsnit 20 gr. 3'!U7+3)) -> 
C39: =IF('Afsnit 20 gr. 3'!V7="","",HLOOKUP('Afsnit 20 gr. 3'!$F$7,E1:I29,'Afsnit 20 gr. 3'!V7+3)) -> 
C40: =IF('Afsnit 20 gr. 3'!W7="","",HLOOKUP('Afsnit 20 gr. 3'!$F$7,E1:I21,'Afsnit 20 gr. 3'!W7+3)) -> 
C41: =SUM(C26:C40) -> 0
A46: Linie 3 | C46: =IF('Afsnit 20 gr. 3'!I8="","",HLOOKUP('Afsnit 20 gr. 3'!$F$8,E1:I29,'Afsnit 20 gr. 3'!I8+3)) -> 
C47: =IF('Afsnit 20 gr. 3'!J8="","",HLOOKUP('Afsnit 20 gr. 3'!$F$8,E1:I29,'Afsnit 20 gr. 3'!J8+3)) -> 
C48: =IF('Afsnit 20 gr. 3'!K8="","",HLOOKUP('Afsnit 20 gr. 3'!$F$8,E1:I29,'Afsnit 20 gr. 3'!K8+3)) -> 
C49: =IF('Afsnit 20 gr. 3'!L8="","",HLOOKUP('Afsnit 20 gr. 3'!$F$8,E1:I29,'Afsnit 20 gr. 3'!L8+3)) -> 
C50: =IF('Afsnit 20 gr. 3'!M8="","",HLOOKUP('Afsnit 20 gr. 3'!$F$8,E1:I29,'Afsnit 20 gr. 3'!M8+3)) -> 
C51: =IF('Afsnit 20 gr. 3'!N8="","",HLOOKUP('Afsnit 20 gr. 3'!$F$8,E1:I29,'Afsnit 20 gr. 3'!N8+3)) -> 
C52: =IF('Afsnit 20 gr. 3'!O8="","",HLOOKUP('Afsnit 20 gr. 3'!$F$8,E1:I29,'Afsnit 20 gr. 3'!O8+3)) -> 
C53: =IF('Afsnit 20 gr. 3'!P8="","",HLOOKUP('Afsnit 20 gr. 3'!$F$8,E1:I29,'Afsnit 20 gr. 3'!P8+3)) -> 
C54: =IF('Afsnit 20 gr. 3'!Q8="","",HLOOKUP('Afsnit 20 gr. 3'!$F$8,E2:I29,'Afsnit 20 gr. 3'!Q8+3)) -> 
C55: =IF('Afsnit 20 gr. 3'!R8="","",HLOOKUP('Afsnit 20 gr. 3'!$F$8,E1:I29,'Afsnit 20 gr. 3'!R8+3)) -> 
C56: =IF('Afsnit 20 gr. 3'!S8="","",HLOOKUP('Afsnit 20 gr. 3'!$F$8,E1:I29,'Afsnit 20 gr. 3'!S8+3)) -> 
C57: =IF('Afsnit 20 gr. 3'!T8="","",HLOOKUP('Afsnit 20 gr. 3'!$F$8,E1:I29,'Afsnit 20 gr. 3'!T8+3)) -> 
C58: =IF('Afsnit 20 gr. 3'!U8="","",HLOOKUP('Afsnit 20 gr. 3'!$F$8,E1:I29,'Afsnit 20 gr. 3'!U8+3)) -> 
C59: =IF('Afsnit 20 gr. 3'!V8="","",HLOOKUP('Afsnit 20 gr. 3'!$F$8,E1:I29,'Afsnit 20 gr. 3'!V8+3)) -> 
C60: =IF('Afsnit 20 gr. 3'!W8="","",HLOOKUP('Afsnit 20 gr. 3'!$F$8,E1:I29,'Afsnit 20 gr. 3'!W8+3)) -> 
C61: =SUM(C46:C60) -> 0
A66: Linie 4 | C66: =IF('Afsnit 20 gr. 3'!I9="","",HLOOKUP('Afsnit 20 gr. 3'!$F$9,E1:I29,'Afsnit 20 gr. 3'!I9+3)) -> 
C67: =IF('Afsnit 20 gr. 3'!J9="","",HLOOKUP('Afsnit 20 gr. 3'!$F$9,E1:I29,'Afsnit 20 gr. 3'!J9+3)) -> 
C68: =IF('Afsnit 20 gr. 3'!K9="","",HLOOKUP('Afsnit 20 gr. 3'!$F$9,E1:I29,'Afsnit 20 gr. 3'!K9+3)) -> 
C69: =IF('Afsnit 20 gr. 3'!L9="","",HLOOKUP('Afsnit 20 gr. 3'!$F$9,E1:I29,'Afsnit 20 gr. 3'!L9+3)) -> 
C70: =IF('Afsnit 20 gr. 3'!M9="","",HLOOKUP('Afsnit 20 gr. 3'!$F$9,E1:I29,'Afsnit 20 gr. 3'!M9+3)) -> 
C71: =IF('Afsnit 20 gr. 3'!N9="","",HLOOKUP('Afsnit 20 gr. 3'!$F$9,E1:I29,'Afsnit 20 gr. 3'!N9+3)) -> 
C72: =IF('Afsnit 20 gr. 3'!O9="","",HLOOKUP('Afsnit 20 gr. 3'!$F$9,E1:I29,'Afsnit 20 gr. 3'!O9+3)) -> 
C73: =IF('Afsnit 20 gr. 3'!P9="","",HLOOKUP('Afsnit 20 gr. 3'!$F$9,E1:I29,'Afsnit 20 gr. 3'!P9+3)) -> 
C74: =IF('Afsnit 20 gr. 3'!Q9="","",HLOOKUP('Afsnit 20 gr. 3'!$F$9,E1:I29,'Afsnit 20 gr. 3'!Q9+3)) -> 
C75: =IF('Afsnit 20 gr. 3'!R9="","",HLOOKUP('Afsnit 20 gr. 3'!$F$9,E1:I29,'Afsnit 20 gr. 3'!R9+3)) -> 
C76: =IF('Afsnit 20 gr. 3'!S9="","",HLOOKUP('Afsnit 20 gr. 3'!$F$9,E1:I29,'Afsnit 20 gr. 3'!S9+3)) -> 
C77: =IF('Afsnit 20 gr. 3'!T9="","",HLOOKUP('Afsnit 20 gr. 3'!$F$9,E1:I29,'Afsnit 20 gr. 3'!T9+3)) -> 
C78: =IF('Afsnit 20 gr. 3'!U9="","",HLOOKUP('Afsnit 20 gr. 3'!$F$9,E1:I29,'Afsnit 20 gr. 3'!U9+3)) -> 
C79: =IF('Afsnit 20 gr. 3'!V9="","",HLOOKUP('Afsnit 20 gr. 3'!$F$9,E1:I29,'Afsnit 20 gr. 3'!V9+3)) -> 
C80: =IF('Afsnit 20 gr. 3'!W9="","",HLOOKUP('Afsnit 20 gr. 3'!$F$9,E1:I21,'Afsnit 20 gr. 3'!W9+3)) -> 
C81: =SUM(C66:C80) -> 0
A86: Linie 5 | C86: =IF('Afsnit 20 gr. 3'!I10="","",HLOOKUP('Afsnit 20 gr. 3'!$F$10,E1:I29,'Afsnit 20 gr. 3'!I10+3)) -> 
C87: =IF('Afsnit 20 gr. 3'!J10="","",HLOOKUP('Afsnit 20 gr. 3'!$F$10,E1:I29,'Afsnit 20 gr. 3'!J10+3)) -> 
C88: =IF('Afsnit 20 gr. 3'!K10="","",HLOOKUP('Afsnit 20 gr. 3'!$F$10,E1:I29,'Afsnit 20 gr. 3'!K10+3)) -> 
C89: =IF('Afsnit 20 gr. 3'!L10="","",HLOOKUP('Afsnit 20 gr. 3'!$F$10,E1:I29,'Afsnit 20 gr. 3'!L10+3)) -> 
C90: =IF('Afsnit 20 gr. 3'!M10="","",HLOOKUP('Afsnit 20 gr. 3'!$F$10,E1:I29,'Afsnit 20 gr. 3'!M10+3)) -> 
C91: =IF('Afsnit 20 gr. 3'!N10="","",HLOOKUP('Afsnit 20 gr. 3'!$F$10,E1:I29,'Afsnit 20 gr. 3'!N10+3)) -> 
C92: =IF('Afsnit 20 gr. 3'!O10="","",HLOOKUP('Afsnit 20 gr. 3'!$F$10,E1:I29,'Afsnit 20 gr. 3'!O10+3)) -> 
C93: =IF('Afsnit 20 gr. 3'!P10="","",HLOOKUP('Afsnit 20 gr. 3'!$F$10,E1:I29,'Afsnit 20 gr. 3'!P10+3)) -> 
C94: =IF('Afsnit 20 gr. 3'!Q10="","",HLOOKUP('Afsnit 20 gr. 3'!$F$10,E1:I29,'Afsnit 20 gr. 3'!Q10+3)) -> 
C95: =IF('Afsnit 20 gr. 3'!R10="","",HLOOKUP('Afsnit 20 gr. 3'!$F$10,E1:I29,'Afsnit 20 gr. 3'!R10+3)) -> 
C96: =IF('Afsnit 20 gr. 3'!S10="","",HLOOKUP('Afsnit 20 gr. 3'!$F$10,E1:I29,'Afsnit 20 gr. 3'!S10+3)) -> 
C97: =IF('Afsnit 20 gr. 3'!T10="","",HLOOKUP('Afsnit 20 gr. 3'!$F$10,E1:I29,'Afsnit 20 gr. 3'!T10+3)) -> 
C98: =IF('Afsnit 20 gr. 3'!U10="","",HLOOKUP('Afsnit 20 gr. 3'!$F$10,E1:I29,'Afsnit 20 gr. 3'!U10+3)) -> 
C99: =IF('Afsnit 20 gr. 3'!V10="","",HLOOKUP('Afsnit 20 gr. 3'!$F$10,E1:I29,'Afsnit 20 gr. 3'!V10+3)) -> 
C100: =IF('Afsnit 20 gr. 3'!W10="","",HLOOKUP('Afsnit 20 gr. 3'!$F$10,E1:I29,'Afsnit 20 gr. 3'!W10+3)) -> 
C101: =SUM(C86:C100) -> 0
A106: Linie 7 | C106: =IF('Afsnit 20 gr. 3'!I12="","",HLOOKUP('Afsnit 20 gr. 3'!$F$12,K1:L29,'Afsnit 20 gr. 3'!I12+3)) -> 
C107: =IF('Afsnit 20 gr. 3'!J12="","",HLOOKUP('Afsnit 20 gr. 3'!$F$12,K1:L29,'Afsnit 20 gr. 3'!J12+3)) -> 
C108: =IF('Afsnit 20 gr. 3'!K12="","",HLOOKUP('Afsnit 20 gr. 3'!$F$12,K1:L29,'Afsnit 20 gr. 3'!K12+3)) -> 
C109: =IF('Afsnit 20 gr. 3'!L12="","",HLOOKUP('Afsnit 20 gr. 3'!$F$12,K1:L29,'Afsnit 20 gr. 3'!L12+3)) -> 
C110: =IF('Afsnit 20 gr. 3'!M12="","",HLOOKUP('Afsnit 20 gr. 3'!$F$12,K1:L29,'Afsnit 20 gr. 3'!M12+3)) -> 
C111: =IF('Afsnit 20 gr. 3'!N12="","",HLOOKUP('Afsnit 20 gr. 3'!$F$12,K1:L29,'Afsnit 20 gr. 3'!N12+3)) -> 
C112: =IF('Afsnit 20 gr. 3'!O12="","",HLOOKUP('Afsnit 20 gr. 3'!$F$12,K1:L29,'Afsnit 20 gr. 3'!O12+3)) -> 
C113: =IF('Afsnit 20 gr. 3'!P12="","",HLOOKUP('Afsnit 20 gr. 3'!$F$12,K1:L29,'Afsnit 20 gr. 3'!P12+3)) -> 
C114: =IF('Afsnit 20 gr. 3'!Q12="","",HLOOKUP('Afsnit 20 gr. 3'!$F$12,K1:L29,'Afsnit 20 gr. 3'!Q12+3)) -> 
C115: =IF('Afsnit 20 gr. 3'!R12="","",HLOOKUP('Afsnit 20 gr. 3'!$F$12,K1:L29,'Afsnit 20 gr. 3'!R12+3)) -> 
C116: =IF('Afsnit 20 gr. 3'!S12="","",HLOOKUP('Afsnit 20 gr. 3'!$F$12,K1:L29,'Afsnit 20 gr. 3'!S12+3)) -> 
C117: =IF('Afsnit 20 gr. 3'!T12="","",HLOOKUP('Afsnit 20 gr. 3'!$F$12,K1:L29,'Afsnit 20 gr. 3'!T12+3)) -> 
C118: =IF('Afsnit 20 gr. 3'!U12="","",HLOOKUP('Afsnit 20 gr. 3'!$F$12,K1:L29,'Afsnit 20 gr. 3'!U12+3)) -> 
C119: =IF('Afsnit 20 gr. 3'!V12="","",HLOOKUP('Afsnit 20 gr. 3'!$F$12,K1:L29,'Afsnit 20 gr. 3'!V12+3)) -> 
C120: =IF('Afsnit 20 gr. 3'!W12="","",HLOOKUP('Afsnit 20 gr. 3'!$F$12,K1:L29,'Afsnit 20 gr. 3'!W12+3)) -> 
C121: =SUM(C106:C120) -> 0
A126: Linie 8 | C126: =IF('Afsnit 20 gr. 3'!I13="","",HLOOKUP('Afsnit 20 gr. 3'!$F$13,K1:L29,'Afsnit 20 gr. 3'!I13+3)) -> 
C127: =IF('Afsnit 20 gr. 3'!J13="","",HLOOKUP('Afsnit 20 gr. 3'!$F$13,K1:L29,'Afsnit 20 gr. 3'!J13+3)) -> 
C128: =IF('Afsnit 20 gr. 3'!K13="","",HLOOKUP('Afsnit 20 gr. 3'!$F$13,K1:L29,'Afsnit 20 gr. 3'!K13+3)) -> 
C129: =IF('Afsnit 20 gr. 3'!L13="","",HLOOKUP('Afsnit 20 gr. 3'!$F$13,K1:L29,'Afsnit 20 gr. 3'!L13+3)) -> 
C130: =IF('Afsnit 20 gr. 3'!M13="","",HLOOKUP('Afsnit 20 gr. 3'!$F$13,K1:L29,'Afsnit 20 gr. 3'!M13+3)) -> 
C131: =IF('Afsnit 20 gr. 3'!N13="","",HLOOKUP('Afsnit 20 gr. 3'!$F$13,K1:L29,'Afsnit 20 gr. 3'!N13+3)) -> 
C132: =IF('Afsnit 20 gr. 3'!O13="","",HLOOKUP('Afsnit 20 gr. 3'!$F$13,K1:L29,'Afsnit 20 gr. 3'!O13+3)) -> 
C133: =IF('Afsnit 20 gr. 3'!P13="","",HLOOKUP('Afsnit 20 gr. 3'!$F$13,K1:L29,'Afsnit 20 gr. 3'!P13+3)) -> 
C134: =IF('Afsnit 20 gr. 3'!Q13="","",HLOOKUP('Afsnit 20 gr. 3'!$F$13,K1:L29,'Afsnit 20 gr. 3'!Q13+3)) -> 
C135: =IF('Afsnit 20 gr. 3'!R13="","",HLOOKUP('Afsnit 20 gr. 3'!$F$13,K1:L29,'Afsnit 20 gr. 3'!R13+3)) -> 
C136: =IF('Afsnit 20 gr. 3'!S13="","",HLOOKUP('Afsnit 20 gr. 3'!$F$13,K1:L29,'Afsnit 20 gr. 3'!S13+3)) -> 
C137: =IF('Afsnit 20 gr. 3'!T13="","",HLOOKUP('Afsnit 20 gr. 3'!$F$13,K1:L29,'Afsnit 20 gr. 3'!T13+3)) -> 
C138: =IF('Afsnit 20 gr. 3'!U13="","",HLOOKUP('Afsnit 20 gr. 3'!$F$13,K1:L29,'Afsnit 20 gr. 3'!U13+3)) -> 
C139: =IF('Afsnit 20 gr. 3'!V13="","",HLOOKUP('Afsnit 20 gr. 3'!$F$13,K1:L29,'Afsnit 20 gr. 3'!V13+3)) -> 
C140: =IF('Afsnit 20 gr. 3'!W13="","",HLOOKUP('Afsnit 20 gr. 3'!$F$13,K1:L29,'Afsnit 20 gr. 3'!W13+3)) -> 
C141: =SUM(C126:C140) -> 0
A146: Linie 9 | C146: =IF('Afsnit 20 gr. 3'!I14="","",HLOOKUP('Afsnit 20 gr. 3'!$F$14,K1:L29,'Afsnit 20 gr. 3'!I14+3)) -> 
C147: =IF('Afsnit 20 gr. 3'!J14="","",HLOOKUP('Afsnit 20 gr. 3'!$F$14,K1:L29,'Afsnit 20 gr. 3'!J14+3)) -> 
C148: =IF('Afsnit 20 gr. 3'!K14="","",HLOOKUP('Afsnit 20 gr. 3'!$F$14,K1:L29,'Afsnit 20 gr. 3'!K14+3)) -> 
C149: =IF('Afsnit 20 gr. 3'!L14="","",HLOOKUP('Afsnit 20 gr. 3'!$F$14,K1:L29,'Afsnit 20 gr. 3'!L14+3)) -> 
C150: =IF('Afsnit 20 gr. 3'!M14="","",HLOOKUP('Afsnit 20 gr. 3'!$F$14,K1:L29,'Afsnit 20 gr. 3'!M14+3)) -> 
C151: =IF('Afsnit 20 gr. 3'!N14="","",HLOOKUP('Afsnit 20 gr. 3'!$F$14,K1:L29,'Afsnit 20 gr. 3'!N14+3)) -> 
C152: =IF('Afsnit 20 gr. 3'!O14="","",HLOOKUP('Afsnit 20 gr. 3'!$F$14,K1:L29,'Afsnit 20 gr. 3'!O14+3)) -> 
C153: =IF('Afsnit 20 gr. 3'!P14="","",HLOOKUP('Afsnit 20 gr. 3'!$F$14,K1:L29,'Afsnit 20 gr. 3'!P14+3)) -> 
C154: =IF('Afsnit 20 gr. 3'!Q14="","",HLOOKUP('Afsnit 20 gr. 3'!$F$14,K1:L29,'Afsnit 20 gr. 3'!Q14+3)) -> 
C155: =IF('Afsnit 20 gr. 3'!R14="","",HLOOKUP('Afsnit 20 gr. 3'!$F$14,K1:L29,'Afsnit 20 gr. 3'!R14+3)) -> 
C156: =IF('Afsnit 20 gr. 3'!S14="","",HLOOKUP('Afsnit 20 gr. 3'!$F$14,K1:L29,'Afsnit 20 gr. 3'!S14+3)) -> 
C157: =IF('Afsnit 20 gr. 3'!T14="","",HLOOKUP('Afsnit 20 gr. 3'!$F$14,K1:L29,'Afsnit 20 gr. 3'!T14+3)) -> 
C158: =IF('Afsnit 20 gr. 3'!U14="","",HLOOKUP('Afsnit 20 gr. 3'!$F$14,K1:L29,'Afsnit 20 gr. 3'!U14+3)) -> 
C159: =IF('Afsnit 20 gr. 3'!V14="","",HLOOKUP('Afsnit 20 gr. 3'!$F$14,K1:L29,'Afsnit 20 gr. 3'!V14+3)) -> 
C160: =IF('Afsnit 20 gr. 3'!W14="","",HLOOKUP('Afsnit 20 gr. 3'!$F$14,K1:L29,'Afsnit 20 gr. 3'!W14+3)) -> 
C161: =SUM(C146:C160) -> 0

Sheet Skurbog
A1: Sag nr:
A2: Adresse
A3: Projektleder | J3: Dato og underskrift for modtagelse
A5: Dato: | B5: Timelønsspecifikation: (kun en linje pr. dag) | L5: Akk. timer | M5: T. timer
A6: =A30 -> 00:00:00 | L6: =SUM(B30,D30,F30,H30) -> 0 | M6: =SUM(C30,K30,M30,E30,G30,I30) -> 0
A7: 00:00:00 | L7: =SUM(B31,D31,F31,H31) -> 0 | M7: =SUM(C31,K31,M31,E31,G31,I31) -> 0
A8: 00:00:00 | L8: =SUM(B32,D32,F32,H32) -> 0 | M8: 0
A9: 00:00:00 | L9: 0 | M9: 0
A10: 00:00:00 | L10: 0 | M10: 0
A11: 00:00:00 | L11: 0 | M11: 0
A12: 00:00:00 | L12: 0 | M12: 0
A13: 00:00:00 | L13: 0 | M13: 0
A14: 00:00:00 | L14: 0 | M14: 0
A15: =A39 -> 00:00:00 | L15: 0 | M15: 0
A16: 00:00:00 | L16: 0 | M16: 0
A17: 00:00:00 | L17: 0 | M17: 0
A18: 00:00:00 | L18: 0 | M18: 0
A19: 00:00:00 | L19: 0 | M19: 0
A20: 00:00:00 | L20: 0 | M20: 0
A21: 00:00:00 | L21: 0 | M21: 0
A22: 00:00:00 | L22: 0 | M22: 0
A23: 00:00:00 | L23: 0 | M23: 0
A24: 00:00:00 | L24: 0 | M24: 0
A25: 00:00:00 | L25: 0 | M25: 0
L26: =SUM(L6:L25) -> 0 | M26: =SUM(M6:M25) -> 0
A27: Startdato: | B27: Erstat selv "montør #" med navn på deltagere i akkord
B28: Montør 1 | D28: Montør 2 | F28: Montør 3 | H28: Montør 4 | J28: Lærling 1 | L28: Lærling 2
A29: Dato: | B29: Akkord | C29: Timeløn | D29: Akkord | E29: Timeløn | F29: Akkord | G29: Timeløn | H29: Akkord | I29: Timeløn | J29: Akkord | K29: Timeløn | L29: Akkord | M29: Timeløn
A50: total | B50: =SUM(B30:B49) -> 0 | C50: 0 | D50: 0 | E50: 0 | F50: 0 | G50: 0 | H50: =SUM(H30:H49) -> 0 | I50: =SUM(I30:I49) -> 0 | J50: 0 | K50: 0 | L50: 0 | M50: 0
B51: =SUM(B50,D50,F50,H50,J50,L50) -> 0 | D51: Fra "vådrums" listen: (husk at printe beregning separat) | M51: ='Gl. forenklet vådrum'!X31 -> 0
B52: =SUM(M51,M52,M53,M54,M55,M56,M57) -> 0 | D52: Fra "Afsnit 20 gr. 1 "Forenklet" listen: (husk at printe beregning separat) | M52: ='Afsnit 20 gr. 1'!Z41 -> 0
D53: Fra "Afsnit 20 gr. 2 "Vådrum" (husk at printe beregning separat) | M53: ='Afsnit 20 gr. 2'!AB84 -> 0
D54: Fra Afsnit 20 gr. 3, "Trappe" listen: (husk at printe beregning separat) | M54: ='Afsnit 20 gr. 3'!Y30 -> 0
D55: Beløb fra andre bilagsark Husk at vedlægge beregning (Tast selv beløb) | M55: =L55 -> 0
D56: Beløb fra andre bilagsark Husk at vedlægge beregning (Tast selv beløb) | M56: =L56 -> 0
D57: Beløb fra andre bilagsark Husk at vedlægge beregning (Tast selv beløb) | M57: =L57 -> 0
D58: Akkorderings sats for ikke prissat arbejde, pr. time | H58: Akkordering sats | M58: =SUM(C50,E50,G50,I50,K50,M50)*K58 -> 0
C59: =J28 -> Lærling 1 | D59: Fratræk lærling deltagelse i akkord | H59: Tast lærlingesatsen | M59: =SUM(J50,K50)*L59 -> 0
C60: =J28 -> Lærling 1 | D60: Fratræk evt. Bonus til lærling fra Akkord | H60: Tast bonus pr. time | M60: =L60*(J50+K50) -> 0
C62: =L28 -> Lærling 2 | D62: Fratræk lærling deltagelse i akkord | H62: Tast lærlingesatsen | M62: =SUM(L50,M50)*L62 -> 0
C63: =L28 -> Lærling 2 | D63: Fratræk evt. Bonus til lærling fra Akkord | H63: Tast bonus pr. time | M63: =L63*(L50+M50) -> 0
I65: Total akkord: | M65: =SUM(M51:M58)-SUM(M59:M64) -> 0
B67: Fordeling af akkordsum:
A68: Montør: | D68: Akk. forskud: | F68: Overskud: | G68: Total akkord | I68: aconto | L68: Til Udbetaling
D69: Timer: | E69: Beløb: | F69: Beløb: | G69: Beløb: | I69: Udbet.
A70: =B28 -> Montør 1 | D70: =B50+C50 -> 0 | E70: =SUM(B50,C50)*K58 -> 0 | F70: =D81*(D70)-(E70) ->  | G70: =D81*(D70) ->  | L70: =IFERROR(G70-I70,0) -> 0
A71: =D28 -> Montør 2 | D71: =D50+E50 -> 0 | E71: =SUM(D50,E50)*K58 -> 0 | F71: =D81*(D71)-(E71) ->  | G71: =D81*(B71+D71) ->  | L71: =IFERROR(G71-I71,0) -> 0
A72: =F28 -> Montør 3 | D72: =F50+G50 -> 0 | E72: =SUM(F50,G50)*K58 -> 0 | F72: =D81*(D72)-(E72) ->  | G72: =D81*(B72+D72) ->  | L72: 0
A73: =H28 -> Montør 4 | D73: =H50+I50 -> 0 | E73: =SUM(H50,I50)*K58 -> 0 | F73: =D81*(D73)-(E73) ->  | G73: =D81*(B73+D73) ->  | L73: 0
A74: Lærling: | F74: Bonus
A75: =J28 -> Lærling 1 | D75: =J50+K50 -> 0 | E75: =L59*J50 -> 0 | F75: =M60 -> 0 | G75: =C75+E75+F75 -> 0 | L75: =IFERROR(G75-I75,0) -> 0
A76: =L28 -> Lærling 2 | D76: =L50+M50 -> 0 | E76: =L62*L50 -> 0 | F76: =M63 -> 0 | G76: =C76+E76+F76 -> 0 | L76: 0
A78: Til Akkordholderens orientering:
A79: Gns. Akk (Før lærlingetræk) | D79: =SUM(M51:M58)/SUM(B50,C50,E50,G50,I50,D50,F50,H50) -> 
A81: Gns. Akk. inkl. Timeløn efter lærlingetræk | D81: =(M65)/SUM(B50:I50) -> 
A82: Akk. Timer | B82: =SUM(B50,D50,F50,H50,J50,L50) -> 0
A83: Timelønstimer | B83: =SUM(C50,E50,G50,I50,K50,M50) -> 0

Sheet Montør 1
J1: ARBEJDSSEDDEL
J2: NR. | K2: =Skurbog!C1 -> 0
B4: Arbejdssted: | C4: =Skurbog!C2 -> 0 | I4: Udføres:
B7: Kontaktperson: | F7: Tlf:
B8: Fakturaadr:
I9: Udstedt dato: | K9: =TODAY() -> 2025-07-14
B11: Att: | F11: Mærke/Rekv. | I11: Sagsansvarlig | K11: =Skurbog!C3 -> 0
B12: Udleveret | C12: Enhed | D12: Art | F12: Retur | G12: Brugt | H12: Arbejdets beskrivelse:
D13: Primer
D17: Spartelmasse
D22: Underlag
D27: Lim
D32: Lister
D37: Vinylprofiler
D42: Belægning
H46: Affald | K46: Stribber
H47: Bortkørsel | K47: Special
B49: Dato | C49: Montør | D49: Løn nr. | E49: Akkord | F49: Timeløn | G49: sats | H49: Overtid | I49: Km | J49: bemærkning.
B50: =Skurbog!A30 -> 00:00:00 | C50: =Skurbog!A70 -> Montør 1 | E50: =Skurbog!B30 -> 0 | F50: =Skurbog!C30 -> 0
B51: =Skurbog!A31 -> 00:00:00 | E51: =Skurbog!B31 -> 0 | F51: =Skurbog!C31 -> 0
B52: =Skurbog!A32 -> 00:00:00 | E52: =Skurbog!B32 -> 0 | F52: =Skurbog!C32 -> 0
B53: =Skurbog!A33 -> 00:00:00 | E53: =Skurbog!B33 -> 0 | F53: =Skurbog!C33 -> 0
B54: =Skurbog!A34 -> 00:00:00 | E54: =Skurbog!B34 -> 0 | F54: =Skurbog!C34 -> 0
B55: =Skurbog!A35 -> 00:00:00 | E55: =Skurbog!B35 -> 0 | F55: =Skurbog!C35 -> 0
B56: =Skurbog!A36 -> 00:00:00 | E56: =Skurbog!B36 -> 0 | F56: =Skurbog!C36 -> 0
B57: =Skurbog!A37 -> 00:00:00 | E57: =Skurbog!B37 -> 0 | F57: =Skurbog!C37 -> 0
B58: =Skurbog!A38 -> 00:00:00 | E58: =Skurbog!B38 -> 0 | F58: =Skurbog!C38 -> 0
B59: =Skurbog!A39 -> 00:00:00 | E59: =Skurbog!B39 -> 0 | F59: =Skurbog!C39 -> 0
B60: =Skurbog!A40 -> 00:00:00 | E60: =Skurbog!B40 -> 0 | F60: =Skurbog!C40 -> 0
B61: =Skurbog!A41 -> 00:00:00 | E61: =Skurbog!B41 -> 0 | F61: =Skurbog!C41 -> 0
B62: =Skurbog!A42 -> 00:00:00 | E62: =Skurbog!B42 -> 0 | F62: =Skurbog!C42 -> 0
B63: =Skurbog!A43 -> 00:00:00 | E63: =Skurbog!B43 -> 0 | F63: =Skurbog!C43 -> 0
B64: =Skurbog!A44 -> 00:00:00 | E64: =Skurbog!B44 -> 0 | F64: =Skurbog!C44 -> 0
B65: =Skurbog!A45 -> 00:00:00 | E65: =Skurbog!B45 -> 0 | F65: =Skurbog!C45 -> 0
B66: =Skurbog!A46 -> 00:00:00 | E66: =Skurbog!B46 -> 0 | F66: =Skurbog!C46 -> 0
B67: =Skurbog!A47 -> 00:00:00 | E67: =Skurbog!B47 -> 0 | F67: =Skurbog!C47 -> 0
B68: =Skurbog!A48 -> 00:00:00 | E68: =Skurbog!B48 -> 0 | F68: =Skurbog!C48 -> 0
B69: =Skurbog!A49 -> 00:00:00 | E69: =Skurbog!B49 -> 0 | F69: =Skurbog!C49 -> 0
E70: =SUM(E50:E69) -> 0 | F70: =SUM(F50:F69) -> 0 | H70: =SUM(H50:H69) -> 0 | I70: =SUM(I50:I69) -> 0
K71: Se akkord vedlagt

Sheet Gl. forenklet vådrum (hidden)
I1: Byggesag (AS)
B2: VÅDRUM | I2: =Skurbog!C1 -> 0
B4: Rum nr | D4: Antal | E4: Vægbeklædning | I4: Gulvbelægning | M4: Sats gulv | S4: Sats væg
B5: (Valgfrit) | D5: rum | E5: Højde | F5: Bredde | G5: Væg M² | I5: Længde | J5: Bredde | K5: Gulv M² | M5: 1-5 | S5: 6-10 | X5: Pr. M² | Y5: Total
G6: =E6*F6 -> 0 | K6: =I6*J6 -> 0 | X6: =beregn_vådrum!C24 -> 0 | Y6: =D6*SUM(beregn_vådrum!C8:C12)*K6+D6*SUM(beregn_vådrum!C13:C17)*G6 -> 0
G7: 0 | K7: 0 | X7: =beregn_vådrum!C44 -> 0 | Y7: =D7*SUM(beregn_vådrum!C28:C32)*K7+D7*SUM(beregn_vådrum!C33:C38)*G7 -> 0
G8: 0 | K8: 0 | X8: =beregn_vådrum!C64 -> 0 | Y8: =D8*SUM(beregn_vådrum!C48:C52)*K8+D8*SUM(beregn_vådrum!C53:C57)*G8 -> 0
G9: 0 | K9: 0 | X9: =beregn_vådrum!C84 -> 0 | Y9: =D9*SUM(beregn_vådrum!C68:C72)*K9+D9*SUM(beregn_vådrum!C73:C77)*G9 -> 0
G10: 0 | K10: 0 | X10: =beregn_vådrum!C104 -> 0 | Y10: =D10*SUM(beregn_vådrum!C88:C92)*K10+D10*SUM(beregn_vådrum!C93:C97)*G10 -> 0
G11: 0 | K11: 0 | X11: =beregn_vådrum!C124 -> 0 | Y11: =D11*SUM(beregn_vådrum!C108:C112)*K11+D11*SUM(beregn_vådrum!C113:C117)*G11 -> 0
G12: 0 | K12: 0 | X12: =beregn_vådrum!C144 -> 0 | Y12: =D12*SUM(beregn_vådrum!C128:C132)*K12+D12*SUM(beregn_vådrum!C133:C137)*G12 -> 0
G13: 0 | K13: 0 | X13: =beregn_vådrum!C164 -> 0 | Y13: =D13*SUM(beregn_vådrum!C148:C152)*K13+D13*SUM(beregn_vådrum!C153:C157)*G13 -> 0
G14: 0 | K14: 0 | X14: =beregn_vådrum!C184 -> 0 | Y14: =D14*SUM(beregn_vådrum!C168:C172)*K14+D14*SUM(beregn_vådrum!C173:C177)*G14 -> 0
G15: 0 | K15: 0 | X15: =beregn_vådrum!C204 -> 0 | Y15: =D15*SUM(beregn_vådrum!C188:C192)*K15+D15*SUM(beregn_vådrum!C193:C197)*G15 -> 0
Y16: =SUM(Y6:Y15) -> 0
K17: antal | M17: Tillægspriser (sats 11-20)
M18: 11 | N18: Ved 2 rum 10% | Y18: =SUMIF(K18,1,Y16)*0.1 -> 0
M19: 12 | N19: Ved 1 rum 15% | Y19: =SUMIF(K19,1,Y16)*0.15 -> 0
M20: 13 | N20: Skridsikker vinyl 10% | Y20: =SUMIF(K20,"<>",Y16)*0.1 -> 0
M21: 14 | N21: montering af opkant pr. m. | X21: 122.68 | Y21: =K21*X21 -> 0
M22: 15 | N22: Opkant over 1m =2% pr. 10 cm | Y22: =K21*X21/100*2 -> 0
M23: 16 | N23: Opkant ved udvendigt hjørne | X23: 71.22 | Y23: =K23*X23 -> 0
M24: 17 | N24: Alle priser er baseret på 3 rum
M25: 18 | N25: pkt. 11 og 12 betales kun u. 15m2
M26: 19 | N26: Opkant over 2 m akkorderes
M27: 20 | N27: spartling for fald o. 10m2 akkorderes
M28: Total Akkord | Y28: =SUM(Y16:Y27)*1 -> 0
M29: Dyrtidsregulering fra 2006 til 1/3 2020 | X29: 33.76 | Y29: =(Y28/100)*X29 -> 0
M31: TOTAL AKKORD | X31: =SUM(Y28:Y30) -> 0
B33: Forklaring af satser:
C34: Gulve: | L34: Vægge:
B35: 1 | C35: Klargøring pr. M² | K35: 6 | L35: Klargøring pr. M²
B36: 2 | C36: Spartling pr.M² | K36: 7 | L36: Fuldspartling pr.M²
B37: 3 | C37: Spartling for fald pr.M² | K37: 8 | L37: Klæbning af vægvinyl incl. svejsning pr.M²
B38: 4 | C38: Træfiberplader pr.M² | K38: 9 | L38: Klæbning af vægvinyl med overlapning på hulkel pr.M²
B39: 5 | C39: Vinylbeklædning incl. Hulkel og svejsning pr.M² | K39: 10 | L39: Tillæg 0ver 2,25 m fra overkant hulkel pr. påbegyndt 10 cm tillæges pr.M²
K40: 11 | L40: Ved 2 rum tillægges pkt. 1 t.o.m 10 10%
K41: 12 | L41: Ved 1 rum tillægges pkt. 1 t.o.m 10 15%
K42: 13 | L42: Tillæg for skridsikker vinyl med karborundumsten, tillægget beregnet af pkt.5 10%
K43: 14 | L43: Tillæg for montering af opkant,pr. påbegyndt m. Kr. 115,42
K44: 15 | L44: Tillæg for opkant over 1,00m pr. påbegyndt cd, t.o.m 2 m. 2%
K45: 16 | L45: Tillæg for opkant ved uadgående hjørne Kr. 71,22
K46: 17 | L46: Alle priser er baseret på serier af 3 rum
K47: 18 | L47: Tillægget i pkt. 11 og 12 betales kun for rum under 15 M² gulv areal
K48: 19 | L48: opkant over 2 m. akkorderes
K49: 20 | L49: Spartling for fald i rum over 10 M² akkorderes

Sheet NY vådrum (hidden)
A1: Vægspartling. Afsnit 20
A2: Pkt. | B2: Antal | C2: Udført med færdigrørte spartelmasser
A3: 1 | C3: Til og med 50 m2., pr. m2. | D3: 8.32 | E3: =B3*D3 -> 0
A4: 2 | C4: Over 50 m2., pr. m2. | D4: 6.04 | E4: =B4*D4 -> 0
A5: 3 | C5: Afpudsning med sandpapir | D5: 0.3 | E5: =B5*(D3*0.3) -> 0
A6: Pålægning af vinyl på badeværelsesgulve. Afsnit 20
A7: Pkt. | B7: Antal | C7: Vinyl på gulv | D7: Pr. enhed | E7: Pris
A8: 4 | C8: Grundpris enkelklæbning pr. m2 | D8: 23.88 | E8: =B8*D8 -> 0
A9: 5 | C9: Ved kontaktklæbning tillægges grundprisen | D9: 0.35 | E9: =(D8*0.35)*B9 -> 0
A10: 28 | C10: for rum under 4 m2 gulvareal tillægges 50% | D10: 0.5 | E10: =(D8*0.5)*B10 -> 0
A11: 6 | C11: Omkredstillæg pr. m. | D11: 2.56 | E11: =B11*D11 -> 0
A12: 7 | C12: Hulkehl, enkelklæbning pr. m. og pr. hjørne | D12: 5.13 | E12: =B12*D12 -> 0
A13: 8 | C13: Hulkehl, Kontaktklæbning pr. m. og pr. hjørne | D13: 0.35 | E13: =(D12*0.35)*B13 -> 0
A14: 9 | C14: Hjørner at svejse med tråd eller lignende pr. stk. | D14: 10.17 | E14: =B14*D14 -> 0
A15: 10 | C15: Udvendigt hjørne med 2 svejsninger | D15: 20.38 | E15: =B15*D15 -> 0
A16: Opsætning af vægbeklædning i badeværelser. Afsnit 20
A17: Pkt. | B17: Antal | C17: Vinyl på væg
A18: 11 | C18: Opsætning med enkeltklæbning, pr. m2. | D18: 18.55 | E18: =B18*D18 -> 0
A19: 12 | C19: Opsætning med kontaktklæbning, pr. m2. | D19: 25.04
A20: 13 | C20: Omkredstillæg pr. m. | D20: 2.56 | E20: =B20*D20 -> 0
A21: 14 | C21: Samlinger på væg, pr. l. m. | D21: 3.22 | E21: =B21*D21 -> 0
A22: 15 | C22: Hjørner ud over 4 pr. væg pr. stk. | D22: 2.56 | E22: =B22*D22 -> 0
B23: Antal | C23: Tillægspriser til vinyl på gulv og væg
A24: 16 | C24: Tæt tilskæring, pr. m. | D24: 2.56 | E24: =B24*D24 -> 0
A25: 17 | C25: Rør uden tæt tilskæring indtil 30 mm i diameter, pr. stk. | D25: 1.84 | E25: 0
A26: 18 | C26: Rør med tæt tilskæring indtil 30 mm i diameter, pr. stk. | D26: 3.06 | E26: 0
A27: 19 | C27: Rør uden tæt tilskæring indtil 30 - 100 mm i diameter, pr. stk. | D27: 3.56 | E27: 0
A28: 20 | C28: Rør med tæt tilskæring indtil 30 - 100 mm i diameter, pr. stk. | D28: 5.6 | E28: 0
A29: 21 | C29: Udskæringer for lem, pr. stk. | D29: 22.93 | E29: 0
A30: 22 | C30: Gene for vandrette og lodrette rør i grupper
C31: Indtil 3 stk. og placeret mindst 5 cm fra væg, pr. m. | D31: 10.17 | E31: =B31*D31 -> 0
A32: 23 | C32: Færdigbehandlet overkant pr. m. | D32: 3.06 | E32: 0
A33: 24 | C33: Tilskæring, opvarmning og bøjning i afløb pr. stk. | D33: 15.29 | E33: 0
A34: 25 | C34: Rør, når matrialet danner krave, pr. stk. | D34: 15.29 | E34: 0
A35: 26 | C35: Manchet svejset omkring rør, pr. stk. | D35: 25.44 | E35: 0
A36: 27 | C36: Påsætning af skilleliste af plast v/bruser, pr. stk. | D36: 25.44 | E36: 0
A37: Trådsvejsning på gulve og vægge. Afsnit 20
A38: Pkt. | B38: Antal | C38: Trådsvejsning på gulv og vægge.
A39: 30 | C39: 2 t.o.m. 5 m, pr. m. | D39: 13.14 | E39: =B39*D39 -> 0
A40: 31 | C40: 5 t.o.m. 10 m, pr. m. | D40: 10.83 | E40: =B40*D40 -> 0
A41: 32 | C41: 10 t.o.m. 25 m, pr. m. | D41: 8.11 | E41: 0
A42: 33 | C42: 25 t.o.m. 50 m, pr. m. | D42: 7.68 | E42: 0
A43: 34 | C43: 50 t.o.m. 75 m, pr. m. | D43: 7.25 | E43: 0
A44: 35 | C44: 75 t.o.m. 100 m, pr. m. | D44: 6.81 | E44: 0
A45: 36 | C45: Over 100 m, pr. m. | D45: 6.13 | E45: 0
C46: Tillægspriser til trådsvejsning
A47: 37 | C47: Endeafslutning ved svejsning af hver tråd, pr. stk. | D47: 1.79 | E47: =B47*D47 -> 0
A48: 38 | C48: Endeafslutning ved fræsning af hver tråd, pr. stk. | D48: 0.93 | E48: =B48*D48 -> 0
A49: 39 | C49: Begyndelse ved fræsning af hver række, pr. stk. | D49: 0.93 | E49: 0
A50: 40 | C50: Fodfrit fremspring svejsning, pr. m. | D50: 5.45 | E50: 0
A51: 41 | C51: Fodfrit fremspring fræsning, pr. m. | D51: 2.71 | E51: 0
A52: 42 | C52: Begyndelse og afslutning v/hulkehl, svejsning, pr. stk. | D52: 4.53 | E52: 0
A53: 43 | C53: Begyndelse og afslutning v/hulkehl, fræsning, pr. stk. | D53: 4.53 | E53: 0
A54: 44 | C54: Hvor fræsning er foretaget,fradrages grundprisen pr. m. | D54: 2.71 | E54: 0
A55: 45 | C55: Fræsning og svejsning på vægge betales med gulvpris, tillægges | D55: 0.25 | E55: =B55*(D39*0.25) -> 0
A56: 29 | C56: % Serietillæg for antal badeværelser 5, 10 eller 20% | E56: =SUM(E2:E55)/100*B56 -> 0
C57: Dyrtidstillæg | D57: 3% | E57: =SUM(E3:E56)*0.03 -> 0
C58: Sammentælling | E58: =SUM(E2:E57) -> 0

Sheet beregn_vådrum (hidden)
F1: 1 | G1: 2 | H1: 3 | I1: 4 | J1: 5 | K1: 6 | L1: 7 | M1: 8 | N1: 9 | O1: 10 | P1: 11 | Q1: 12 | R1: 13 | S1: 14 | T1: 15 | U1: 16 | V1: 17 | W1: 18 | X1: 19 | Y1: 20 | Z1: 21 | AA1: 22 | AB1: 23 | AC1: 24 | AD1: 25 | AE1: 26 | AF1: 27 | AG1: 28 | AH1: 29 | AI1: 30 | AJ1: 31
F2: 0.01 | G2: 2.1 | H2: 2.6 | I2: 3.1 | J2: 3.6 | K2: 4.1 | L2: 4.6 | M2: 5.1 | N2: 5.6 | O2: 6.1 | P2: 6.6 | Q2: 7.1 | R2: 7.6 | S2: 8.1 | T2: 8.6 | U2: 9.1 | V2: 9.6 | W2: 10.1 | X2: 10.6 | Y2: 11.1 | Z2: 11.6 | AA2: 12.1 | AB2: 12.6 | AC2: 13.1 | AD2: 13.6 | AE2: 14.1 | AF2: 14.6 | AG2: 15.1 | AH2: 30.1 | AI2: 50.1 | AJ2: 100.1
E3: pkt.
E4: 1 | F4: 19.34 | G4: 17.09 | H4: 14.82 | I4: 14.82 | J4: 13.06 | K4: 12.17 | L4: 11.29 | M4: 10.84 | N4: 10.38 | O4: 9.93 | P4: 9.48 | Q4: 9.03 | R4: 8.57 | S4: 8.48 | T4: 8.39 | U4: 8.3 | V4: 8.2 | W4: 8.11 | X4: 8.02 | Y4: 7.93 | Z4: 7.83 | AA4: 7.74 | AB4: 7.74 | AC4: 7.74 | AD4: 7.74 | AE4: 7.74 | AF4: 7.74 | AG4: 7.09 | AH4: 6.45 | AI4: 6.12 | AJ4: 5.81
C5: Værdi | D5: (findes ved opslag i skemaet) | E5: 2 | F5: 35.49 | G5: 31.47 | H5: 27.45 | I5: 25.82 | J5: 24.2 | K5: 22.59 | L5: 20.96 | M5: 20.16 | N5: 19.37 | O5: 18.57 | P5: 17.77 | Q5: 16.98 | R5: 16.18 | S5: 15.99 | T5: 15.78 | U5: 15.57 | V5: 15.38 | W5: 15.17 | X5: 14.98 | Y5: 14.77 | Z5: 14.57 | AA5: 14.37 | AB5: 14.37 | AC5: 14.37 | AD5: 14.37 | AE5: 14.37 | AF5: 14.37 | AG5: 12.77 | AH5: 11.32 | AI5: 10.45 | AJ5: 9.82
A6: m2 | E6: 3 | F6: 185.15 | G6: 157.45 | H6: 129.73 | I6: 121.77 | J6: 113.79 | K6: 105.81 | L6: 97.84 | M6: 92.96 | N6: 88.08 | O6: 83.2 | P6: 78.31 | Q6: 73.43 | R6: 68.55 | S6: 68.55 | T6: 68.55 | U6: 68.55 | V6: 68.55 | W6: 68.55 | X6: 68.55 | Y6: 68.55 | Z6: 68.55 | AA6: 68.55 | AB6: 68.55 | AC6: 68.55 | AD6: 68.55 | AE6: 68.55 | AF6: 68.55 | AG6: 68.55 | AH6: 68.55 | AI6: 68.55 | AJ6: 68.55
E7: 4 | F7: 66.93 | G7: 59.56 | H7: 52.19 | I7: 48.64 | J7: 45.1 | K7: 41.55 | L7: 38.01 | M7: 36.47 | N7: 34.94 | O7: 33.4 | P7: 31.87 | Q7: 30.34 | R7: 28.8 | S7: 28.34 | T7: 27.88 | U7: 27.42 | V7: 26.55 | W7: 26.49 | X7: 26.03 | Y7: 25.57 | Z7: 25.1 | AA7: 24.64 | AB7: 24.64 | AC7: 24.64 | AD7: 24.64 | AE7: 24.64 | AF7: 24.64 | AG7: 21.97 | AH7: 18.58 | AI7: 16.68 | AJ7: 15.57
A8: sats | C8: =IF('Gl. forenklet vådrum'!M6="","",HLOOKUP('Gl. forenklet vådrum'!$K$6,E2:BP8,'Gl. forenklet vådrum'!M6+2)) ->  | E8: 5 | F8: 364.04 | G8: 324.32 | H8: 284.61 | I8: 259.83 | J8: 235.04 | K8: 210.26 | L8: 185.48 | M8: 176.62 | N8: 167.77 | O8: 158.92 | P8: 150.06 | Q8: 141.21 | R8: 132.34 | S8: 128.59 | T8: 124.83 | U8: 121.08 | V8: 117.32 | W8: 113.56 | X8: 109.8 | Y8: 106.05 | Z8: 102.29 | AA8: 98.53 | AB8: 98.53 | AC8: 98.53 | AD8: 98.53 | AE8: 98.53 | AF8: 98.53 | AG8: 77.1 | AH8: 56.18 | AI8: 46.1 | AJ8: 43.42
C9: =IF('Gl. forenklet vådrum'!N6="","",HLOOKUP('Gl. forenklet vådrum'!$K$6,E2:BP8,'Gl. forenklet vådrum'!N6+2)) -> 
C10: =IF('Gl. forenklet vådrum'!O6="","",HLOOKUP('Gl. forenklet vådrum'!$K$6,E2:BP8,'Gl. forenklet vådrum'!O6+2)) ->  | F10: 0.1 | G10: 7.5 | H10: 8 | I10: 8.5 | J10: 9 | K10: 9.5 | L10: 10 | M10: 10.5 | N10: 11 | O10: 11.5 | P10: 12 | Q10: 12.6 | R10: 13.1 | S10: 13.6 | T10: 14.1 | U10: 14.6 | V10: 15.1 | W10: 15.6 | X10: 16 | Y10: 16.5 | Z10: 17 | AA10: 17.5 | AB10: 18 | AC10: 18.5 | AD10: 19 | AE10: 19.5 | AF10: 20 | AG10: 20.5 | AH10: 21 | AI10: 21.5 | AJ10: 22 | AK10: 22.5 | AL10: 23 | AM10: 23.5 | AN10: 24 | AO10: 24.5 | AP10: 25 | AQ10: 25.5 | AR10: 26 | AS10: 26.5 | AT10: 27 | AU10: 27.5 | AV10: 28 | AW10: 28.5 | AX10: 29 | AY10: 29.5 | AZ10: 30 | BA10: 30.5 | BB10: 31 | BC10: 31.5 | BD10: 32 | BE10: 32.5 | BF10: 33 | BG10: 33.5 | BH10: 34 | BI10: 34.5 | BJ10: 35 | BK10: 35.5 | BL10: 36 | BM10: 36.5 | BN10: 37 | BO10: 37.5 | BP10: 38
C11: =IF('Gl. forenklet vådrum'!P6="","",HLOOKUP('Gl. forenklet vådrum'!$K$6,E2:BP8,'Gl. forenklet vådrum'!P6+2)) ->  | E11: pkt.
C12: =IF('Gl. forenklet vådrum'!Q6="","",HLOOKUP('Gl. forenklet vådrum'!$K$6,E2:BP8,'Gl. forenklet vådrum'!Q6+2)) ->  | E12: 6 | F12: 12.11 | G12: 12.11 | H12: 12.11 | I12: 12.11 | J12: 12.11 | K12: 12.11 | L12: 12.11 | M12: 12.11 | N12: 11.7 | O12: 11.3 | P12: 10.9 | Q12: 10.49 | R12: 10.08 | S12: 9.68 | T12: 9.27 | U12: 8.87 | V12: 8.47 | W12: 8.06 | X12: 7.62 | Y12: 7.39 | Z12: 7.18 | AA12: 6.95 | AB12: 6.72 | AC12: 6.5 | AD12: 6.28 | AE12: 6.05 | AF12: 6 | AG12: 5.95 | AH12: 5.89 | AI12: 5.84 | AJ12: 5.79 | AK12: 5.74 | AL12: 5.68 | AM12: 5.63 | AN12: 5.58 | AO12: 5.52 | AP12: 5.47 | AQ12: 5.42 | AR12: 5.37 | AS12: 5.34 | AT12: 5.3 | AU12: 5.26 | AV12: 5.23 | AW12: 5.2 | AX12: 5.17 | AY12: 5.14 | AZ12: 5.1 | BA12: 5.07 | BB12: 5.04 | BC12: 5.01 | BD12: 4.98 | BE12: 4.93 | BF12: 4.9 | BG12: 4.87 | BH12: 4.84 | BI12: 4.84 | BJ12: 4.84 | BK12: 4.84 | BL12: 4.84 | BM12: 4.84 | BN12: 4.84 | BO12: 4.84 | BP12: 4.84
C13: =IF('Gl. forenklet vådrum'!S6="","",HLOOKUP('Gl. forenklet vådrum'!$G$6,E10:BQ16,'Gl. forenklet vådrum'!S6-3)) ->  | E13: 7 | F13: 34.36 | G13: 34.36 | H13: 34.36 | I13: 34.36 | J13: 34.36 | K13: 34.36 | L13: 34.36 | M13: 34.36 | N13: 33.21 | O13: 32.06 | P13: 30.92 | Q13: 29.77 | R13: 28.63 | S13: 27.49 | T13: 26.34 | U13: 25.2 | V13: 24.04 | W13: 22.9 | X13: 21.63 | Y13: 20.99 | Z13: 20.35 | AA13: 19.73 | AB13: 19.09 | AC13: 18.45 | AD13: 17.82 | AE13: 17.18 | AF13: 17.02 | AG13: 16.88 | AH13: 16.73 | AI13: 16.58 | AJ13: 16.43 | AK13: 16.28 | AL13: 16.13 | AM13: 15.99 | AN13: 15.83 | AO13: 15.68 | AP13: 15.53 | AQ13: 15.38 | AR13: 15.24 | AS13: 15.14 | AT13: 15.05 | AU13: 14.96 | AV13: 14.86 | AW13: 14.77 | AX13: 14.68 | AY13: 14.59 | AZ13: 14.48 | BA13: 14.39 | BB13: 14.3 | BC13: 14.21 | BD13: 14.11 | BE13: 14.02 | BF13: 13.93 | BG13: 13.84 | BH13: 13.74 | BI13: 13.74 | BJ13: 13.74 | BK13: 13.74 | BL13: 13.74 | BM13: 13.74 | BN13: 13.74 | BO13: 13.74 | BP13: 13.74
C14: =IF('Gl. forenklet vådrum'!T6="","",HLOOKUP('Gl. forenklet vådrum'!$G$6,E10:BQ16,'Gl. forenklet vådrum'!T6-3)) ->  | E14: 8 | F14: 114.38 | G14: 113.04 | H14: 111.7 | I14: 110.37 | J14: 109.03 | K14: 107.69 | L14: 106.36 | M14: 105.02 | N14: 102.4 | O14: 99.77 | P14: 97.15 | Q14: 94.52 | R14: 91.89 | S14: 89.27 | T14: 86.65 | U14: 84.02 | V14: 81.4 | W14: 78.78 | X14: 75.18 | Y14: 73.38 | Z14: 71.58 | AA14: 69.78 | AB14: 67.98 | AC14: 66.18 | AD14: 64.39 | AE14: 62.59 | AF14: 61.92 | AG14: 61.24 | AH14: 60.56 | AI14: 59.88 | AJ14: 59.2 | AK14: 58.52 | AL14: 57.85 | AM14: 57.17 | AN14: 56.49 | AO14: 55.81 | AP14: 55.13 | AQ14: 54.45 | AR14: 53.77 | AS14: 53.46 | AT14: 53.14 | AU14: 52.82 | AV14: 52.5 | AW14: 52.19 | AX14: 51.87 | AY14: 51.55 | AZ14: 51.24 | BA14: 50.92 | BB14: 50.61 | BC14: 50.29 | BD14: 49.97 | BE14: 49.65 | BF14: 49.33 | BG14: 49.02 | BH14: 48.71 | BI14: 48.71 | BJ14: 48.71 | BK14: 48.71 | BL14: 48.71 | BM14: 48.71 | BN14: 48.71 | BO14: 48.71 | BP14: 48.71
C15: =IF('Gl. forenklet vådrum'!U6="","",HLOOKUP('Gl. forenklet vådrum'!$G$6,E10:BQ16,'Gl. forenklet vådrum'!U6-3)) ->  | E15: 9 | F15: 114.38 | G15: 113.04 | H15: 111.7 | I15: 110.37 | J15: 109.03 | K15: 107.69 | L15: 106.36 | M15: 105.02 | N15: 102.4 | O15: 99.77 | P15: 97.15 | Q15: 94.52 | R15: 91.89 | S15: 89.27 | T15: 86.65 | U15: 84.02 | V15: 81.4 | W15: 78.78 | X15: 75.18 | Y15: 73.38 | Z15: 71.58 | AA15: 69.78 | AB15: 67.98 | AC15: 66.18 | AD15: 64.39 | AE15: 62.59 | AF15: 61.92 | AG15: 61.24 | AH15: 60.56 | AI15: 59.88 | AJ15: 59.2 | AK15: 58.52 | AL15: 57.85 | AM15: 57.17 | AN15: 56.49 | AO15: 55.81 | AP15: 55.13 | AQ15: 54.45 | AR15: 53.77 | AS15: 53.46 | AT15: 53.14 | AU15: 52.82 | AV15: 52.5 | AW15: 52.19 | AX15: 51.87 | AY15: 51.55 | AZ15: 51.24 | BA15: 50.92 | BB15: 50.61 | BC15: 50.29 | BD15: 49.97 | BE15: 49.65 | BF15: 49.33 | BG15: 49.02 | BH15: 48.71 | BI15: 48.71 | BJ15: 48.71 | BK15: 48.71 | BL15: 48.71 | BM15: 48.71 | BN15: 48.71 | BO15: 48.71 | BP15: 48.71
C16: =IF('Gl. forenklet vådrum'!V6="","",HLOOKUP('Gl. forenklet vådrum'!$G$6,E10:BQ16,'Gl. forenklet vådrum'!V6-3)) ->  | E16: 10 | F16: 3.9 | G16: 3.92 | H16: 3.93 | I16: 3.95 | J16: 3.96 | K16: 3.97 | L16: 3.99 | M16: 4 | N16: 3.89 | O16: 3.77 | P16: 3.66 | Q16: 3.55 | R16: 3.43 | S16: 3.32 | T16: 3.12 | U16: 3.09 | V16: 2.99 | W16: 2.88 | X16: 2.72 | Y16: 2.65 | Z16: 2.58 | AA16: 2.51 | AB16: 2.43 | AC16: 2.35 | AD16: 2.28 | AE16: 2.21 | AF16: 2.18 | AG16: 2.16 | AH16: 2.14 | AI16: 2.12 | AJ16: 2.09 | AK16: 2.07 | AL16: 2.05 | AM16: 2.01 | AN16: 1.99 | AO16: 1.97 | AP16: 1.95 | AQ16: 1.92 | AR16: 1.9 | AS16: 1.89 | AT16: 1.88 | AU16: 1.86 | AV16: 1.85 | AW16: 1.84 | AX16: 1.83 | AY16: 1.82 | AZ16: 1.8 | BA16: 1.79 | BB16: 1.78 | BC16: 1.77 | BD16: 1.76 | BE16: 1.74 | BF16: 1.74 | BG16: 1.73 | BH16: 1.71 | BI16: 1.71 | BJ16: 1.71 | BK16: 1.71 | BL16: 1.71 | BM16: 1.71 | BN16: 1.71 | BO16: 1.71 | BP16: 1.71
C17: =IF('Gl. forenklet vådrum'!W6="","",HLOOKUP('Gl. forenklet vådrum'!$G$6,E10:BQ16,'Gl. forenklet vådrum'!W6-3)) -> 
A24: Sum af punkter | C24: =SUM(C8:C23) -> 0
A28: linie2 | C28: =IF('Gl. forenklet vådrum'!M7="","",HLOOKUP('Gl. forenklet vådrum'!$K$7,E2:BP8,'Gl. forenklet vådrum'!M7+2)) -> 
C29: =IF('Gl. forenklet vådrum'!N7="","",HLOOKUP('Gl. forenklet vådrum'!$K$7,E2:BP8,'Gl. forenklet vådrum'!N7+2)) -> 
C30: =IF('Gl. forenklet vådrum'!O7="","",HLOOKUP('Gl. forenklet vådrum'!$K$7,E2:BP8,'Gl. forenklet vådrum'!O7+2)) -> 
C31: =IF('Gl. forenklet vådrum'!P7="","",HLOOKUP('Gl. forenklet vådrum'!$K$7,E2:BP8,'Gl. forenklet vådrum'!P7+2)) -> 
C32: =IF('Gl. forenklet vådrum'!Q7="","",HLOOKUP('Gl. forenklet vådrum'!$K$7,E2:BP8,'Gl. forenklet vådrum'!Q7+2)) -> 
C33: =IF('Gl. forenklet vådrum'!S7="","",HLOOKUP('Gl. forenklet vådrum'!$G$7,E10:BQ16,'Gl. forenklet vådrum'!S7-3)) -> 
C34: =IF('Gl. forenklet vådrum'!T7="","",HLOOKUP('Gl. forenklet vådrum'!$G$7,E10:BQ16,'Gl. forenklet vådrum'!T7-3)) -> 
C35: =IF('Gl. forenklet vådrum'!U7="","",HLOOKUP('Gl. forenklet vådrum'!$G$7,E10:BQ16,'Gl. forenklet vådrum'!U7-3)) -> 
C36: =IF('Gl. forenklet vådrum'!V7="","",HLOOKUP('Gl. forenklet vådrum'!$G$7,E10:BQ16,'Gl. forenklet vådrum'!V7-3)) -> 
C37: =IF('Gl. forenklet vådrum'!W7="","",HLOOKUP('Gl. forenklet vådrum'!$G$7,E10:BQ16,'Gl. forenklet vådrum'!W7-3)) -> 
C44: =SUM(C28:C43) -> 0
A48: linie3 | C48: =IF('Gl. forenklet vådrum'!M8="","",HLOOKUP('Gl. forenklet vådrum'!$K$8,E2:BP8,'Gl. forenklet vådrum'!M8+2)) -> 
C49: =IF('Gl. forenklet vådrum'!N8="","",HLOOKUP('Gl. forenklet vådrum'!$K$8,E2:BP8,'Gl. forenklet vådrum'!N8+2)) -> 
C50: =IF('Gl. forenklet vådrum'!O8="","",HLOOKUP('Gl. forenklet vådrum'!$K$8,E2:BP8,'Gl. forenklet vådrum'!O8+2)) -> 
C51: =IF('Gl. forenklet vådrum'!P8="","",HLOOKUP('Gl. forenklet vådrum'!$K$8,E2:BP8,'Gl. forenklet vådrum'!P8+2)) -> 
C52: =IF('Gl. forenklet vådrum'!Q8="","",HLOOKUP('Gl. forenklet vådrum'!$K$8,E2:BP8,'Gl. forenklet vådrum'!Q8+2)) -> 
C53: =IF('Gl. forenklet vådrum'!S8="","",HLOOKUP('Gl. forenklet vådrum'!$G$8,E10:BQ16,'Gl. forenklet vådrum'!S8-3)) -> 
C54: =IF('Gl. forenklet vådrum'!T8="","",HLOOKUP('Gl. forenklet vådrum'!$G$8,E10:BQ16,'Gl. forenklet vådrum'!T8-3)) -> 
C55: =IF('Gl. forenklet vådrum'!U8="","",HLOOKUP('Gl. forenklet vådrum'!$G$8,E10:BQ16,'Gl. forenklet vådrum'!U8-3)) -> 
C56: =IF('Gl. forenklet vådrum'!V8="","",HLOOKUP('Gl. forenklet vådrum'!$G$8,E10:BQ16,'Gl. forenklet vådrum'!V8-3)) -> 
C57: =IF('Gl. forenklet vådrum'!W8="","",HLOOKUP('Gl. forenklet vådrum'!$G$8,E10:BQ16,'Gl. forenklet vådrum'!W8-3)) -> 
C64: =SUM(C48:C63) -> 0
A68: linie4 | C68: =IF('Gl. forenklet vådrum'!M9="","",HLOOKUP('Gl. forenklet vådrum'!$K$9,E2:BP8,'Gl. forenklet vådrum'!M9+2)) -> 
C69: =IF('Gl. forenklet vådrum'!N9="","",HLOOKUP('Gl. forenklet vådrum'!$K$9,E2:BP8,'Gl. forenklet vådrum'!N9+2)) -> 
C70: =IF('Gl. forenklet vådrum'!O9="","",HLOOKUP('Gl. forenklet vådrum'!$K$9,E2:BP8,'Gl. forenklet vådrum'!O9+2)) -> 
C71: =IF('Gl. forenklet vådrum'!P9="","",HLOOKUP('Gl. forenklet vådrum'!$K$9,E2:BP8,'Gl. forenklet vådrum'!P9+2)) -> 
C72: =IF('Gl. forenklet vådrum'!Q9="","",HLOOKUP('Gl. forenklet vådrum'!$K$9,E2:BP8,'Gl. forenklet vådrum'!Q9+2)) -> 
C73: =IF('Gl. forenklet vådrum'!S9="","",HLOOKUP('Gl. forenklet vådrum'!$G$9,E10:BQ16,'Gl. forenklet vådrum'!S9-3)) -> 
C74: =IF('Gl. forenklet vådrum'!T9="","",HLOOKUP('Gl. forenklet vådrum'!$G$9,E10:BQ16,'Gl. forenklet vådrum'!T9-3)) -> 
C75: =IF('Gl. forenklet vådrum'!U9="","",HLOOKUP('Gl. forenklet vådrum'!$G$9,E10:BQ16,'Gl. forenklet vådrum'!U9-3)) -> 
C76: =IF('Gl. forenklet vådrum'!V9="","",HLOOKUP('Gl. forenklet vådrum'!$G$9,E10:BQ16,'Gl. forenklet vådrum'!V9-3)) -> 
C77: =IF('Gl. forenklet vådrum'!W9="","",HLOOKUP('Gl. forenklet vådrum'!$G$9,E10:BQ16,'Gl. forenklet vådrum'!W9-3)) -> 
C84: =SUM(C68:C83) -> 0
A88: linie5 | C88: =IF('Gl. forenklet vådrum'!M10="","",HLOOKUP('Gl. forenklet vådrum'!$K$10,E2:BP8,'Gl. forenklet vådrum'!M10+2)) -> 
C89: =IF('Gl. forenklet vådrum'!N10="","",HLOOKUP('Gl. forenklet vådrum'!$K$10,E2:BP8,'Gl. forenklet vådrum'!N10+2)) -> 
C90: =IF('Gl. forenklet vådrum'!O10="","",HLOOKUP('Gl. forenklet vådrum'!$K$10,E2:BP8,'Gl. forenklet vådrum'!O10+2)) -> 
C91: =IF('Gl. forenklet vådrum'!P10="","",HLOOKUP('Gl. forenklet vådrum'!$K$10,E2:BP8,'Gl. forenklet vådrum'!P10+2)) -> 
C92: =IF('Gl. forenklet vådrum'!Q10="","",HLOOKUP('Gl. forenklet vådrum'!$K$10,E2:BP8,'Gl. forenklet vådrum'!Q10+2)) -> 
C93: =IF('Gl. forenklet vådrum'!S10="","",HLOOKUP('Gl. forenklet vådrum'!$G$10,E10:BQ16,'Gl. forenklet vådrum'!S10-3)) -> 
C94: =IF('Gl. forenklet vådrum'!T10="","",HLOOKUP('Gl. forenklet vådrum'!$G$10,E10:BQ16,'Gl. forenklet vådrum'!T10-3)) -> 
C95: =IF('Gl. forenklet vådrum'!U10="","",HLOOKUP('Gl. forenklet vådrum'!$G$10,E10:BQ16,'Gl. forenklet vådrum'!U10-3)) -> 
C96: =IF('Gl. forenklet vådrum'!V10="","",HLOOKUP('Gl. forenklet vådrum'!$G$10,E10:BQ16,'Gl. forenklet vådrum'!V10-3)) -> 
C97: =IF('Gl. forenklet vådrum'!W10="","",HLOOKUP('Gl. forenklet vådrum'!$G$10,E10:BQ16,'Gl. forenklet vådrum'!W10-3)) -> 
C104: =SUM(C88:C103) -> 0
A108: linie6 | C108: =IF('Gl. forenklet vådrum'!M11="","",HLOOKUP('Gl. forenklet vådrum'!$K$11,E2:BP8,'Gl. forenklet vådrum'!M11+2)) -> 
C109: =IF('Gl. forenklet vådrum'!N11="","",HLOOKUP('Gl. forenklet vådrum'!$K$11,E2:BP8,'Gl. forenklet vådrum'!N11+2)) -> 
C110: =IF('Gl. forenklet vådrum'!O11="","",HLOOKUP('Gl. forenklet vådrum'!$K$11,E2:BP8,'Gl. forenklet vådrum'!O11+2)) -> 
C111: =IF('Gl. forenklet vådrum'!P11="","",HLOOKUP('Gl. forenklet vådrum'!$K$11,E2:BP8,'Gl. forenklet vådrum'!P11+2)) -> 
C112: =IF('Gl. forenklet vådrum'!Q11="","",HLOOKUP('Gl. forenklet vådrum'!$K$11,E2:BP8,'Gl. forenklet vådrum'!Q11+2)) -> 
C113: =IF('Gl. forenklet vådrum'!S11="","",HLOOKUP('Gl. forenklet vådrum'!$G$11,E10:BQ16,'Gl. forenklet vådrum'!S11-3)) -> 
C114: =IF('Gl. forenklet vådrum'!T11="","",HLOOKUP('Gl. forenklet vådrum'!$G$11,E10:BQ16,'Gl. forenklet vådrum'!T11-3)) -> 
C115: =IF('Gl. forenklet vådrum'!U11="","",HLOOKUP('Gl. forenklet vådrum'!$G$11,E10:BQ16,'Gl. forenklet vådrum'!U11-3)) -> 
C116: =IF('Gl. forenklet vådrum'!V11="","",HLOOKUP('Gl. forenklet vådrum'!$G$11,E10:BQ16,'Gl. forenklet vådrum'!V11-3)) -> 
C117: =IF('Gl. forenklet vådrum'!W11="","",HLOOKUP('Gl. forenklet vådrum'!$G$11,E10:BQ16,'Gl. forenklet vådrum'!W11-3)) -> 
C124: =SUM(C108:C123) -> 0
A128: linie7 | C128: =IF('Gl. forenklet vådrum'!M12="","",HLOOKUP('Gl. forenklet vådrum'!$K$12,E2:BP8,'Gl. forenklet vådrum'!M12+2)) -> 
C129: =IF('Gl. forenklet vådrum'!N12="","",HLOOKUP('Gl. forenklet vådrum'!$K$12,E2:BP8,'Gl. forenklet vådrum'!N12+2)) -> 
C130: =IF('Gl. forenklet vådrum'!O12="","",HLOOKUP('Gl. forenklet vådrum'!$K$12,E2:BP8,'Gl. forenklet vådrum'!O12+2)) -> 
C131: =IF('Gl. forenklet vådrum'!P12="","",HLOOKUP('Gl. forenklet vådrum'!$K$12,E2:BP8,'Gl. forenklet vådrum'!P12+2)) -> 
C132: =IF('Gl. forenklet vådrum'!Q12="","",HLOOKUP('Gl. forenklet vådrum'!$K$12,E2:BP8,'Gl. forenklet vådrum'!Q12+2)) -> 
C133: =IF('Gl. forenklet vådrum'!S12="","",HLOOKUP('Gl. forenklet vådrum'!$G$12,E10:BQ16,'Gl. forenklet vådrum'!S12-3)) -> 
C134: =IF('Gl. forenklet vådrum'!T12="","",HLOOKUP('Gl. forenklet vådrum'!$G$12,E10:BQ16,'Gl. forenklet vådrum'!T12-3)) -> 
C135: =IF('Gl. forenklet vådrum'!U12="","",HLOOKUP('Gl. forenklet vådrum'!$G$12,E10:BQ16,'Gl. forenklet vådrum'!U12-3)) -> 
C136: =IF('Gl. forenklet vådrum'!V12="","",HLOOKUP('Gl. forenklet vådrum'!$G$12,E10:BQ16,'Gl. forenklet vådrum'!V12-3)) -> 
C137: =IF('Gl. forenklet vådrum'!W12="","",HLOOKUP('Gl. forenklet vådrum'!$G$12,E10:BQ16,'Gl. forenklet vådrum'!W12-3)) -> 
C144: =SUM(C128:C143) -> 0
A148: linie8 | C148: =IF('Gl. forenklet vådrum'!M13="","",HLOOKUP('Gl. forenklet vådrum'!$K$13,E2:BP8,'Gl. forenklet vådrum'!M13+2)) -> 
C149: =IF('Gl. forenklet vådrum'!N13="","",HLOOKUP('Gl. forenklet vådrum'!$K$13,E2:BP8,'Gl. forenklet vådrum'!N13+2)) -> 
C150: =IF('Gl. forenklet vådrum'!O13="","",HLOOKUP('Gl. forenklet vådrum'!$K$13,E2:BP8,'Gl. forenklet vådrum'!O13+2)) -> 
C151: =IF('Gl. forenklet vådrum'!P13="","",HLOOKUP('Gl. forenklet vådrum'!$K$13,E2:BP8,'Gl. forenklet vådrum'!P13+2)) -> 
C152: =IF('Gl. forenklet vådrum'!Q13="","",HLOOKUP('Gl. forenklet vådrum'!$K$13,E2:BP8,'Gl. forenklet vådrum'!Q13+2)) -> 
C153: =IF('Gl. forenklet vådrum'!S13="","",HLOOKUP('Gl. forenklet vådrum'!$G$13,E10:BQ16,'Gl. forenklet vådrum'!S13-3)) -> 
C154: =IF('Gl. forenklet vådrum'!T13="","",HLOOKUP('Gl. forenklet vådrum'!$G$13,E10:BQ16,'Gl. forenklet vådrum'!T13-3)) -> 
C155: =IF('Gl. forenklet vådrum'!U13="","",HLOOKUP('Gl. forenklet vådrum'!$G$13,E10:BQ16,'Gl. forenklet vådrum'!U13-3)) -> 
C156: =IF('Gl. forenklet vådrum'!V13="","",HLOOKUP('Gl. forenklet vådrum'!$G$13,E10:BQ16,'Gl. forenklet vådrum'!V13-3)) -> 
C157: =IF('Gl. forenklet vådrum'!W13="","",HLOOKUP('Gl. forenklet vådrum'!$G$13,E10:BQ16,'Gl. forenklet vådrum'!W13-3)) -> 
C164: =SUM(C148:C163) -> 0
A168: linie9 | C168: =IF('Gl. forenklet vådrum'!M14="","",HLOOKUP('Gl. forenklet vådrum'!$K$14,E2:BP8,'Gl. forenklet vådrum'!M14+2)) -> 
C169: =IF('Gl. forenklet vådrum'!N14="","",HLOOKUP('Gl. forenklet vådrum'!$K$14,E2:BP8,'Gl. forenklet vådrum'!N14+2)) -> 
C170: =IF('Gl. forenklet vådrum'!O14="","",HLOOKUP('Gl. forenklet vådrum'!$K$14,E2:BP8,'Gl. forenklet vådrum'!O14+2)) -> 
C171: =IF('Gl. forenklet vådrum'!P14="","",HLOOKUP('Gl. forenklet vådrum'!$K$14,E2:BP8,'Gl. forenklet vådrum'!P14+2)) -> 
C172: =IF('Gl. forenklet vådrum'!Q14="","",HLOOKUP('Gl. forenklet vådrum'!$K$14,E2:BP8,'Gl. forenklet vådrum'!Q14+2)) -> 
C173: =IF('Gl. forenklet vådrum'!S14="","",HLOOKUP('Gl. forenklet vådrum'!$G$14,E10:BQ16,'Gl. forenklet vådrum'!S14-3)) -> 
C174: =IF('Gl. forenklet vådrum'!T14="","",HLOOKUP('Gl. forenklet vådrum'!$G$14,E10:BQ16,'Gl. forenklet vådrum'!T14-3)) -> 
C175: =IF('Gl. forenklet vådrum'!U14="","",HLOOKUP('Gl. forenklet vådrum'!$G$14,E10:BQ16,'Gl. forenklet vådrum'!U14-3)) -> 
C176: =IF('Gl. forenklet vådrum'!V14="","",HLOOKUP('Gl. forenklet vådrum'!$G$14,E10:BQ16,'Gl. forenklet vådrum'!V14-3)) -> 
C177: =IF('Gl. forenklet vådrum'!W14="","",HLOOKUP('Gl. forenklet vådrum'!$G$14,E10:BQ16,'Gl. forenklet vådrum'!W14-3)) -> 
C184: =SUM(C168:C183) -> 0
A188: linie10 | C188: =IF('Gl. forenklet vådrum'!M15="","",HLOOKUP('Gl. forenklet vådrum'!$K$15,E2:BP8,'Gl. forenklet vådrum'!M15+2)) -> 
C189: =IF('Gl. forenklet vådrum'!N15="","",HLOOKUP('Gl. forenklet vådrum'!$K$15,E2:BP8,'Gl. forenklet vådrum'!N15+2)) -> 
C190: =IF('Gl. forenklet vådrum'!O15="","",HLOOKUP('Gl. forenklet vådrum'!$K$15,E2:BP8,'Gl. forenklet vådrum'!O15+2)) -> 
C191: =IF('Gl. forenklet vådrum'!P15="","",HLOOKUP('Gl. forenklet vådrum'!$K$15,E2:BP8,'Gl. forenklet vådrum'!P15+2)) -> 
C192: =IF('Gl. forenklet vådrum'!Q15="","",HLOOKUP('Gl. forenklet vådrum'!$K$15,E2:BP8,'Gl. forenklet vådrum'!Q15+2)) -> 
C193: =IF('Gl. forenklet vådrum'!S15="","",HLOOKUP('Gl. forenklet vådrum'!$G$15,E10:BQ16,'Gl. forenklet vådrum'!S15-3)) -> 
C194: =IF('Gl. forenklet vådrum'!T15="","",HLOOKUP('Gl. forenklet vådrum'!$G$15,E10:BQ16,'Gl. forenklet vådrum'!T15-3)) -> 
C195: =IF('Gl. forenklet vådrum'!U15="","",HLOOKUP('Gl. forenklet vådrum'!$G$15,E10:BQ16,'Gl. forenklet vådrum'!U15-3)) -> 
C196: =IF('Gl. forenklet vådrum'!V15="","",HLOOKUP('Gl. forenklet vådrum'!$G$15,E10:BQ16,'Gl. forenklet vådrum'!V15-3)) -> 
C197: =IF('Gl. forenklet vådrum'!W15="","",HLOOKUP('Gl. forenklet vådrum'!$G$15,E10:BQ16,'Gl. forenklet vådrum'!W15-3)) -> 
C204: =SUM(C188:C203) -> 0

Sheet Ark1 (hidden)
B1: stk | C1: stk/m² | D1: % | E1: m² | F1: 0.1 | G1: 2.1 | H1: 6.1 | I1: 10.1 | J1: 15.1 | K1: 30.1 | L1: 50.1 | M1: 100.1
A2: 1 | E2: 1 | F2: 3 | G2: 2.22 | H2: 1.96 | I2: 1.82 | J2: 1.76 | K2: 1.67 | L2: 1.56 | M2: 1.52 | N2: m² | O2: Støvsugning
A3: 2 | E3: 2 | F3: 7.69 | G3: 5.79 | H3: 5.13 | I3: 4.63 | J3: 4.41 | K3: 4.21 | L3: 4.03 | M3: 3.86 | N3: m² | O3: Svabning, inkl. støvsugning
A4: 3 | E4: 3 | F4: 4 | G4: 3 | H4: 2.67 | I4: 2.43 | J4: 2.31 | K4: 2.18 | L4: 2.1 | M4: 1.95 | N4: m² | O4: Maskinslibning, beton, asfalt og træ
A5: 4 | E5: 4 | F5: 7.06 | G5: 5.31 | H5: 4.69 | I5: 4.21 | J5: 4.05 | K5: 3.89 | L5: 3.71 | M5: 3.49 | N5: m² | O5: Maskinslibning, Anhydrit
A6: 5 | E6: 5 | F6: 2.56 | G6: 1.9 | H6: 1.71 | I6: 1.55 | J6: 1.41 | K6: 1.28 | L6: 1.21 | M6: 1.14 | N6: m² | O6: Primning
A7: 6 | E7: 6 | F7: 20.02 | G7: 15.01 | H7: 13.32 | I7: 12.04 | J7: 11.02 | K7: 9.99 | L7: 9.53 | M7: 8.98 | N7: m² | O7: Primn..+spartl..+slibn..+støvsug...
A8: 7 | E8: 7 | F8: 30.01 | G8: 22.53 | H8: 19.96 | I8: 17.99 | J8: 16.51 | K8: 15.01 | L8: 14.24 | M8: 13.5 | N8: m² | O8: Primn..+spartl.. m/rive+slibn..+støvsug…
A9: 8 | E9: 8 | F9: 32.45 | G9: 24.34 | H9: 21.56 | I9: 19.48 | J9: 17.86 | K9: 16.21 | L9: 15.4 | M9: 14.61 | N9: m² | O9: Aftagning og afrensning af belægning
A10: 9 | E10: 9 | F10: 19.08 | G10: 14.32 | H10: 12.69 | I10: 11.46 | J10: 10.51 | K10: 9.54 | L10: 9.03 | M10: 8.61 | N10: m² | O10: Aftagning af ekstra lag belægning
A11: 10 | E11: 10 | F11: 52.18 | G11: 39.14 | H11: 34.72 | I11: 31.31 | J11: 28.68 | K11: 26.06 | L11: 24.78 | M11: 23.47 | N11: m² | O11: Aftagning af masonit, afrensning af søm
A12: 11 | E12: 11 | F12: 30.04 | G12: 22.54 | H12: 19.98 | I12: 18.02 | J12: 16.52 | K12: 15.02 | L12: 14.27 | M12: 13.52 | N12: m² | O12: Aftagning af hulkehl t.o.m. 15 cm
A13: 12 | E13: 12 | F13: 35.59 | G13: 26.7 | H13: 23.66 | I13: 21.35 | J13: 19.58 | K13: 17.79 | L13: 16.91 | M13: 16.01 | N13: m² | O13: Aftagning af hulkehl t.o.m. 30 cm
A14: 13 | E14: 13 | F14: 55.91 | G14: 37.49 | H14: 28.97 | I14: 22.65 | J14: 19.9 | K14: 17.14 | L14: 15.22 | M14: 13.94 | N14: m² | O14: Lægning af vinyl | P14: Kontaktklæbning
A15: 14 | E15: 14 | F15: 7.24 | G15: 4.5 | H15: 3.44 | I15: 2.83 | J15: 2.62 | K15: 2.38 | L15: 2.31 | M15: 2.14 | N15: m² | O15: Opskæring af vinyl
A16: 19 | C16: 15 | F16: 83.4 | G16: 62.55 | H16: 55.46 | I16: 50.04 | J16: 45.87 | K16: 41.7 | L16: 39.61 | M16: 37.53 | N16: m | O16: Hulkehl t.o.m. 15 cm pr. m.
A17: 20 | C17: 16 | F17: 49.72 | G17: 37.3 | H17: 33.07 | I17: 29.83 | J17: 27.35 | K17: 24.86 | L17: 23.62 | M17: 22.38 | N17: stk | O17: Indvendige hulkehlhjørne t.o.m. 15 cm
A18: 21 | C18: 17 | F18: 99.55 | G18: 74.67 | H18: 66.21 | I18: 59.73 | J18: 54.76 | K18: 49.78 | L18: 47.29 | M18: 44.8 | N18: stk | O18: Udvendige hulkehlhjørner t.o.m. 15 cm
A19: 22 | C19: 18 | F19: 49.83 | G19: 37.37 | H19: 33.14 | I19: 29.9 | J19: 27.41 | K19: 24.91 | L19: 23.67 | M19: 22.42 | N19: stk | O19: Lige samling i hulkehl t.o.m. 15 cm
A20: 23 | E20: 19 | F20: 19.44 | G20: 9.75 | H20: 8.49 | I20: 7.22 | J20: 6.53 | K20: 5.83 | L20: 5.28 | M20: 4.63 | N20: m² | O20: Trådsvejsning/trådfugning, 200 cm
A21: 24 | E21: 20 | F21: 21.54 | G21: 10.79 | H21: 9.44 | I21: 8.03 | J21: 7.24 | K21: 6.49 | L21: 5.85 | M21: 5.1 | N21: m² | O21: Trådsvejsning/trådfugning, 180 cm
A22: 25 | E22: 21 | F22: 25.83 | G22: 12.94 | H22: 11.28 | I22: 9.61 | J22: 8.72 | K22: 7.79 | L22: 7.03 | M22: 6.15 | N22: m² | O22: Trådsvejsning/trådfugning, 150 cm
A23: 26 | E23: 22 | F23: 31.04 | G23: 15.59 | H23: 13.57 | I23: 11.55 | J23: 10.46 | K23: 9.33 | L23: 8.43 | M23: 7.37 | N23: m² | O23: Trådsvejsning/trådfugning, 125 cm
E24: 23 | F24: 5.67 | G24: 4.26 | H24: 3.77 | I24: 3.42 | J24: 3.12 | K24: 2.83 | L24: 2.7 | M24: 2.56 | N24: m² | O24: Afdækning af gulv, minimums bredde 90 cm
A25: 42 | E25: 24 | F25: 6.38 | G25: 4.78 | H25: 4.23 | I25: 3.84 | J25: 3.49 | K25: 3.19 | L25: 3.03 | M25: 2.87 | N25: m² | O25: Aftagning af gulvafdækning
A26: 43 | E26: 25 | F26: 19.24 | G26: 14.44 | H26: 12.79 | I26: 11.53 | J26: 10.6 | K26: 9.62 | L26: 9.12 | M26: 8.68 | N26: m² | O26: Afdækning med masonit
E27: 26 | F27: 12.94 | G27: 9.73 | H27: 8.64 | I27: 7.79 | J27: 7.13 | K27: 6.49 | L27: 6.17 | M27: 5.82 | N27: m² | O27: Aftagning af masonitafdækning
A28: 15 | B28: 27 | F28: 2.08 | G28: 2.08 | H28: 2.08 | I28: 2.08 | J28: 2.08 | K28: 2.08 | L28: 2.08 | M28: 2.08 | N28: m | O28: Primning for hulkehl
A29: 16 | D29: 28 | F29: 0.07 | G29: 0.07 | H29: 0.07 | I29: 0.07 | J29: 0.07 | K29: 0.07 | L29: 0.07 | M29: 0.07 | N29: % | O29: Tillæg pr. påbegyndt cm over 15 cm
A30: 17 | B30: 29 | F30: 7.04 | G30: 7.04 | H30: 7.04 | I30: 7.04 | J30: 7.04 | K30: 7.04 | L30: 7.04 | M30: 7.04 | N30: m | O30: Skæring af overkant på hulkehl
A31: 18 | B31: 30 | F31: 5.47 | G31: 5.47 | H31: 5.47 | I31: 5.47 | J31: 5.47 | K31: 5.47 | L31: 5.47 | M31: 5.47 | N31: m | O31: Tillæg for hulkehl på færdigbehandlet væg
A32: 28 | B32: 31 | F32: 302.31 | G32: 302.31 | H32: 302.31 | I32: 302.31 | J32: 302.31 | K32: 302.31 | L32: 302.31 | M32: 302.31 | N32: stk | O32: Spartling af lokalfald
B33: 32 | F33: 352.87 | G33: 352.87 | H33: 352.87 | I33: 352.87 | J33: 352.87 | K33: 352.87 | L33: 352.87 | M33: 352.87 | N33: stk | O33: Spartling af lokalfald, afgrænset af 3 vægge
A34: 27 | B34: 33 | F34: 7.56 | G34: 7.56 | H34: 7.56 | I34: 7.56 | J34: 7.56 | K34: 7.56 | L34: 7.56 | M34: 7.56 | N34: m | O34: Spartling af gipsvæg
A35: 29 | B35: 34 | F35: 15.12 | G35: 15.12 | H35: 15.12 | I35: 15.12 | J35: 15.12 | K35: 15.12 | L35: 15.12 | M35: 15.12 | N35: m | O35: Spartling af murstensvæg
A36: 30 | B36: 35 | F36: 96.95 | G36: 96.95 | H36: 96.95 | I36: 96.95 | J36: 96.95 | K36: 96.95 | L36: 96.95 | M36: 96.95 | N36: stk | O36: Afløb T.o.m. Ø160 mm
A37: 31 | B37: 36 | F37: 1.04 | G37: 1.04 | H37: 1.04 | I37: 1.04 | J37: 1.04 | K37: 1.04 | L37: 1.04 | M37: 1.04 | N37: cm | O37: Firkantede gulvafløb omkreds, kr. pr. cm
A38: 32 | B38: 37 | F38: 46.39 | G38: 46.39 | H38: 46.39 | I38: 46.39 | J38: 46.39 | K38: 46.39 | L38: 46.39 | M38: 46.39 | N38: stk | O38: Rørkraver/manchet
A39: 33 | B39: 38 | F39: 46.39 | G39: 46.39 | H39: 46.39 | I39: 46.39 | J39: 46.39 | K39: 46.39 | L39: 46.39 | M39: 46.39 | N39: stk | O39: Opkant t.o.m. 10 cm
A40: 34 | B40: 39 | F40: 22.15 | G40: 22.15 | H40: 22.15 | I40: 22.15 | J40: 22.15 | K40: 22.15 | L40: 22.15 | M40: 22.15 | N40: m | O40: Skæring af hjørne ved opkant
A41: 35 | B41: 40 | F41: 83.4 | G41: 83.4 | H41: 83.4 | I41: 83.4 | J41: 83.4 | K41: 83.4 | L41: 83.4 | M41: 83.4 | N41: stk | O41: Nedsænkning med trekantliste
A42: 36 | B42: 41 | F42: 78.18 | G42: 78.18 | H42: 78.18 | I42: 78.18 | J42: 78.18 | K42: 78.18 | L42: 78.18 | M42: 78.18 | N42: stk | O42: Tillæg for hjørner ved nedsænkning
A43: 37 | D43: 42 | F43: 0.35 | G43: 0.35 | H43: 0.35 | I43: 0.35 | J43: 0.35 | K43: 0.35 | L43: 0.35 | M43: 0.35 | N43: % | O43: Tillæg for montering med kontaktlim
A44: 38 | D44: 43 | F44: 0.1 | G44: 0.1 | H44: 0.1 | I44: 0.1 | J44: 0.1 | K44: 0.1 | L44: 0.1 | M44: 0.1 | N44: % | O44: Tillæg for skridsikkert
A45: 39 | B45: 44 | F45: 53.09 | G45: 53.09 | H45: 53.09 | I45: 53.09 | J45: 53.09 | K45: 53.09 | L45: 53.09 | M45: 53.09 | N45: m | O45: Gulvskinne m/forboring, plugs, skrue, klæbning
A46: 40 | B46: 45 | F46: 53.09 | G46: 53.09 | H46: 53.09 | I46: 53.09 | J46: 53.09 | K46: 53.09 | L46: 53.09 | M46: 53.09 | N46: stk | O46: Pr. samling/gering m/forboring, plugs, skrue, klæbning
A47: 41 | B47: 46 | F47: 35.41 | G47: 35.41 | H47: 35.41 | I47: 35.41 | J47: 35.41 | K47: 35.41 | L47: 35.41 | M47: 35.41 | N47: m | O47: Gulvskinne i underlag af træ, inkl. klæbning
A48: 44 | B48: 47 | F48: 35.41 | G48: 35.41 | H48: 35.41 | I48: 35.41 | J48: 35.41 | K48: 35.41 | L48: 35.41 | M48: 35.41 | N48: stk | O48: Pr. samling/gering i underlag af træ, inkl. klæbning
A49: 45 | B49: 48 | F49: 31.85 | G49: 31.85 | H49: 31.85 | I49: 31.85 | J49: 31.85 | K49: 31.85 | L49: 31.85 | M49: 31.85 | N49: m | O49: Gulvskinne med dobbeltklæbende tape
A50: 46 | B50: 49 | F50: 31.85 | G50: 31.85 | H50: 31.85 | I50: 31.85 | J50: 31.85 | K50: 31.85 | L50: 31.85 | M50: 31.85 | N50: stk | O50: Samling/gering med dobbeltklæbende tape
A51: 47 | F51: 7.24 | G51: 4.5 | H51: 3.44 | I51: 2.83 | J51: 2.618 | K51: 2.38 | L51: 2.31 | M51: 2.14 | N51: M³ | O51: opskæring af vinyl pr. m²
A52: 48 | F52: 67.092 | G52: 44.988 | H52: 34.764 | I52: 27.18 | J52: 23.88 | K52: 20.568 | L52: 18.264 | M52: 16.728 | N52: M² | O52: Opsætning af vinyl på væg med enkeltklæbning pr. M²
A53: 49 | F53: 100.08 | G53: 75.06 | H53: 66.5532 | I53: 60.048 | J53: 55.044 | K53: 50.04 | L53: 47.538 | M53: 45.036 | N53: m. | O53: Indvendigt/udvendigt lodret hjørne på væg med enkeltklæbning pr. m.
A54: 50 | F54: 135.108 | G54: 101.331 | H54: 89.84682 | I54: 81.0648 | J54: 74.3094 | K54: 67.554 | L54: 64.1763 | M54: 60.7986 | N54: m | O54: Udvendigt lodret hjørne på væg med kontaktklæbning pr. m.
A55: 51 | F55: 153.632556 | G55: 76.816278 | H55: 51.210852 | I55: 38.5044 | J55: 32.087 | K55: 29.17 | L55: 27.7115 | M55: 24.94035 | N55: stk | O55: Udskæring for lem pr. stk.
A56: 52 | F56: 38.381805 | G56: 19.1909025 | H56: 12.793935 | I56: 9.6195 | J56: 8.01625 | K56: 7.2875 | L56: 6.923125 | M56: 6.2308125 | N56: m | O56: Lodrette svejsninger inkl. Fræsning pr. M.
A57: 53 | B57: 20 | C57: 31 | E57: 27 | F57: 47.97725625 | G57: 23.98862813 | H57: 15.99241875 | I57: 12.024375 | J57: 10.0203125 | K57: 9.109375 | L57: 8.65390625 | M57: 7.788515625 | N57: m | O57: Vandrette svejsninger inkl. Fræsning pr. M.
A58: 54 | B58: 21 | C58: 32 | E58: 29 | F58: 7.04 | G58: 7.04 | H58: 7.04 | I58: 7.04 | J58: 7.04 | K58: 7.04 | L58: 7.04 | M58: 7.04 | N58: m | O58: Skæring af underkant på vægvinyl, ned til senere overkant hulkehl eller skæring der skal stå synlig uden på hulkehl, vandret eller fast højde fra gulv pr. meter .......... kr.
A59: 55 | B59: 22 | C59: 33 | E59: 30 | F59: 7.04 | G59: 7.04 | H59: 7.04 | I59: 7.04 | J59: 7.04 | K59: 7.04 | L59: 7.04 | M59: 7.04 | N59: m | O59: Tillæg for afskæring af vinyl på væg i fast højde på færdigbehandlet væg pr. meter.
A60: 56 | B60: 23 | C60: 34 | E60: 37 | F60: 4.76 | G60: 4.76 | H60: 4.76 | I60: 4.76 | J60: 4.76 | K60: 4.76 | L60: 4.76 | M60: 4.76 | N60: m | O60: Tillæg for tæt tilskæring af vinyl på væg mod færdigbehandlet loft pr. meter. (2021)
A61: 57 | B61: 24 | C61: 35 | E61: 38 | F61: 45.43 | G61: 45.43 | H61: 45.43 | I61: 45.43 | J61: 45.43 | K61: 45.43 | L61: 45.43 | M61: 45.43 | N61: stk | O61: Rørkraver/manchet t.o.m. Ø 120 mm svejset omkring røret, pr. stk.
A62: 58 | B62: 25 | C62: 36 | E62: 39 | F62: 22.75 | G62: 22.75 | H62: 22.75 | I62: 22.75 | J62: 22.75 | K62: 22.75 | L62: 22.75 | M62: 22.75 | N62: stk | O62: Tillæg for tæt tilskæring for el-udtag t.o.m. 90 kvcm pr. stk.
A63: 59 | B63: 26 | E63: 40 | F63: 22.75 | G63: 22.75 | H63: 22.75 | I63: 22.75 | J63: 22.75 | K63: 22.75 | L63: 22.75 | M63: 22.75 | N63: stk | O63: Tillæg for udskæring for koblingsdåse til rør t.o.m Ø 65 mm pr. stk.
A64: 60 | B64: 27 | E64: 41 | F64: 0.35 | G64: 0.35 | H64: 0.35 | I64: 0.35 | J64: 0.35 | K64: 0.35 | L64: 0.35 | M64: 0.35 | N64: % | O64: Ved kontaktlim tillægges pkt. 6, 10
A65: 61 | B65: 28 | E65: 44 | F65: 0.1 | G65: 0.1 | H65: 0.1 | I65: 0.1 | J65: 0.1 | K65: 0.1 | L65: 0.1 | M65: 0.1 | N65: % | O65: Ved skridsikkert vinyl tillægges
B66: 29 | E66: 45
B67: 30 | E67: 46
B68: 31 | E68: 47
B69: 38 | E69: 48
B70: 39 | E70: 49
B71: 41
B72: 42
B73: 43
A75: 36
A76: 37
A77: 40
A80: 32
A82: 37
A84: 13

Sheet Montør 2
J1: ARBEJDSSEDDEL
J2: NR. | K2: =Skurbog!C1 -> 0
B4: Arbejdssted: | C4: =Skurbog!C2 -> 0 | I4: Udføres:
B7: Kontaktperson: | F7: Tlf:
B8: Fakturaadr:
I9: Udstedt dato: | K9: =TODAY() -> 2025-07-14
B11: Att: | F11: Mærke/Rekv. | I11: Sagsansvarlig | K11: =Skurbog!C3 -> 0
B12: Udleveret | C12: Enhed | D12: Art | F12: Retur | G12: Brugt | H12: Arbejdets beskrivelse:
D13: Primer
D17: Spartelmasse
D22: Underlag
D27: Lim
D32: Lister
D37: Vinylprofiler
D42: Belægning
H46: Affald | K46: Stribber
H47: Bortkørsel | K47: Special
B49: Dato | C49: Montør | D49: Løn nr. | E49: Akkord | F49: Timeløn | G49: sats | H49: Overtid | I49: Km | J49: bemærkning.
B50: =Skurbog!A30 -> 00:00:00 | C50: =Skurbog!A71 -> Montør 2 | E50: =Skurbog!D30 -> 0 | F50: =Skurbog!E30 -> 0
B51: =Skurbog!A31 -> 00:00:00 | E51: =Skurbog!D31 -> 0 | F51: =Skurbog!E31 -> 0
B52: =Skurbog!A32 -> 00:00:00 | E52: =Skurbog!D32 -> 0 | F52: =Skurbog!E32 -> 0
B53: =Skurbog!A33 -> 00:00:00 | E53: =Skurbog!D33 -> 0 | F53: =Skurbog!E33 -> 0
B54: =Skurbog!A34 -> 00:00:00 | E54: =Skurbog!D34 -> 0 | F54: =Skurbog!E34 -> 0
B55: =Skurbog!A35 -> 00:00:00 | E55: =Skurbog!D35 -> 0 | F55: =Skurbog!E35 -> 0
B56: =Skurbog!A36 -> 00:00:00 | E56: =Skurbog!D36 -> 0 | F56: =Skurbog!E36 -> 0
B57: =Skurbog!A37 -> 00:00:00 | E57: =Skurbog!D37 -> 0 | F57: =Skurbog!E37 -> 0
B58: =Skurbog!A38 -> 00:00:00 | E58: =Skurbog!D38 -> 0 | F58: =Skurbog!E38 -> 0
B59: =Skurbog!A39 -> 00:00:00 | E59: =Skurbog!D39 -> 0 | F59: =Skurbog!E39 -> 0
B60: =Skurbog!A40 -> 00:00:00 | E60: =Skurbog!D40 -> 0 | F60: =Skurbog!E40 -> 0
B61: =Skurbog!A41 -> 00:00:00 | E61: =Skurbog!D41 -> 0 | F61: =Skurbog!E41 -> 0
B62: =Skurbog!A42 -> 00:00:00 | E62: =Skurbog!D42 -> 0 | F62: =Skurbog!E42 -> 0
B63: =Skurbog!A43 -> 00:00:00 | E63: =Skurbog!D43 -> 0 | F63: =Skurbog!E43 -> 0
B64: =Skurbog!A44 -> 00:00:00 | E64: =Skurbog!D44 -> 0 | F64: =Skurbog!E44 -> 0
B65: =Skurbog!A45 -> 00:00:00 | E65: =Skurbog!D45 -> 0 | F65: =Skurbog!E45 -> 0
B66: =Skurbog!A46 -> 00:00:00 | E66: =Skurbog!D46 -> 0 | F66: =Skurbog!E46 -> 0
B67: =Skurbog!A47 -> 00:00:00 | E67: =Skurbog!D47 -> 0 | F67: =Skurbog!E47 -> 0
B68: =Skurbog!A48 -> 00:00:00 | E68: =Skurbog!D48 -> 0 | F68: =Skurbog!E48 -> 0
B69: =Skurbog!A49 -> 00:00:00 | E69: =Skurbog!D49 -> 0 | F69: =Skurbog!E49 -> 0
E70: =SUM(E50:E69) -> 0 | F70: =SUM(F50:F69) -> 0 | H70: =SUM(H50:H69) -> 0 | I70: =SUM(I50:I69) -> 0
K71: Se akkord vedlagt

Sheet ROB (hidden)
E1: 2027 | F1: 2026 | G1: 2025 | H1: 2024 | I1: 2023 | J1: 2022 | K1: 2021 | L1: 2020 | M1: 2019 | N1: 2018 | O1: 2017
E2: 0 | F2: 0 | G2: 0 | H2: 0.039 | I2: 0.04 | J2: 0.021 | K2: 0.021 | L2: 0.021 | M2: 0.021 | N2: 0.019
A3: Afsnits overskrift i priskuranten | B3: Key | C3: Post | D3: Enhed | N3: Pris | O3: Pris2 | P3: DatoPris1 | Q3: DatoPris2 | R3: Tekst | S3: LangTekst | T3: FraPost | U3: Tilpost | V3: Funktion | W3: Type | X3: SidstRoert | Y3: Memo
A4: Forberedende | B4: 0 | C4: S200101A | D4: kvm | E4: =SUM(F4*$E$2+F4) -> 3.314406777 | F4: =SUM(G4*$F$2+G4) -> 3.314406777 | G4: =SUM(H4*$G$2+H4) -> 3.314406777 | H4: =SUM(I4*$H$2+I4) -> 3.314406777 | I4: =SUM(J4*$I$2+J4) -> 3.189996898 | J4: =SUM(K4*$J$2+K4) -> 3.067304709 | K4: =SUM(L4*$K$2+L4) -> 3.00421617 | L4: =SUM(M4*$L$2+M4) -> 2.94242524 | M4: =SUM(N4*$M$2+N4) -> 2.88190523 | N4: =SUM(O4*$N$2+O4) -> 2.82263 | O4: 2.77 | P4: 2018-03-01 | Q4: 2017-03-01 | R4: Støvsugning | S4: Rum under 2 kvm. | W4: 0
A5: Forberedende | B5: 0 | C5: S200101B | D5: kvm | E5: =SUM(F5*$E$2+F5) -> 2.452900322 | F5: =SUM(G5*$F$2+G5) -> 2.452900322 | G5: =SUM(H5*$G$2+H5) -> 2.452900322 | H5: =SUM(I5*$H$2+I5) -> 2.452900322 | I5: =SUM(J5*$I$2+J5) -> 2.360828029 | J5: =SUM(K5*$J$2+K5) -> 2.270026951 | K5: 2.223336877 | L5: 2.177607127 | M5: 2.13281795 | N5: =SUM(O5*$N$2+O5) -> 2.08895 | O5: 2.05 | P5: 2018-03-01 | Q5: 2017-03-01 | R5: Støvsugning | S5: Rum 2 - 6 kvm. | W5: 0
A6: Forberedende | B6: 0 | C6: S200101C | D6: kvm | E6: 2.165731504 | F6: 2.165731504 | G6: 2.165731504 | H6: 2.165731504 | I6: 2.084438406 | J6: 2.004267698 | K6: 1.963043779 | L6: 1.922667756 | M6: 1.88312219 | N6: 1.84439 | O6: 1.81 | P6: 2018-03-01 | Q6: 2017-03-01 | R6: Støvsugning | S6: Rum 6 - 10 kvm. | W6: 0
A7: Forberedende | B7: 0 | C7: S200101D | D7: kvm | E7: 2.010181727 | F7: 2.010181727 | G7: 2.010181727 | H7: 2.010181727 | I7: 1.93472736 | J7: 1.86031477 | K7: 1.822051684 | L7: 1.784575597 | M7: 1.74787032 | N7: 1.71192 | O7: 1.68 | P7: 2018-03-01 | Q7: 2017-03-01 | R7: Støvsugning | S7: Rum 10 - 15 kvm. | W7: 0
A8: Forberedende | B8: 0 | C8: S200101E | D8: kvm | E8: 1.938389523 | F8: 1.938389523 | G8: 1.938389523 | H8: 1.938389523 | I8: 1.865629955 | J8: 1.793874956 | K8: 1.75697841 | L8: 1.720840754 | M8: 1.68544638 | N8: 1.65078 | O8: 1.62 | P8: 2018-03-01 | Q8: 2017-03-01 | R8: Støvsugning | S8: Rum 15 - 30 kvm. | W8: 0
A9: Forberedende | B9: 0 | C9: S200101F | D9: kvm | E9: 1.842666584 | F9: 1.842666584 | G9: 1.842666584 | H9: 1.842666584 | I9: 1.77350008 | J9: 1.705288539 | K9: 1.670214044 | L9: 1.635860964 | M9: 1.60221446 | N9: 1.56926 | O9: 1.54 | P9: 2018-03-01 | Q9: 2017-03-01 | R9: Støvsugning | S9: Rum 30 - 50 kvm. | W9: 0
A10: Forberedende | B10: 0 | C10: S200101G | D10: kvm | E10: 1.723012909 | F10: 1.723012909 | G10: 1.723012909 | H10: 1.723012909 | I10: 1.658337737 | J10: 1.594555517 | K10: 1.561758587 | L10: 1.529636226 | M10: 1.49817456 | N10: 1.46736 | O10: 1.44 | P10: 2018-03-01 | Q10: 2017-03-01 | R10: Støvsugning | S10: Rum 50 - 100 kvm. | W10: 0
A11: Forberedende | B11: 0 | C11: S200101H | D11: kvm | E11: 1.67515144 | F11: 1.67515144 | G11: 1.67515144 | H11: 1.67515144 | I11: 1.6122728 | J11: 1.550262308 | K11: 1.518376404 | L11: 1.487146331 | M11: 1.4565586 | N11: 1.4266 | O11: 1.4 | P11: 2018-03-01 | Q11: 2017-03-01 | R11: Støvsugning | S11: Rum over 100 kvm. | W11: 0
A12: Forberedende | B12: 0 | C12: S200102A | D12: kvm | E12: 8.483445505 | F12: 8.483445505 | G12: 8.483445505 | H12: =SUM(I12*$H$2+I12) -> 8.483445505 | I12: 8.16501011 | J12: 7.85097126 | K12: 7.689491929 | L12: 7.531333917 | M12: 7.37642891 | N12: 7.22471 | O12: 7.09 | P12: 2018-03-01 | Q12: 2017-03-01 | R12: Svabning, inkl. støvsugning | S12: Rum under 2 kvm. | W12: 0
A13: Forberedende | B13: 0 | C13: S200102B | D13: kvm | E13: 6.389506205 | F13: 6.389506205 | G13: 6.389506205 | H13: 6.389506205 | I13: 6.14966911 | J13: 5.913143375 | K13: 5.791521425 | L13: 5.672401004 | M13: 5.55573066 | N13: 5.44146 | O13: 5.34 | P13: 2018-03-01 | Q13: 2017-03-01 | R13: Svabning, inkl. støvsugning | S13: Rum 2 - 6 kvm. | W13: 0
A14: Forberedende | B14: 0 | C14: S200102C | D14: kvm | E14: 5.659618792 | F14: 5.659618792 | G14: 5.659618792 | H14: 5.659618792 | I14: 5.447178818 | J14: 5.237671941 | K14: 5.129943135 | L14: 5.024430103 | M14: 4.92108727 | N14: 4.81987 | O14: 4.73 | P14: 2018-03-01 | Q14: 2017-03-01 | R14: Svabning, inkl. støvsugning | S14: Rum 6 - 10 kvm. | W14: 0
A15: Forberedende | B15: 0 | C15: S200102D | D15: kvm | E15: 5.109211891 | F15: 5.109211891 | G15: 5.109211891 | H15: 5.109211891 | I15: 4.917432041 | J15: 4.728300039 | K15: 4.631048031 | L15: 4.535796308 | M15: 4.44250373 | N15: 4.35113 | O15: 4.27 | P15: 2018-03-01 | Q15: 2017-03-01 | R15: Svabning, inkl. støvsugning | S15: Rum 10 - 15 kvm. | W15: 0
A16: Forberedende | B16: 0 | C16: S200102E | D16: kvm | E16: 4.869904542 | F16: 4.869904542 | G16: 4.869904542 | H16: 4.869904542 | I16: 4.687107355 | J16: 4.506833995 | K16: 4.414137116 | L16: 4.323346833 | M16: 4.23442393 | N16: 4.14733 | O16: 4.07 | P16: 2018-03-01 | Q16: 2017-03-01 | R16: Svabning, inkl. støvsugning | S16: Rum 15 - 30 kvm. | W16: 0
A17: Forberedende | B17: 0 | C17: S200102F | D17: kvm | E17: 4.642562561 | F17: 4.642562561 | G17: 4.642562561 | H17: 4.642562561 | I17: 4.468298904 | J17: 4.296441254 | K17: 4.208071747 | L17: 4.121519831 | M17: 4.03674812 | N17: 3.95372 | O17: 3.88 | P17: 2018-03-01 | Q17: 2017-03-01 | R17: Svabning, inkl. Støvsugning | S17: Rum 30 - 50 kvm. | W17: 0
A18: Forberedende | B18: 0 | C18: S200102G | D18: kvm | E18: 4.451116682 | F18: 4.451116682 | G18: 4.451116682 | H18: 4.451116682 | I18: 4.284039155 | J18: 4.119268418 | K18: 4.034543015 | L18: 3.95156025 | M18: 3.87028428 | N18: 3.79068 | O18: 3.72 | P18: 2018-03-01 | Q18: 2017-03-01 | R18: Svabning, inkl. støvsugning | S18: Rum 50 - 100 kvm. | W18: 0
A19: Forberedende | B19: 0 | C19: S200102H | D19: kvm | E19: 4.259670803 | F19: 4.259670803 | G19: 4.259670803 | H19: 4.259670803 | I19: 4.099779407 | J19: 3.942095583 | K19: 3.861014283 | L19: 3.781600669 | M19: 3.70382044 | N19: 3.62764 | O19: 3.56 | P19: 2018-03-01 | Q19: 2017-03-01 | R19: Svabning, inkl. støvsugning | S19: Rum over 100 kvm. | W19: 0
A20: Forberedende | B20: 0 | C20: S200103A | D20: kvm | E20: 4.41522058 | F20: 4.41522058 | G20: 4.41522058 | H20: 4.41522058 | I20: 4.249490452 | J20: 4.086048512 | K20: 4.002006378 | L20: 3.919692829 | M20: 3.83907231 | N20: 3.76011 | O20: 3.69 | P20: 2018-03-01 | Q20: 2017-03-01 | R20: Maskinslibning, beton, asfalt og træ | S20: Rum under 2 kvm. | W20: 0
A21: Forberedende | B21: 0 | C21: S200103B | D21: kvm | E21: 3.314406777 | F21: 3.314406777 | G21: 3.314406777 | H21: 3.314406777 | I21: 3.189996898 | J21: 3.067304709 | K21: 3.00421617 | L21: 2.94242524 | M21: 2.88190523 | N21: 2.82263 | O21: 2.77 | P21: 2018-03-01 | Q21: 2017-03-01 | R21: Maskinslibning, beton, asfalt og træ | S21: Rum 2 - 6 kvm. | W21: 0
A22: Forberedende | B22: 0 | C22: S200103C | D22: kvm | E22: 2.943480387 | F22: 2.943480387 | G22: 2.943480387 | H22: 2.943480387 | I22: 2.832993635 | J22: 2.724032341 | K22: 2.668004252 | L22: 2.613128552 | M22: 2.55938154 | N22: 2.50674 | O22: 2.46 | P22: 2018-03-01 | Q22: 2017-03-01 | R22: Maskinslibning, beton, asfalt og træ | S22: Rum 6 - 10 kvm. | W22: 0
A23: Forberedende | B23: 0 | C23: S200103D | D23: kvm | E23: 2.680242303 | F23: 2.680242303 | G23: 2.680242303 | H23: 2.680242303 | I23: 2.579636481 | J23: 2.480419693 | K23: 2.429402246 | L23: 2.379434129 | M23: 2.33049376 | N23: 2.28256 | O23: 2.24 | P23: 2018-03-01 | Q23: 2017-03-01 | R23: Maskinslibning, beton, asfalt og træ | S23: Rum 10 - 15 kvm. | W23: 0
A24: Forberedende | B24: 0 | C24: S200103E | D24: kvm | E24: 2.548623262 | F24: 2.548623262 | G24: 2.548623262 | H24: 2.548623262 | I24: 2.452957903 | J24: 2.358613369 | K24: 2.310101243 | L24: 2.262586917 | M24: 2.21604987 | N24: 2.17047 | O24: 2.13 | P24: 2018-03-01 | Q24: 2017-03-01 | R24: Maskinslibning, beton, asfalt og træ | S24: Rum 15 - 30 kvm. | W24: 0
A25: Forberedende | B25: 0 | C25: S200103F | D25: kvm | E25: 2.405038852 | F25: 2.405038852 | G25: 2.405038852 | H25: 2.405038852 | I25: 2.314763092 | J25: 2.225733742 | K25: 2.179954694 | L25: 2.135117232 | M25: 2.09120199 | N25: 2.04819 | O25: 2.01 | P25: 2018-03-01 | Q25: 2017-03-01 | R25: Maskinslibning, beton, asfalt og træ | S25: Rum 30 - 50 kvm. | W25: 0
A26: Forberedende | B26: 0 | C26: S200103G | D26: kvm | E26: 2.321281281 | F26: 2.321281281 | G26: 2.321281281 | H26: 2.321281281 | I26: 2.234149452 | J26: 2.148220627 | K26: 2.104035873 | L26: 2.060759915 | M26: 2.01837406 | N26: 1.97686 | O26: 1.94 | P26: 2018-03-01 | Q26: 2017-03-01 | R26: Maskinslibning, beton, asfalt og træ | S26: Rum 50 - 100 kvm. | W26: 0
A27: Forberedende | B27: 0 | C27: S200103H | D27: kvm | E27: 2.153766137 | F27: 2.153766137 | G27: 2.153766137 | H27: 2.153766137 | I27: 2.072922172 | J27: 1.993194396 | K27: 1.952198233 | L27: 1.912045282 | M27: 1.8727182 | N27: 1.8342 | O27: 1.8 | P27: 2018-03-01 | Q27: 2017-03-01 | R27: Maskinslibning, beton, asfalt og træ | S27: Rum over 100 kvm. | W27: 0
A28: Forberedende | B28: 0 | C28: S200104A | D28: kvm | E28: 7.789454194 | F28: 7.789454194 | G28: 7.789454194 | H28: 7.789454194 | I28: 7.497068522 | J28: 7.208719732 | K28: 7.060450276 | L28: 6.915230437 | M28: 6.77299749 | N28: 6.63369 | O28: 6.51 | P28: 2018-03-01 | Q28: 2017-03-01 | R28: Maskinslibning, Anhydrit | S28: Rum under 2 kvm. | W28: 0
A29: Forberedende | B29: 0 | C29: S200104B | D29: kvm | E29: 5.863030038 | F29: 5.863030038 | G29: 5.863030038 | H29: 5.863030038 | I29: 5.642954801 | J29: 5.425918078 | K29: 5.314317412 | L29: 5.205012157 | M29: 5.0979551 | N29: 4.9931 | O29: 4.9 | P29: 2018-03-01 | Q29: 2017-03-01 | R29: Maskinslibning, Anhydrit | S29: Rum 2 - 6 kvm. | W29: 0
A30: Forberedende | B30: 0 | C30: S200104C | D30: kvm | E30: 5.169038728 | F30: 5.169038728 | G30: 5.169038728 | H30: 5.169038728 | I30: 4.975013212 | J30: 4.78366655 | K30: 4.68527576 | L30: 4.588908677 | M30: 4.49452368 | N30: 4.40208 | O30: 4.32 | P30: 2018-03-01 | Q30: 2017-03-01 | R30: Maskinslibning, Anhydrit | S30: Rum 6 - 10 kvm. | W30: 0
A31: Forberedende | B31: 0 | C31: S200104D | D31: kvm | E31: 4.642562561 | F31: 4.642562561 | G31: 4.642562561 | H31: 4.642562561 | I31: 4.468298904 | J31: 4.296441254 | K31: 4.208071747 | L31: 4.121519831 | M31: 4.03674812 | N31: 3.95372 | O31: 3.88 | P31: 2018-03-01 | Q31: 2017-03-01 | R31: Maskinslibning, Anhydrit | S31: Rum 10 - 15 kvm. | W31: 0
A32: Forberedende | B32: 0 | C32: S200104E | D32: kvm | E32: 4.46308205 | F32: 4.46308205 | G32: 4.46308205 | H32: 4.46308205 | I32: 4.295555389 | J32: 4.130341721 | K32: 4.045388561 | L32: 3.962182724 | M32: 3.88068827 | N32: 3.80087 | O32: 3.73 | P32: 2018-03-01 | Q32: 2017-03-01 | R32: Maskinslibning, Anhydrit | S32: Rum 15 - 30 kvm. | W32: 0
A33: Forberedende | B33: 0 | C33: S200104F | D33: kvm | E33: 4.295566906 | F33: 4.295566906 | G33: 4.295566906 | H33: 4.295566906 | I33: 4.134328109 | J33: 3.97531549 | K33: 3.893550921 | L33: 3.813468091 | M33: 3.73503241 | N33: 3.65821 | O33: 3.59 | P33: 2018-03-01 | Q33: 2017-03-01 | R33: Maskinslibning, Anhydrit | S33: Rum 30 - 50 kvm. | W33: 0
A34: Forberedende | B34: 0 | C34: S200104G | D34: kvm | E34: 4.092155659 | F34: 4.092155659 | G34: 4.092155659 | H34: 4.092155659 | I34: 3.938552127 | J34: 3.787069352 | K34: 3.709176643 | L34: 3.632886036 | M34: 3.55816458 | N34: 3.48498 | O34: 3.42 | P34: 2018-03-01 | Q34: 2017-03-01 | R34: Maskinslibning, Anhydrit | S34: Rum 50 - 100 kvm. | W34: 0
A35: Forberedende | B35: 0 | C35: S200104H | D35: kvm | E35: 3.852848311 | F35: 3.852848311 | G35: 3.852848311 | H35: 3.852848311 | I35: 3.708227441 | J35: 3.565603308 | K35: 3.492265728 | L35: 3.42043656 | M35: 3.35008478 | N35: 3.28118 | O35: 3.22 | P35: 2018-03-01 | Q35: 2017-03-01 | R35: Maskinslibning, Anhydrit | S35: Rum over 100 kvm. | W35: 0
A36: Forberedende | B36: 0 | C36: S200105A | D36: kvm | E36: 2.823826712 | F36: 2.823826712 | G36: 2.823826712 | H36: 2.823826712 | I36: 2.717831292 | J36: 2.613299319 | K36: 2.559548795 | L36: 2.506903814 | M36: 2.45534164 | N36: 2.40484 | O36: 2.36 | P36: 2018-03-01 | Q36: 2017-03-01 | R36: Primning | S36: Rum under 2 kvm. | W36: 0
A37: Forberedende | B37: 0 | C37: S200105B | D37: kvm | E37: 2.093939299 | F37: 2.093939299 | G37: 2.093939299 | H37: 2.093939299 | I37: 2.015341 | J37: 1.937827885 | K37: 1.897970504 | L37: 1.858932913 | M37: 1.82069825 | N37: 1.78325 | O37: 1.75 | P37: 2018-03-01 | Q37: 2017-03-01 | R37: Primning | S37: Rum 2 - 6 kvm. | W37: 0
A38: Forberedende | B38: 0 | C38: S200105C | D38: kvm | E38: 1.890528053 | F38: 1.890528053 | G38: 1.890528053 | H38: 1.890528053 | I38: 1.819565018 | J38: 1.749581748 | K38: 1.713596227 | L38: 1.678350859 | M38: 1.64383042 | N38: 1.61002 | O38: 1.58 | P38: 2018-03-01 | Q38: 2017-03-01 | R38: Primning | S38: Rum 6 - 10 kvm. | W38: 0
A39: Forberedende | B39: 0 | C39: S200105D | D39: kvm | E39: 1.711047542 | F39: 1.711047542 | G39: 1.711047542 | H39: 1.711047542 | I39: 1.646821503 | J39: 1.583482215 | K39: 1.550913041 | L39: 1.519013752 | M39: 1.48777057 | N39: 1.45717 | O39: 1.43 | P39: 2018-03-01 | Q39: 2017-03-01 | R39: Primning | S39: Rum 10 - 15 kvm. | W39: 0
A40: Forberedende | B40: 0 | C40: S200105E | D40: kvm | E40: 1.555497765 | F40: 1.555497765 | G40: 1.555497765 | H40: 1.555497765 | I40: 1.497110457 | J40: 1.439529286 | K40: 1.409920946 | L40: 1.380921593 | M40: 1.3525187 | N40: 1.3247 | O40: 1.3 | P40: 2018-03-01 | Q40: 2017-03-01 | R40: Primning | S40: Rum 15 - 30 kvm. | W40: 0
A41: Forberedende | B41: 0 | C41: S200105F | D41: kvm | E41: 1.411913356 | F41: 1.411913356 | G41: 1.411913356 | H41: 1.411913356 | I41: 1.358915646 | J41: 1.30664966 | K41: 1.279774397 | L41: 1.253451907 | M41: 1.22767082 | N41: 1.20242 | O41: 1.18 | P41: 2018-03-01 | Q41: 2017-03-01 | R41: Primning | S41: Rum 30 - 50 kvm. | W41: 0
A42: Forberedende | B42: 0 | C42: S200105G | D42: kvm | E42: 1.340121152 | F42: 1.340121152 | G42: 1.340121152 | H42: 1.340121152 | I42: 1.28981824 | J42: 1.240209846 | K42: 1.214701123 | L42: 1.189717064 | M42: 1.16524688 | N42: 1.14128 | O42: 1.12 | P42: 2018-03-01 | Q42: 2017-03-01 | R42: Primning | S42: Rum 50 - 100 kvm. | W42: 0
A43: Forberedende | B43: 0 | C43: S200105H | D43: kvm | E43: 1.25636358 | F43: 1.25636358 | G43: 1.25636358 | H43: 1.25636358 | I43: 1.2092046 | J43: 1.162696731 | K43: 1.138782303 | L43: 1.115359748 | M43: 1.09241895 | N43: 1.06995 | O43: 1.05 | P43: 2018-03-01 | Q43: 2017-03-01 | R43: Primning | S43: Rum over 100 kvm. | W43: 0
A44: Forberedende | B44: 0 | C44: S200106A | D44: kvm | E44: 22.08806827 | F44: 22.08806827 | G44: 22.08806827 | H44: 22.08806827 | I44: 21.2589685 | J44: 20.44131586 | K44: 20.02087744 | L44: 19.60908662 | M44: 19.20576554 | N44: 18.81074 | O44: 18.46 | P44: 2018-03-01 | Q44: 2017-03-01 | R44: Primn..+spartl..+slibn..+støvsug... | S44: Rum under 2 kvm, Primning, spartling, slibning, støvsugning | W44: 0
A45: Forberedende | B45: 0 | C45: S200106B | D45: kvm | E45: 16.56006852 | F45: 16.56006852 | G45: 16.56006852 | H45: 16.56006852 | I45: 15.93846825 | J45: 15.32545024 | K45: 15.0102353 | L45: 14.70150373 | M45: 14.39912216 | N45: 14.10296 | O45: 13.84 | P45: 2018-03-01 | Q45: 2017-03-01 | R45: Primn..+spartl..+slibn..+støvsug... | S45: Rum 2 - 6 kvm, Primning, spartling, slibning, støvsugning | W45: 0
A46: Forberedende | B46: 0 | C46: S200106C | D46: kvm | E46: 14.6934712 | F46: 14.6934712 | G46: 14.6934712 | H46: 14.6934712 | I46: 14.14193571 | J46: 13.5980151 | K46: 13.31833017 | L46: 13.04439781 | M46: 12.77609972 | N46: 12.51332 | O46: 12.28 | P46: 2018-03-01 | Q46: 2017-03-01 | R46: Primn..+spartl..+slibn..+støvsug... | S46: Rum 6 - 10 kvm, Primning, spartling, slibning, støvsugning | W46: 0
A47: Forberedende | B47: 0 | C47: S200106D | D47: kvm | E47: 13.28155784 | F47: 13.28155784 | G47: 13.28155784 | H47: 13.28155784 | I47: 12.78302006 | J47: 12.29136544 | K47: 12.03855577 | L47: 11.79094591 | M47: 11.5484289 | N47: 11.3109 | O47: 11.1 | P47: 2018-03-01 | Q47: 2017-03-01 | R47: Primn..+spartl..+slibn..+støvsug... | S47: Rum 10 - 15 kvm, Primning, spartling, slibning, støvsugning | W47: 0
A48: Forberedende | B48: 0 | C48: S200106E | D48: kvm | E48: 12.1568133 | F48: 12.1568133 | G48: 12.1568133 | H48: 12.1568133 | I48: 11.70049404 | J48: 11.25047504 | K48: 11.01907447 | L48: 10.79243337 | M48: 10.57045384 | N48: 10.35304 | O48: 10.16 | P48: 2018-03-01 | Q48: 2017-03-01 | R48: Primn..+spartl..+slibn..+støvsug... | S48: Rum 15 - 30 kvm, Primning, spartling, slibning, støvsugning | W48: 0
A49: Forberedende | B49: 0 | C49: S200106F | D49: kvm | E49: 11.0201034 | F49: 11.0201034 | G49: 11.0201034 | H49: 11.0201034 | I49: 10.60645178 | J49: 10.19851133 | K49: 9.988747626 | L49: 9.783298361 | M49: 9.58207479 | N49: 9.38499 | O49: 9.21 | P49: 2018-03-01 | Q49: 2017-03-01 | R49: Primn..+spartl..+slibn..+støvsug... | S49: Rum 30 - 50 kvm, Primning, spartling, slibning, støvsugning | W49: 0
A50: Forberedende | B50: 0 | C50: S200106G | D50: kvm | E50: 10.51755797 | F50: 10.51755797 | G50: 10.51755797 | H50: 10.51755797 | I50: 10.12276994 | J50: 9.733432634 | K50: 9.533234705 | L50: 9.337154461 | M50: 9.14510721 | N50: 8.95701 | O50: 8.79 | P50: 2018-03-01 | Q50: 2017-03-01 | R50: Primn..+spartl..+slibn..+støvsug... | S50: Rum 50 - 100 kvm, Primning, spartling, slibning, støvsugning | W50: 0
A51: Forberedende | B51: 0 | C51: S200106H | D51: kvm | E51: 9.907324228 | F51: 9.907324228 | G51: 9.907324228 | H51: 9.907324228 | I51: 9.535441991 | J51: 9.168694222 | K51: 8.980111872 | L51: 8.795408298 | M51: 8.61450372 | N51: 8.43732 | O51: 8.28 | P51: 2018-03-01 | Q51: 2017-03-01 | R51: Primn..+spartl..+slibn..+støvsug... | S51: Rum over 100 kvm, Primning, spartling, slibning, støvsugning | W51: 0
A52: Forberedende | B52: 0 | C52: S200107A | D52: kvm | E52: 33.10817167 | F52: 33.10817167 | G52: 33.10817167 | H52: 33.10817167 | I52: 31.86542028 | J52: 30.63982719 | K52: 30.00962506 | L52: 29.39238498 | M52: 28.78784033 | N52: 28.19573 | O52: 27.67 | P52: 2018-03-01 | Q52: 2017-03-01 | R52: Primn..+spartl.. m/rive+slibn..+støvsug… | S52: Rum under 2 kvm, Primning, spartling m/rive, slibning, støvsugning | W52: 0
A53: Forberedende | B53: 0 | C53: S200107B | D53: kvm | E53: 24.85206814 | F53: 24.85206814 | G53: 24.85206814 | H53: 24.85206814 | I53: 23.91921862 | J53: 22.99924867 | K53: 22.5261985 | L53: 22.06287806 | M53: 21.60908723 | N53: 21.16463 | O53: 20.77 | P53: 2018-03-01 | Q53: 2017-03-01 | R53: Primn..+spartl.. m/rive+slibn..+støvsug… | S53: Rum 2 - 6 kvm, Primning, spartling m/rive, slibning, støvsugning | W53: 0
A54: Forberedende | B54: 0 | C54: S200107C | D54: kvm | E54: 22.01627606 | F54: 22.01627606 | G54: 22.01627606 | H54: 22.01627606 | I54: 21.18987109 | J54: 20.37487605 | K54: 19.95580416 | L54: 19.54535177 | M54: 19.1433416 | N54: 18.7496 | O54: 18.4 | P54: 2018-03-01 | Q54: 2017-03-01 | R54: Primn..+spartl.. m/rive+slibn..+støvsug… | S54: Rum 6 - 10 kvm, Primning, spartling m/rive, slibning, støvsugning | W54: 0
A55: Forberedende | B55: 0 | C55: S200107D | D55: kvm | E55: 19.85054456 | F55: 19.85054456 | G55: 19.85054456 | H55: 19.85054456 | I55: 19.10543268 | J55: 18.37060835 | K55: 17.99276038 | L55: 17.62268402 | M55: 17.26021941 | N55: 16.90521 | O55: 16.59 | P55: 2018-03-01 | Q55: 2017-03-01 | R55: Primn..+spartl.. m/rive+slibn..+støvsug… | S55: Rum 10 - 15 kvm, Primning, spartling m/rive, slibning, støvsugning | W55: 0
A56: Forberedende | B56: 0 | C56: S200107E | D56: kvm | E56: 18.21128922 | F56: 18.21128922 | G56: 18.21128922 | H56: 18.21128922 | I56: 17.52770859 | J56: 16.85356595 | K56: 16.50692062 | L56: 16.16740511 | M56: 15.83487278 | N56: 15.50918 | O56: 15.22 | P56: 2018-03-01 | Q56: 2017-03-01 | R56: Primn..+spartl.. m/rive+slibn..+støvsug… | S56: Rum 15 - 30 kvm, Primning, spartling m/rive, slibning, støvsugning | W56: 0
A57: Forberedende | B57: 0 | C57: S200107F | D57: kvm | E57: 16.56006852 | F57: 16.56006852 | G57: 16.56006852 | H57: 16.56006852 | I57: 15.93846825 | J57: 15.32545024 | K57: 15.0102353 | L57: 14.70150373 | M57: 14.39912216 | N57: 14.10296 | O57: 13.84 | P57: 2018-03-01 | Q57: 2017-03-01 | R57: Primn..+spartl.. m/rive+slibn..+støvsug… | S57: Rum 30 - 50 kvm, Primning, spartling m/rive, slibning, støvsugning | W57: 0
A58: Forberedende | B58: 0 | C58: S200107G | D58: kvm | E58: 15.71052743 | F58: 15.71052743 | G58: 15.71052743 | H58: 15.71052743 | I58: 15.12081562 | J58: 14.53924579 | K58: 14.24020156 | L58: 13.94730809 | M58: 13.66043887 | N58: 13.37947 | O58: 13.13 | P58: 2018-03-01 | Q58: 2017-03-01 | R58: Primn..+spartl.. m/rive+slibn..+støvsug… | S58: Rum 50 - 100 kvm, Primning, spartling m/rive, slibning, støvsugning | W58: 0
A59: Forberedende | B59: 0 | C59: S200107H | D59: kvm | E59: 14.89688244 | F59: 14.89688244 | G59: 14.89688244 | H59: 14.89688244 | I59: 14.33771169 | J59: 13.78626124 | K59: 13.50270445 | L59: 13.22497987 | M59: 12.95296755 | N59: 12.68655 | O59: 12.45 | P59: 2018-03-01 | Q59: 2017-03-01 | R59: Primn..+spartl.. m/rive+slibn..+støvsug… | S59: Rum over 100 kvm, Primning, spartling m/rive, slibning, støvsugning | W59: 0
A60: Forberedende | B60: 0 | C60: S200108A | D60: kvm | E60: 35.80037934 | F60: 35.80037934 | G60: 35.80037934 | H60: 35.80037934 | I60: 34.45657299 | J60: 33.13132018 | K60: 32.44987285 | L60: 31.78244158 | M60: 31.12873808 | N60: 30.48848 | O60: 29.92 | P60: 2018-03-01 | Q60: 2017-03-01 | R60: Aftagning og afrensning af belægning | S60: Rum under 2 kvm. | W60: 0
A61: Forberedende | B61: 0 | C61: S200108B | D61: kvm | E61: 26.8502845 | F61: 26.8502845 | G61: 26.8502845 | H61: 26.8502845 | I61: 25.84242974 | J61: 24.84849014 | K61: 24.33740464 | L61: 23.83683118 | M61: 23.34655356 | N61: 22.86636 | O61: 22.44 | P61: 2018-03-01 | Q61: 2017-03-01 | R61: Aftagning og afrensning af belægning | S61: Rum 2 - 6 kvm. | W61: 0
A62: Forberedende | B62: 0 | C62: S200108C | D62: kvm | E62: 23.78715044 | F62: 23.78715044 | G62: 23.78715044 | H62: 23.78715044 | I62: 22.89427376 | J62: 22.01372477 | K62: 21.56094493 | L62: 21.11747789 | M62: 20.68313212 | N62: 20.25772 | O62: 19.88 | P62: 2018-03-01 | Q62: 2017-03-01 | R62: Aftagning og afrensning af belægning | S62: Rum 6 - 10 kvm. | W62: 0
A63: Forberedende | B63: 0 | C63: S200108D | D63: kvm | E63: 21.4897999 | F63: 21.4897999 | G63: 21.4897999 | H63: 21.4897999 | I63: 20.68315678 | J63: 19.88765075 | K63: 19.47860015 | L63: 19.07796293 | M63: 18.68556604 | N63: 18.30124 | O63: 17.96 | P63: 2018-03-01 | Q63: 2017-03-01 | R63: Aftagning og afrensning af belægning | S63: Rum 10 - 15 kvm. | W63: 0
A64: Forberedende | B64: 0 | C64: S200108E | D64: kvm | E64: 19.70696015 | F64: 19.70696015 | G64: 19.70696015 | H64: 19.70696015 | I64: 18.96723787 | J64: 18.23772872 | K64: 17.86261383 | L64: 17.49521433 | M64: 17.13537153 | N64: 16.78293 | O64: 16.47 | P64: 2018-03-01 | Q64: 2017-03-01 | R64: Aftagning og afrensning af belægning | S64: Rum 15 - 30 kvm. | W64: 0
A65: Forberedende | B65: 0 | C65: S200108F | D65: kvm | E65: 17.8882243 | F65: 17.8882243 | G65: 17.8882243 | H65: 17.8882243 | I65: 17.21677026 | J65: 16.55458679 | K65: 16.21409088 | L65: 15.88059832 | M65: 15.55396505 | N65: 15.23405 | O65: 14.95 | P65: 2018-03-01 | Q65: 2017-03-01 | R65: Aftagning og afrensning af belægning | S65: Rum 30 - 50 kvm. | W65: 0
A66: Forberedende | B66: 0 | C66: S200108G | D66: kvm | E66: 16.99082174 | F66: 16.99082174 | G66: 16.99082174 | H66: 16.99082174 | I66: 16.35305269 | J66: 15.72408912 | K66: 15.40067495 | L66: 15.08391278 | M66: 14.7736658 | N66: 14.4698 | O66: 14.2 | P66: 2018-03-01 | Q66: 2017-03-01 | R66: Aftagning og afrensning af belægning | S66: Rum 50 - 100 kvm. | W66: 0
A67: Forberedende | B67: 0 | C67: S200108H | D67: kvm | E67: 16.11734992 | F67: 16.11734992 | G67: 16.11734992 | H67: 16.11734992 | I67: 15.51236759 | J67: 14.91573806 | K67: 14.60895011 | L67: 14.3084722 | M67: 14.01417453 | N67: 13.72593 | O67: 13.47 | P67: 2018-03-01 | Q67: 2017-03-01 | R67: Aftagning og afrensning af belægning | S67: Rum over 100 kvm. | W67: 0
A68: Forberedende | B68: 0 | C68: S200109A | D68: kvm | E68: 21.0470813 | F68: 21.0470813 | G68: 21.0470813 | H68: 21.0470813 | I68: 20.25705611 | J68: 19.47793857 | K68: =SUM(L68*$K$2+L68) -> 19.07731496 | L68: =SUM(M68*$L$2+M68) -> 18.6849314 | M68: =SUM(N68*$M$2+N68) -> 18.30061841 | N68: 17.92421 | O68: 17.59 | P68: 2018-03-01 | Q68: 2017-03-01 | R68: Aftagning af ekstra lag belægning | S68: Rum under 2 kvm. | W68: 0
A69: Forberedende | B69: 0 | C69: S200109B | D69: kvm | E69: =SUM(F69*$E$2+F69) -> 15.794285 | F69: =SUM(G69*$F$2+G69) -> 15.794285 | G69: =SUM(H69*$G$2+H69) -> 15.794285 | H69: =SUM(I69*$H$2+I69) -> 15.794285 | I69: =SUM(J69*$I$2+J69) -> 15.20142926 | J69: =SUM(K69*$J$2+K69) -> 14.6167589 | K69: 14.31612038 | L69: 14.0216654 | M69: 13.7332668 | N69: =SUM(O69*$N$2+O69) -> 13.4508 | O69: 13.2 | P69: 2018-03-01 | Q69: 2017-03-01 | R69: Aftagning af ekstra lag belægning | S69: Rum 2 - 6 kvm. | W69: 0
A70: Forberedende | B70: 0 | C70: S200109C | D70: kvm | E70: 13.99947989 | F70: 13.99947989 | G70: 13.99947989 | H70: 13.99947989 | I70: 13.47399412 | J70: 12.95576357 | K70: 12.68928852 | L70: 12.42829433 | M70: 12.1726683 | N70: 11.9223 | O70: 11.7 | P70: 2018-03-01 | Q70: 2017-03-01 | R70: Aftagning af ekstra lag belægning | S70: Rum 6 - 10 kvm. | W70: 0
A71: Forberedende | B71: 0 | C71: S200109D | D71: kvm | E71: 12.64739337 | F71: 12.64739337 | G71: 12.64739337 | H71: 12.64739337 | I71: 12.17265964 | J71: 11.70448043 | K71: 11.46374185 | L71: 11.2279548 | M71: 10.99701743 | N71: 10.77083 | O71: 10.57 | P71: 2018-03-01 | Q71: 2017-03-01 | R71: Aftagning af ekstra lag belægning | S71: Rum 10 - 15 kvm. | W71: 0
A72: Forberedende | B72: 0 | C72: S200109E | D72: kvm | E72: 11.59444104 | F72: 11.59444104 | G72: 11.59444104 | H72: 11.59444104 | I72: 11.15923103 | J72: 10.73002983 | K72: 10.50933382 | L72: 10.2931771 | M72: 10.08146631 | N72: 9.87411 | O72: 9.69 | P72: 2018-03-01 | Q72: 2017-03-01 | R72: Aftagning af ekstra lag belægning | S72: Rum 15 - 30 kvm. | W72: 0
A73: Forberedende | B73: 0 | C73: S200109F | D73: kvm | E73: 10.52952333 | F73: 10.52952333 | G73: 10.52952333 | H73: 10.52952333 | I73: 10.13428617 | J73: 9.744505936 | K73: 9.544080251 | L73: 9.347776935 | M73: 9.1555112 | N73: 8.9672 | O73: 8.8 | P73: 2018-03-01 | Q73: 2017-03-01 | R73: Aftagning af ekstra lag belægning | S73: Rum 30 - 50 kvm. | W73: 0
A74: Forberedende | B74: 0 | C74: S200109G | D74: kvm | E74: 9.967151065 | F74: 9.967151065 | G74: 9.967151065 | H74: 9.967151065 | I74: 9.593023162 | J74: 9.224060733 | K74: 9.034339601 | L74: 8.848520667 | M74: 8.66652367 | N74: 8.48827 | O74: 8.33 | P74: 2018-03-01 | Q74: 2017-03-01 | R74: Aftagning af ekstra lag belægning | S74: Rum 50 - 100 kvm. | W74: 0
A75: Forberedende | B75: 0 | C75: S200109H | D75: kvm | E75: 9.500501736 | F75: 9.500501736 | G75: 9.500501736 | H75: 9.500501736 | I75: 9.143890025 | J75: 8.792201947 | K75: 8.611363317 | L75: 8.434244189 | M75: 8.26076806 | N75: 8.09086 | O75: 7.94 | P75: 2018-03-01 | Q75: 2017-03-01 | R75: Aftagning af ekstra lag belægning | S75: Rum over 100 kvm. | W75: 0
A76: Forberedende | B76: 0 | C76: S200110A | D76: kvm | E76: 57.56538268 | F76: 57.56538268 | G76: 57.56538268 | H76: 57.56538268 | I76: 55.40460316 | J76: 53.27365688 | K76: 52.17792055 | L76: 51.1047214 | M76: 50.05359589 | N76: 49.02409 | O76: 48.11 | P76: 2018-03-01 | Q76: 2017-03-01 | R76: Aftagning af masonit, afrensning af søm | S76: Rum under 2 kvm. | W76: 0
A77: Forberedende | B77: 0 | C77: S200110B | D77: kvm | E77: 43.18301104 | F77: 43.18301104 | G77: 43.18301104 | H77: 43.18301104 | I77: 41.56208955 | J77: 39.96354764 | K77: 39.14157457 | L77: 38.33650791 | M77: 37.54799991 | N77: 36.77571 | O77: 36.09 | P77: 2018-03-01 | Q77: 2017-03-01 | R77: Aftagning af masonit, afrensning af søm | S77: Rum 2 - 6 kvm. | W77: 0
A78: Forberedende | B78: 0 | C78: S200110C | D78: kvm | E78: 38.30114113 | F78: 38.30114113 | G78: 38.30114113 | H78: 38.30114113 | I78: 36.86346596 | J78: 35.44564034 | K78: 34.71659191 | L78: 34.0025386 | M78: 33.30317199 | N78: 32.61819 | O78: 32.01 | P78: 2018-03-01 | Q78: 2017-03-01 | R78: Aftagning af masonit, afrensning af søm | S78: Rum 6 - 10 kvm. | W78: 0
A79: Forberedende | B79: 0 | C79: S200110D | D79: kvm | E79: 34.54401576 | F79: 34.54401576 | G79: 34.54401576 | H79: 34.54401576 | I79: 33.24736839 | J79: 31.96862345 | K79: 31.31109055 | L79: 30.66708183 | M79: 30.03631913 | N79: 29.41853 | O79: 28.87 | P79: 2018-03-01 | Q79: 2017-03-01 | R79: Aftagning af masonit, afrensning af søm | S79: Rum 10 - 15 kvm. | W79: 0
A80: Forberedende | B80: 0 | C80: S200110E | D80: kvm | E80: 31.63643147 | F80: 31.63643147 | G80: 31.63643147 | H80: 31.63643147 | I80: 30.44892346 | J80: 29.27781102 | K80: 28.67562294 | L80: 28.0858207 | M80: 27.50814956 | N80: 26.94236 | O80: 26.44 | P80: 2018-03-01 | Q80: 2017-03-01 | R80: Aftagning af masonit, afrensning af søm | S80: Rum 15 - 30 kvm. | W80: 0
A81: Forberedende | B81: 0 | C81: S200110F | D81: kvm | E81: 28.75277792 | F81: 28.75277792 | G81: 28.75277792 | H81: 28.75277792 | I81: 27.67351099 | J81: 26.60914519 | K81: 26.06184641 | L81: 25.52580452 | M81: 25.00078797 | N81: 24.48657 | O81: 24.03 | P81: 2018-03-01 | Q81: 2017-03-01 | R81: Aftagning af masonit, afrensning af søm | S81: Rum 30 - 50 kvm. | W81: 0
A82: Forberedende | B82: 0 | C82: S200110G | D82: kvm | E82: 27.34086457 | F82: 27.34086457 | G82: 27.34086457 | H82: 27.34086457 | I82: 26.31459535 | J82: 25.30249553 | K82: 24.78207201 | L82: 24.27235261 | M82: 23.77311715 | N82: 23.28415 | O82: 22.85 | P82: 2018-03-01 | Q82: 2017-03-01 | R82: Aftagning af masonit, afrensning af søm | S82: Rum 50 - 100 kvm. | W82: 0
A83: Forberedende | B83: 0 | C83: S200110H | D83: kvm | E83: 25.89305511 | F83: 25.89305511 | G83: 25.89305511 | H83: 25.89305511 | I83: 24.921131 | J83: 23.96262596 | K83: 23.46976098 | L83: 22.98703328 | M83: 22.51423436 | N83: 22.05116 | O83: 21.64 | P83: 2018-03-01 | Q83: 2017-03-01 | R83: Aftagning af masonit, afrensning af søm | S83: Rum over 100 kvm. | W83: 0
A84: Underlag | B84: 0 | C84: S200111A | D84: kvm | E84: 23.60766993 | F84: 23.60766993 | G84: 23.60766993 | H84: 23.60766993 | I84: 22.72153025 | J84: 21.84762524 | K84: 21.39826174 | L84: 20.95814079 | M84: 20.52707227 | N84: 20.10487 | O84: 19.73 | P84: 2018-03-01 | Q84: 2017-03-01 | R84: Korkment, lægni..+klæbn..+ inkl. div. Udskær.. | S84: Rum under 2 kvm. | W84: 0
A85: Underlag | B85: 0 | C85: S200111B | D85: kvm | E85: 17.46943644 | F85: 17.46943644 | G85: 17.46943644 | H85: 17.46943644 | I85: 16.81370206 | J85: 16.16702121 | K85: 15.83449678 | L85: 15.50881173 | M85: 15.1898254 | N85: 14.8774 | O85: 14.6 | P85: 2018-03-01 | Q85: 2017-03-01 | R85: Korkment, lægni..+klæbn..+ inkl. div. Udskær.. | S85: Rum 2 - 6 kvm. | W85: 0
A86: Underlag | B86: 0 | C86: S200111C | D86: kvm | E86: 14.53792142 | F86: 14.53792142 | G86: 14.53792142 | H86: 14.53792142 | I86: 13.99222466 | J86: 13.45406217 | K86: 13.17733807 | L86: 12.90630565 | M86: 12.64084785 | N86: 12.38085 | O86: 12.15 | P86: 2018-03-01 | Q86: 2017-03-01 | R86: Korkment, lægni..+klæbn..+ inkl. div. Udskær.. | S86: Rum 6 - 10 kvm. | W86: 0
A87: Underlag | B87: 0 | C87: S200111D | D87: kvm | E87: 12.87473535 | F87: 12.87473535 | G87: 12.87473535 | H87: 12.87473535 | I87: 12.39146809 | J87: 11.91487317 | K87: 11.66980722 | L87: 11.4297818 | M87: 11.19469324 | N87: 10.96444 | O87: 10.76 | P87: 2018-03-01 | Q87: 2017-03-01 | R87: Korkment, lægni..+klæbn..+ inkl. div. Udskær.. | S87: Rum 10 - 15 kvm. | W87: 0
A88: Underlag | B88: 0 | C88: S200111E | D88: kvm | E88: 11.48675273 | F88: 11.48675273 | G88: 11.48675273 | H88: 11.48675273 | I88: 11.05558492 | J88: 10.63037011 | K88: 10.41172391 | L88: 10.19757484 | M88: 9.9878304 | N88: 9.7824 | O88: 9.6 | P88: 2018-03-01 | Q88: 2017-03-01 | R88: Korkment, lægni..+klæbn..+ inkl. div. Udskær.. | S88: Rum 15 - 30 kvm. | W88: 0
A89: Underlag | B89: 0 | C89: S200111F | D89: kvm | E89: 10.12270084 | F89: 10.12270084 | G89: 10.12270084 | H89: 10.12270084 | I89: 9.742734208 | J89: 9.368013661 | K89: 9.175331696 | L89: 8.986612826 | M89: 8.80177554 | N89: 8.62074 | O89: 8.46 | P89: 2018-03-01 | Q89: 2017-03-01 | R89: Korkment, lægni..+klæbn..+ inkl. div. Udskær.. | S89: Rum 30 - 50 kvm. | W89: 0
A90: Underlag | B90: 0 | C90: S200111G | D90: kvm | E90: 9.62015541 | F90: 9.62015541 | G90: 9.62015541 | H90: 9.62015541 | I90: 9.259052368 | J90: 8.902934969 | K90: 8.719818775 | L90: 8.540468927 | M90: 8.36480796 | N90: 8.19276 | O90: 8.04 | P90: 2018-03-01 | Q90: 2017-03-01 | R90: Korkment, lægni..+klæbn..+ inkl. div. Udskær.. | S90: Rum 50 - 100 kvm. | W90: 0
A91: Underlag | B91: 0 | C91: S200111H | D91: kvm | E91: 8.531306974 | F91: 8.531306974 | G91: 8.531306974 | H91: 8.531306974 | I91: 8.211075047 | J91: 7.895264469 | K91: 7.732874112 | L91: 7.573823812 | M91: 7.41804487 | N91: 7.26547 | O91: 7.13 | P91: 2018-03-01 | Q91: 2017-03-01 | R91: Korkment, lægni..+klæbn..+ inkl. div. Udskær.. | S91: Rum over 100 kvm. | W91: 0
A92: Underlag | B92: 0 | C92: S200112A | D92: kvm | E92: 2.165731504 | F92: 2.165731504 | G92: 2.165731504 | H92: 2.165731504 | I92: 2.084438406 | J92: 2.004267698 | K92: 1.963043779 | L92: 1.922667756 | M92: 1.88312219 | N92: 1.84439 | O92: 1.81 | P92: 2018-03-01 | Q92: 2017-03-01 | R92: Opskæring af Korkment | S92: Rum under 2 kvm (20% tillæg) | W92: 0
A93: Underlag | B93: 0 | C93: S200112B | D93: kvm | E93: 1.687116807 | F93: 1.687116807 | G93: 1.687116807 | H93: 1.687116807 | I93: 1.623789035 | J93: 1.56133561 | K93: 1.529221949 | L93: 1.497768804 | M93: 1.46696259 | N93: 1.43679 | O93: 1.41 | P93: 2018-03-01 | Q93: 2017-03-01 | R93: Opskæring af Korkment | S93: Rum 2 - 6 kvm (20% tillæg) | W93: 0
A94: Underlag | B94: 0 | C94: S200112C | D94: kvm | E94: 1.495670928 | F94: 1.495670928 | G94: 1.495670928 | H94: 1.495670928 | I94: 1.439529286 | J94: 1.384162775 | K94: 1.355693217 | L94: 1.327809224 | M94: 1.30049875 | N94: 1.27375 | O94: 1.25 | P94: 2018-03-01 | Q94: 2017-03-01 | R94: Opskæring af Korkment | S94: Rum 6 - 10 kvm (20% tillæg) | W94: 0
A95: Underlag | B95: 0 | C95: S200112D | D95: kvm | E95: 1.340121152 | F95: 1.340121152 | G95: 1.340121152 | H95: 1.340121152 | I95: 1.28981824 | J95: 1.240209846 | K95: 1.214701123 | L95: 1.189717064 | M95: 1.16524688 | N95: 1.14128 | O95: 1.12 | P95: 2018-03-01 | Q95: 2017-03-01 | R95: Opskæring af Korkment | S95: Rum 10 - 15 kvm (20% tillæg) | W95: 0
A96: Underlag | B96: 0 | C96: S200112E | D96: kvm | E96: 1.25636358 | F96: 1.25636358 | G96: 1.25636358 | H96: 1.25636358 | I96: 1.2092046 | J96: 1.162696731 | K96: 1.138782303 | L96: 1.115359748 | M96: 1.09241895 | N96: 1.06995 | O96: 1.05 | P96: 2018-03-01 | Q96: 2017-03-01 | R96: Opskæring af Korkment | S96: Rum 15 - 30 kvm (20% tillæg) | W96: 0
A97: Underlag | B97: 0 | C97: S200112F | D97: kvm | E97: 1.088848436 | F97: 1.088848436 | G97: 1.088848436 | H97: 1.088848436 | I97: 1.04797732 | J97: 1.0076705 | K97: 0.9869446623 | L97: 0.9666451149 | M97: 0.94676309 | N97: 0.92729 | O97: 0.91 | P97: 2018-03-01 | Q97: 2017-03-01 | R97: Opskæring af Korkment | S97: Rum 30 - 50 kvm (20% tillæg) | W97: 0
A98: Underlag | B98: 0 | C98: S200112G | D98: kvm | E98: 1.088848436 | F98: 1.088848436 | G98: 1.088848436 | H98: 1.088848436 | I98: 1.04797732 | J98: 1.0076705 | K98: 0.9869446623 | L98: 0.9666451149 | M98: 0.94676309 | N98: 0.92729 | O98: 0.91 | P98: 2018-03-01 | Q98: 2017-03-01 | R98: Opskæring af Korkment | S98: Rum 50 - 100 kvm (20% tillæg) | W98: 0
A99: Underlag | B99: 0 | C99: S200112H | D99: kvm | E99: 0.957229394 | F99: 0.957229394 | G99: 0.957229394 | H99: 0.957229394 | I99: 0.9212987431 | J99: 0.885864176 | K99: 0.8676436592 | L99: 0.8497979032 | M99: 0.8323192 | N99: 0.8152 | O99: 0.8 | P99: 2018-03-01 | Q99: 2017-03-01 | R99: Opskæring af Korkment | S99: Rum over 100 kvm (20% tillæg) | W99: 0
A100: Underlag | B100: 0 | C100: S200113A | D100: kvm | E100: 59.58752978 | F100: 59.58752978 | G100: 59.58752978 | H100: 59.58752978 | I100: 57.35084675 | J100: 55.14504496 | K100: 54.01081778 | L100: 52.89991947 | M100: 51.8118702 | N100: 50.7462 | O100: 49.8 | P100: 2018-03-01 | Q100: 2017-03-01 | R100: Træfiberplader, inkl. maskinsømni.., inkl. div udskær.. | S100: Rum under 2 kvm. | W100: 0
A101: Underlag | B101: 0 | C101: S200113B | D101: kvm | E101: 45.38463864 | F101: 45.38463864 | G101: 45.38463864 | H101: 45.38463864 | I101: 43.68107665 | J101: 42.00103525 | K101: 41.13715499 | L101: 40.29104309 | M101: 39.46233407 | N101: 38.65067 | O101: 37.93 | P101: 2018-03-01 | Q101: 2017-03-01 | R101: Træfiberplader, inkl. maskinsømni.., inkl. div udskær.. | S101: Rum 2 - 6 kvm. | W101: 0
A102: Underlag | B102: 0 | C102: S200113C | D102: kvm | E102: 37.16443122 | F102: 37.16443122 | G102: 37.16443122 | H102: 37.16443122 | I102: 35.7694237 | J102: 34.39367663 | K102: 33.68626507 | L102: 32.99340359 | M102: 32.31479294 | N102: 31.65014 | O102: 31.06 | P102: 2018-03-01 | Q102: 2017-03-01 | R102: Træfiberplader, inkl. maskinsømni.., inkl. div udskær.. | S102: Rum 6 - 10 kvm. | W102: 0
A103: Underlag | B103: 0 | C103: S200113D | D103: kvm | E103: 29.88948783 | F103: 29.88948783 | G103: 29.88948783 | H103: 29.88948783 | I103: 28.76755325 | J103: 27.6611089 | K103: 27.09217326 | L103: 26.53493953 | M103: 25.98916702 | N103: 25.45462 | O103: 24.98 | P103: 2018-03-01 | Q103: 2017-03-01 | R103: Træfiberplader, inkl. maskinsømni.., inkl. div udskær.. | S103: Rum 10 - 15 kvm. | W103: 0
A104: Underlag | B104: 0 | C104: S200113E | D104: kvm | E104: 25.90502048 | F104: 25.90502048 | G104: 25.90502048 | H104: 25.90502048 | I104: 24.93264723 | J104: 23.97369926 | K104: 23.48060653 | L104: 22.99765576 | M104: 22.52463835 | N104: 22.06135 | O104: 21.65 | P104: 2018-03-01 | Q104: 2017-03-01 | R104: Træfiberplader, inkl. maskinsømni.., inkl. div udskær.. | S104: Rum 15 - 30 kvm. | W104: 0
A105: Underlag | B105: 0 | C105: S200113F | D105: kvm | E105: 21.60945357 | F105: 21.60945357 | G105: 21.60945357 | H105: 21.60945357 | I105: 20.79831912 | J105: 19.99838377 | K105: 19.58705561 | L105: 19.18418766 | M105: 18.78960594 | N105: 18.40314 | O105: 18.06 | P105: 2018-03-01 | Q105: 2017-03-01 | R105: Træfiberplader, inkl. maskinsømni.., inkl. div udskær.. | S105: Rum 30 - 50 kvm. | W105: 0
A106: Underlag | B106: 0 | C106: S200113G | D106: kvm | E106: 19.16851862 | F106: 19.16851862 | G106: 19.16851862 | H106: 19.16851862 | I106: 18.44900733 | J106: 17.73943012 | K106: 17.37456427 | L106: 17.01720301 | M106: 16.66719198 | N106: 16.32438 | O106: 16.02 | P106: 2018-03-01 | Q106: 2017-03-01 | R106: Træfiberplader, inkl. maskinsømni.., inkl. div udskær.. | S106: Rum 50 - 100 kvm. | W106: 0
A107: Underlag | B107: 0 | C107: S200113H | D107: kvm | E107: 17.8523282 | F107: 17.8523282 | G107: 17.8523282 | H107: 17.8523282 | I107: 17.18222156 | J107: 16.52136688 | K107: 16.18155424 | L107: 15.84873089 | M107: 15.52275308 | N107: 15.20348 | O107: 14.92 | P107: 2018-03-01 | Q107: 2017-03-01 | R107: Træfiberplader, inkl. maskinsømni.., inkl. div udskær.. | S107: Rum over 100 kvm. | W107: 0
A108: Underlag | B108: 0 | C108: S200114A | D108: kvm | E108: 48.83066446 | F108: 48.83066446 | G108: 48.83066446 | H108: 48.83066446 | I108: 46.99775213 | J108: 45.19014628 | K108: 44.26067216 | L108: 43.35031554 | M108: 42.45868319 | N108: 41.58539 | O108: 40.81 | P108: 2018-03-01 | Q108: 2017-03-01 | R108: Svømmende fiberplader - under 12mm | S108: Rum under 2 kvm, inkl. limning og div. tillæg. | W108: 0
A109: Underlag | B109: 0 | C109: S200114B | D109: kvm | E109: 39.47374714 | F109: 39.47374714 | G109: 39.47374714 | H109: 39.47374714 | I109: 37.99205692 | J109: 36.53082396 | K109: 35.77945539 | L109: 35.04354103 | M109: 34.32276301 | N109: 33.61681 | O109: 32.99 | P109: 2018-03-01 | Q109: 2017-03-01 | R109: Svømmende fiberplader - under 12mm | S109: Rum 2 - 6 kvm, inkl. limning og div. tillæg. | W109: 0
A110: Underlag | B110: 0 | C110: S200114C | D110: kvm | E110: 32.98851799 | F110: 32.98851799 | G110: 32.98851799 | H110: 32.98851799 | I110: 31.75025793 | J110: 30.52909417 | K110: 29.9011696 | L110: 29.28616024 | M110: 28.68380043 | N110: 28.09383 | O110: 27.57 | P110: 2018-03-01 | Q110: 2017-03-01 | R110: Svømmende fiberplader - under 12mm | S110: Rum 6 - 10 kvm, inkl. limning og div. tillæg. | W110: 0
A111: Underlag | B111: 0 | C111: S200114D | D111: kvm | E111: 27.2930031 | F111: 27.2930031 | G111: 27.2930031 | H111: 27.2930031 | I111: 26.26853041 | J111: 25.25820232 | K111: 24.73868983 | L111: 24.22986271 | M111: 23.73150119 | N111: 23.24339 | O111: 22.81 | P111: 2018-03-01 | Q111: 2017-03-01 | R111: Svømmende fiberplader - under 12mm | S111: Rum 10 - 15 kvm, inkl. limning og div. tillæg. | W111: 0
A112: Underlag | B112: 0 | C112: S200114E | D112: kvm | E112: 24.73241447 | F112: 24.73241447 | G112: 24.73241447 | H112: 24.73241447 | I112: 23.80405627 | J112: 22.88851565 | K112: 22.41774304 | L112: 21.95665332 | M112: 21.50504733 | N112: 21.06273 | O112: 20.67 | P112: 2018-03-01 | Q112: 2017-03-01 | R112: Svømmende fiberplader - under 12mm | S112: Rum 15 - 30 kvm, inkl. limning og div. tillæg. | W112: 0
A113: Underlag | B113: 0 | C113: S200114F | D113: kvm | E113: 22.13592974 | F113: 22.13592974 | G113: 22.13592974 | H113: 22.13592974 | I113: 21.30503343 | J113: 20.48560907 | K113: 20.06425962 | L113: 19.65157651 | M113: 19.2473815 | N113: 18.8515 | O113: 18.5 | P113: 2018-03-01 | Q113: 2017-03-01 | R113: Svømmende fiberplader - under 12mm | S113: Rum 30 - 50 kvm, inkl. limning og div. tillæg. | W113: 0
A114: Underlag | B114: 0 | C114: S200114G | D114: kvm | E114: 20.4248822 | F114: 20.4248822 | G114: 20.4248822 | H114: 20.4248822 | I114: 19.65821193 | J114: 18.90212686 | K114: 18.51334658 | L114: 18.13256276 | M114: 17.75961093 | N114: 17.39433 | O114: 17.07 | P114: 2018-03-01 | Q114: 2017-03-01 | R114: Svømmende fiberplader - under 12mm | S114: Rum 50 - 100 kvm, inkl. limning og div. tillæg. | W114: 0
A115: Underlag | B115: 0 | C115: S200114H | D115: kvm | E115: 18.97707274 | F115: 18.97707274 | G115: 18.97707274 | H115: 18.97707274 | I115: 18.26474758 | J115: 17.56225729 | K115: 17.20103554 | L115: 16.84724343 | M115: 16.50072814 | N115: 16.16134 | O115: 15.86 | P115: 2018-03-01 | Q115: 2017-03-01 | R115: Svømmende fiberplader - under 12mm | S115: Rum over 100 kvm, inkl. limning og div. tillæg. | W115: 0
A116: Underlag | B116: 0 | C116: S200115A | D116: kvm | E116: 62.65066384 | F116: 62.65066384 | G116: 62.65066384 | H116: 62.65066384 | I116: 60.29900273 | J116: 57.97981032 | K116: 56.78727749 | L116: 55.61927276 | M116: 54.47529164 | N116: 53.35484 | O116: 52.36 | P116: 2018-03-01 | Q116: 2017-03-01 | R116: Svømmende fiberplader - 12-25mm | S116: Rum under 2 kvm, inkl. limning og div. tillæg. | W116: 0
A117: Underlag | B117: 0 | C117: S200115B | D117: kvm | E117: 50.80495009 | F117: 50.80495009 | G117: 50.80495009 | H117: 50.80495009 | I117: 48.89793079 | J117: 47.01724114 | K117: 46.05018721 | L117: 45.10302371 | M117: 44.17534154 | N117: 43.26674 | O117: 42.46 | P117: 2018-03-01 | Q117: 2017-03-01 | R117: Svømmende fiberplader - 12-25mm | S117: Rum 2 - 6 kvm, inkl. limning og div. tillæg. | W117: 0
A118: Underlag | B118: 0 | C118: S200115C | D118: kvm | E118: 43.23087251 | F118: 43.23087251 | G118: 43.23087251 | H118: 43.23087251 | I118: 41.60815448 | J118: 40.00784085 | K118: 39.18495676 | L118: 38.3789978 | M118: 37.58961587 | N118: 36.81647 | O118: 36.13 | P118: 2018-03-01 | Q118: 2017-03-01 | R118: Svømmende fiberplader - 12-25mm | S118: Rum 6 - 10 kvm, inkl. limning og div. tillæg. | W118: 0
A119: Underlag | B119: 0 | C119: S200115D | D119: kvm | E119: 36.90119314 | F119: 36.90119314 | G119: 36.90119314 | H119: 36.90119314 | I119: 35.51606654 | J119: 34.15006399 | K119: 33.44766306 | L119: 32.75970917 | M119: 32.08590516 | N119: 31.42596 | O119: 30.84 | P119: 2018-03-01 | Q119: 2017-03-01 | R119: Svømmende fiberplader - 12-25mm | S119: Rum 10 - 15 kvm, inkl. limning og div. tillæg. | W119: 0
A120: Underlag | B120: 0 | C120: S200115E | D120: kvm | E120: 33.95771275 | F120: 33.95771275 | G120: 33.95771275 | H120: 33.95771275 | I120: 32.68307291 | J120: 31.42603164 | K120: 30.77965881 | L120: 30.14658062 | M120: 29.52652362 | N120: 28.91922 | O120: 28.38 | P120: 2018-03-01 | Q120: 2017-03-01 | R120: Svømmende fiberplader - 12-25mm | S120: Rum 15 - 30 kvm, inkl. limning og div. tillæg. | W120: 0
A121: Underlag | B121: 0 | C121: S200115F | D121: kvm | E121: 30.9663709 | F121: 30.9663709 | G121: 30.9663709 | H121: 30.9663709 | I121: 29.80401434 | J121: 28.65770609 | K121: 28.06827237 | L121: 27.49096217 | M121: 26.92552612 | N121: 26.37172 | O121: 25.88 | P121: 2018-03-01 | Q121: 2017-03-01 | R121: Svømmende fiberplader - 12-25mm | S121: Rum 30 - 50 kvm, inkl. limning og div. tillæg. | W121: 0
A122: Underlag | B122: 0 | C122: S200115G | D122: kvm | E122: 29.21942725 | F122: 29.21942725 | G122: 29.21942725 | H122: 29.21942725 | I122: 28.12264413 | J122: 27.04100397 | K122: 26.4848227 | L122: 25.940081 | M122: 25.40654358 | N122: 24.88398 | O122: 24.42 | P122: 2018-03-01 | Q122: 2017-03-01 | R122: Svømmende fiberplader - 12-25mm | S122: Rum 50 -100 kvm, inkl. limning og div. tillæg. | W122: 0
A123: Underlag | B123: 0 | C123: S200115H | D123: kvm | E123: 27.92716757 | F123: 27.92716757 | G123: 27.92716757 | H123: 27.92716757 | I123: 26.87889083 | J123: 25.84508734 | K123: 25.31350376 | L123: 24.79285383 | M123: 24.28291266 | N123: 23.78346 | O123: 23.34 | P123: 2018-03-01 | Q123: 2017-03-01 | R123: Svømmende fiberplader - 12-25mm | S123: Rum over 100 kvm, inkl. limning og div. tillæg. | W123: 0
A124: Underlag | B124: 0 | C124: S200116A | D124: kvm | E124: 3.457991186 | F124: 3.457991186 | G124: 3.457991186 | H124: 3.457991186 | I124: 3.328191709 | J124: 3.200184336 | K124: 3.134362719 | L124: 3.069894925 | M124: 3.00675311 | N124: 2.94491 | O124: 2.89 | P124: 2018-03-01 | Q124: 2017-03-01 | R124: Plastfolie udlagt | S124: Rum under 2 kvm. | W124: 0
A125: Underlag | B125: 0 | C125: S200116B | D125: kvm | E125: 2.88365355 | F125: 2.88365355 | G125: 2.88365355 | H125: 2.88365355 | I125: 2.775412463 | J125: 2.66866583 | K125: 2.613776523 | L125: 2.560016183 | M125: 2.50736159 | N125: 2.45579 | O125: 2.41 | P125: 2018-03-01 | Q125: 2017-03-01 | R125: Plastfolie udlagt | S125: Rum 2 - 6 kvm. | W125: 0
A126: Underlag | B126: 0 | C126: S200116C | D126: kvm | E126: 2.608450099 | F126: 2.608450099 | G126: 2.608450099 | H126: 2.608450099 | I126: 2.510539075 | J126: 2.41397988 | K126: 2.364328971 | L126: 2.315699286 | M126: 2.26806982 | N126: 2.22142 | O126: 2.18 | P126: 2018-03-01 | Q126: 2017-03-01 | R126: Plastfolie udlagt | S126: Rum 6 - 10 kvm. | W126: 0
A127: Underlag | B127: 0 | C127: S200116D | D127: kvm | E127: 2.105904667 | F127: 2.105904667 | G127: 2.105904667 | H127: 2.105904667 | I127: 2.026857235 | J127: 1.948901187 | K127: 1.90881605 | L127: 1.869555387 | M127: 1.83110224 | N127: 1.79344 | O127: 1.76 | P127: 2018-03-01 | Q127: 2017-03-01 | R127: Plastfolie udlagt | S127: Rum 10 - 15 kvm. | W127: 0
A128: Underlag | B128: 0 | C128: S200116E | D128: kvm | E128: 1.962320258 | F128: 1.962320258 | G128: 1.962320258 | H128: 1.962320258 | I128: 1.888662423 | J128: 1.816021561 | K128: 1.778669501 | L128: 1.742085702 | M128: 1.70625436 | N128: 1.67116 | O128: 1.64 | P128: 2018-03-01 | Q128: 2017-03-01 | R128: Plastfolie udlagt | S128: Rum 15 - 30 kvm. | W128: 0
A129: Underlag | B129: 0 | C129: S200116F | D129: kvm | E129: 1.723012909 | F129: 1.723012909 | G129: 1.723012909 | H129: 1.723012909 | I129: 1.658337737 | J129: 1.594555517 | K129: 1.561758587 | L129: 1.529636226 | M129: 1.49817456 | N129: 1.46736 | O129: 1.44 | P129: 2018-03-01 | Q129: 2017-03-01 | R129: Plastfolie udlagt | S129: Rum 30 - 50 kvm. | W129: 0
A130: Underlag | B130: 0 | C130: S200116G | D130: kvm | E130: 1.723012909 | F130: 1.723012909 | G130: 1.723012909 | H130: 1.723012909 | I130: 1.658337737 | J130: 1.594555517 | K130: 1.561758587 | L130: 1.529636226 | M130: 1.49817456 | N130: 1.46736 | O130: 1.44 | P130: 2018-03-01 | Q130: 2017-03-01 | R130: Plastfolie udlagt | S130: Rum 50 - 100 kvm. | W130: 0
A131: Underlag | B131: 0 | C131: S200116H | D131: kvm | E131: 1.5794285 | F131: 1.5794285 | G131: 1.5794285 | H131: 1.5794285 | I131: 1.520142926 | J131: 1.46167589 | K131: 1.431612038 | L131: 1.40216654 | M131: 1.37332668 | N131: 1.34508 | O131: 1.32 | P131: 2018-03-01 | Q131: 2017-03-01 | R131: Plastfolie udlagt | S131: Rum over 100 kvm. | W131: 0
A132: Underlag | B132: 0 | C132: S200117A | D132: kvm | E132: 4.989558216 | F132: 4.989558216 | G132: 4.989558216 | H132: 4.989558216 | I132: 4.802269698 | J132: 4.617567017 | K132: =SUM(L132*$K$2+L132) -> 4.522592573 | L132: =SUM(M132*$L$2+M132) -> 4.42957157 | M132: =SUM(N132*$M$2+N132) -> 4.33846383 | N132: 4.24923 | O132: 4.17 | P132: 2018-03-01 | Q132: 2017-03-01 | R132: Korkparkolag, alm. tilskær.. er indeholdt | S132: Rum under 2 kvm. | W132: 0
A133: Underlag | B133: 0 | C133: S200117B | D133: kvm | E133: =SUM(F133*$E$2+F133) -> 3.745160004 | F133: =SUM(G133*$F$2+G133) -> 3.745160004 | G133: =SUM(H133*$G$2+H133) -> 3.745160004 | H133: =SUM(I133*$H$2+I133) -> 3.745160004 | I133: =SUM(J133*$I$2+J133) -> 3.604581332 | J133: =SUM(K133*$J$2+K133) -> 3.465943589 | K133: 3.394655816 | L133: 3.324834296 | M133: 3.25644887 | N133: =SUM(O133*$N$2+O133) -> 3.18947 | O133: 3.13 | P133: 2018-03-01 | Q133: 2017-03-01 | R133: Korkparkolag, alm. tilskær.. er indeholdt | S133: Rum 2 - 6 kvm. | W133: 0
A134: Underlag | B134: 0 | C134: S200117C | D134: kvm | E134: 3.338337512 | F134: 3.338337512 | G134: 3.338337512 | H134: 3.338337512 | I134: 3.213029366 | J134: 3.089451314 | K134: 3.025907261 | L134: 2.963670187 | M134: 2.90271321 | N134: 2.84301 | O134: 2.79 | P134: 2018-03-01 | Q134: 2017-03-01 | R134: Korkparkolag, alm. tilskær.. er indeholdt | S134: Rum 6 - 10 kvm. | W134: 0
A135: Underlag | B135: 0 | C135: S200117D | D135: kvm | E135: 2.943480387 | F135: 2.943480387 | G135: 2.943480387 | H135: 2.943480387 | I135: 2.832993635 | J135: 2.724032341 | K135: 2.668004252 | L135: 2.613128552 | M135: 2.55938154 | N135: 2.50674 | O135: 2.46 | P135: 2018-03-01 | Q135: 2017-03-01 | R135: Korkparkolag, alm. tilskær.. er indeholdt | S135: Rum 10 - 15 kvm. | W135: 0
A136: Underlag | B136: 0 | C136: S200117E | D136: kvm | E136: 2.74006914 | F136: 2.74006914 | G136: 2.74006914 | H136: 2.74006914 | I136: 2.637217652 | J136: 2.535786204 | K136: 2.483629974 | L136: 2.432546498 | M136: 2.38251371 | N136: 2.33351 | O136: 2.29 | P136: 2018-03-01 | Q136: 2017-03-01 | R136: Korkparkolag, alm. tilskær.. er indeholdt | S136: Rum 15 - 30 kvm. | W136: 0
A137: Underlag | B137: 0 | C137: S200117F | D137: kvm | E137: 2.41700422 | F137: 2.41700422 | G137: 2.41700422 | H137: 2.41700422 | I137: 2.326279326 | J137: 2.236807044 | K137: 2.190800239 | L137: 2.145739706 | M137: 2.10160598 | N137: 2.05838 | O137: 2.02 | P137: 2018-03-01 | Q137: 2017-03-01 | R137: Korkparkolag, alm. tilskær.. er indeholdt | S137: Rum 30 - 50 kvm. | W137: 0
A138: Underlag | B138: 0 | C138: S200117G | D138: kvm | E138: 2.41700422 | F138: 2.41700422 | G138: 2.41700422 | H138: 2.41700422 | I138: 2.326279326 | J138: 2.236807044 | K138: 2.190800239 | L138: 2.145739706 | M138: 2.10160598 | N138: 2.05838 | O138: 2.02 | P138: 2018-03-01 | Q138: 2017-03-01 | R138: Korkparkolag, alm. tilskær.. er indeholdt | S138: Rum 50 - 100 kvm. | W138: 0
A139: Underlag | B139: 0 | C139: S200117H | D139: kvm | E139: 2.153766137 | F139: 2.153766137 | G139: 2.153766137 | H139: 2.153766137 | I139: 2.072922172 | J139: 1.993194396 | K139: 1.952198233 | L139: 1.912045282 | M139: 1.8727182 | N139: 1.8342 | O139: 1.8 | P139: 2018-03-01 | Q139: 2017-03-01 | R139: Korkparkolag, alm. tilskær.. er indeholdt | S139: Rum over 100 kvm. | W139: 0
A140: Underlag | B140: 0 | C140: S200118A | D140: kvm | E140: 7.62193905 | F140: 7.62193905 | G140: 7.62193905 | H140: 7.62193905 | I140: 7.335841242 | J140: 7.053693501 | K140: 6.908612636 | L140: 6.766515804 | M140: 6.62734163 | N140: 6.49103 | O140: 6.37 | P140: 2018-03-01 | Q140: 2017-03-01 | R140: Dampspærre udlagt, bredde t.o.m. 100 cm | S140: Rum under 2 kvm. Damspærre m/alufolie, bredde 100 cm, limede samlinger, almindelig tilskæring er indeholdt | W140: 0
A141: Underlag | B141: 0 | C141: S200118B | D141: kvm | E141: 6.401471573 | F141: 6.401471573 | G141: 6.401471573 | H141: 6.401471573 | I141: 6.161185344 | J141: 5.924216677 | K141: 5.802366971 | L141: 5.683023478 | M141: 5.56613465 | N141: 5.45165 | O141: 5.35 | P141: 2018-03-01 | Q141: 2017-03-01 | R141: Dampspærre udlagt, bredde t.o.m. 100 cm | S141: Rum 2 - 6 kvm. Damspærre m/alufolie, bredde 100 cm, limede samlinger, almindelig tilskæring er indeholdt | W141: 0
A142: Underlag | B142: 0 | C142: S200118C | D142: kvm | E142: 5.707480262 | F142: 5.707480262 | G142: 5.707480262 | H142: 5.707480262 | I142: 5.493243755 | J142: 5.281965149 | K142: 5.173325318 | L142: 5.066919998 | M142: 4.96270323 | N142: 4.86063 | O142: 4.77 | P142: 2018-03-01 | Q142: 2017-03-01 | R142: Dampspærre udlagt, bredde t.o.m. 100 cm | S142: Rum 6 - 10 kvm. Damspærre m/alufolie, bredde 100 cm, limede samlinger, almindelig tilskæring er indeholdt | W142: 0
A143: Underlag | B143: 0 | C143: S200118D | D143: kvm | E143: 4.714354766 | F143: 4.714354766 | G143: 4.714354766 | H143: 4.714354766 | I143: 4.53739631 | J143: 4.362881067 | K143: 4.273145021 | L143: 4.185254673 | M143: 4.09917206 | N143: 4.01486 | O143: 3.94 | P143: 2018-03-01 | Q143: 2017-03-01 | R143: Dampspærre udlagt, bredde t.o.m. 100 cm | S143: Rum 10 - 15 kvm. Damspærre m/alufolie, bredde 100 cm, limede samlinger, almindelig tilskæring er indeholdt | W143: 0
A144: Underlag | B144: 0 | C144: S200118E | D144: kvm | E144: 4.319497641 | F144: 4.319497641 | G144: 4.319497641 | H144: 4.319497641 | I144: 4.157360578 | J144: 3.997462094 | K144: 3.915242012 | L144: 3.834713038 | M144: 3.75584039 | N144: 3.67859 | O144: 3.61 | P144: 2018-03-01 | Q144: 2017-03-01 | R144: Dampspærre udlagt, bredde t.o.m. 100 cm | S144: Rum 15 - 30 kvm. Damspærre m/alufolie, bredde 100 cm, limede samlinger, almindelig tilskæring er indeholdt | W144: 0
A145: Underlag | B145: 0 | C145: S200118F | D145: kvm | E145: 3.876779046 | F145: 3.876779046 | G145: 3.876779046 | H145: 3.876779046 | I145: 3.731259909 | J145: 3.587749913 | K145: 3.51395682 | L145: 3.441681508 | M145: 3.37089276 | N145: 3.30156 | O145: 3.24 | P145: 2018-03-01 | Q145: 2017-03-01 | R145: Dampspærre udlagt, bredde t.o.m. 100 cm | S145: Rum 30 - 50 kvm. Damspærre m/alufolie, bredde 100 cm, limede samlinger, almindelig tilskæring er indeholdt | W145: 0
A146: Underlag | B146: 0 | C146: S200118G | D146: kvm | E146: 3.876779046 | F146: 3.876779046 | G146: 3.876779046 | H146: 3.876779046 | I146: 3.731259909 | J146: 3.587749913 | K146: 3.51395682 | L146: 3.441681508 | M146: 3.37089276 | N146: 3.30156 | O146: 3.24 | P146: 2018-03-01 | Q146: 2017-03-01 | R146: Dampspærre udlagt, bredde t.o.m. 100 cm | S146: Rum 50 -100 kvm. Damspærre m/alufolie, bredde 100 cm, limede samlinger, almindelig tilskæring er indeholdt | W146: 0
A147: Underlag | B147: 0 | C147: S200118H | D147: kvm | E147: 3.517818023 | F147: 3.517818023 | G147: 3.517818023 | H147: 3.517818023 | I147: 3.385772881 | J147: 3.255550847 | K147: 3.188590447 | L147: 3.123007294 | M147: 3.05877306 | N147: 2.99586 | O147: 2.94 | P147: 2018-03-01 | Q147: 2017-03-01 | R147: Dampspærre udlagt, bredde t.o.m. 100 cm | S147: Rum over 100 kvm. Damspærre m/alufolie, bredde 100 cm, limede samlinger, almindelig tilskæring er indeholdt | W147: 0
A148: Underlag | B148: 0 | C148: S200119A | D148: kvm | E148: 11.11582634 | F148: 11.11582634 | G148: 11.11582634 | H148: 11.11582634 | I148: 10.69858165 | J148: 10.28709774 | K148: 10.07551199 | L148: 9.868278151 | M148: 9.66530671 | N148: 9.46651 | O148: 9.29 | P148: 2018-03-01 | Q148: 2017-03-01 | R148: Polystyrolplader t.om. 100 mm udlagt | S148: Rum under 2 kvm. Polystyrolplader og lign. under 100 mm, almindelig tilskæring er indeholdt | W148: 0
A149: Underlag | B149: 0 | C149: S200119B | D149: kvm | E149: 8.291999626 | F149: 8.291999626 | G149: 8.291999626 | H149: 8.291999626 | I149: 7.980750362 | J149: 7.673798425 | K149: 7.515963198 | L149: 7.361374336 | M149: 7.20996507 | N149: 7.06167 | O149: 6.93 | P149: 2018-03-01 | Q149: 2017-03-01 | R149: Polystyrolplader t.om. 100 mm udlagt | S149: Rum 2 - 6 kvm. Polystyrolplader og lign. under 100 mm, almindelig tilskæring er indeholdt | W149: 0
A150: Underlag | B150: 0 | C150: S200119C | D150: kvm | E150: 7.382631701 | F150: 7.382631701 | G150: 7.382631701 | H150: 7.382631701 | I150: 7.105516556 | J150: 6.832227457 | K150: 6.691701721 | L150: 6.554066328 | M150: 6.41926183 | N150: 6.28723 | O150: 6.17 | P150: 2018-03-01 | Q150: 2017-03-01 | R150: Polystyrolplader t.om. 100 mm udlagt | S150: Rum 6 - 10 kvm. Polystyrolplader og lign. under 100 mm, almindelig tilskæring er indeholdt | W150: 0
A151: Underlag | B151: 0 | C151: S200119D | D151: kvm | E151: 6.604882819 | F151: 6.604882819 | G151: 6.604882819 | H151: 6.604882819 | I151: 6.356961327 | J151: 6.112462814 | K151: 5.986741248 | L151: 5.863605532 | M151: 5.74300248 | N151: 5.62488 | O151: 5.52 | P151: 2018-03-01 | Q151: 2017-03-01 | R151: Polystyrolplader t.om. 100 mm udlagt | S151: Rum 10 - 15 kvm. Polystyrolplader og lign. under 100 mm, almindelig tilskæring er indeholdt | W151: 0
A152: Underlag | B152: 0 | C152: S200119E | D152: kvm | E152: 6.126268122 | F152: 6.126268122 | G152: 6.126268122 | H152: 6.126268122 | I152: 5.896311956 | J152: 5.669530726 | K152: 5.552919419 | L152: 5.43870658 | M152: 5.32684288 | N152: 5.21728 | O152: 5.12 | P152: 2018-03-01 | Q152: 2017-03-01 | R152: Polystyrolplader t.om. 100 mm udlagt | S152: Rum 15 - 30 kvm. Polystyrolplader og lign. under 100 mm, almindelig tilskæring er indeholdt | W152: 0
A153: Underlag | B153: 0 | C153: S200119F | D153: kvm | E153: 5.57586122 | F153: 5.57586122 | G153: 5.57586122 | H153: 5.57586122 | I153: 5.366565178 | J153: 5.160158825 | K153: 5.054024315 | L153: 4.950072786 | M153: 4.84825934 | N153: 4.74854 | O153: 4.66 | P153: 2018-03-01 | Q153: 2017-03-01 | R153: Polystyrolplader t.om. 100 mm udlagt | S153: Rum 30 - 50 kvm. Polystyrolplader og lign. under 100 mm, almindelig tilskæring er indeholdt | W153: 0
A154: Underlag | B154: 0 | C154: S200119G | D154: kvm | E154: 5.57586122 | F154: 5.57586122 | G154: 5.57586122 | H154: 5.57586122 | I154: 5.366565178 | J154: 5.160158825 | K154: 5.054024315 | L154: 4.950072786 | M154: 4.84825934 | N154: 4.74854 | O154: 4.66 | P154: 2018-03-01 | Q154: 2017-03-01 | R154: Polystyrolplader t.om. 100 mm udlagt | S154: Rum 50 -100 kvm. Polystyrolplader og lign. under 100 mm, almindelig tilskæring er indeholdt | W154: 0
A155: Underlag | B155: 0 | C155: S200119H | D155: kvm | E155: 5.025454319 | F155: 5.025454319 | G155: 5.025454319 | H155: 5.025454319 | I155: 4.836818401 | J155: 4.650786924 | K155: 4.555129211 | L155: 4.461438992 | M155: 4.3696758 | N155: 4.2798 | O155: 4.2 | P155: 2018-03-01 | Q155: 2017-03-01 | R155: Polystyrolplader t.om. 100 mm udlagt | S155: Rum over 100 kvm. Polystyrolplader og lign. under 100 mm, almindelig tilskæring er indeholdt | W155: 0
A156: Belægning | B156: 0 | C156: S200120A | D156: kvm | E156: 63.88309668 | F156: 63.88309668 | G156: 63.88309668 | H156: 63.88309668 | I156: 61.48517486 | J156: 59.12036045 | K156: 57.9043687 | L156: 56.71338756 | M156: 55.54690261 | N156: 54.40441 | O156: 53.39 | P156: 2018-03-01 | Q156: 2017-03-01 | R156: Lægning af luvtæpper og nålefilt | S156: Rum under 2 kvm. Luvtæppe og nålefilt, lægning, klæbning, almindelig tilskæring, div. tillæg | W156: 0
A157: Belægning | B157: 0 | C157: S200120B | D157: kvm | E157: 43.53000669 | F157: 43.53000669 | G157: 43.53000669 | H157: 43.53000669 | I157: 41.89606034 | J157: 40.2846734 | K157: 39.4560954 | L157: 38.64455965 | M157: 37.84971562 | N157: 37.07122 | O157: 36.38 | P157: 2018-03-01 | Q157: 2017-03-01 | R157: Lægning af luvtæpper og nålefilt | S157: Rum 2 - 6 kvm. Luvtæppe og nålefilt, lægning, klæbning, almindelig tilskæring, div. Tillæg | W157: 0
A158: Belægning | B158: 0 | C158: S200120C | D158: kvm | E158: 32.98851799 | F158: 32.98851799 | G158: 32.98851799 | H158: 32.98851799 | I158: 31.75025793 | J158: 30.52909417 | K158: 29.9011696 | L158: 29.28616024 | M158: 28.68380043 | N158: 28.09383 | O158: 27.57 | P158: 2018-03-01 | Q158: 2017-03-01 | R158: Lægning af luvtæpper og nålefilt | S158: Rum 6 - 10 kvm. Luvtæppe og nålefilt, lægning, klæbning, almindelig tilskæring, div. Tillæg | W158: 0
A159: Belægning | B159: 0 | C159: S200120D | D159: kvm | E159: 25.15120233 | F159: 25.15120233 | G159: 25.15120233 | H159: 25.15120233 | I159: 24.20712447 | J159: 23.27608122 | K159: 22.79733714 | L159: 22.32843991 | M159: 21.86918698 | N159: 21.41938 | O159: 21.02 | P159: 2018-03-01 | Q159: 2017-03-01 | R159: Lægning af luvtæpper og nålefilt | S159: Rum 10 - 15 kvm. Luvtæppe og nålefilt, lægning, klæbning, almindelig tilskæring, div. Tillæg | W159: 0
A160: Belægning | B160: 0 | C160: S200120E | D160: kvm | E160: 21.86072629 | F160: 21.86072629 | G160: 21.86072629 | H160: 21.86072629 | I160: 21.04016004 | J160: 20.23092312 | K160: 19.81481207 | L160: 19.40725961 | M160: 19.00808973 | N160: 18.61713 | O160: 18.27 | P160: 2018-03-01 | Q160: 2017-03-01 | R160: Lægning af luvtæpper og nålefilt | S160: Rum 15 - 30 kvm. Luvtæppe og nålefilt, lægning, klæbning, almindelig tilskæring, div. Tillæg | W160: 0
A161: Belægning | B161: 0 | C161: S200120F | D161: kvm | E161: 18.61811171 | F161: 18.61811171 | G161: 18.61811171 | H161: 18.61811171 | I161: 17.91926055 | J161: 17.23005822 | K161: 16.87566917 | L161: 16.52856922 | M161: 16.18860844 | N161: 15.85564 | O161: 15.56 | P161: 2018-03-01 | Q161: 2017-03-01 | R161: Lægning af luvtæpper og nålefilt | S161: Rum 30 - 50 kvm. Luvtæppe og nålefilt, lægning, klæbning, almindelig tilskæring, div. Tillæg | W161: 0
A162: Belægning | B162: 0 | C162: S200120G | D162: kvm | E162: 15.68659669 | F162: 15.68659669 | G162: 15.68659669 | H162: 15.68659669 | I162: 15.09778315 | J162: 14.51709918 | K162: 14.21851046 | L162: 13.92606314 | M162: 13.63963089 | N162: 13.35909 | O162: 13.11 | P162: 2018-03-01 | Q162: 2017-03-01 | R162: Lægning af luvtæpper og nålefilt | S162: Rum 50 - 100 kvm. Luvtæppe og nålefilt, lægning, klæbning, almindelig tilskæring, div. Tillæg | W162: 0
A163: Belægning | B163: 0 | C163: S200120H | D163: kvm | E163: 14.1430643 | F163: 14.1430643 | G163: 14.1430643 | H163: 14.1430643 | I163: 13.61218893 | J163: 13.0886432 | K163: 12.81943506 | L163: 12.55576402 | M163: 12.29751618 | N163: 12.04458 | O163: 11.82 | P163: 2018-03-01 | Q163: 2017-03-01 | R163: Lægning af luvtæpper og nålefilt | S163: Rum over 100 kvm. Luvtæppe og nålefilt, lægning, klæbning, almindelig tilskæring, div. Tillæg | W163: 0
A164: Belægning | B164: 0 | C164: S200121A | D164: kvm | E164: 7.071532148 | F164: 7.071532148 | G164: 7.071532148 | H164: 7.071532148 | I164: 6.806094464 | J164: 6.5443216 | K164: 6.409717532 | L164: 6.27788201 | M164: 6.14875809 | N164: 6.02229 | O164: 5.91 | P164: 2018-03-01 | Q164: 2017-03-01 | R164: Opskæring af nålefilt og Luvtæpper (20%) pr kvm | S164: Rum under 2 kvm (20% tillæg) | W164: 0
A165: Belægning | B165: 0 | C165: S200121B | D165: kvm | E165: 4.379324478 | F165: 4.379324478 | G165: 4.379324478 | H165: 4.379324478 | I165: 4.214941749 | J165: 4.052828605 | K165: 3.969469741 | L165: 3.887825407 | M165: 3.80786034 | N165: 3.72954 | O165: 3.66 | P165: 2018-03-01 | Q165: 2017-03-01 | R165: Opskæring af nålefilt og Luvtæpper (20%) pr kvm | S165: Rum 2 - 6 kvm (20% tillæg) | W165: 0
A166: Belægning | B166: 0 | C166: S200121C | D166: kvm | E166: 3.386198981 | F166: 3.386198981 | G166: 3.386198981 | H166: 3.386198981 | I166: 3.259094304 | J166: 3.133744523 | K166: 3.069289444 | L166: 3.006160083 | M166: 2.94432917 | N166: 2.88377 | O166: 2.83 | P166: 2018-03-01 | Q166: 2017-03-01 | R166: Opskæring af nålefilt og Luvtæpper (20%) pr kvm | S166: Rum 6 - 10 kvm (20% tillæg) | W166: 0
A167: Belægning | B167: 0 | C167: S200121D | D167: kvm | E167: 2.452900322 | F167: 2.452900322 | G167: 2.452900322 | H167: 2.452900322 | I167: 2.360828029 | J167: 2.270026951 | K167: 2.223336877 | L167: 2.177607127 | M167: 2.13281795 | N167: 2.08895 | O167: 2.05 | P167: 2018-03-01 | Q167: 2017-03-01 | R167: Opskæring af nålefilt og Luvtæpper (20%) pr kvm | S167: Rum 10 - 15 kvm (20% tillæg) | W167: 0
A168: Belægning | B168: 0 | C168: S200121E | D168: kvm | E168: 2.297350546 | F168: 2.297350546 | G168: 2.297350546 | H168: 2.297350546 | I168: 2.211116983 | J168: 2.126074022 | K168: 2.082344782 | L168: 2.039514968 | M168: 1.99756608 | N168: 1.95648 | O168: 1.92 | P168: 2018-03-01 | Q168: 2017-03-01 | R168: Opskæring af nålefilt og Luvtæpper (20%) pr kvm | S168: Rum 15 - 30 kvm (20% tillæg) | W168: 0
A169: Belægning | B169: 0 | C169: S200121F | D169: kvm | E169: 2.070008565 | F169: 2.070008565 | G169: 2.070008565 | H169: 2.070008565 | I169: 1.992308532 | J169: 1.915681281 | K169: 1.876279413 | L169: 1.837687966 | M169: 1.79989027 | N169: 1.76287 | O169: 1.73 | P169: 2018-03-01 | Q169: 2017-03-01 | R169: Opskæring af nålefilt og Luvtæpper (20%) pr kvm | S169: Rum 30 - 50 kvm (20% tillæg) | W169: 0
A170: Belægning | B170: 0 | C170: S200121G | D170: kvm | E170: 2.034112462 | F170: 2.034112462 | G170: 2.034112462 | H170: 2.034112462 | I170: 1.957759829 | J170: 1.882461374 | K170: 1.843742776 | L170: 1.805820544 | M170: 1.7686783 | N170: 1.7323 | O170: 1.7 | P170: 2018-03-01 | Q170: 2017-03-01 | R170: Opskæring af nålefilt og Luvtæpper (20%) pr kvm | S170: Rum 50 - 100 kvm (20% tillæg) | W170: 0
A171: Belægning | B171: 0 | C171: S200121H | D171: kvm | E171: 1.902493421 | F171: 1.902493421 | G171: 1.902493421 | H171: 1.902493421 | I171: 1.831081252 | J171: 1.76065505 | K171: 1.724441773 | L171: 1.688973333 | M171: 1.65423441 | N171: 1.62021 | O171: 1.59 | P171: 2018-03-01 | Q171: 2017-03-01 | R171: Opskæring af nålefilt og Luvtæpper (20%) pr kvm | S171: Rum over 100 kvm (20% tillæg) | W171: 0
A172: Belægning | B172: 0 | C172: S200122A | D172: kvm | E172: 61.68146908 | F172: 61.68146908 | G172: 61.68146908 | H172: 61.68146908 | I172: 59.36618776 | J172: 57.08287284 | K172: 55.90878829 | L172: 54.75885239 | M172: 53.63256845 | N172: 52.52945 | O172: 51.55 | P172: 2018-03-01 | Q172: 2017-03-01 | R172: Lægning af linoleum/vinyl | S172: Rum under 2 kvm. Linoleum/vinyl, klæbning, almindelig tilskæring, div. Tillæg | W172: 0
A173: Belægning | B173: 0 | C173: S200122B | D173: kvm | E173: 41.36427519 | F173: 41.36427519 | G173: 41.36427519 | H173: 41.36427519 | I173: 39.81162193 | J173: 38.28040571 | K173: 37.49305162 | L173: 36.72189189 | M173: 35.96659343 | N173: 35.22683 | O173: 34.57 | P173: 2018-03-01 | Q173: 2017-03-01 | R173: Lægning af linoleum/vinyl | S173: Rum 2 - 6 kvm. Linoleum/vinyl, klæbning, almindelig tilskæring, div. Tillæg | W173: 0
A174: Belægning | B174: 0 | C174: S200122C | D174: kvm | E174: 31.95949639 | F174: 31.95949639 | G174: 31.95949639 | H174: 31.95949639 | I174: 30.75986178 | J174: 29.57679018 | K174: 28.96845267 | L174: 28.37262749 | M174: 27.78905729 | N174: 27.21749 | O174: 26.71 | P174: 2018-03-01 | Q174: 2017-03-01 | R174: Lægning af linoleum/vinyl | S174: Rum 6 - 10 kvm. Linoleum/vinyl, klæbning, almindelig tilskæring, div. Tillæg | W174: 0
A175: Belægning | B175: 0 | C175: S200122D | D175: kvm | E175: 24.98368718 | F175: 24.98368718 | G175: 24.98368718 | H175: 24.98368718 | I175: 24.04589719 | J175: 23.12105499 | K175: 22.6454995 | L175: 22.17972527 | M175: 21.72353112 | N175: 21.27672 | O175: 20.88 | P175: 2018-03-01 | Q175: 2017-03-01 | R175: Lægning af linoleum/vinyl | S175: Rum 10 - 15 kvm. Linoleum/vinyl, klæbning, almindelig tilskæring, div. Tillæg | W175: 0
A176: Belægning | B176: 0 | C176: S200122E | D176: kvm | E176: 21.95644923 | F176: 21.95644923 | G176: 21.95644923 | H176: 21.95644923 | I176: 21.13228992 | J176: 20.31950954 | K176: 19.90157643 | L176: 19.4922394 | M176: 19.09132165 | N176: 18.69865 | O176: 18.35 | P176: 2018-03-01 | Q176: 2017-03-01 | R176: Lægning af linoleum/vinyl | S176: Rum 15 - 30 kvm. Linoleum/vinyl, klæbning, almindelig tilskæring, div. Tillæg | W176: 0
A177: Belægning | B177: 0 | C177: S200122F | D177: kvm | E177: 18.90528053 | F177: 18.90528053 | G177: 18.90528053 | H177: 18.90528053 | I177: 18.19565018 | J177: 17.49581748 | K177: 17.13596227 | L177: 16.78350859 | M177: 16.4383042 | N177: 16.1002 | O177: 15.8 | P177: 2018-03-01 | Q177: 2017-03-01 | R177: Lægning af linoleum/vinyl | S177: Rum 30 - 50 kvm. Linoleum/vinyl, klæbning, almindelig tilskæring, div. Tillæg | W177: 0
A178: Belægning | B178: 0 | C178: S200122G | D178: kvm | E178: 16.7874105 | F178: 16.7874105 | G178: 16.7874105 | H178: 16.7874105 | I178: 16.15727671 | J178: 15.53584299 | K178: 15.21630067 | L178: 14.90333073 | M178: 14.59679797 | N178: 14.29657 | O178: 14.03 | P178: 2018-03-01 | Q178: 2017-03-01 | R178: Lægning af linoleum/vinyl | S178: Rum 50 - 100 kvm. Linoleum/vinyl, klæbning, almindelig tilskæring, div. Tillæg | W178: 0
A179: Belægning | B179: 0 | C179: S200122H | D179: kvm | E179: 15.37549714 | F179: 15.37549714 | G179: 15.37549714 | H179: 15.37549714 | I179: 14.79836106 | J179: 14.22919333 | K179: 13.93652628 | L179: 13.64987882 | M179: 13.36912715 | N179: 13.09415 | O179: 12.85 | P179: 2018-03-01 | Q179: 2017-03-01 | R179: Lægning af linoleum/vinyl | S179: Rum over 100 kvm. Linoleum/vinyl, klæbning, almindelig tilskæring, div. Tillæg | W179: 0
A180: Belægning | B180: 0 | C180: S200123A | D180: kvm | E180: 74.77158104 | F180: 74.77158104 | G180: 74.77158104 | H180: 74.77158104 | I180: 71.96494807 | J180: 69.19706545 | K180: 67.77381533 | L180: 66.37983871 | M180: 65.01453351 | N180: 63.67731 | O180: 62.49 | P180: 2018-03-01 | Q180: 2017-03-01 | R180: Linoleum som Sandwichbelægning | S180: Rum under 2 kvm. Linoleum bestående af forskellige materialelag, kaldet ”Sandwichbelægning” over 3,5 mm t.o.m. 6,0 mm, klæbning og almindelig tilskæring | W180: 0
A181: Belægning | B181: 0 | C181: S200123B | D181: kvm | E181: 50.17078561 | F181: 50.17078561 | G181: 50.17078561 | H181: 50.17078561 | I181: 48.28757037 | J181: 46.43035613 | K181: 45.47537329 | L181: 44.5400326 | M181: 43.62393007 | N181: 42.72667 | O181: 41.93 | P181: 2018-03-01 | Q181: 2017-03-01 | R181: Linoleum som Sandwichbelægning | S181: Rum 2 - 6 kvm. Linoleum bestående af forskellige materialelag, kaldet ”Sandwichbelægning” over 3,5 mm t.o.m. 6,0 mm, klæbning og almindelig tilskæring | W181: 0
A182: Belægning | B182: 0 | C182: S200123C | D182: kvm | E182: 38.76779046 | F182: 38.76779046 | G182: 38.76779046 | H182: 38.76779046 | I182: 37.31259909 | J182: 35.87749913 | K182: 35.1395682 | L182: 34.41681508 | M182: 33.7089276 | N182: 33.0156 | O182: 32.4 | P182: 2018-03-01 | Q182: 2017-03-01 | R182: Linoleum som Sandwichbelægning | S182: Rum 6 - 10 kvm. Linoleum bestående af forskellige materialelag, kaldet ”Sandwichbelægning” over 3,5 mm t.o.m. 6,0 mm, klæbning og almindelig tilskæring | W182: 0
A183: Belægning | B183: 0 | C183: S200123D | D183: kvm | E183: 30.32024106 | F183: 30.32024106 | G183: 30.32024106 | H183: 30.32024106 | I183: 29.18213769 | J183: 28.05974778 | K183: 27.4826129 | L183: 26.91734858 | M183: 26.36371066 | N183: 25.82146 | O183: 25.34 | P183: 2018-03-01 | Q183: 2017-03-01 | R183: Linoleum som Sandwichbelægning | S183: Rum 10 - 15 kvm. Linoleum bestående af forskellige materialelag, kaldet ”Sandwichbelægning” over 3,5 mm t.o.m. 6,0 mm, klæbning og almindelig tilskæring | W183: 0
A184: Belægning | B184: 0 | C184: S200123E | D184: kvm | E184: 26.63490789 | F184: 26.63490789 | G184: 26.63490789 | H184: 26.63490789 | I184: 25.63513753 | J184: 24.6491707 | K184: 24.14218482 | L184: 23.64562666 | M184: 23.15928174 | N184: 22.68294 | O184: 22.26 | P184: 2018-03-01 | Q184: 2017-03-01 | R184: Linoleum som Sandwichbelægning | S184: Rum 15 - 30 kvm. Linoleum bestående af forskellige materialelag, kaldet ”Sandwichbelægning” over 3,5 mm t.o.m. 6,0 mm, klæbning og almindelig tilskæring | W184: 0
A185: Belægning | B185: 0 | C185: S200123F | D185: kvm | E185: 22.96154009 | F185: 22.96154009 | G185: 22.96154009 | H185: 22.96154009 | I185: 22.0996536 | J185: 21.24966692 | K185: 20.81260227 | L185: 20.3845272 | M185: 19.96525681 | N185: 19.55461 | O185: 19.19 | P185: 2018-03-01 | Q185: 2017-03-01 | R185: Linoleum som Sandwichbelægning | S185: Rum 30 - 50 kvm. Linoleum bestående af forskellige materialelag, kaldet ”Sandwichbelægning” over 3,5 mm t.o.m. 6,0 mm, klæbning og almindelig tilskæring | W185: 0
A186: Belægning | B186: 0 | C186: S200123G | D186: kvm | E186: 20.00609434 | F186: 20.00609434 | G186: 20.00609434 | H186: 20.00609434 | I186: 19.25514373 | J186: 18.51456128 | K186: 18.13375248 | L186: 17.76077618 | M186: 17.39547128 | N186: 17.03768 | O186: 16.72 | P186: 2018-03-01 | Q186: 2017-03-01 | R186: Linoleum som Sandwichbelægning | S186: Rum 50 - 100 kvm. Linoleum bestående af forskellige materialelag, kaldet ”Sandwichbelægning” over 3,5 mm t.o.m. 6,0 mm, klæbning og almindelig tilskæring | W186: 0
A187: Belægning | B187: 0 | C187: S200123H | D187: kvm | E187: 17.64891695 | F187: 17.64891695 | G187: 17.64891695 | H187: 17.64891695 | I187: 16.98644557 | J187: 16.33312075 | K187: 15.99717997 | L187: 15.66814884 | M187: 15.34588525 | N187: 15.03025 | O187: 14.75 | P187: 2018-03-01 | Q187: 2017-03-01 | R187: Linoleum som Sandwichbelægning | S187: Rum over 100kvm. Linoleum bestående af forskellige materialelag, kaldet ”Sandwichbelægning” over 3,5 mm t.o.m. 6,0 mm, klæbning og almindelig tilskæring | W187: 0
A188: Belægning | B188: 0 | C188: S200124A | D188: kvm | E188: 7.99286544 | F188: 7.99286544 | G188: 7.99286544 | H188: 7.99286544 | I188: 7.692844504 | J188: 7.39696587 | K188: 7.244824554 | L188: 7.095812492 | M188: 6.94986532 | N188: 6.80692 | O188: 6.68 | P188: 2018-03-01 | Q188: 2017-03-01 | R188: Opskæring af Linolium/vinyl | S188: Rum under 2 kvm (20% tillæg) | W188: 0
A189: Belægning | B189: 0 | C189: S200124B | D189: kvm | E189: 4.965627482 | F189: 4.965627482 | G189: 4.965627482 | H189: 4.965627482 | I189: 4.77923723 | J189: 4.595420413 | K189: 4.500901482 | L189: 4.408326623 | M189: 4.31765585 | N189: 4.22885 | O189: 4.15 | P189: 2018-03-01 | Q189: 2017-03-01 | R189: Opskæring af Linolium/vinyl | S189: Rum 2 - 6 kvm (20% tillæg) | W189: 0
A190: Belægning | B190: 0 | C190: S200124C | D190: kvm | E190: 3.793021474 | F190: 3.793021474 | G190: 3.793021474 | H190: 3.793021474 | I190: 3.650646269 | J190: 3.510236797 | K190: 3.438037999 | L190: 3.367324191 | M190: 3.29806483 | N190: 3.23023 | O190: 3.17 | P190: 2018-03-01 | Q190: 2017-03-01 | R190: Opskæring af Linolium/vinyl | S190: Rum 6 - 10 kvm (20% tillæg) | W190: 0
A191: Belægning | B191: 0 | C191: S200124D | D191: kvm | E191: 3.122960898 | F191: 3.122960898 | G191: 3.122960898 | H191: 3.122960898 | I191: 3.005737149 | J191: 2.890131874 | K191: 2.830687438 | L191: 2.772465659 | M191: 2.71544139 | N191: 2.65959 | O191: 2.61 | P191: 2018-03-01 | Q191: 2017-03-01 | R191: Opskæring af Linolium/vinyl | S191: Rum 10 - 15 kvm (20% tillæg) | W191: 0
A192: Belægning | B192: 0 | C192: S200124E | D192: kvm | E192: 2.895618917 | F192: 2.895618917 | G192: 2.895618917 | H192: 2.895618917 | I192: 2.786928698 | J192: 2.679739132 | K192: 2.624622069 | L192: 2.570638657 | M192: 2.51776558 | N192: 2.46598 | O192: 2.42 | P192: 2018-03-01 | Q192: 2017-03-01 | R192: Opskæring af Linolium/vinyl | S192: Rum 15 - 30 kvm (20% tillæg) | W192: 0
A193: Belægning | B193: 0 | C193: S200124F | D193: kvm | E193: 2.620415466 | F193: 2.620415466 | G193: 2.620415466 | H193: 2.620415466 | I193: 2.522055309 | J193: 2.425053182 | K193: 2.375174517 | L193: 2.32632176 | M193: 2.27847381 | N193: 2.23161 | O193: 2.19 | P193: 2018-03-01 | Q193: 2017-03-01 | R193: Opskæring af Linolium/vinyl | S193: Rum 30 - 50 kvm (20% tillæg) | W193: 0
A194: Belægning | B194: 0 | C194: S200124G | D194: kvm | E194: 2.548623262 | F194: 2.548623262 | G194: 2.548623262 | H194: 2.548623262 | I194: 2.452957903 | J194: 2.358613369 | K194: 2.310101243 | L194: 2.262586917 | M194: 2.21604987 | N194: 2.17047 | O194: 2.13 | P194: 2018-03-01 | Q194: 2017-03-01 | R194: Opskæring af Linolium/vinyl | S194: Rum 50 - 100 kvm (20% tillæg) | W194: 0
A195: Belægning | B195: 0 | C195: S200124H | D195: kvm | E195: 2.357177383 | F195: 2.357177383 | G195: 2.357177383 | H195: 2.357177383 | I195: 2.268698155 | J195: 2.181440533 | K195: 2.136572511 | L195: 2.092627337 | M195: 2.04958603 | N195: 2.00743 | O195: 1.97 | P195: 2018-03-01 | Q195: 2017-03-01 | R195: Opskæring af Linolium/vinyl | S195: Rum over 100 kvm (20% tillæg) | W195: 0
A196: Belægning | B196: 0 | C196: S200125A | D196: kvm | E196: 9.62015541 | F196: 9.62015541 | G196: 9.62015541 | H196: 9.62015541 | I196: 9.259052368 | J196: 8.902934969 | K196: =SUM(L196*$K$2+L196) -> 8.719818775 | L196: =SUM(M196*$L$2+M196) -> 8.540468927 | M196: =SUM(N196*$M$2+N196) -> 8.36480796 | N196: 8.19276 | O196: 8.04 | P196: 2018-03-01 | Q196: 2017-03-01 | R196: Tæt tilskæring | S196: Rum under 2 kvm. | W196: 0
A197: Belægning | B197: 0 | C197: S200125B | D197: kvm | E197: =SUM(F197*$E$2+F197) -> 7.179220455 | F197: =SUM(G197*$F$2+G197) -> 7.179220455 | G197: =SUM(H197*$G$2+H197) -> 7.179220455 | H197: =SUM(I197*$H$2+I197) -> 7.179220455 | I197: =SUM(J197*$I$2+J197) -> 6.909740573 | J197: =SUM(K197*$J$2+K197) -> 6.64398132 | K197: 6.507327444 | L197: 6.373484274 | M197: 6.242394 | N197: =SUM(O197*$N$2+O197) -> 6.114 | O197: 6 | P197: 2018-03-01 | Q197: 2017-03-01 | R197: Tæt tilskæring | S197: Rum 2 - 6 kvm. | W197: 0
A198: Belægning | B198: 0 | C198: S200125C | D198: kvm | E198: 5.073315788 | F198: 5.073315788 | G198: 5.073315788 | H198: 5.073315788 | I198: 4.882883338 | J198: 4.695080133 | K198: 4.598511394 | L198: 4.503928887 | M198: 4.41129176 | N198: 4.32056 | O198: 4.24 | P198: 2018-03-01 | Q198: 2017-03-01 | R198: Tæt tilskæring | S198: Rum 6 - 10 kvm. | W198: 0
A199: Belægning | B199: 0 | C199: S200125D | D199: kvm | E199: 4.020363455 | F199: 4.020363455 | G199: 4.020363455 | H199: 4.020363455 | I199: 3.869454721 | J199: 3.720629539 | K199: 3.644103369 | L199: 3.569151193 | M199: 3.49574064 | N199: 3.42384 | O199: 3.36 | P199: 2018-03-01 | Q199: 2017-03-01 | R199: Tæt tilskæring | S199: Rum 10 - 15 kvm. | W199: 0
A200: Belægning | B200: 0 | C200: S200125E | D200: kvm | E200: 3.314406777 | F200: 3.314406777 | G200: 3.314406777 | H200: 3.314406777 | I200: 3.189996898 | J200: 3.067304709 | K200: 3.00421617 | L200: 2.94242524 | M200: 2.88190523 | N200: 2.82263 | O200: 2.77 | P200: 2018-03-01 | Q200: 2017-03-01 | R200: Tæt tilskæring | S200: Rum 15 - 30 kvm. | W200: 0
... 549 more rows

Sheet Montør 3
J1: ARBEJDSSEDDEL
J2: NR. | K2: =Skurbog!C1 -> 0
B4: Arbejdssted: | C4: =Skurbog!C2 -> 0 | I4: Udføres:
B7: Kontaktperson: | F7: Tlf:
B8: Fakturaadr:
I9: Udstedt dato: | K9: =TODAY() -> 2025-07-14
B11: Att: | F11: Mærke/Rekv. | I11: Sagsansvarlig | K11: =Skurbog!C3 -> 0
B12: Udleveret | C12: Enhed | D12: Art | F12: Retur | G12: Brugt | H12: Arbejdets beskrivelse:
D13: Primer
D17: Spartelmasse
D22: Underlag
D27: Lim
D32: Lister
D37: Vinylprofiler
B39: Dato | C39: Montør | D39: Løn nr. | E39: Akkord | F39: Timeløn | G39: sats | H39: Overtid | I39: Km | J39: bemærkning.
B40: =Skurbog!A30 -> 00:00:00 | C40: =Skurbog!A72 -> Montør 3 | E40: =Skurbog!F30 -> 0 | F40: =Skurbog!G30 -> 0
B41: =Skurbog!A31 -> 00:00:00 | E41: =Skurbog!F31 -> 0 | F41: =Skurbog!G31 -> 0
B42: =Skurbog!A32 -> 00:00:00 | E42: =Skurbog!F32 -> 0 | F42: =Skurbog!G32 -> 0
B43: =Skurbog!A33 -> 00:00:00 | E43: =Skurbog!F33 -> 0 | F43: =Skurbog!G33 -> 0
B44: =Skurbog!A34 -> 00:00:00 | E44: =Skurbog!F34 -> 0 | F44: =Skurbog!G34 -> 0
